Workbook

Sheet MENU
C12: Intelligence Standard Reports

Sheet Company Dashboard
C2: DASHBOARD - UNIVERSAL CONSTRUCTION
C3: Period: | D3: March 2015
C5: Profit & Loss | E5: Actual | F5: Budget | G5: Variance | I5: Actual | J5: Budget | K5: Variance
E6: Mar 15 | F6: Mar 15 | I6: YTD | J6: YTD
C7: Revenue | E7: 126309.95 | F7: 0 | G7: 126309.95 | I7: 1030393.64 | J7: 0 | K7: 1030393.64
C8: Cost of Goods Sold | E8: 16595.7 | F8: 0 | G8: -16595.7 | I8: 224827.37 | J8: 0 | K8: -224827.37
C9: Gross Profit | E9: 109714.25 | F9: 0 | G9: 109714.25 | I9: 805566.27 | J9: 0 | K9: 805566.27
C10: Expenses | E10: 65658.97 | F10: 0 | G10: -65658.97 | I10: 519039.97 | J10: 0 | K10: -519039.97
C11: Operating Profit/(Loss) | E11: 44055.28 | F11: 0 | G11: 44055.28 | I11: 286526.3 | J11: 0 | K11: 286526.3
C12: Non Operating Income | E12: 0 | F12: 0 | G12: 0 | I12: 0 | J12: 0 | K12: 0
C13: Non Operating Expense | E13: 180.3 | F13: 0 | G13: -180.3 | I13: 1343.64 | J13: 0 | K13: -1343.64
C14: Net Profit/(Loss) | E14: 43874.98 | F14: 0 | G14: 43874.98 | I14: 285182.66 | J14: 0 | K14: 285182.66
C16: Top 5 Expenses | E16: Actual | F16: Budget | G16: Variance | I16: Actual | J16: Budget | K16: Variance
E17: Mar 15 | F17: Mar 15 | I17: YTD | J17: YTD
C18: Wages & Salaries-Const | E18: 19155.31 | F18: 0 | G18: -19155.31 | I18: 150101.56 | J18: 0 | K18: -150101.56
C19: Wages & Salaries-Admin | E19: 15840.8 | F19: 0 | G19: -15840.8 | I19: 140260.08 | J19: 0 | K19: -140260.08
C20: Material: Hardware-Const | E20: 12693.12 | F20: 0 | G20: -12693.12 | I20: 95187.19 | J20: 0 | K20: -95187.19
C21: Subcontractors-Const | E21: 0 | F21: 0 | G21: 0 | I21: 46749.98 | J21: 0 | K21: -46749.98
C22: Material: Roofing-Const | E22: 1669.2 | F22: 0 | G22: -1669.2 | I22: 36209.6 | J22: 0 | K22: -36209.6
E23: 49358.43 | F23: 0 | G23: -49358.43 | I23: 468508.41 | J23: 0 | K23: -468508.41
C25: Top 5 Customers | E25: YTD | F25: % | G25: Top 5 Salespersons | J25: YTD | K25: %
C26: International Oil | E26: 119087 | F26: 0.2843702958 | G26: (vide) | J26: 455875.6 | K26: 0.5528956967
C27: Bayswater School Board | E27: 90669 | F27: 0.2165103693 | G27: Sianos, Janice | J27: 155580 | K27: 0.1886907579
C28: Jordan Lighting Corp. | E28: 82805.9 | F28: 0.1977339111 | G28: Elliot, William K. | J28: 90365.9 | K28: 0.1095977
C29: Construction Concrete Corp | E29: 66212.5 | F29: 0.1581101901 | G29: Tremblay, Guy | J29: 61874.19 | K29: 0.07504234354
C30: Village Realty | E30: 60000 | F30: 0.1432752336 | G30: Pearson, Gary P. | J30: 60828 | K30: 0.07377350189
E31: 418774.4 | F31: 1 | J31: 824523.69 | K31: 1
C33: Top 5 Items | E33: YTD | F33: % | G33: Sales Summary | J33: Inventory | K33: Service
C34: H1030 Handles: Passage | E34: 215550 | F34: 0.5183279613 | G34: Yesterdays Sales | J34: 0 | K34: 0
C35: H1020 Handles: Locking | E35: 123400 | F35: 0.2967370467 | G35: Weekly Sales | J35: 2220 | K35: 1722.32
C36: R1001 Roofing: Asphalt Tile | E36: 28810 | F36: 0.06927872217 | G36: Monthly Sales | J36: 92914.14 | K36: 33722.32
C37: H2020 Hinges: Door | E37: 24843 | F37: 0.05973937157
C38: H2520 Nails: Wood | E38: 23253.4 | F38: 0.05591689824 | G38: Sales Orders | J38: 2742.37 | K38: 0
E39: 415856.4 | F39: 1
C40: Bottom 5 Items | E40: YTD | F40: % | G40: Purchase Summary | J40: Inventory | K40: Service
C41: W1020 Drywall: 5/8" | E41: 112.5 | F41: 0.07694412147 | G41: Yesterdays Purchases | J41: 0 | K41: 0
C42: H7030 Stain: Grey | E42: 132 | F42: 0.09028110252 | G42: Weekly Purchases | J42: 2790.76 | K42: 0
C43: H7020 Stain: Grey | E43: 180 | F43: 0.1231105944 | G43: Monthly Purchases | J43: 8319.71 | K43: 0
C44: H8020 Paint Thinner | E44: 473.6 | F44: 0.3239176527
C45: H7020 Stain: Brown | E45: 564 | F45: 0.385746529
E46: 1462.1 | F46: 1

Sheet Sales Analysis
A1: UNIVERSAL CONSTRUCTION
A2: SALES ANALYSIS
A3: for the period from 01 Jul 2014 to 31 Mar 2015
A5: Service / Inventory | B5: (All)
A6: SalesmanName | B6: (All)
A7: ProductCategory | B7: (All)
C9: Data
A10: CustomerName | B10: Product Code Name | C10: Selling Unit Quantity | D10: Stocking Unit Quantity | E10: Average Selling Unit Cost | F10: Average Selling Unit Price | G10: Freight | H10: TotalSale | I10: TotalCost | J10: Gross Profit | K10: GP %
A11: Ashburton Reinforcing | C11: 1475.8 | D11: 1475.8 | E11: 2.507416667 | F11: 60.16666667 | G11: 0 | H11: 33740 | I11: 5165.98 | J11: 28574.02 | K11: 0.8468885596
B12: S1020 Drafting | C12: 5.8 | D12: 5.8 | E12: 0 | F12: 100 | G12: 0 | H12: 580 | I12: 0 | J12: 580 | K12: 1
B13: H1020 Handles: Locking | C13: 1000 | D13: 1000 | E13: 3.7118 | F13: 30 | G13: 0 | H13: 30000 | I13: 3711.8 | J13: 26288.2 | K13: 0.8762733333
B14: H2010 Hinges: Cabinet | C14: 400 | D14: 400 | E14: 2.0027 | F14: 3 | G14: 0 | H14: 1200 | I14: 801.08 | J14: 398.92 | K14: 0.3324333333
B15: L1030 Plywood: 3/4" | C15: 70 | D15: 70 | E15: 9.33 | F15: 28 | G15: 0 | H15: 1960 | I15: 653.1 | J15: 1306.9 | K15: 0.6667857143
A17: Askew Shopping Centre | C17: 2670.5753 | D17: 2670.5753 | E17: 0.081945 | F17: 586.4642857 | G17: 145 | H17: 34845.55 | I17: 1638.9 | J17: 33206.65 | K17: 0.9529667346
B18: S1020 Drafting | C18: 160 | D18: 160 | E18: 0 | F18: 100 | G18: 0 | H18: 16000 | I18: 0 | J18: 16000 | K18: 1
B19: S1040 Engineering Consulting | C19: 0.5753 | D19: 0.5753 | E19: 0 | F19: 1000 | G19: 0 | H19: 575.55 | I19: 0 | J19: 575.55 | K19: 1
B20: S1080 Surveying | C20: 8 | D20: 8 | E20: 0 | F20: 500 | G20: 0 | H20: 4000 | I20: 0 | J20: 4000 | K20: 1
B21: FREIGHT | C21: 0 | D21: 0 | E21: 0 | G21: 145 | H21: 145 | I21: 0 | J21: 145 | K21: 1
B22: H2020 Hinges: Door | C22: 2500 | D22: 2500 | E22: 0.65556 | F22: 5.25 | G22: 0 | H22: 13125 | I22: 1638.9 | J22: 11486.1 | K22: 0.8751314286
B23: S1060 Estimating Consulting | C23: 2 | D23: 2 | E23: 0 | F23: 500 | G23: 0 | H23: 1000 | I23: 0 | J23: 1000 | K23: 1
A25: Bayswater School Board | C25: 4691 | D25: 4428.5 | E25: 23.45922091 | F25: 150.706 | G25: 75 | H25: 90669 | I25: 19600.79 | J25: 71068.21 | K25: 0.7838203796
B26: S1020 Drafting | C26: 240 | D26: 240 | E26: 0 | F26: 100 | G26: 0 | H26: 24000 | I26: 0 | J26: 24000 | K26: 1
B27: L1030 Plywood: 3/4" | C27: 170 | D27: 170 | E27: 8.66 | F27: 27.35 | G27: 0 | H27: 4649.5 | I27: 1472.2 | J27: 3177.3 | K27: 0.6833638026
B28: S1040 Engineering Consulting | C28: 4 | D28: 4 | E28: 0 | F28: 1000 | G28: 0 | H28: 4000 | I28: 0 | J28: 4000 | K28: 1
B29: FREIGHT | C29: 0 | D29: 0 | E29: 0 | G29: 75 | H29: 75 | I29: 0 | J29: 75 | K29: 1
B30: L2101 Lumber: 2x4 | C30: 400 | D30: 400 | E30: 0.98 | F30: 4.5 | G30: 0 | H30: 1800 | I30: 392 | J30: 1408 | K30: 0.7822222222
B31: H8010 Paint Stripper | C31: 350 | D31: 87.5 | E31: 1.21711 | F31: 8.1 | G31: 0 | H31: 2835 | I31: 425.99 | J31: 2409.01 | K31: 0.8497389771
B32: W1010 Drywall: 1/2" | C32: 35 | D32: 35 | E32: 4.15171 | F32: 8.1 | G32: 0 | H32: 283.5 | I32: 145.31 | J32: 138.19 | K32: 0.4874426808
B33: R2040 Roof - Hip - 8 by 8ft | C33: 42 | D33: 42 | E33: 230.9381 | F33: 300 | G33: 0 | H33: 12600 | I33: 9699.4 | J33: 2900.6 | K33: 0.2302063492
B34: H1030 Handles: Passage | C34: 750 | D34: 750 | E34: 4.31491 | F34: 45 | G34: 0 | H34: 33750 | I34: 3236.18 | J34: 30513.82 | K34: 0.9041131852
B35: W1030 Drywall: 3/4" | C35: 100 | D35: 100 | E35: 6.4093 | F35: 11.9 | G35: 0 | H35: 1190 | I35: 640.93 | J35: 549.07 | K35: 0.4614033613
B36: H2520 Nails: Wood | C36: 2600 | D36: 2600 | E36: 1.3803 | F36: 2.11 | G36: 0 | H36: 5486 | I36: 3588.78 | J36: 1897.22 | K36: 0.3458293839
A38: Belvedere Nursing Home | C38: 1668.25 | D38: 1668.25 | E38: 8.687955714 | F38: 44.15 | G38: 0 | H38: 48874 | I38: 11264.48 | J38: 37609.52 | K38: 0.7695199902
B39: H1020 Handles: Locking | C39: 1000 | D39: 1000 | E39: 3.7118 | F39: 28 | G39: 0 | H39: 28000 | I39: 3711.8 | J39: 24288.2 | K39: 0.8674357143
B40: R1001 Roofing: Asphalt Tile | C40: 200 | D40: 200 | E40: 16.611945 | F40: 21.5 | G40: 0 | H40: 4300 | I40: 3322.38 | J40: 977.62 | K40: 0.2273534884
B41: R1010 Roofing: Rolled | C41: 200 | D41: 200 | E41: 5.69 | F41: 9.35 | G41: 0 | H41: 1870 | I41: 1138 | J41: 732 | K41: 0.3914438503
B42: S2015 Service Call | C42: 8.25 | D42: 8.25 | E42: 0 | F42: 100 | G42: 0 | H42: 825 | I42: 0 | J42: 825 | K42: 1
B43: R1020 Roofing: Shakes | C43: 170 | D43: 170 | E43: 18.19 | F43: 28.7 | G43: 0 | H43: 4879 | I43: 3092.3 | J43: 1786.7 | K43: 0.3662020906
B44: S4045 Repairs & Adjustments | C44: 90 | D44: 90 | E44: 0 | F44: 100 | G44: 0 | H44: 9000 | I44: 0 | J44: 9000 | K44: 1
A46: Brown, Jerome B. | C46: 1824.25 | D46: 1824.25 | E46: 3.37343875 | F46: 206.1642857 | G46: 220 | H46: 41585 | I46: 11634.41 | J46: 29950.59 | K46: 0.7202258026
B47: S1080 Surveying | C47: 1.25 | D47: 1.25 | E47: 0 | F47: 400 | G47: 0 | H47: 500 | I47: 0 | J47: 500 | K47: 1
B48: FREIGHT | C48: 0 | D48: 0 | E48: 0 | G48: 220 | H48: 220 | I48: 0 | J48: 220 | K48: 1
B49: S1060 Estimating Consulting | C49: 23 | D49: 23 | E49: 0 | F49: 1000 | G49: 0 | H49: 23000 | I49: 0 | J49: 23000 | K49: 1
B50: R1001 Roofing: Asphalt Tile | C50: 500 | D50: 500 | E50: 16.63578 | F50: 21.5 | G50: 0 | H50: 10750 | I50: 8317.89 | J50: 2432.11 | K50: 0.2262427907
B51: L2130 Lumber: 2x10 | C51: 300 | D51: 300 | E51: 4.46173 | F51: 8.25 | G51: 0 | H51: 2475 | I51: 1338.52 | J51: 1136.48 | K51: 0.4591838384
B52: L2010 Lumber:1x6 | C52: 400 | D52: 400 | E52: 2.56 | F52: 4.85 | G52: 0 | H52: 1940 | I52: 1024 | J52: 916 | K52: 0.4721649485
B53: L2020 Lumber: 1x8 | C53: 400 | D53: 400 | E53: 1.44 | F53: 4.95 | G53: 0 | H53: 1980 | I53: 576 | J53: 1404 | K53: 0.7090909091
B54: L2001 Lumber: 1x4 | C54: 200 | D54: 200 | E54: 1.89 | F54: 3.6 | G54: 0 | H54: 720 | I54: 378 | J54: 342 | K54: 0.475
A56: Cavendish, Peter S. | C56: 900 | D56: 900 | E56: 6.551645 | F56: 13.825 | G56: 0 | H56: 11460 | I56: 5444.22 | J56: 6015.78 | K56: 0.5249371728
B57: H9010 Glue: Plastic | C57: 500 | D57: 500 | E57: 2.02904 | F57: 4 | G57: 0 | H57: 2000 | I57: 1014.52 | J57: 985.48 | K57: 0.49274
B58: L1010 Plywood: 1/4" | C58: 400 | D58: 400 | E58: 11.07425 | F58: 23.65 | G58: 0 | H58: 9460 | I58: 4429.7 | J58: 5030.3 | K58: 0.531744186
A60: Construction Concrete Corp | C60: 2920 | D60: 2920 | E60: 4.237439231 | F60: 185.5666667 | G60: 340 | H60: 66212.5 | I60: 7111.07 | J60: 59101.43 | K60: 0.8926023032
B61: H1020 Handles: Locking | C61: 520 | D61: 520 | E61: 3.711805 | F61: 25 | G61: 0 | H61: 13000 | I61: 1930.14 | J61: 11069.86 | K61: 0.8515276923
B62: S1040 Engineering Consulting | C62: 20 | D62: 20 | E62: 0 | F62: 1000 | G62: 0 | H62: 20000 | I62: 0 | J62: 20000 | K62: 1
B63: FREIGHT | C63: 0 | D63: 0 | E63: 0 | G63: 340 | H63: 340 | I63: 0 | J63: 340 | K63: 1
B64: S1060 Estimating Consulting | C64: 10 | D64: 10 | E64: 0 | F64: 1000 | G64: 0 | H64: 10000 | I64: 0 | J64: 10000 | K64: 1
B65: W1010 Drywall: 1/2" | C65: 100 | D65: 100 | E65: 4.6652 | F65: 8.1 | G65: 0 | H65: 810 | I65: 466.52 | J65: 343.48 | K65: 0.4240493827
B66: R1001 Roofing: Asphalt Tile | C66: 150 | D66: 150 | E66: 16.652 | F66: 21.5 | G66: 0 | H66: 3225 | I66: 2499.8 | J66: 725.2 | K66: 0.2248682171
B67: W2001 Drywall Tape | C67: 450 | D67: 450 | E67: 0.3552 | F67: 4.5 | G67: 0 | H67: 2025 | I67: 159.84 | J67: 1865.16 | K67: 0.9210666667
B68: H2810 Screws: Drywall | C68: 1000 | D68: 1000 | E68: 0.5393 | F68: 1.7 | G68: 0 | H68: 1700 | I68: 539.3 | J68: 1160.7 | K68: 0.6827647059
B69: W1090 Drywall Mud | C69: 50 | D69: 50 | E69: 6.4094 | F69: 14.75 | G69: 0 | H69: 737.5 | I69: 320.47 | J69: 417.03 | K69: 0.5654644068
B70: S3020 Change Orders - Drafting | C70: 120 | D70: 120 | E70: 0 | F70: 100 | G70: 0 | H70: 12000 | I70: 0 | J70: 12000 | K70: 1
B71: C1020 Concrete Block | C71: 500 | D71: 500 | E71: 2.39 | F71: 4.75 | G71: 0 | H71: 2375 | I71: 1195 | J71: 1180 | K71: 0.4968421053
A73: DAB Collision Ltd | C73: 394 | D73: 394 | E73: 8.390686 | F73: 163.258 | G73: 0 | H73: 14979.5 | I73: 567.85 | J73: 14411.65 | K73: 0.9620915251
B74: S1020 Drafting | C74: 14 | D74: 14 | E74: 0 | F74: 110 | G74: 0 | H74: 1540 | I74: 0 | J74: 1540 | K74: 1
B75: S1080 Surveying | C75: 20 | D75: 20 | E75: 0 | F75: 500 | G75: 0 | H75: 10000 | I75: 0 | J75: 10000 | K75: 1
B76: H2520 Nails: Wood | C76: 50 | D76: 50 | E76: 1.3804 | F76: 1.79 | G76: 0 | H76: 89.5 | I76: 69.02 | J76: 20.48 | K76: 0.2288268156
B77: W2001 Drywall Tape | C77: 300 | D77: 300 | E77: 0.32103 | F77: 4.5 | G77: 0 | H77: 1350 | I77: 96.31 | J77: 1253.69 | K77: 0.9286592593
B78: F1020 Fence | C78: 10 | D78: 10 | E78: 40.252 | F78: 200 | G78: 0 | H78: 2000 | I78: 402.52 | J78: 1597.48 | K78: 0.79874
A80: District Of Slocan | C80: 192.5 | D80: 192.5 | E80: 3.228909091 | F80: 146.6 | G80: 0 | H80: 33130 | I80: 331.43 | J80: 32798.57 | K80: 0.9899960761
B81: H2010 Hinges: Cabinet | C81: 5 | D81: 5 | E81: 5.55 | F81: 2.6 | G81: 0 | H81: 13 | I81: 27.75 | J81: -14.75 | K81: -1.134615385
B82: S1080 Surveying | C82: 55 | D82: 55 | E82: 0 | F82: 500 | G82: 0 | H82: 27500 | I82: 0 | J82: 27500 | K82: 1
B83: L2101 Lumber: 2x4 | C83: 10 | D83: 10 | E83: 0.88 | F83: 3.7 | G83: 0 | H83: 37 | I83: 8.8 | J83: 28.2 | K83: 0.7621621622
B84: W1030 Drywall: 3/4" | C84: 10 | D84: 10 | E84: 6.41 | F84: 11.9 | G84: 0 | H84: 119 | I84: 64.1 | J84: 54.9 | K84: 0.4613445378
B85: S2015 Service Call | C85: 50 | D85: 50 | E85: 0 | F85: 50 | G85: 0 | H85: 2500 | I85: 0 | J85: 2500 | K85: 1
B86: H2810 Screws: Drywall | C86: 30 | D86: 30 | E86: 0.4 | F86: 1.7 | G86: 0 | H86: 51 | I86: 12 | J86: 39 | K86: 0.7647058824
B87: W1040 Drywall: 7/8" | C87: 10 | D87: 10 | E87: 6.538 | F87: 12.25 | G87: 0 | H87: 122.5 | I87: 65.38 | J87: 57.12 | K87: 0.4662857143
B88: W1020 Drywall: 5/8" | C88: 10 | D88: 10 | E88: 5.35 | F88: 11.25 | G88: 0 | H88: 112.5 | I88: 53.5 | J88: 59 | K88: 0.5244444444
B89: S3040 Change Orders - Engineering Consult | C89: 2.5 | D89: 2.5 | E89: 0 | F89: 1000 | G89: 0 | H89: 2500 | I89: 0 | J89: 2500 | K89: 1
B90: L1020 Plywood: 1/2" | C90: 10 | D90: 10 | E90: 9.99 | F90: 17.5 | G90: 0 | H90: 175 | I90: 99.9 | J90: 75.1 | K90: 0.4291428571
A92: Fogarty Motors | C92: 496.9 | D92: 496.9 | E92: 0.6328111111 | F92: 423.9888889 | G92: 0 | H92: 52230 | I92: 319.21 | J92: 51910.79 | K92: 0.9938883783
B93: S1020 Drafting | C93: 150 | D93: 150 | E93: 0 | F93: 100 | G93: 0 | H93: 15000 | I93: 0 | J93: 15000 | K93: 1
B94: S1040 Engineering Consulting | C94: 12.9 | D94: 12.9 | E94: 0 | F94: 1000 | G94: 0 | H94: 12900 | I94: 0 | J94: 12900 | K94: 1
B95: S1080 Surveying | C95: 20 | D95: 20 | E95: 0 | F95: 500 | G95: 0 | H95: 10000 | I95: 0 | J95: 10000 | K95: 1
B96: S1060 Estimating Consulting | C96: 4 | D96: 4 | E96: 0 | F96: 1000 | G96: 0 | H96: 4000 | I96: 0 | J96: 4000 | K96: 1
B97: H1030 Handles: Passage | C97: 10 | D97: 10 | E97: 4.315 | F97: 15 | G97: 0 | H97: 150 | I97: 43.15 | J97: 106.85 | K97: 0.7123333333
B98: H2520 Nails: Wood | C98: 200 | D98: 200 | E98: 1.3803 | F98: 0.9 | G98: 0 | H98: 180 | I98: 276.06 | J98: -96.06 | K98: -0.5336666667
B99: S4045 Repairs & Adjustments | C99: 100 | D99: 100 | E99: 0 | F99: 100 | G99: 0 | H99: 10000 | I99: 0 | J99: 10000 | K99: 1
A101: Garry High School Board | C101: 150 | D101: 112.5 | E101: 0.7093333333 | F101: 269.5333333 | G101: 0 | H101: 32304 | I101: 72.71 | J101: 32231.29 | K101: 0.9977491951
B102: S1040 Engineering Consulting | C102: 20 | D102: 20 | E102: 0 | F102: 1000 | G102: 0 | H102: 20000 | I102: 0 | J102: 20000 | K102: 1
B103: S1080 Surveying | C103: 10 | D103: 10 | E103: 0 | F103: 500 | G103: 0 | H103: 5000 | I103: 0 | J103: 5000 | K103: 1
B104: S4045 Repairs & Adjustments | C104: 70 | D104: 70 | E104: 0 | F104: 100 | G104: 0 | H104: 7000 | I104: 0 | J104: 7000 | K104: 1
B105: H8020 Paint Thinner | C105: 10 | D105: 2.5 | E105: 1.241 | F105: 4 | G105: 0 | H105: 40 | I105: 12.41 | J105: 27.59 | K105: 0.68975
B106: H7020 Stain: Brown | C106: 20 | D106: 5 | E106: 1.442 | F106: 6.6 | G106: 0 | H106: 132 | I106: 28.84 | J106: 103.16 | K106: 0.7815151515
B107: H7030 Stain: Grey | C107: 20 | D107: 5 | E107: 1.573 | F107: 6.6 | G107: 0 | H107: 132 | I107: 31.46 | J107: 100.54 | K107: 0.7616666667
A109: Gigi's Pasta & Pizza | C109: 320 | D109: 320 | E109: 2.496675 | F109: 19.90666667 | G109: 350 | H109: 8804.4 | I109: 1213.05 | J109: 7591.35 | K109: 0.8622222979
B110: H1020 Handles: Locking | C110: 200 | D110: 200 | E110: 3.7118 | F110: 27 | G110: 0 | H110: 5400 | I110: 742.36 | J110: 4657.64 | K110: 0.8625259259
B111: FREIGHT | C111: 0 | D111: 0 | E111: 0 | G111: 350 | H111: 350 | I111: 0 | J111: 350 | K111: 1
B112: H1030 Handles: Passage | C112: 100 | D112: 100 | E112: 4.3149 | F112: 30 | G112: 0 | H112: 3000 | I112: 431.49 | J112: 2568.51 | K112: 0.85617
B113: H2510 Nails: Finish | C113: 20 | D113: 20 | E113: 1.96 | F113: 2.72 | G113: 0 | H113: 54.4 | I113: 39.2 | J113: 15.2 | K113: 0.2794117647
A115: Hannah's Import Inc. | C115: 3250 | D115: 3250 | E115: 5.4315725 | F115: 16.15454545 | G115: 340 | H115: 26717.5 | I115: 8046.32 | J115: 18671.18 | K115: 0.6988370918
B116: H1020 Handles: Locking | C116: 80 | D116: 80 | E116: 3.71175 | F116: 25 | G116: 0 | H116: 2000 | I116: 296.94 | J116: 1703.06 | K116: 0.85153
B117: L1030 Plywood: 3/4" | C117: 150 | D117: 150 | E117: 9.33 | F117: 27 | G117: 0 | H117: 4050 | I117: 1399.5 | J117: 2650.5 | K117: 0.6544444444
B118: FREIGHT | C118: 0 | D118: 0 | E118: 0 | G118: 340 | H118: 340 | I118: 0 | J118: 340 | K118: 1
B119: H1030 Handles: Passage | C119: 100 | D119: 100 | E119: 4.3149 | F119: 30 | G119: 0 | H119: 3000 | I119: 431.49 | J119: 2568.51 | K119: 0.85617
B120: R1001 Roofing: Asphalt Tile | C120: 10 | D120: 10 | E120: 16.612 | F120: 21.5 | G120: 0 | H120: 215 | I120: 166.12 | J120: 48.88 | K120: 0.2273488372
B121: L2001 Lumber: 1x4 | C121: 250 | D121: 250 | E121: 1.89152 | F121: 5.1 | G121: 0 | H121: 1275 | I121: 472.88 | J121: 802.12 | K121: 0.6291137255
B122: L1010 Plywood: 1/4" | C122: 100 | D122: 100 | E122: 11.33 | F122: 23.65 | G122: 0 | H122: 2365 | I122: 1133 | J122: 1232 | K122: 0.5209302326
B123: W2001 Drywall Tape | C123: 1250 | D123: 1250 | E123: 0.3552 | F123: 4.5 | G123: 0 | H123: 5625 | I123: 444 | J123: 5181 | K123: 0.9210666667
B124: H2810 Screws: Drywall | C124: 1000 | D124: 1000 | E124: 0.5393 | F124: 1.7 | G124: 0 | H124: 1700 | I124: 539.3 | J124: 1160.7 | K124: 0.6827647059
B125: W1090 Drywall Mud | C125: 10 | D125: 10 | E125: 6.409 | F125: 14.75 | G125: 0 | H125: 147.5 | I125: 64.09 | J125: 83.41 | K125: 0.5654915254
B126: L1020 Plywood: 1/2" | C126: 300 | D126: 300 | E126: 10.33 | F126: 20 | G126: 0 | H126: 6000 | I126: 3099 | J126: 2901 | K126: 0.4835
A128: International Oil | C128: 8015.6 | D128: 8015.6 | E128: 3.650506471 | F128: 23.93875 | G128: 60 | H128: 119087 | I128: 22105.29 | J128: 96981.71 | K128: 0.8143769681
B129: H1020 Handles: Locking | C129: 900 | D129: 900 | E129: 10.43842 | F129: 25 | G129: 0 | H129: 22500 | I129: 9394.58 | J129: 13105.42 | K129: 0.5824631111
B130: H2010 Hinges: Cabinet | C130: 20 | D130: 20 | E130: 5.55 | F130: 2.6 | G130: 0 | H130: 52 | I130: 111 | J130: -59 | K130: -1.134615385
B131: FREIGHT | C131: 0 | D131: 0 | E131: 0 | G131: 60 | H131: 60 | I131: 0 | J131: 60 | K131: 1
B132: H2020 Hinges: Door | C132: 1500 | D132: 1500 | E132: 0.2613 | F132: 4.5 | G132: 0 | H132: 6750 | I132: 391.95 | J132: 6358.05 | K132: 0.9419333333
B133: H1030 Handles: Passage | C133: 2000 | D133: 2000 | E133: 4.3149 | F133: 30 | G133: 0 | H133: 60000 | I133: 8629.8 | J133: 51370.2 | K133: 0.85617
B134: H2520 Nails: Wood | C134: 140 | D134: 140 | E134: 1.29 | F134: 1.79 | G134: 0 | H134: 250.6 | I134: 180.6 | J134: 70 | K134: 0.2793296089
B135: R1001 Roofing: Asphalt Tile | C135: 80 | D135: 80 | E135: 16.61188 | F135: 21.5 | G135: 0 | H135: 1720 | I135: 1328.95 | J135: 391.05 | K135: 0.2273546512
B136: L2130 Lumber: 2x10 | C136: 10 | D136: 10 | E136: 4.36 | F136: 8.25 | G136: 0 | H136: 82.5 | I136: 43.6 | J136: 38.9 | K136: 0.4715151515
B137: W2001 Drywall Tape | C137: 2000 | D137: 2000 | E137: 0.32314 | F137: 5.5 | G137: 0 | H137: 11000 | I137: 646.28 | J137: 10353.72 | K137: 0.9412472727
B138: H2810 Screws: Drywall | C138: 500 | D138: 500 | E138: 1.22 | F138: 2.11 | G138: 0 | H138: 1055 | I138: 610 | J138: 445 | K138: 0.4218009479
B139: W1090 Drywall Mud | C139: 80 | D139: 80 | E139: 6.40937 | F139: 160.5 | G139: 0 | H139: 12840 | I139: 512.75 | J139: 12327.25 | K139: 0.9600661994
B140: W1040 Drywall: 7/8" | C140: 10 | D140: 10 | E140: 6.538 | F140: 12.25 | G140: 0 | H140: 122.5 | I140: 65.38 | J140: 57.12 | K140: 0.4662857143
B141: H2510 Nails: Finish | C141: 770 | D141: 770 | E141: 1.0808 | F141: 2.72 | G141: 0 | H141: 2094.4 | I141: 190.4 | J141: 1904 | K141: 0.9090909091
B142: S2016 Service Call - Overtime Charge | C142: 5.6 | D142: 5.6 | E142: 0 | F142: 100 | G142: 0 | H142: 560 | I142: 0 | J142: 560 | K142: 1
A144: Jordan Lighting Corp. | C144: 3090 | D144: 3090 | E144: 3.797771429 | F144: 10.87428571 | G144: 0 | H144: 82805.9 | I144: 14524.9 | J144: 68281 | K144: 0.8245910014
B145: H1030 Handles: Passage | C145: 2500 | D145: 2500 | E145: 4.3149 | F145: 30 | G145: 0 | H145: 75000 | I145: 10787.25 | J145: 64212.75 | K145: 0.85617
B146: L2130 Lumber: 2x10 | C146: 100 | D146: 100 | E146: 4.36 | F146: 8.25 | G146: 0 | H146: 825 | I146: 436 | J146: 389 | K146: 0.4715151515
B147: L2010 Lumber:1x6 | C147: 100 | D147: 100 | E147: 2.4895 | F147: 4.85 | G147: 0 | H147: 485 | I147: 248.95 | J147: 236.05 | K147: 0.4867010309
B148: L2020 Lumber: 1x8 | C148: 100 | D148: 100 | E148: 1.73 | F148: 4.95 | G148: 0 | H148: 495 | I148: 173 | J148: 322 | K148: 0.6505050505
B149: L1010 Plywood: 1/4" | C149: 250 | D149: 250 | E149: 11.33 | F149: 23.65 | G149: 0 | H149: 5912.5 | I149: 2832.5 | J149: 3080 | K149: 0.5209302326
B150: H2810 Screws: Drywall | C150: 20 | D150: 20 | E150: 0.4 | F150: 1.7 | G150: 0 | H150: 34 | I150: 8 | J150: 26 | K150: 0.7647058824
B151: H2510 Nails: Finish | C151: 20 | D151: 20 | E151: 1.96 | F151: 2.72 | G151: 0 | H151: 54.4 | I151: 39.2 | J151: 15.2 | K151: 0.2794117647
A153: Kent Industries Inc. | C153: 1491 | D153: 1437 | E153: 1.529924286 | F153: 245.7666667 | G153: 80 | H153: 51085.6 | I153: 5896.2 | J153: 45189.4 | K153: 0.8845819566
B154: H1020 Handles: Locking | C154: 400 | D154: 400 | E154: 3.7118 | F154: 25 | G154: 0 | H154: 10000 | I154: 1484.72 | J154: 8515.28 | K154: 0.851528
B155: FREIGHT | C155: 0 | D155: 0 | E155: 0 | G155: 80 | H155: 80 | I155: 0 | J155: 80 | K155: 1
B156: S1060 Estimating Consulting | C156: 4.5 | D156: 4.5 | E156: 0 | F156: 1000 | G156: 0 | H156: 4500 | I156: 0 | J156: 4500 | K156: 1
B157: H1030 Handles: Passage | C157: 1000 | D157: 1000 | E157: 4.3149 | F157: 30 | G157: 0 | H157: 30000 | I157: 4314.9 | J157: 25685.1 | K157: 0.85617
B158: H8020 Paint Thinner | C158: 36 | D158: 9 | E158: 1.24083 | F158: 7.6 | G158: 0 | H158: 273.6 | I158: 44.67 | J158: 228.93 | K158: 0.8367324561
B159: H7020 Stain: Brown | C159: 36 | D159: 9 | E159: 1.44194 | F159: 12 | G159: 0 | H159: 432 | I159: 51.91 | J159: 380.09 | K159: 0.879837963
B160: S4025 Warranty Work | C160: 14.5 | D160: 14.5 | E160: 0 | F160: 400 | G160: 0 | H160: 5800 | I160: 0 | J160: 5800 | K160: 1
A162: Lowland Brewery Inc. | C162: 3255 | D162: 3255 | E162: 2.0407 | F162: 57.01583333 | G162: 0 | H162: 36452.8 | I162: 3426.29 | J162: 33026.51 | K162: 0.9060074946
B163: S1020 Drafting | C163: 160 | D163: 160 | E163: 0 | F163: 100 | G163: 0 | H163: 16000 | I163: 0 | J163: 16000 | K163: 1
B164: S1080 Surveying | C164: 15 | D164: 15 | E164: 0 | F164: 500 | G164: 0 | H164: 7500 | I164: 0 | J164: 7500 | K164: 1
B165: H2020 Hinges: Door | C165: 1150 | D165: 1150 | E165: 0.261315 | F165: 4.32 | G165: 0 | H165: 4968 | I165: 300.5 | J165: 4667.5 | K165: 0.9395128824
B166: L2101 Lumber: 2x4 | C166: 210 | D166: 210 | E166: 0.98 | F166: 3.7 | G166: 0 | H166: 777 | I166: 205.8 | J166: 571.2 | K166: 0.7351351351
B167: W1010 Drywall: 1/2" | C167: 20 | D167: 20 | E167: 4.1515 | F167: 7.29 | G167: 0 | H167: 145.8 | I167: 83.03 | J167: 62.77 | K167: 0.430521262
B168: H1030 Handles: Passage | C168: 80 | D168: 80 | E168: 4.31487 | F168: 30 | G168: 0 | H168: 2400 | I168: 345.19 | J168: 2054.81 | K168: 0.8561708333
B169: L1010 Plywood: 1/4" | C169: 10 | D169: 10 | E169: 11 | F169: 23.65 | G169: 0 | H169: 236.5 | I169: 110 | J169: 126.5 | K169: 0.5348837209
B170: W2001 Drywall Tape | C170: 10 | D170: 10 | E170: 0.321 | F170: 4.05 | G170: 0 | H170: 40.5 | I170: 3.21 | J170: 37.29 | K170: 0.9207407407
B171: H2510 Nails: Finish | C171: 100 | D171: 100 | E171: 0.2016 | F171: 1.5 | G171: 0 | H171: 150 | I171: 20.16 | J171: 129.84 | K171: 0.8656
B172: H2830 Screws: Wood | C172: 500 | D172: 500 | E172: 1.2768 | F172: 2.25 | G172: 0 | H172: 1125 | I172: 638.4 | J172: 486.6 | K172: 0.4325333333
B173: H4010 Padlocks | C173: 1000 | D173: 1000 | E173: 1.72 | F173: 3.11 | G173: 0 | H173: 3110 | I173: 1720 | J173: 1390 | K173: 0.4469453376
A175: Mainline Rail Ltd. | C175: 6174 | D175: 6174 | E175: 2.029616667 | F175: 88.11 | G175: 0 | H175: 30815.5 | I175: 12156.25 | J175: 18659.25 | K175: 0.6055150817
B176: H2010 Hinges: Cabinet | C176: 5000 | D176: 5000 | E176: 2.0027 | F176: 2.6 | G176: 0 | H176: 13000 | I176: 10013.5 | J176: 2986.5 | K176: 0.2297307692
B177: S1080 Surveying | C177: 24 | D177: 24 | E177: 0 | F177: 500 | G177: 0 | H177: 12000 | I177: 0 | J177: 12000 | K177: 1
B178: H1030 Handles: Passage | C178: 50 | D178: 50 | E178: 4.315 | F178: 15 | G178: 0 | H178: 750 | I178: 215.75 | J178: 534.25 | K178: 0.7123333333
B179: C1020 Concrete Block | C179: 50 | D179: 50 | E179: 2.39 | F179: 4.75 | G179: 0 | H179: 237.5 | I179: 119.5 | J179: 118 | K179: 0.4968421053
B180: H4010 Padlocks | C180: 1050 | D180: 1050 | E180: 1.735 | F180: 3.155 | G180: 0 | H180: 4828 | I180: 1807.5 | J180: 3020.5 | K180: 0.6256213753
A182: Marine Dental Center | C182: 22 | D182: 22 | E182: 0 | F182: 442.13266 | G182: 0 | H182: 13631.99 | I182: 0 | J182: 13631.99 | K182: 1
B183: S1040 Engineering Consulting | C183: 10 | D183: 10 | E183: 0 | F183: 1000 | G183: 0 | H183: 10000 | I183: 0 | J183: 10000 | K183: 1
B184: S1080 Surveying | C184: 12 | D184: 12 | E184: 0 | F184: 302.665825 | G184: 0 | H184: 3631.99 | I184: 0 | J184: 3631.99 | K184: 1
A186: New Look Exteriors | C186: 750 | D186: 750 | E186: 4.01336 | F186: 27.5 | G186: 0 | H186: 20000 | I186: 2934.63 | J186: 17065.37 | K186: 0.8532685
B187: H1020 Handles: Locking | C187: 500 | D187: 500 | E187: 3.7118 | F187: 25 | G187: 0 | H187: 12500 | I187: 1855.9 | J187: 10644.1 | K187: 0.851528
B188: H1030 Handles: Passage | C188: 250 | D188: 250 | E188: 4.31492 | F188: 30 | G188: 0 | H188: 7500 | I188: 1078.73 | J188: 6421.27 | K188: 0.8561693333
A190: Ocean View Apartments | C190: 8042 | D190: 8042 | E190: 3.175005556 | F190: 186.1325 | G190: 500 | H190: 40225.6 | I190: 13075.45 | J190: 27150.15 | K190: 0.6749470486
B191: H2010 Hinges: Cabinet | C191: 1500 | D191: 1500 | E191: 2.35205 | F191: 2.6 | G191: 0 | H191: 3900 | I191: 3528.08 | J191: 371.92 | K191: 0.09536410256
B192: S1040 Engineering Consulting | C192: 11 | D192: 11 | E192: 0 | F192: 950 | G192: 0 | H192: 10450 | I192: 0 | J192: 10450 | K192: 1
B193: S1080 Surveying | C193: 11 | D193: 11 | E193: 0 | F193: 500 | G193: 0 | H193: 5500 | I193: 0 | J193: 5500 | K193: 1
B194: FREIGHT | C194: 0 | D194: 0 | E194: 0 | G194: 500 | H194: 500 | I194: 0 | J194: 500 | K194: 1
B195: L2101 Lumber: 2x4 | C195: 50 | D195: 50 | E195: 0.88 | F195: 2.22 | G195: 0 | H195: 111 | I195: 44 | J195: 67 | K195: 0.6036036036
B196: W1010 Drywall: 1/2" | C196: 70 | D196: 70 | E196: 4.15155 | F196: 5.47 | G196: 0 | H196: 364.6 | I196: 290.61 | J196: 73.99 | K196: 0.202934723
B197: R1001 Roofing: Asphalt Tile | C197: 400 | D197: 400 | E197: 16.6119 | F197: 21.5 | G197: 0 | H197: 8600 | I197: 6644.76 | J197: 1955.24 | K197: 0.2273534884
B198: H2810 Screws: Drywall | C198: 6000 | D198: 6000 | E198: 0.428 | F198: 1.8 | G198: 0 | H198: 10800 | I198: 2568 | J198: 8232 | K198: 0.7622222222
A200: Osborne Packaging | C200: 45 | D200: 11.25 | E200: 1.299833333 | F200: 9.366666667 | G200: 0 | H200: 421 | I200: 58.61 | J200: 362.39 | K200: 0.860783848
B201: H8010 Paint Stripper | C201: 10 | D201: 2.5 | E201: 1.217 | F201: 8.1 | G201: 0 | H201: 81 | I201: 12.17 | J201: 68.83 | K201: 0.8497530864
B202: H8020 Paint Thinner | C202: 20 | D202: 5 | E202: 1.2405 | F202: 8 | G202: 0 | H202: 160 | I202: 24.81 | J202: 135.19 | K202: 0.8449375
B203: H7020 Stain: Grey | C203: 15 | D203: 3.75 | E203: 1.442 | F203: 12 | G203: 0 | H203: 180 | I203: 21.63 | J203: 158.37 | K203: 0.8798333333
A205: Paramount NW Production (US) | C205: 2135 | D205: 2135 | E205: 4.25829 | F205: 14.75616667 | G205: 1136 | H205: 11494.19 | I205: 2090.13 | J205: 9404.06 | K205: 0.8181576953
B206: FREIGHT | C206: 0 | D206: 0 | E206: 0 | G206: 1136 | H206: 1136 | I206: 0 | J206: 1136 | K206: 1
B207: H2520 Nails: Wood | C207: 250 | D207: 250 | E207: 1.00312 | F207: 1.7892 | G207: 0 | H207: 447.3 | I207: 250.78 | J207: 196.52 | K207: 0.4393471943
B208: L1010 Plywood: 1/4" | C208: 125 | D208: 125 | E208: 11.165 | F208: 27.6687 | G208: 0 | H208: 3776.49 | I208: 1383.25 | J208: 2393.24 | K208: 0.6337207301
B209: L1020 Plywood: 1/2" | C209: 10 | D209: 10 | E209: 10.33 | F209: 24.85 | G209: 0 | H209: 248.5 | I209: 103.3 | J209: 145.2 | K209: 0.584305835
B210: H2510 Nails: Finish | C210: 1750 | D210: 1750 | E210: 0.2016 | F210: 3.2802 | G210: 0 | H210: 5885.9 | I210: 352.8 | J210: 5533.1 | K210: 0.9400601437
A212: Richmond Optical | C212: 405 | D212: 405 | E212: 3.8628325 | F212: 346.5333333 | G212: 440 | H212: 14115 | I212: 3205.14 | J212: 10909.86 | K212: 0.7729266738
B213: L1030 Plywood: 3/4" | C213: 250 | D213: 250 | E213: 8.8744 | F213: 27.35 | G213: 0 | H213: 6837.5 | I213: 2218.6 | J213: 4618.9 | K213: 0.6755246801
B214: FREIGHT | C214: 0 | D214: 0 | E214: 0 | G214: 440 | H214: 440 | I214: 0 | J214: 440 | K214: 1
B215: S1060 Estimating Consulting | C215: 5 | D215: 5 | E215: 0 | F215: 1000 | G215: 0 | H215: 5000 | I215: 0 | J215: 5000 | K215: 1
B216: W1040 Drywall: 7/8" | C216: 150 | D216: 150 | E216: 6.57693 | F216: 12.25 | G216: 0 | H216: 1837.5 | I216: 986.54 | J216: 850.96 | K216: 0.463107483
A218: Travelways Inc. | C218: 8307 | D218: 8307 | E218: 3.830826667 | F218: 196.5333333 | G218: 0 | H218: 26040 | I218: 12398.85 | J218: 13641.15 | K218: 0.5238536866
B219: S1060 Estimating Consulting | C219: 7 | D219: 7 | E219: 0 | F219: 570 | G219: 0 | H219: 3990 | I219: 0 | J219: 3990 | K219: 1
B220: H2520 Nails: Wood | C220: 8000 | D220: 8000 | E220: 1.16248 | F220: 2.1 | G220: 0 | H220: 16800 | I220: 9299.85 | J220: 7500.15 | K220: 0.4464375
B221: L1020 Plywood: 1/2" | C221: 300 | D221: 300 | E221: 10.33 | F221: 17.5 | G221: 0 | H221: 5250 | I221: 3099 | J221: 2151 | K221: 0.4097142857
A223: Village Realty | C223: 150 | D223: 150 | E223: 0 | F223: 700 | G223: 0 | H223: 60000 | I223: 0 | J223: 60000 | K223: 1
B224: S1020 Drafting | C224: 100 | D224: 100 | E224: 0 | F224: 100 | G224: 0 | H224: 10000 | I224: 0 | J224: 10000 | K224: 1
B225: S1040 Engineering Consulting | C225: 40 | D225: 40 | E225: 0 | F225: 1000 | G225: 0 | H225: 40000 | I225: 0 | J225: 40000 | K225: 1
B226: S1060 Estimating Consulting | C226: 10 | D226: 10 | E226: 0 | F226: 1000 | G226: 0 | H226: 10000 | I226: 0 | J226: 10000 | K226: 1
A228: West Coast Development | C228: 78 | D228: 78 | E228: 0 | F228: 531.6666667 | G228: 0 | H228: 31750 | I228: 0 | J228: 31750 | K228: 1
... 6 more rows

Sheet Top 10 Customers
C2: UNIVERSAL CONSTRUCTION
C3: TOP 10 CUSTOMERS - by sales amount
C4: for the period from 01 Jul 2014 to 31 Mar 2015
C6: TOP 10 CUSTOMERS | I6: TOP 10 PRODUCTS
I8: Inventory / Service | J8: (All)
C10: Sum of TotalLineSale | I10: TotalLineSale
C11: CustomerName | D11: Total | I11: Product Name | J11: Total
C12: International Oil | D12: 119087 | I12: Handles: Passage | J12: 215550
C13: Bayswater School Board | D13: 90669 | I13: Handles: Locking | J13: 123400
C14: Jordan Lighting Corp. | D14: 82805.9 | I14: Engineering Consulting | J14: 117925.55
C15: Construction Concrete Corp | D15: 66212.5 | I15: Estimating Consulting | J15: 87490
C16: Village Realty | D16: 60000 | I16: Surveying | J16: 86631.99
C17: Fogarty Motors | D17: 52230 | I17: Drafting | J17: 83120
C18: Kent Industries Inc. | D18: 51085.6 | I18: Roofing: Asphalt Tile | J18: 28810
C19: Belvedere Nursing Home | D19: 48874 | I19: Repairs & Adjustments | J19: 26000
C20: Brown, Jerome B. | D20: 41585 | I20: Hinges: Door | J20: 24843
C21: Ocean View Apartments | D21: 40225.6 | I21: Nails: Wood | J21: 23253.4
C22: Grand Total | D22: 652774.6 | I22: Grand Total | J22: 817023.94

Sheet Inventory Analysis
A1: UNIVERSAL CONSTRUCTION
A2: INVENTORY ANALYSIS
A3: as at 12 Jan 2010
A6: Store Name | B6: (All)
A7: Inventory or Service | B7: (All)
D9: Data
A10: Category Name | B10: Product Code Name | C10: Stocking unit | D10: Avg Cost StockUnit | E10: Avg Sell Price StockUnit | F10: Quantity at Start of Financial Year | G10: Quantity Purchased YTD | H10: No of Units Sold YTD | I10: Transfer/ Adjustment Quantity | J10: Final Stock on Hand | K10: Quantity on Purchase Order | L10: Quantity on Sales Order | M10: Min Level | N10: ReOrder Quantity
A11: <Uncategorized> | D11: 2.39 | E11: 189.8809645 | F11: 850 | G11: 584 | H11: 2278.8753 | I11: -180 | J11: 120 | K11: 0 | L11: 10 | M11: 8 | N11: 0
B12: C1020 Concrete Block | C12: Each | D12: 2.39 | E12: 4.75 | F12: 850 | G12: 0 | H12: 550 | I12: -180 | J12: 120 | K12: 0 | L12: 10 | M12: 8 | N12: 0
B13: S1020 Drafting | C13: Hour | D13: 0 | E13: 100.1687154 | F13: 0 | G13: 180 | H13: 829.8 | I13: 0 | J13: 0 | K13: 0 | L13: 0 | M13: 0 | N13: 0
B14: S1040 Engineering Consulting | C14: Hour | D14: 0 | E14: 995.3597923 | F14: 0 | G14: 0 | H14: 118.4753 | I14: 0 | J14: 0 | K14: 0 | L14: 0 | M14: 0 | N14: 0
B15: S1060 Estimating Consulting | C15: Hour | D15: 0 | E15: 956.1748634 | F15: 0 | G15: 30 | H15: 91.5 | I15: 0 | J15: 0 | K15: 0 | L15: 0 | M15: 0 | N15: 0
B16: S1080 Surveying | C16: Hour | D16: 0 | E16: 486.0139691 | F16: 0 | G16: 0 | H16: 178.25 | I16: 0 | J16: 0 | K16: 0 | L16: 0 | M16: 0 | N16: 0
B17: S2015 Service Call | C17: Hour | D17: 0 | E17: 57.08154506 | F17: 0 | G17: 0 | H17: 58.25 | I17: 0 | J17: 0 | K17: 0 | L17: 0 | M17: 0 | N17: 0
B18: S2016 Service Call - Overtime Charge | C18: OT Charge | D18: 0 | E18: 100 | F18: 0 | G18: 0 | H18: 5.6 | I18: 0 | J18: 0 | K18: 0 | L18: 0 | M18: 0 | N18: 0
B19: S3020 Change Orders - Drafting | C19: Hour | D19: 0 | E19: 98.52941176 | F19: 0 | G19: 0 | H19: 170 | I19: 0 | J19: 0 | K19: 0 | L19: 0 | M19: 0 | N19: 0
B20: S3040 Change Orders - Engineering Consult | C20: Hour | D20: 0 | E20: 1000 | F20: 0 | G20: 0 | H20: 2.5 | I20: 0 | J20: 0 | K20: 0 | L20: 0 | M20: 0 | N20: 0
B21: S4025 Warranty Work | C21: Hour | D21: 0 | E21: 400 | F21: 0 | G21: 374 | H21: 14.5 | I21: 0 | J21: 0 | K21: 0 | L21: 0 | M21: 0 | N21: 0
B22: S4045 Repairs & Adjustments | C22: Hour | D22: 0 | E22: 100 | F22: 0 | G22: 0 | H22: 260 | I22: 0 | J22: 0 | K22: 0 | L22: 0 | M22: 0 | N22: 0
B23: S5015 Marketing / Networking | C23: Hour | D23: 0 | E23: 0 | F23: 0 | G23: 0 | H23: 0 | I23: 0 | J23: 0 | K23: 0 | L23: 0 | M23: 0 | N23: 0
B24: S5025 Office Administration | C24: Hour | D24: 0 | E24: 0 | F24: 0 | G24: 0 | H24: 0 | I24: 0 | J24: 0 | K24: 0 | L24: 0 | M24: 0 | N24: 0
B25: S5035 Meals & Breaks | C25: Hour | D25: 0 | E25: 0 | F25: 0 | G25: 0 | H25: 0 | I25: 0 | J25: 0 | K25: 0 | L25: 0 | M25: 0 | N25: 0
A27: Drywall | D27: 2.391493724 | E27: 8.332990354 | F27: 2360 | G27: 4695 | H27: 4665 | I27: 0 | J27: 2390 | K27: 0 | L27: 0 | M27: 44 | N27: 10
B28: W1010 Drywall: 1/2" | C28: Sheet | D28: 4.151666667 | E28: 7.128444444 | F28: 100 | G28: 245 | H28: 225 | I28: 0 | J28: 120 | K28: 0 | L28: 0 | M28: 10 | N28: 0
B29: W1020 Drywall: 5/8" | C29: Sheet | D29: 5.781555556 | E29: 11.25 | F29: 110 | G29: 80 | H29: 10 | I29: 0 | J29: 180 | K29: 0 | L29: 0 | M29: 10 | N29: 0
B30: W1030 Drywall: 3/4" | C30: Sheet | D30: 6.409296296 | E30: 11.9 | F30: 130 | G30: 250 | H30: 110 | I30: 0 | J30: 270 | K30: 0 | L30: 0 | M30: 10 | N30: 0
B31: W1040 Drywall: 7/8" | C31: Sheet | D31: 6.5375 | E31: 12.25 | F31: 50 | G31: 160 | H31: 170 | I31: 0 | J31: 40 | K31: 0 | L31: 0 | M31: 10 | N31: 10
B32: W1090 Drywall Mud | C32: Gallon | D32: 6.409320755 | E32: 98.03571429 | F32: 145 | G32: 260 | H32: 140 | I32: 0 | J32: 265 | K32: 0 | L32: 0 | M32: 2 | N32: 0
B33: W2001 Drywall Tape | C33: Roll | D33: 0.3209966997 | E33: 4.997630923 | F33: 1825 | G33: 3700 | H33: 4010 | I33: 0 | J33: 1515 | K33: 0 | L33: 0 | M33: 2 | N33: 0
A35: Fabrication | D35: 108.5639529 | E35: 200 | F35: 344 | G35: 205 | H35: 10 | I35: -114 | J35: 425 | K35: 0 | L35: 0 | M35: 0 | N35: 0
B36: D1020 Deck - 8 by 8 ft | C36: Each | D36: 120.9332692 | E36: 0 | F36: 95 | G36: 85 | H36: 0 | I36: -24 | J36: 156 | K36: 0 | L36: 0 | M36: 0 | N36: 0
B37: F1020 Fence | C37: Section | D37: 40.84230769 | E37: 200 | F37: 218 | G37: 120 | H37: 10 | I37: -120 | J37: 208 | K37: 0 | L37: 0 | M37: 0 | N37: 0
B38: SH1020 Shed - 8 by 8 ft | C38: Each | D38: 307.8506557 | E38: 0 | F38: 31 | G38: 0 | H38: 0 | I38: 30 | J38: 61 | K38: 0 | L38: 0 | M38: 0 | N38: 0
A40: Hardware | D40: 2.179972902 | E40: 9.025115944 | F40: 41500 | G40: 47295 | H40: 48515 | I40: -56 | J40: 40224 | K40: 680 | L40: 320 | M40: 18 | N40: 0
B41: H1020 Handles: Locking | C41: Each | D41: 33.0227476 | E41: 26.82608696 | F41: 4176 | G41: 1050 | H41: 4600 | I41: 0 | J41: 626 | K41: 0 | L41: 20 | M41: 2 | N41: 0
B42: H1030 Handles: Passage | C42: Each | D42: 10.06978736 | E42: 31.51315789 | F42: 8000 | G42: 580 | H42: 6840 | I42: 0 | J42: 1740 | K42: 0 | L42: 0 | M42: 2 | N42: 0
B43: H2010 Hinges: Cabinet | C43: Pair | D43: 5.855550562 | E43: 2.623104693 | F43: 6300 | G43: 1120 | H43: 6925 | I43: -50 | J43: 445 | K43: 480 | L43: 0 | M43: 2 | N43: 0
B44: H2020 Hinges: Door | C44: Each | D44: 3.11 | E44: 4.823883495 | F44: 4804 | G44: 940 | H44: 5150 | I44: 0 | J44: 594 | K44: 200 | L44: 0 | M44: 2 | N44: 0
B45: H2510 Nails: Finish | C45: Pound | D45: 0.2629775561 | E45: 3.097406015 | F45: 6470 | G45: 200 | H45: 2660 | I45: 0 | J45: 4010 | K45: 0 | L45: 0 | M45: 2 | N45: 0
B46: H2520 Nails: Wood | C46: Pound | D46: 1.38007602 | E46: 2.068807829 | F46: 4750 | G46: 30700 | H46: 11240 | I46: -6 | J46: 24204 | K46: 0 | L46: 0 | M46: 2 | N46: 0
B47: H2810 Screws: Drywall | C47: Pound | D47: 0.4270967742 | E47: 1.794152047 | F47: 2000 | G47: 8100 | H47: 8550 | I47: 0 | J47: 1550 | K47: 0 | L47: 0 | M47: 2 | N47: 0
B48: H2830 Screws: Wood | C48: Pound | D48: 1.325018182 | E48: 2.25 | F48: 3000 | G48: 3000 | H48: 500 | I48: 0 | J48: 5500 | K48: 0 | L48: 300 | M48: 2 | N48: 0
B49: H4010 Padlocks | C49: Each | D49: 1.693247588 | E49: 3.872195122 | F49: 2000 | G49: 1605 | H49: 2050 | I49: 0 | J49: 1555 | K49: 0 | L49: 0 | M49: 2 | N49: 0
A51: Liquids | D51: 4.485107782 | E51: 9.957250695 | F51: 4030.5 | G51: 1925 | H51: 629.25 | I51: -3 | J51: 5323.25 | K51: 100 | L51: 10 | M51: 14 | N51: 0
B52: H7010 Stain: Black | C52: Gallon | D52: 5.470618182 | E52: 0 | F52: 600 | G52: 500 | H52: 0 | I52: 0 | J52: 1100 | K52: 0 | L52: 0 | M52: 2 | N52: 0
B53: H7020 Stain: Brown | C53: Gallon | D53: 5.767280957 | E53: 41.91549296 | F53: 691 | G53: 100 | H53: 17.75 | I53: 0 | J53: 773.25 | K53: 0 | L53: 0 | M53: 2 | N53: 0
B54: H7030 Stain: Grey | C54: Gallon | D54: 6.291602929 | E54: 26.4 | F54: 597.5 | G54: 25 | H54: 5 | I54: -3 | J54: 614.5 | K54: 100 | L54: 0 | M54: 2 | N54: 0
B55: H8010 Paint Stripper | C55: Gallon | D55: 4.868519231 | E55: 32.4 | F55: 410 | G55: 200 | H55: 90 | I55: 0 | J55: 520 | K55: 0 | L55: 0 | M55: 2 | N55: 0
B56: H8020 Paint Thinner | C56: Gallon | D56: 4.86918239 | E56: 28.7030303 | F56: 591 | G56: 300 | H56: 16.5 | I56: 0 | J56: 874.5 | K56: 0 | L56: 0 | M56: 2 | N56: 0
B57: H9010 Glue: Plastic | C57: Pint | D57: 1.873548387 | E57: 4 | F57: 241 | G57: 600 | H57: 500 | I57: 0 | J57: 341 | K57: 0 | L57: 0 | M57: 2 | N57: 0
B58: H9020 Glue: Wood | C58: Pint | D58: 1.912109091 | E58: 0 | F58: 900 | G58: 200 | H58: 0 | I58: 0 | J58: 1100 | K58: 0 | L58: 10 | M58: 2 | N58: 0
A60: Lumber | D60: 5.424932542 | E60: 13.6734738 | F60: 1852 | G60: 4880 | H60: 4675 | I60: -204 | J60: 1853 | K60: 0 | L60: 40 | M60: 80 | N60: 0
B61: L1010 Plywood: 1/4" | C61: Sheet | D61: 11 | E61: 24.57682486 | F61: 465 | G61: 530 | H61: 885 | I61: 0 | J61: 110 | K61: 0 | L61: 40 | M61: 10 | N61: 0
B62: L1020 Plywood: 1/2" | C62: Sheet | D62: 10.61958457 | E62: 18.82822581 | F62: 317 | G62: 640 | H62: 620 | I62: 0 | J62: 337 | K62: 0 | L62: 0 | M62: 10 | N62: 0
B63: L1030 Plywood: 3/4" | C63: Sheet | D63: 8.66 | E63: 27.3390625 | F63: 300 | G63: 710 | H63: 640 | I63: 0 | J63: 370 | K63: 0 | L63: 0 | M63: 10 | N63: 0
B64: L2001 Lumber: 1x4 | C64: Board | D64: 1.89 | E64: 4.433333333 | F64: 250 | G64: 330 | H64: 450 | I64: 0 | J64: 130 | K64: 0 | L64: 0 | M64: 10 | N64: 0
B65: L2010 Lumber:1x6 | C65: Board | D65: 2.56 | E65: 4.85 | F65: 100 | G65: 500 | H65: 500 | I65: -90 | J65: 10 | K65: 0 | L65: 0 | M65: 10 | N65: 0
B66: L2020 Lumber: 1x8 | C66: Board | D66: 1.5334 | E66: 4.95 | F66: 100 | G66: 700 | H66: 500 | I66: 0 | J66: 300 | K66: 0 | L66: 0 | M66: 10 | N66: 0
B67: L2101 Lumber: 2x4 | C67: Board | D67: 0.9332432432 | E67: 4.067164179 | F67: 210 | G67: 890 | H67: 670 | I67: -60 | J67: 370 | K67: 0 | L67: 0 | M67: 10 | N67: 0
B68: L2130 Lumber: 2x10 | C68: Board | D68: 4.348584071 | E68: 8.25 | F68: 110 | G68: 580 | H68: 410 | I68: -54 | J68: 226 | K68: 0 | L68: 0 | M68: 10 | N68: 0
A70: Roofing | D70: 36.32602183 | E70: 27.4880137 | F70: 1811 | G70: 1620 | H70: 1752 | I70: -30 | J70: 1649 | K70: 0 | L70: 0 | M70: 14 | N70: 0
B71: R1001 Roofing: Asphalt Tile | C71: Package | D71: 16.6919981 | E71: 21.5 | F71: 1091 | G71: 1300 | H71: 1340 | I71: 0 | J71: 1051 | K71: 0 | L71: 0 | M71: 2 | N71: 0
B72: R1010 Roofing: Rolled | C72: Roll | D72: 5.88915 | E72: 9.35 | F72: 300 | G72: 100 | H72: 200 | I72: 0 | J72: 200 | K72: 0 | L72: 0 | M72: 2 | N72: 0
B73: R1020 Roofing: Shakes | C73: Bundle | D73: 17.72478261 | E73: 28.7 | F73: 300 | G73: 100 | H73: 170 | I73: 0 | J73: 230 | K73: 0 | L73: 0 | M73: 10 | N73: 0
B74: R2040 Roof - Hip - 8 by 8ft | C74: Each | D74: 220.8558929 | E74: 300 | F74: 120 | G74: 120 | H74: 42 | I74: -30 | J74: 168 | K74: 0 | L74: 0 | M74: 0 | N74: 0
A76: (blank) | D76: 0 | E76: 0
B77: (blank) | C77: (blank) | D77: 0 | E77: 0
A79: Grand Total | D79: 4.494798713 | E79: 16.47001945 | F79: 52747.5 | G79: 61204 | H79: 62525.1253 | I79: -587 | J79: 51984.25 | K79: 780 | L79: 380 | M79: 178 | N79: 10

Sheet Inventory Statistics
A1: UNIVERSAL CONSTRUCTION
A2: INVENTORY STATISTICS
A3: as at 12 Jan 2010
A6: Store Name | B6: (All)
A7: Inventory or Service | B7: (All)
E9: Data
A10: Category Name | B10: Product Code Name | C10: Last SaleDate | D10: Last PurchDate | E10: YTD Units Sold | F10: YTD COGS | G10: YTD Sales | H10: YTD GP | I10: YTD GP % | J10: Stock on Hand | K10: Stock Value
A11: <Uncategorized> | E11: 2278.8753 | F11: 1314.5 | G11: 432715.04 | H11: 431400.54 | I11: 10.497 | J11: 120 | K11: 286.8
B12: C1020 Concrete Block | C12: 2015-03-07 | D12: 2015-03-31 | E12: 550 | F12: 1314.5 | G12: 2612.5 | H12: 1298 | I12: 0.497 | J12: 120 | K12: 286.8
B13: S1020 Drafting | C13: 2015-03-31 | D13: 2015-01-19 | E13: 829.8 | F13: 0 | G13: 83120 | H13: 83120 | I13: 1 | J13: 0 | K13: 0
B14: S1040 Engineering Consulting | C14: 2015-03-31 | E14: 118.4753 | F14: 0 | G14: 117925.55 | H14: 117925.55 | I14: 1 | J14: 0 | K14: 0
B15: S1060 Estimating Consulting | C15: 2015-03-17 | D15: 2015-02-20 | E15: 91.5 | F15: 0 | G15: 87490 | H15: 87490 | I15: 1 | J15: 0 | K15: 0
B16: S1080 Surveying | C16: 2015-03-31 | E16: 178.25 | F16: 0 | G16: 86631.99 | H16: 86631.99 | I16: 1 | J16: 0 | K16: 0
B17: S2015 Service Call | C17: 2015-03-24 | E17: 58.25 | F17: 0 | G17: 3325 | H17: 3325 | I17: 1 | J17: 0 | K17: 0
B18: S2016 Service Call - Overtime Charge | C18: 2014-11-09 | E18: 5.6 | F18: 0 | G18: 560 | H18: 560 | I18: 1 | J18: 0 | K18: 0
B19: S3020 Change Orders - Drafting | C19: 2015-01-24 | E19: 170 | F19: 0 | G19: 16750 | H19: 16750 | I19: 1 | J19: 0 | K19: 0
B20: S3040 Change Orders - Engineering Consult | C20: 2015-03-24 | E20: 2.5 | F20: 0 | G20: 2500 | H20: 2500 | I20: 1 | J20: 0 | K20: 0
B21: S4025 Warranty Work | C21: 2015-02-06 | D21: 2015-02-21 | E21: 14.5 | F21: 0 | G21: 5800 | H21: 5800 | I21: 1 | J21: 0 | K21: 0
B22: S4045 Repairs & Adjustments | C22: 2015-01-18 | E22: 260 | F22: 0 | G22: 26000 | H22: 26000 | I22: 1 | J22: 0 | K22: 0
B23: S5015 Marketing / Networking | C23: 00:00:00 | E23: 0 | F23: 0 | G23: 0 | H23: 0 | J23: 0 | K23: 0
B24: S5025 Office Administration | C24: 00:00:00 | E24: 0 | F24: 0 | G24: 0 | H24: 0 | J24: 0 | K24: 0
B25: S5035 Meals & Breaks | C25: 00:00:00 | E25: 0 | F25: 0 | G25: 0 | H25: 0 | J25: 0 | K25: 0
A27: Drywall | E27: 4665 | F27: 5108.25 | G27: 38873.4 | H27: 33765.15 | I27: 4.629 | J27: 2390 | K27: 5715.67
B28: W1010 Drywall: 1/2" | C28: 00:00:00 | D28: 2015-03-31 | H28: 0 | J28: 45 | K28: 186.83
C29: 2015-03-31 | D29: 2014-10-12 | E29: 225 | F29: 985.47 | G29: 1603.9 | H29: 618.43 | I29: 0.386 | J29: 75 | K29: 311.37
B30: W1020 Drywall: 5/8" | C30: 00:00:00 | D30: 2015-03-31 | H30: 0 | J30: 30 | K30: 160.5
C31: 2015-02-28 | D31: 2015-03-31 | E31: 10 | F31: 53.5 | G31: 112.5 | H31: 59 | I31: 0.524 | J31: 20 | K31: 107
C32: 2014-02-06 | D32: 2014-10-12 | E32: 0 | F32: 0 | G32: 0 | H32: 0 | J32: 130 | K32: 773.18
B33: W1030 Drywall: 3/4" | C33: 00:00:00 | D33: 2015-03-31 | H33: 0 | J33: 30 | K33: 192.28
C34: 2015-03-31 | D34: 2015-02-28 | E34: 10 | F34: 64.1 | G34: 119 | H34: 54.9 | I34: 0.461 | J34: 10 | K34: 64.09
C35: 2015-02-17 | D35: 2015-03-05 | E35: 100 | F35: 640.93 | G35: 1190 | H35: 549.07 | I35: 0.461 | J35: 230 | K35: 1474.14
B36: W1040 Drywall: 7/8" | C36: 00:00:00 | D36: 2015-02-28 | H36: 0 | J36: 20 | K36: 130.75
C37: 2015-03-31 | D37: 2015-01-28 | E37: 20 | F37: 130.76 | G37: 245 | H37: 114.24 | I37: 0.466 | J37: 20 | K37: 130.75
C38: 2015-01-18 | D38: 2014-10-12 | E38: 150 | F38: 986.54 | G38: 1837.5 | H38: 850.96 | I38: 0.463 | J38: 0 | K38: 0
B39: W1090 Drywall Mud | C39: 00:00:00 | D39: 2015-02-28 | H39: 0 | J39: 20 | K39: 128.19
D40: 2015-01-28 | H40: 0 | J40: 40 | K40: 256.37
C41: 2014-11-09 | D41: 2015-03-05 | E41: 140 | F41: 897.31 | G41: 13725 | H41: 12827.69 | I41: 0.935 | J41: 205 | K41: 1313.91
B42: W2001 Drywall Tape | C42: 00:00:00 | D42: 2015-02-28 | H42: 0 | J42: 200 | K42: 64.2
C43: 2015-03-18 | D43: 2015-03-18 | E43: 4010 | F43: 1349.64 | G43: 20040.5 | H43: 18690.86 | I43: 0.933 | J43: 1315 | K43: 422.11
A45: Fabrication | E45: 10 | F45: 402.52 | G45: 2000 | H45: 1597.48 | I45: 0.799 | J45: 425 | K45: 46139.68
B46: D1020 Deck - 8 by 8 ft | C46: 00:00:00 | D46: 2015-03-31 | E46: 0 | F46: 0 | G46: 0 | H46: 0 | J46: 156 | K46: 18865.59
B47: F1020 Fence | C47: 2015-03-18 | D47: 2015-03-31 | E47: 10 | F47: 402.52 | G47: 2000 | H47: 1597.48 | I47: 0.799 | J47: 208 | K47: 8495.2
B48: SH1020 Shed - 8 by 8 ft | C48: 00:00:00 | D48: 2015-03-31 | E48: 0 | F48: 0 | G48: 0 | H48: 0 | J48: 61 | K48: 18778.89
A50: Hardware | E50: 48515 | F50: 92204.28 | G50: 437853.5 | H50: 345649.22 | I50: 6.225 | J50: 40224 | K50: 87687.23
B51: H1020 Handles: Locking | C51: 00:00:00 | D51: 2015-03-31 | H51: 0 | J51: 30 | K51: 990
D52: 2015-01-19 | H52: 0 | J52: 20 | K52: 660
C53: 2015-02-21 | D53: 2015-02-21 | E53: 4600 | F53: 23128.24 | G53: 123400 | H53: 100271.76 | I53: 0.813 | J53: 576 | K53: 19022.24
B54: H1030 Handles: Passage | C54: 00:00:00 | D54: 2015-03-31 | H54: 0 | J54: 80 | K54: 1726.4
C55: 2015-03-31 | D55: 2014-07-01 | E55: 6840 | F55: 29513.93 | G55: 215550 | H55: 186036.07 | I55: 0.863 | J55: 1660 | K55: 15795.03
B56: H2010 Hinges: Cabinet | C56: 2015-01-19 | D56: 2015-03-31 | E56: 6900 | F56: 14342.66 | G56: 18100 | H56: 3757.34 | I56: 0.208 | J56: 390 | K56: 2300.47
C57: 2015-02-28 | D57: 2015-01-20 | E57: 20 | F57: 111 | G57: 52 | H57: -59 | I57: -1.135 | J57: 20 | K57: 111
C58: 2015-01-29 | D58: 2015-01-21 | E58: 5 | F58: 27.75 | G58: 13 | H58: -14.75 | I58: -1.135 | J58: 35 | K58: 194.25
B59: H2020 Hinges: Door | C59: 00:00:00 | D59: 2015-01-20 | H59: 0 | J59: 20 | K59: 62.2
D60: 2015-01-21 | H60: 0 | J60: 20 | K60: 62.2
C61: 2014-11-17 | D61: 2014-11-17 | E61: 5150 | F61: 2331.35 | G61: 24843 | H61: 22511.65 | I61: 0.906 | J61: 554 | K61: 1722.94
B62: H2510 Nails: Finish | C62: 2015-02-28 | D62: 2015-01-19 | E62: 40 | F62: 78.4 | G62: 108.8 | H62: 30.4 | I62: 0.279 | J62: 60 | K62: 117.6
D63: 2015-01-21 | E63: 20 | F63: 39.2 | G63: 54.4 | H63: 15.2 | I63: 0.279 | J63: 80 | K63: 156.8
C64: 2015-03-11 | E64: 2600 | F64: 524.16 | G64: 8075.9 | H64: 7551.74 | I64: 0.935 | J64: 3870 | K64: 780.14
B65: H2520 Nails: Wood | C65: 2015-03-31 | D65: 2015-03-31 | E65: 11100 | F65: 13484.49 | G65: 23002.8 | H65: 9518.31 | I65: 0.414 | J65: 24144 | K65: 33325.96
D66: 2015-01-21 | E66: 100 | F66: 129 | G66: 179 | H66: 50 | I66: 0.279 | J66: 0 | K66: 0
C67: 2015-02-28 | D67: 2015-01-19 | E67: 40 | F67: 51.6 | G67: 71.6 | H67: 20 | I67: 0.279 | J67: 60 | K67: 77.4
B68: H2810 Screws: Drywall | C68: 2015-03-31 | D68: 2015-01-19 | E68: 20 | F68: 8 | G68: 34 | H68: 26 | I68: 0.765 | J68: 30 | K68: 12
C69: 2015-01-19 | D69: 2014-11-03 | E69: 8500 | F69: 4256.6 | G69: 15255 | H69: 10998.4 | I69: 0.721 | J69: 1500 | K69: 642
C70: 2015-02-28 | D70: 2015-01-21 | E70: 30 | F70: 12 | G70: 51 | H70: 39 | I70: 0.765 | J70: 20 | K70: 8
B71: H2830 Screws: Wood | C71: 00:00:00 | D71: 2015-01-19 | H71: 0 | J71: 50 | K71: 65
D72: 2015-01-21 | H72: 0 | J72: 50 | K72: 65
C73: 2014-09-12 | D73: 2014-11-15 | E73: 500 | F73: 638.4 | G73: 1125 | H73: 486.6 | I73: 0.433 | J73: 5400 | K73: 7157.6
B74: H4010 Padlocks | C74: 00:00:00 | D74: 2015-03-31 | H74: 0 | J74: 5 | K74: 7.5
C75: 2015-03-31 | D75: 2014-11-07 | E75: 2050 | F75: 3527.5 | G75: 7938 | H75: 4410.5 | I75: 0.556 | J75: 1550 | K75: 2625.5
A77: Liquids | E77: 629.25 | F77: 1668.41 | G77: 6265.6 | H77: 4597.19 | I77: 3.794 | J77: 5323.25 | K77: 23875.35
B78: H7010 Stain: Black | C78: 00:00:00 | D78: 2014-12-03 | E78: 0 | F78: 0 | G78: 0 | H78: 0 | J78: 1100 | K78: 6017.68
B79: H7020 Stain: Brown | C79: 2015-02-28 | D79: 2014-12-03 | E79: 17.75 | F79: 102.38 | G79: 744 | H79: 641.62 | I79: 0.862 | J79: 773.25 | K79: 4459.55
B80: H7030 Stain: Grey | C80: 2015-02-28 | D80: 2015-03-31 | E80: 5 | F80: 31.46 | G80: 132 | H80: 100.54 | I80: 0.762 | J80: 614.5 | K80: 3866.19
B81: H8010 Paint Stripper | C81: 2014-12-25 | D81: 2015-03-15 | E81: 90 | F81: 438.16 | G81: 2916 | H81: 2477.84 | I81: 0.85 | J81: 520 | K81: 2531.63
B82: H8020 Paint Thinner | C82: 2015-01-31 | D82: 2015-02-03 | E82: 16.5 | F82: 81.89 | G82: 473.6 | H82: 391.71 | I82: 0.827 | J82: 874.5 | K82: 4258.1
B83: H9010 Glue: Plastic | C83: 2014-12-12 | D83: 2015-03-15 | E83: 500 | F83: 1014.52 | G83: 2000 | H83: 985.48 | I83: 0.493 | J83: 341 | K83: 638.88
B84: H9020 Glue: Wood | C84: 00:00:00 | D84: 2015-02-09 | E84: 0 | F84: 0 | G84: 0 | H84: 0 | J84: 1100 | K84: 2103.32
A86: Lumber | E86: 4675 | F86: 27374.6 | G86: 63923.49 | H86: 36548.89 | I86: 6.3 | J86: 1853 | K86: 10052.4
B87: L1010 Plywood: 1/4" | C87: 00:00:00 | D87: 2015-02-28 | H87: 0 | J87: 30 | K87: 330
C88: 2015-03-31 | D88: 2014-12-09 | E88: 885 | F88: 9888.45 | G88: 21750.49 | H88: 11862.04 | I88: 0.545 | J88: 80 | K88: 880
B89: L1020 Plywood: 1/2" | C89: 00:00:00 | D89: 2015-02-28 | H89: 0 | J89: 20 | K89: 199.8
C90: 2015-03-31 | D90: 2015-02-28 | E90: 10 | F90: 99.9 | G90: 175 | H90: 75.1 | I90: 0.429 | J90: 10 | K90: 99.9
C91: 2014-12-17 | D91: 2015-01-19 | E91: 610 | F91: 6301.3 | G91: 11498.5 | H91: 5197.2 | I91: 0.452 | J91: 307 | K91: 3279.1
B92: L1030 Plywood: 3/4" | C92: 00:00:00 | D92: 2015-02-28 | H92: 0 | J92: 10 | K92: 86.6
C93: 2015-02-17 | D93: 2015-02-12 | E93: 640 | F93: 5743.4 | G93: 17497 | H93: 11753.6 | I93: 0.672 | J93: 360 | K93: 3117.6
B94: L2001 Lumber: 1x4 | C94: 00:00:00 | D94: 2015-02-28 | H94: 0 | J94: 30 | K94: 56.7
C95: 2015-02-16 | D95: 2014-11-08 | E95: 450 | F95: 850.88 | G95: 1995 | H95: 1144.12 | I95: 0.573 | J95: 100 | K95: 189
B96: L2010 Lumber:1x6 | C96: 2015-02-16 | D96: 2015-03-31 | E96: 500 | F96: 1272.95 | G96: 2425 | H96: 1152.05 | I96: 0.475 | J96: 10 | K96: 25.6
B97: L2020 Lumber: 1x8 | C97: 2015-02-16 | D97: 2015-03-08 | E97: 500 | F97: 749 | G97: 2475 | H97: 1726 | I97: 0.697 | J97: 300 | K97: 460.02
B98: L2101 Lumber: 2x4 | C98: 00:00:00 | D98: 2015-02-28 | H98: 0 | J98: 20 | K98: 17.6
C99: 2015-03-31 | D99: 2015-03-31 | E99: 660 | F99: 641.8 | G99: 2688 | H99: 2046.2 | I99: 0.761 | J99: 340 | K99: 318.9
C100: 2015-02-28 | D100: 2015-02-28 | E100: 10 | F100: 8.8 | G100: 37 | H100: 28.2 | I100: 0.762 | J100: 10 | K100: 8.8
B101: L2130 Lumber: 2x10 | C101: 2015-03-31 | D101: 2015-02-28 | E101: 10 | F101: 43.6 | G101: 82.5 | H101: 38.9 | I101: 0.472 | J101: 20 | K101: 87.2
C102: 2015-02-16 | D102: 2015-03-31 | E102: 400 | F102: 1774.52 | G102: 3300 | H102: 1525.48 | I102: 0.462 | J102: 206 | K102: 895.58
A104: Roofing | E104: 1752 | F104: 36209.6 | G104: 48159 | H104: 11949.4 | I104: 1.214 | J104: 1649 | K104: 59901.61
B105: R1001 Roofing: Asphalt Tile | C105: 2015-03-07 | D105: 2015-02-16 | E105: 1340 | F105: 22279.9 | G105: 28810 | H105: 6530.1 | I105: 0.227 | J105: 1051 | K105: 17543.29
B106: R1010 Roofing: Rolled | C106: 2014-10-09 | D106: 2015-02-08 | E106: 200 | F106: 1138 | G106: 1870 | H106: 732 | I106: 0.391 | J106: 200 | K106: 1177.83
B107: R1020 Roofing: Shakes | C107: 2014-10-09 | D107: 2014-10-03 | E107: 170 | F107: 3092.3 | G107: 4879 | H107: 1786.7 | I107: 0.366 | J107: 230 | K107: 4076.7
B108: R2040 Roof - Hip - 8 by 8ft | C108: 2015-01-09 | D108: 2015-03-31 | E108: 42 | F108: 9699.4 | G108: 12600 | H108: 2900.6 | I108: 0.23 | J108: 168 | K108: 37103.79
A110: (blank)
B111: (blank) | C111: (blank) | D111: (blank)
A113: Grand Total | E113: 62525.1253 | F113: 164282.16 | G113: 1029790.03 | H113: 865507.87 | I113: 33.458 | J113: 51984.25 | K113: 233658.74

Sheet Current & Prior YR BS
C2: UNIVERSAL CONSTRUCTION
C3: Balance Sheet for Period Ending June 2015
G5: CURRENT | H5: PRIOR
G6: Actual | H6: YTD | I6: Variance %
B9: _AS | C9: ASSETS
C11: Current Asset | G11: 599233.36 | H11: 346680.34
A12: 10200-0000 | B12: 31 | D12: Cash to be deposited | E12: 1 | G12: 0 | H12: 0 | I12: 0
A13: 10300-0000 | B13: 31 | D13: Cash Draws | E13: 1 | G13: 0 | H13: 0 | I13: 0
A14: 10500-0000 | B14: 31 | D14: Petty Cash | E14: 1 | G14: 0 | H14: 0 | I14: 0
A15: 10550-0000 | B15: 31 | D15: Regal Bank Savings | E15: 1 | G15: 50000 | H15: 50000 | I15: 0
A16: 10600-0000 | B16: 31 | D16: Regal Bank Current | E16: 1 | G16: 180724.43 | H16: 61705.62 | I16: 65.85651425
A17: 10670-0000 | B17: 31 | D17: Regal Bank: US Dollar | E17: 1 | G17: 10679.17 | H17: 2879.29 | I17: 73.03826046
A18: 10700-0000 | B18: 31 | D18: Oakville Dominion Bank: Payroll | E18: 1 | G18: 5311.42 | H18: -4125 | I18: 177.6628472
A19: 10800-0000 | B19: 31 | D19: Visa | E19: 1 | G19: 0 | H19: 0 | I19: 0
A20: 10830-0000 | B20: 31 | D20: MasterCard | E20: 1 | G20: 0 | H20: 0 | I20: 0
A21: 10870-0000 | B21: 31 | D21: American Express | E21: 1 | G21: 10374 | H21: 0 | I21: 100
A22: 10890-0000 | B22: 31 | D22: Other Credit Cards | E22: 1 | G22: 0 | H22: 0 | I22: 0
A23: 12000-0000 | B23: 31 | D23: Accounts Receivable | E23: 1 | G23: 6655.8 | H23: 6655.8 | I23: 0
A24: 12000-0100 | B24: 31 | D24: Accounts Receivable | E24: 1 | G24: 0 | H24: 0 | I24: 0
A25: 12000-0200 | B25: 31 | D25: Accounts Receivable | E25: 1 | G25: 0 | H25: 0 | I25: 0
A26: 12000-0300 | B26: 31 | D26: Accounts Receivable | E26: 1 | G26: 335188.54 | H26: 229564.63 | I26: 31.51179035
A27: 12050-0000 | B27: 31 | D27: Allowance for Doubtful Accounts | E27: 1 | G27: 0 | H27: 0 | I27: 0
A28: 12100-0000 | B28: 31 | D28: Holdbacks Receivable | E28: 1 | G28: 0 | H28: 0 | I28: 0
A29: 12200-0000 | B29: 31 | D29: Payroll Advances | E29: 1 | G29: 0 | H29: 0 | I29: 0
A30: 13000-0000 | B30: 31 | D30: Purchase Prepayments | E30: 1 | G30: 0 | H30: 0 | I30: 0
A31: 13000-0100 | B31: 31 | D31: Purchase Prepayments | E31: 1 | G31: 0 | H31: 0 | I31: 0
A32: 13000-0200 | B32: 31 | D32: Purchase Prepayments | E32: 1 | G32: 0 | H32: 0 | I32: 0
A33: 13000-0300 | B33: 31 | D33: Purchase Prepayments | E33: 1 | G33: 0 | H33: 0 | I33: 0
A34: 13200-0000 | B34: 31 | D34: Prepaid Expenses | E34: 1 | G34: 300 | H34: 0 | I34: 100
A35: 13200-0100 | B35: 31 | D35: Prepaid Expenses | E35: 1 | G35: 0 | H35: 0 | I35: 0
A36: 13200-0200 | B36: 31 | D36: Prepaid Expenses | E36: 1 | G36: 0 | H36: 0 | I36: 0
A37: 13200-0300 | B37: 31 | D37: Prepaid Expenses | E37: 1 | G37: 0 | H37: 0 | I37: 0
C39: Inventory | G39: 233658.74 | H39: 193669.57
A40: 15200-0000 | B40: 33 | D40: Drywall | E40: 1 | G40: 5715.67 | H40: 3876.36 | I40: 32.18012936
A41: 15300-0000 | B41: 33 | D41: Hardware | E41: 1 | G41: 111849.38 | H41: 98605.75 | I41: 11.84059313
A42: 15400-0000 | B42: 33 | D42: Lumber | E42: 1 | G42: 56192.08 | H42: 38187.36 | I42: 32.04138377
A43: 15700-0000 | B43: 33 | D43: Roofing Material | E43: 1 | G43: 59901.61 | H43: 53000.1 | I43: 11.52140986
A44: 15800-0000 | B44: 33 | D44: Other Inventory | E44: 1 | G44: 0 | H44: 0 | I44: 0
C46: Capital Asset | G46: 1666286.73 | H46: 1686363.31
A47: 17100-0000 | B47: 35 | D47: Furniture & Fixtures | E47: 1 | G47: 2566.93 | H47: 2566.93 | I47: 0
A48: 17200-0000 | B48: 35 | D48: Accum Amort: Furniture & Fixtures | E48: 1 | G48: -1069.6 | H48: -588.28 | I48: 45
A49: 17600-0000 | B49: 35 | D49: Equipment | E49: 1 | G49: 3237.82 | H49: 3237.82 | I49: 0
A50: 17700-0000 | B50: 35 | D50: Accum Amort: Equipment | E50: 1 | G50: -512.62 | H50: -269.8 | I50: 47.36842105
A51: 17900-0000 | B51: 35 | D51: Leasehold Improvements | E51: 1 | G51: 0 | H51: 0 | I51: 0
A52: 18000-0000 | B52: 35 | D52: Accum Amort: Leasehold Improvements | E52: 1 | G52: 0 | H52: 0 | I52: 0
A53: 18200-0000 | B53: 35 | D53: Vehicles | E53: 1 | G53: 10058 | H53: 5350 | I53: 46.80851064
A54: 18250-0000 | B54: 35 | D54: Accum. Amort: Vehicles | E54: 1 | G54: -1114.6 | H54: -557.3 | I54: 50
A55: 18350-0000 | B55: 35 | D55: Computer Equip./Software | E55: 1 | G55: 5350 | H55: 5350 | I55: 0
A56: 18400-0000 | B56: 35 | D56: Accum Amort: Comp. Equip./Software | E56: 1 | G56: -2229.2 | H56: -1226.06 | I56: 45
A57: 18500-0000 | B57: 35 | D57: Building | E57: 1 | G57: 1200000 | H57: 1200000 | I57: 0
A58: 18550-0000 | B58: 35 | D58: Accum Amort: Building | E58: 1 | G58: -50000 | H58: -27500 | I58: 45
A59: 18700-0000 | B59: 35 | D59: Land | E59: 1 | G59: 500000 | H59: 500000 | I59: 0
C61: Investments | G61: 0 | H61: 0
A62: 11000-0000 | B62: 38 | D62: Investments | E62: 1 | G62: 0 | H62: 0 | I62: 0
C64: Other Non-Current Asset | G64: 0 | H64: 0
A65: 19100-0000 | B65: 40 | D65: Goodwill | E65: 1 | G65: 0 | H65: 0 | I65: 0
A66: 19200-0000 | B66: 40 | D66: Accum Amort: Goodwill | E66: 1 | G66: 0 | H66: 0 | I66: 0
B68: #TA | C68: TOTAL ASSETS | G68: 2499178.83 | H68: 2226713.22
B70: _LB | C70: LIABILITIES
C72: Current Liability | G72: 206316.54 | H72: 219033.59
A73: 21000-0000 | B73: 51 | D73: Accounts Payable | E73: -1 | G73: 70168.93 | H73: 85057.16 | I73: 21.21769564
A74: 21000-0100 | B74: 51 | D74: Accounts Payable | E74: -1 | G74: 0 | H74: 0 | I74: 0
A75: 21000-0200 | B75: 51 | D75: Accounts Payable | E75: -1 | G75: 1843.68 | H75: 4311.48 | I75: 133.8518615
A76: 21000-0300 | B76: 51 | D76: Accounts Payable | E76: -1 | G76: -40693.62 | H76: 37133.74 | I76: -191.2519948
A77: 21050-0000 | B77: 51 | D77: AMEX Payable | E77: -1 | G77: 6391.91 | H77: 0 | I77: -100
A78: 21080-0000 | B78: 51 | D78: Mastercard Payable | E78: -1 | G78: 29014.2 | H78: 0 | I78: -100
A79: 21100-0000 | B79: 51 | D79: Visa Payable | E79: -1 | G79: 36263.05 | H79: 0 | I79: -100
A80: 21150-0000 | B80: 51 | D80: Import Duty Clearing | E80: -1 | G80: 0 | H80: 0 | I80: 0
A81: 21150-0100 | B81: 51 | D81: Import Duty Clearing | E81: -1 | G81: 0 | H81: 0 | I81: 0
A82: 21150-0200 | B82: 51 | D82: Import Duty Clearing | E82: -1 | G82: 0 | H82: 0 | I82: 0
A83: 21200-0000 | B83: 51 | D83: Bank Loan - Current Portion | E83: -1 | G83: 0 | H83: 0 | I83: 0
A84: 21300-0000 | B84: 51 | D84: Bank Advances | E84: -1 | G84: 0 | H84: 0 | I84: 0
A85: 21600-0000 | B85: 51 | D85: Corporate Taxes payable | E85: -1 | G85: 0 | H85: 0 | I85: 0
A86: 21700-0000 | B86: 51 | D86: Vacation payable | E86: -1 | G86: 10347.2 | H86: 6124.94 | I86: -40.80582186
A87: 21800-0000 | B87: 51 | D87: EI Payable | E87: -1 | G87: 5630.02 | H87: 4612.16 | I87: -18.07915425
A88: 21850-0000 | B88: 51 | D88: CPP Payable | E88: -1 | G88: 8521.26 | H88: 6519.48 | I88: -23.49159631
A89: 21870-0000 | B89: 51 | D89: QPP Payable | E89: -1 | G89: 2369.1 | H89: 2630.58 | I89: 11.0371027
A90: 21900-0000 | B90: 51 | D90: Federal Income Tax Payable | E90: -1 | G90: 17912.58 | H90: 15860.44 | I90: -11.45641778
A91: 21930-0000 | B91: 51 | D91: Quebec Income Tax Payable | E91: -1 | G91: 3339.3 | H91: 3903.29 | I91: 16.88946785
A92: 22000-0000 | B92: 51 | D92: WCB Payable | E92: -1 | G92: 2057.03 | H92: 1711.25 | I92: -16.8096722
A93: 22050-0000 | B93: 51 | D93: EHT Payable | E93: -1 | G93: 135.54 | H93: 0 | I93: -100
A94: 22100-0000 | B94: 51 | D94: QHSF Payable | E94: -1 | G94: 1206.49 | H94: 1206.49 | I94: 0
A95: 22150-0000 | B95: 51 | D95: QPIP Payable | E95: -1 | G95: 268.68 | H95: 268.68 | I95: 2.115655012e-14
A96: 22200-0000 | B96: 51 | D96: RRSP Payable | E96: -1 | G96: 6273.6 | H96: 5062.95 | I96: -19.29753252
A97: 22250-0000 | B97: 51 | D97: RRSP - Employers Share | E97: -1 | G97: 876 | H97: 735 | I97: -16.09589041
A98: 22300-0000 | B98: 51 | D98: Union Pension Payable | E98: -1 | G98: 561.18 | H98: 449.43 | I98: -19.91339677
A99: 22350-0000 | B99: 51 | D99: Union Pension - Employers Share | E99: -1 | G99: 450 | H99: 391.5 | I99: -13
A100: 22400-0000 | B100: 51 | D100: Medical Payable | E100: -1 | G100: 2603 | H100: 1314.4 | I100: -49.50441798
A101: 22450-0000 | B101: 51 | D101: Medical Payable - Employers Share | E101: -1 | G101: 10305 | H101: 5310 | I101: -48.47161572
A102: 22500-0000 | B102: 51 | D102: Short Term Disability | E102: -1 | G102: 296 | H102: 0 | I102: -100
A103: 22600-0000 | B103: 51 | D103: Long Term Disability | E103: -1 | G103: 184 | H103: 0 | I103: -100
A104: 22700-0000 | B104: 51 | D104: Charitable Donations | E104: -1 | G104: 0 | H104: 0 | I104: 0
A105: 22800-0000 | B105: 51 | D105: Garnishment | E105: -1 | G105: 0 | H105: 0 | I105: 0
A106: 23000-0000 | B106: 51 | D106: PST Payable | E106: -1 | G106: 18810.59 | H106: 12973.4 | I106: -31.03140306
A107: 23100-0000 | B107: 51 | D107: GST Charged on Sales | E107: -1 | G107: 17938.39 | H107: 61390.15 | I107: 242.2277585
A108: 23150-0000 | B108: 51 | D108: GST Paid on Purchases | E108: -1 | G108: -6756.57 | H108: -37932.93 | I108: 461.4228817
A109: 23200-0000 | B109: 51 | D109: GST Payroll Deductions | E109: -1 | G109: 0 | H109: 0 | I109: 0
A110: 23300-0000 | B110: 51 | D110: GST Adjustments | E110: -1 | G110: 0 | H110: 0 | I110: 0
C112: Long Term Liability | G112: 0 | H112: 0
A113: 24600-0000 | B113: 55 | D113: Prepaid Sales/Deposits | E113: -1 | G113: 0 | H113: 0 | I113: 0
A114: 26200-0000 | B114: 55 | D114: Bank Loans | E114: -1 | G114: 0 | H114: 0 | I114: 0
A115: 26300-0000 | B115: 55 | D115: Mortgage Payable | E115: -1 | G115: 0 | H115: 0 | I115: 0
A116: 26800-0000 | B116: 55 | D116: Loans from Shareholders | E116: -1 | G116: 0 | H116: 0 | I116: 0
B118: #TL | C118: TOTAL LIABILITIES | G118: 206316.54 | H118: 219033.59
B120: #NE | C120: NET ASSETS/LIABILITIES | G120: 2292862.29 | H120: 2007679.63
B122: _EQ | C122: EQUITY
C124: Share Capital | G124: 1800000 | H124: 1800000
A125: 33500-0000 | B125: 61 | D125: Common Shares | E125: -1 | G125: 1800000 | H125: 1800000 | I125: 0
A126: 33900-0000 | B126: 61 | D126: Preferred Shares | E126: -1 | G126: 0 | H126: 0 | I126: 0
C128: Retained Earnings | G128: 492862.29 | H128: 207679.63
A129: 35600-0000 | B129: 65 | D129: Retained Earnings - Previous Year | E129: 1 | G129: -30343.52 | H129: 0 | I129: 100
A130: 35600-0100 | B130: 65 | D130: Retained Earnings - Previous Year | E130: 1 | G130: -250927.43 | H130: 0 | I130: 100
A131: 35600-0200 | B131: 65 | D131: Retained Earnings - Previous Year | E131: 1 | G131: -41817.36 | H131: 0 | I131: 100
A132: 35600-0300 | B132: 65 | D132: Retained Earnings - Previous Year | E132: 1 | G132: 530767.94 | H132: 0 | I132: 100
A133: 36000-0000 | B133: 65 | D133: Current Earnings | E133: -1 | G133: 0 | H133: 0 | I133: 0
A134: 36000-0100 | B134: 65 | D134: Current Earnings | E134: -1 | G134: 0 | H134: 0 | I134: 0
A135: 36000-0200 | B135: 65 | D135: Current Earnings | E135: -1 | G135: 0 | H135: 0 | I135: 0
A136: 36000-0300 | B136: 65 | D136: Current Earnings | E136: -1 | G136: 0 | H136: 0 | I136: 0
A137: RETINC | B137: 65 | D137: Retained Income Current Year | E137: 1 | G137: 285182.66 | H137: 207679.63 | I137: 27.17662778
B139: #ET | C139: TOTAL EQUITY | G139: 2292862.29 | H139: 2007679.63

Sheet Current Month & YTD IS
C2: UNIVERSAL CONSTRUCTION
C3: Income Statement for Period Ending June 2015
G5: Current Mth | K5: Current Mth | O5: YTD | S5: YTD
G6: Actual | H6: Budget | I6: Variance % | K6: Actual | L6: Prior | M6: Variance % | O6: Actual | P6: Budget | Q6: Variance % | S6: Actual | T6: Prior | U6: Variance %
B9: _RV | C9: REVENUE
C11: Operating Revenue | G11: 0 | H11: 0 | K11: 0 | L11: 108889.14 | O11: 1030393.64 | P11: 0 | S11: 1030393.64 | T11: 986295.05
A12: 40200-0000 | B12: 2 | D12: Drafting | E12: 1 | G12: 0 | H12: 0 | I12: 0 | K12: 0 | L12: 0 | M12: 0 | O12: 0 | P12: 0 | Q12: 0 | S12: 0 | T12: 0 | U12: 0
A13: 40200-0100 | B13: 2 | D13: Drafting | E13: 1 | G13: 0 | H13: 0 | I13: 0 | K13: 0 | L13: 0 | M13: 0 | O13: 0 | P13: 0 | Q13: 0 | S13: 0 | T13: 0 | U13: 0
A14: 40200-0200 | B14: 2 | D14: Drafting | E14: 1 | G14: 0 | H14: 0 | I14: 0 | K14: 0 | L14: 0 | M14: 0 | O14: 0 | P14: 0 | Q14: 0 | S14: 0 | T14: 0 | U14: 0
A15: 40200-0300 | B15: 2 | D15: Drafting | E15: 1 | G15: 0 | H15: 0 | I15: 0 | K15: 0 | L15: 16000 | M15: 0 | O15: 99870 | P15: 0 | Q15: 100 | S15: 99870 | T15: 53187.5 | U15: 46.74326625
A16: 40300-0000 | B16: 2 | D16: Engineering Consulting | E16: 1 | G16: 0 | H16: 0 | I16: 0 | K16: 0 | L16: 0 | M16: 0 | O16: 0 | P16: 0 | Q16: 0 | S16: 0 | T16: 0 | U16: 0
A17: 40300-0100 | B17: 2 | D17: Engineering Consulting | E17: 1 | G17: 0 | H17: 0 | I17: 0 | K17: 0 | L17: 0 | M17: 0 | O17: 0 | P17: 0 | Q17: 0 | S17: 0 | T17: 0 | U17: 0
A18: 40300-0200 | B18: 2 | D18: Engineering Consulting | E18: 1 | G18: 0 | H18: 0 | I18: 0 | K18: 0 | L18: 0 | M18: 0 | O18: 0 | P18: 0 | Q18: 0 | S18: 0 | T18: 0 | U18: 0
A19: 40300-0300 | B19: 2 | D19: Engineering Consulting | E19: 1 | G19: 0 | H19: 0 | I19: 0 | K19: 0 | L19: 10000 | M19: 0 | O19: 120425.55 | P19: 0 | Q19: 100 | S19: 120425.55 | T19: 123000 | U19: -2.137793849
A20: 40400-0000 | B20: 2 | D20: Estimating Consulting | E20: 1 | G20: 0 | H20: 0 | I20: 0 | K20: 0 | L20: 0 | M20: 0 | O20: 0 | P20: 0 | Q20: 0 | S20: 0 | T20: 0 | U20: 0
A21: 40400-0100 | B21: 2 | D21: Estimating Consulting | E21: 1 | G21: 0 | H21: 0 | I21: 0 | K21: 0 | L21: 0 | M21: 0 | O21: 0 | P21: 0 | Q21: 0 | S21: 0 | T21: 0 | U21: 0
A22: 40400-0200 | B22: 2 | D22: Estimating Consulting | E22: 1 | G22: 0 | H22: 0 | I22: 0 | K22: 0 | L22: 0 | M22: 0 | O22: 0 | P22: 0 | Q22: 0 | S22: 0 | T22: 0 | U22: 0
A23: 40400-0300 | B23: 2 | D23: Estimating Consulting | E23: 1 | G23: 0 | H23: 0 | I23: 0 | K23: 0 | L23: 10000 | M23: 0 | O23: 87490 | P23: 0 | Q23: 100 | S23: 87490 | T23: 126400 | U23: -44.47365413
A24: 40800-0000 | B24: 2 | D24: Surveying | E24: 1 | G24: 0 | H24: 0 | I24: 0 | K24: 0 | L24: 0 | M24: 0 | O24: 0 | P24: 0 | Q24: 0 | S24: 0 | T24: 0 | U24: 0
A25: 40800-0100 | B25: 2 | D25: Surveying | E25: 1 | G25: 0 | H25: 0 | I25: 0 | K25: 0 | L25: 0 | M25: 0 | O25: 0 | P25: 0 | Q25: 0 | S25: 0 | T25: 0 | U25: 0
A26: 40800-0200 | B26: 2 | D26: Surveying | E26: 1 | G26: 0 | H26: 0 | I26: 0 | K26: 0 | L26: 0 | M26: 0 | O26: 0 | P26: 0 | Q26: 0 | S26: 0 | T26: 0 | U26: 0
A27: 40800-0300 | B27: 2 | D27: Surveying | E27: 1 | G27: 0 | H27: 0 | I27: 0 | K27: 0 | L27: 11150 | M27: 0 | O27: 86631.99 | P27: 0 | Q27: 100 | S27: 86631.99 | T27: 92650 | U27: -6.946637149
A28: 40900-0000 | B28: 2 | D28: Other Services | E28: 1 | G28: 0 | H28: 0 | I28: 0 | K28: 0 | L28: 0 | M28: 0 | O28: 0 | P28: 0 | Q28: 0 | S28: 0 | T28: 0 | U28: 0
A29: 40900-0100 | B29: 2 | D29: Other Services | E29: 1 | G29: 0 | H29: 0 | I29: 0 | K29: 0 | L29: 0 | M29: 0 | O29: 0 | P29: 0 | Q29: 0 | S29: 0 | T29: 0 | U29: 0
A30: 40900-0200 | B30: 2 | D30: Other Services | E30: 1 | G30: 0 | H30: 0 | I30: 0 | K30: 0 | L30: 0 | M30: 0 | O30: 0 | P30: 0 | Q30: 0 | S30: 0 | T30: 0 | U30: 0
A31: 40900-0300 | B31: 2 | D31: Other Services | E31: 1 | G31: 0 | H31: 0 | I31: 0 | K31: 0 | L31: 0 | M31: 0 | O31: 35685 | P31: 0 | Q31: 100 | S31: 35685 | T31: 38300 | U31: -7.328008967
A32: 42100-0000 | B32: 2 | D32: Sales: Drywall | E32: 1 | G32: 0 | H32: 0 | I32: 0 | K32: 0 | L32: 0 | M32: 0 | O32: 0 | P32: 0 | Q32: 0 | S32: 0 | T32: 0 | U32: 0
A33: 42100-0100 | B33: 2 | D33: Sales: Drywall | E33: 1 | G33: 0 | H33: 0 | I33: 0 | K33: 0 | L33: 0 | M33: 0 | O33: 0 | P33: 0 | Q33: 0 | S33: 0 | T33: 0 | U33: 0
A34: 42100-0200 | B34: 2 | D34: Sales: Drywall | E34: 1 | G34: 0 | H34: 0 | I34: 0 | K34: 0 | L34: 0 | M34: 0 | O34: 0 | P34: 0 | Q34: 0 | S34: 0 | T34: 0 | U34: 0
A35: 42100-0300 | B35: 2 | D35: Sales: Drywall | E35: 1 | G35: 0 | H35: 0 | I35: 0 | K35: 0 | L35: 0 | M35: 0 | O35: 38873.4 | P35: 0 | Q35: 100 | S35: 38873.4 | T35: 24754.25 | U35: 36.32085179
A36: 42200-0000 | B36: 2 | D36: Sales: Hardware | E36: 1 | G36: 0 | H36: 0 | I36: 0 | K36: 0 | L36: 0 | M36: 0 | O36: 0 | P36: 0 | Q36: 0 | S36: 0 | T36: 17898 | U36: 0
A37: 42200-0100 | B37: 2 | D37: Sales: Hardware | E37: 1 | G37: 0 | H37: 0 | I37: 0 | K37: 0 | L37: 0 | M37: 0 | O37: 0 | P37: 0 | Q37: 0 | S37: 0 | T37: 0 | U37: 0
A38: 42200-0200 | B38: 2 | D38: Sales: Hardware | E38: 1 | G38: 0 | H38: 0 | I38: 0 | K38: 0 | L38: 0 | M38: 0 | O38: 0 | P38: 0 | Q38: 0 | S38: 0 | T38: 0 | U38: 0
A39: 42200-0300 | B39: 2 | D39: Sales: Hardware | E39: 1 | G39: 0 | H39: 0 | I39: 0 | K39: 0 | L39: 58195 | M39: 0 | O39: 446731.6 | P39: 0 | Q39: 100 | S39: 446731.6 | T39: 421881.35 | U39: 5.562680142
A40: 42300-0000 | B40: 2 | D40: Sales: Lumber | E40: 1 | G40: 0 | H40: 0 | I40: 0 | K40: 0 | L40: 0 | M40: 0 | O40: 0 | P40: 0 | Q40: 0 | S40: 0 | T40: 2365 | U40: 0
A41: 42300-0100 | B41: 2 | D41: Sales: Lumber | E41: 1 | G41: 0 | H41: 0 | I41: 0 | K41: 0 | L41: 0 | M41: 0 | O41: 0 | P41: 0 | Q41: 0 | S41: 0 | T41: 0 | U41: 0
A42: 42300-0200 | B42: 2 | D42: Sales: Lumber | E42: 1 | G42: 0 | H42: 0 | I42: 0 | K42: 0 | L42: 0 | M42: 0 | O42: 0 | P42: 0 | Q42: 0 | S42: 0 | T42: 0 | U42: 0
A43: 42300-0300 | B43: 2 | D43: Sales: Lumber | E43: 1 | G43: 0 | H43: 0 | I43: 0 | K43: 0 | L43: 3544.14 | M43: 0 | O43: 65923.49 | P43: 0 | Q43: 100 | S43: 65923.49 | T43: 71306.89 | U43: -8.166133195
A44: 42400-0000 | B44: 2 | D44: Sales: Roofing | E44: 1 | G44: 0 | H44: 0 | I44: 0 | K44: 0 | L44: 0 | M44: 0 | O44: 0 | P44: 0 | Q44: 0 | S44: 0 | T44: 0 | U44: 0
A45: 42400-0100 | B45: 2 | D45: Sales: Roofing | E45: 1 | G45: 0 | H45: 0 | I45: 0 | K45: 0 | L45: 0 | M45: 0 | O45: 0 | P45: 0 | Q45: 0 | S45: 0 | T45: 0 | U45: 0
A46: 42400-0200 | B46: 2 | D46: Sales: Roofing | E46: 1 | G46: 0 | H46: 0 | I46: 0 | K46: 0 | L46: 0 | M46: 0 | O46: 0 | P46: 0 | Q46: 0 | S46: 0 | T46: 0 | U46: 0
A47: 42400-0300 | B47: 2 | D47: Sales: Roofing | E47: 1 | G47: 0 | H47: 0 | I47: 0 | K47: 0 | L47: 0 | M47: 0 | O47: 48159 | P47: 0 | Q47: 100 | S47: 48159 | T47: 15705 | U47: 67.38927303
A48: 44100-0000 | B48: 2 | D48: Freight Revenue | E48: 1 | G48: 0 | H48: 0 | I48: 0 | K48: 0 | L48: 0 | M48: 0 | O48: 0 | P48: 0 | Q48: 0 | S48: 0 | T48: 0 | U48: 0
A49: 44100-0100 | B49: 2 | D49: Freight Revenue | E49: 1 | G49: 0 | H49: 0 | I49: 0 | K49: 0 | L49: 0 | M49: 0 | O49: 0 | P49: 0 | Q49: 0 | S49: 0 | T49: 0 | U49: 0
A50: 44100-0200 | B50: 2 | D50: Freight Revenue | E50: 1 | G50: 0 | H50: 0 | I50: 0 | K50: 0 | L50: 0 | M50: 0 | O50: 0 | P50: 0 | Q50: 0 | S50: 0 | T50: 0 | U50: 0
A51: 44100-0300 | B51: 2 | D51: Freight Revenue | E51: 1 | G51: 0 | H51: 0 | I51: 0 | K51: 0 | L51: 0 | M51: 0 | O51: 3686 | P51: 0 | Q51: 100 | S51: 3686 | T51: 1223 | U51: 66.82040152
A52: 44200-0000 | B52: 2 | D52: Sales Discounts | E52: 1 | G52: 0 | H52: 0 | I52: 0 | K52: 0 | L52: 0 | M52: 0 | O52: 0 | P52: 0 | Q52: 0 | S52: 0 | T52: -275 | U52: 0
A53: 44200-0100 | B53: 2 | D53: Sales Discounts | E53: 1 | G53: 0 | H53: 0 | I53: 0 | K53: 0 | L53: 0 | M53: 0 | O53: 0 | P53: 0 | Q53: 0 | S53: 0 | T53: 0 | U53: 0
A54: 44200-0200 | B54: 2 | D54: Sales Discounts | E54: 1 | G54: 0 | H54: 0 | I54: 0 | K54: 0 | L54: 0 | M54: 0 | O54: 0 | P54: 0 | Q54: 0 | S54: 0 | T54: 0 | U54: 0
A55: 44200-0300 | B55: 2 | D55: Sales Discounts | E55: 1 | G55: 0 | H55: 0 | I55: 0 | K55: 0 | L55: 0 | M55: 0 | O55: -3082.39 | P55: 0 | Q55: 100 | S55: -3082.39 | T55: -2100.94 | U55: 31.8405523
A56: 44600-0000 | B56: 2 | D56: Miscellaneous Revenue | E56: 1 | G56: 0 | H56: 0 | I56: 0 | K56: 0 | L56: 0 | M56: 0 | O56: 0 | P56: 0 | Q56: 0 | S56: 0 | T56: 0 | U56: 0
A57: 44600-0100 | B57: 2 | D57: Miscellaneous Revenue | E57: 1 | G57: 0 | H57: 0 | I57: 0 | K57: 0 | L57: 0 | M57: 0 | O57: 0 | P57: 0 | Q57: 0 | S57: 0 | T57: 0 | U57: 0
A58: 44600-0200 | B58: 2 | D58: Miscellaneous Revenue | E58: 1 | G58: 0 | H58: 0 | I58: 0 | K58: 0 | L58: 0 | M58: 0 | O58: 0 | P58: 0 | Q58: 0 | S58: 0 | T58: 0 | U58: 0
A59: 44600-0300 | B59: 2 | D59: Miscellaneous Revenue | E59: 1 | G59: 0 | H59: 0 | I59: 0 | K59: 0 | L59: 0 | M59: 0 | O59: 0 | P59: 0 | Q59: 0 | S59: 0 | T59: 0 | U59: 0
C61: Non-Operating revenue | G61: 0 | H61: 0 | K61: 0 | L61: 0 | O61: 0 | P61: 0 | S61: 0 | T61: 0
A62: 44400-0000 | B62: 5 | D62: Interest Revenue | E62: 1 | G62: 0 | H62: 0 | I62: 0 | K62: 0 | L62: 0 | M62: 0 | O62: 0 | P62: 0 | Q62: 0 | S62: 0 | T62: 0 | U62: 0
A63: 44400-0100 | B63: 5 | D63: Interest Revenue | E63: 1 | G63: 0 | H63: 0 | I63: 0 | K63: 0 | L63: 0 | M63: 0 | O63: 0 | P63: 0 | Q63: 0 | S63: 0 | T63: 0 | U63: 0
A64: 44400-0200 | B64: 5 | D64: Interest Revenue | E64: 1 | G64: 0 | H64: 0 | I64: 0 | K64: 0 | L64: 0 | M64: 0 | O64: 0 | P64: 0 | Q64: 0 | S64: 0 | T64: 0 | U64: 0
A65: 44400-0300 | B65: 5 | D65: Interest Revenue | E65: 1 | G65: 0 | H65: 0 | I65: 0 | K65: 0 | L65: 0 | M65: 0 | O65: 0 | P65: 0 | Q65: 0 | S65: 0 | T65: 0 | U65: 0
B67: TRV | C67: TOTAL REVENUE | G67: 0 | H67: 0 | K67: 0 | L67: 108889.14 | O67: 1030393.64 | P67: 0 | S67: 1030393.64 | T67: 986295.05
C69: Cost of Goods Sold | G69: 0 | H69: 0 | K69: 0 | L69: 10405.96 | O69: 224827.37 | P69: 0 | S69: 224827.37 | T69: 231938.98
A70: 50100-0000 | B70: 10 | D70: Material: Drywall | E70: -1 | G70: 0 | H70: 0 | I70: 0 | K70: 0 | L70: 0 | M70: 0 | O70: 0.07 | P70: 0 | Q70: -100 | S70: 0.07 | T70: 0 | U70: -100
A71: 50100-0100 | B71: 10 | D71: Material: Drywall | E71: -1 | G71: 0 | H71: 0 | I71: 0 | K71: 0 | L71: 0 | M71: 0 | O71: 0 | P71: 0 | Q71: 0 | S71: 0 | T71: 0 | U71: 0
A72: 50100-0200 | B72: 10 | D72: Material: Drywall | E72: -1 | G72: 0 | H72: 0 | I72: 0 | K72: 0 | L72: 0 | M72: 0 | O72: 0 | P72: 0 | Q72: 0 | S72: 0 | T72: 0 | U72: 0
A73: 50100-0300 | B73: 10 | D73: Material: Drywall | E73: -1 | G73: 0 | H73: 0 | I73: 0 | K73: 0 | L73: 0 | M73: 0 | O73: 5108.25 | P73: 0 | Q73: -100 | S73: 5108.25 | T73: 5881.41 | U73: 15.13551608
A74: 50200-0000 | B74: 10 | D74: Material: Hardware | E74: -1 | G74: 0 | H74: 0 | I74: 0 | K74: 0 | L74: 0 | M74: 0 | O74: 0.16 | P74: 0 | Q74: -100 | S74: 0.16 | T74: 742.05 | U74: 463681.25
A75: 50200-0100 | B75: 10 | D75: Material: Hardware | E75: -1 | G75: 0 | H75: 0 | I75: 0 | K75: 0 | L75: 0 | M75: 0 | O75: 0 | P75: 0 | Q75: 0 | S75: 0 | T75: 0 | U75: 0
A76: 50200-0200 | B76: 10 | D76: Material: Hardware | E76: -1 | G76: 0 | H76: 0 | I76: 0 | K76: 0 | L76: 0 | M76: 0 | O76: 0 | P76: 0 | Q76: 0 | S76: 0 | T76: 0 | U76: 0
A77: 50200-0300 | B77: 10 | D77: Material: Hardware | E77: -1 | G77: 0 | H77: 0 | I77: 0 | K77: 0 | L77: 8467.22 | M77: 0 | O77: 95187.19 | P77: 0 | Q77: -100 | S77: 95187.19 | T77: 67099.63 | U77: -29.50771002
A78: 50300-0000 | B78: 10 | D78: Material: Lumber | E78: -1 | G78: 0 | H78: 0 | I78: 0 | K78: 0 | L78: 0 | M78: 0 | O78: 0 | P78: 0 | Q78: 0 | S78: 0 | T78: 1133 | U78: 0
A79: 50300-0100 | B79: 10 | D79: Material: Lumber | E79: -1 | G79: 0 | H79: 0 | I79: 0 | K79: 0 | L79: 0 | M79: 0 | O79: 0 | P79: 0 | Q79: 0 | S79: 0 | T79: 0 | U79: 0
A80: 50300-0200 | B80: 10 | D80: Material: Lumber | E80: -1 | G80: 0 | H80: 0 | I80: 0 | K80: 0 | L80: 0 | M80: 0 | O80: 0 | P80: 0 | Q80: 0 | S80: 0 | T80: 0 | U80: 0
A81: 50300-0300 | B81: 10 | D81: Material: Lumber | E81: -1 | G81: 0 | H81: 0 | I81: 0 | K81: 0 | L81: 1938.74 | M81: 0 | O81: 27777.12 | P81: 0 | Q81: -100 | S81: 27777.12 | T81: 32559.9 | U81: 17.21841573
A82: 50400-0000 | B82: 10 | D82: Material: Roofing | E82: -1 | G82: 0 | H82: 0 | I82: 0 | K82: 0 | L82: 0 | M82: 0 | O82: -0.06 | P82: 0 | Q82: -100 | S82: -0.06 | T82: 0 | U82: -100
A83: 50400-0100 | B83: 10 | D83: Material: Roofing | E83: -1 | G83: 0 | H83: 0 | I83: 0 | K83: 0 | L83: 0 | M83: 0 | O83: 0 | P83: 0 | Q83: 0 | S83: 0 | T83: 0 | U83: 0
A84: 50400-0200 | B84: 10 | D84: Material: Roofing | E84: -1 | G84: 0 | H84: 0 | I84: 0 | K84: 0 | L84: 0 | M84: 0 | O84: 0 | P84: 0 | Q84: 0 | S84: 0 | T84: 0 | U84: 0
A85: 50400-0300 | B85: 10 | D85: Material: Roofing | E85: -1 | G85: 0 | H85: 0 | I85: 0 | K85: 0 | L85: 0 | M85: 0 | O85: 36209.6 | P85: 0 | Q85: -100 | S85: 36209.6 | T85: 10759 | U85: -70.28688525
A86: 54950-0000 | B86: 10 | D86: Subcontractors | E86: -1 | G86: 0 | H86: 0 | I86: 0 | K86: 0 | L86: 0 | M86: 0 | O86: 0 | P86: 0 | Q86: 0 | S86: 0 | T86: 0 | U86: 0
A87: 54950-0100 | B87: 10 | D87: Subcontractors | E87: -1 | G87: 0 | H87: 0 | I87: 0 | K87: 0 | L87: 0 | M87: 0 | O87: 11455.98 | P87: 0 | Q87: -100 | S87: 11455.98 | T87: 21509.36 | U87: 87.7566127
A88: 54950-0200 | B88: 10 | D88: Subcontractors | E88: -1 | G88: 0 | H88: 0 | I88: 0 | K88: 0 | L88: 0 | M88: 0 | O88: 2339.08 | P88: 0 | Q88: -100 | S88: 2339.08 | T88: 1832.08 | U88: -21.67518854
A89: 54950-0300 | B89: 10 | D89: Subcontractors | E89: -1 | G89: 0 | H89: 0 | I89: 0 | K89: 0 | L89: 0 | M89: 0 | O89: 46749.98 | P89: 0 | Q89: -100 | S89: 46749.98 | T89: 90422.55 | U89: 93.417302
B91: GP | C91: GROSS PROFIT / (LOSS) | G91: 0 | H91: 0 | K91: 0 | L91: 98483.18 | O91: 805566.27 | P91: 0 | S91: 805566.27 | T91: 754356.07
B93: _EX | C93: EXPENSES
C95: Operating Expense | G95: 0 | H95: 0 | K95: 0 | L95: -1981 | O95: 4237.81 | P95: 0 | S95: 4237.81 | T95: -1419.12
A96: 51200-0000 | B96: 12 | D96: Item Assembly Costs | E96: -1 | G96: 0 | H96: 0 | I96: 0 | K96: 0 | L96: 0 | M96: 0 | O96: 0 | P96: 0 | Q96: 0 | S96: 0 | T96: 0 | U96: 0
A97: 51200-0100 | B97: 12 | D97: Item Assembly Costs | E97: -1 | G97: 0 | H97: 0 | I97: 0 | K97: 0 | L97: 0 | M97: 0 | O97: 0 | P97: 0 | Q97: 0 | S97: 0 | T97: 0 | U97: 0
A98: 51200-0200 | B98: 12 | D98: Item Assembly Costs | E98: -1 | G98: 0 | H98: 0 | I98: 0 | K98: 0 | L98: 0 | M98: 0 | O98: 0 | P98: 0 | Q98: 0 | S98: 0 | T98: 0 | U98: 0
A99: 51200-0300 | B99: 12 | D99: Item Assembly Costs | E99: -1 | G99: 0 | H99: 0 | I99: 0 | K99: 0 | L99: 0 | M99: 0 | O99: -1200 | P99: 0 | Q99: -100 | S99: -1200 | T99: -500 | U99: -58.33333333
A100: 51300-0000 | B100: 12 | D100: Adjustment Write-off | E100: -1 | G100: 0 | H100: 0 | I100: 0 | K100: 0 | L100: 0 | M100: 0 | O100: 0 | P100: 0 | Q100: 0 | S100: 0 | T100: 0 | U100: 0
A101: 51300-0100 | B101: 12 | D101: Adjustment Write-off | E101: -1 | G101: 0 | H101: 0 | I101: 0 | K101: 0 | L101: 0 | M101: 0 | O101: 0 | P101: 0 | Q101: 0 | S101: 0 | T101: 0 | U101: 0
A102: 51300-0200 | B102: 12 | D102: Adjustment Write-off | E102: -1 | G102: 0 | H102: 0 | I102: 0 | K102: 0 | L102: 0 | M102: 0 | O102: 0 | P102: 0 | Q102: 0 | S102: 0 | T102: 0 | U102: 0
A103: 51300-0300 | B103: 12 | D103: Adjustment Write-off | E103: -1 | G103: 0 | H103: 0 | I103: 0 | K103: 0 | L103: -10803.86 | M103: 0 | O103: 100.14 | P103: 0 | Q103: -100 | S103: 100.14 | T103: -9161.16 | U103: -9248.352307
A104: 51400-0000 | B104: 12 | D104: Transfer Costs | E104: -1 | G104: 0 | H104: 0 | I104: 0 | K104: 0 | L104: 0 | M104: 0 | O104: 0 | P104: 0 | Q104: 0 | S104: 0 | T104: 0 | U104: 0
A105: 51400-0100 | B105: 12 | D105: Transfer Costs | E105: -1 | G105: 0 | H105: 0 | I105: 0 | K105: 0 | L105: 0 | M105: 0 | O105: 0 | P105: 0 | Q105: 0 | S105: 0 | T105: 0 | U105: 0
A106: 51400-0200 | B106: 12 | D106: Transfer Costs | E106: -1 | G106: 0 | H106: 0 | I106: 0 | K106: 0 | L106: 0 | M106: 0 | O106: 0 | P106: 0 | Q106: 0 | S106: 0 | T106: 0 | U106: 0
A107: 51400-0300 | B107: 12 | D107: Transfer Costs | E107: -1 | G107: 0 | H107: 0 | I107: 0 | K107: 0 | L107: 0 | M107: 0 | O107: 0 | P107: 0 | Q107: 0 | S107: 0 | T107: 0 | U107: 0
A108: 51500-0000 | B108: 12 | D108: Purchase Discounts | E108: -1 | G108: 0 | H108: 0 | I108: 0 | K108: 0 | L108: 0 | M108: 0 | O108: -130.45 | P108: 0 | Q108: -100 | S108: -130.45 | T108: 0 | U108: -100
A109: 51500-0100 | B109: 12 | D109: Purchase Discounts | E109: -1 | G109: 0 | H109: 0 | I109: 0 | K109: 0 | L109: 0 | M109: 0 | O109: 0 | P109: 0 | Q109: 0 | S109: 0 | T109: 0 | U109: 0
A110: 51500-0200 | B110: 12 | D110: Purchase Discounts | E110: -1 | G110: 0 | H110: 0 | I110: 0 | K110: 0 | L110: 0 | M110: 0 | O110: 0 | P110: 0 | Q110: 0 | S110: 0 | T110: 0 | U110: 0
A111: 51500-0300 | B111: 12 | D111: Purchase Discounts | E111: -1 | G111: 0 | H111: 0 | I111: 0 | K111: 0 | L111: 0 | M111: 0 | O111: -1177.95 | P111: 0 | Q111: -100 | S111: -1177.95 | T111: -580.82 | U111: -50.69230443
A112: 51600-0000 | B112: 12 | D112: Equipment Rental | E112: -1 | G112: 0 | H112: 0 | I112: 0 | K112: 0 | L112: 0 | M112: 0 | O112: 0 | P112: 0 | Q112: 0 | S112: 0 | T112: 0 | U112: 0
A113: 51600-0100 | B113: 12 | D113: Equipment Rental | E113: -1 | G113: 0 | H113: 0 | I113: 0 | K113: 0 | L113: 0 | M113: 0 | O113: 0 | P113: 0 | Q113: 0 | S113: 0 | T113: 0 | U113: 0
A114: 51600-0200 | B114: 12 | D114: Equipment Rental | E114: -1 | G114: 0 | H114: 0 | I114: 0 | K114: 0 | L114: 0 | M114: 0 | O114: 0 | P114: 0 | Q114: 0 | S114: 0 | T114: 0 | U114: 0
A115: 51600-0300 | B115: 12 | D115: Equipment Rental | E115: -1 | G115: 0 | H115: 0 | I115: 0 | K115: 0 | L115: 8822.86 | M115: 0 | O115: 6211.35 | P115: 0 | Q115: -100 | S115: 6211.35 | T115: 8822.86 | U115: 42.04416109
A116: 51700-0000 | B116: 12 | D116: Freight Expense | E116: -1 | G116: 0 | H116: 0 | I116: 0 | K116: 0 | L116: 0 | M116: 0 | O116: 0 | P116: 0 | Q116: 0 | S116: 0 | T116: 0 | U116: 0
A117: 51700-0100 | B117: 12 | D117: Freight Expense | E117: -1 | G117: 0 | H117: 0 | I117: 0 | K117: 0 | L117: 0 | M117: 0 | O117: 0 | P117: 0 | Q117: 0 | S117: 0 | T117: 0 | U117: 0
A118: 51700-0200 | B118: 12 | D118: Freight Expense | E118: -1 | G118: 0 | H118: 0 | I118: 0 | K118: 0 | L118: 0 | M118: 0 | O118: 15 | P118: 0 | Q118: -100 | S118: 15 | T118: 0 | U118: -100
A119: 51700-0300 | B119: 12 | D119: Freight Expense | E119: -1 | G119: 0 | H119: 0 | I119: 0 | K119: 0 | L119: 0 | M119: 0 | O119: 419.72 | P119: 0 | Q119: -100 | S119: 419.72 | T119: 0 | U119: -100
C121: Payroll Expense | G121: 0 | H121: 0 | K121: 0 | L121: 37773.84 | O121: 336405.22 | P121: 0 | S121: 336405.22 | T121: 380000.43
A122: 54100-0000 | B122: 13 | D122: Wages & Salaries | E122: -1 | G122: 0 | H122: 0 | I122: 0 | K122: 0 | L122: 0 | M122: 0 | O122: 0 | P122: 0 | Q122: 0 | S122: 0 | T122: 15392 | U122: 0
A123: 54100-0100 | B123: 13 | D123: Wages & Salaries | E123: -1 | G123: 0 | H123: 0 | I123: 0 | K123: 0 | L123: 15840.8 | M123: 0 | O123: 140260.08 | P123: 0 | Q123: -100 | S123: 140260.08 | T123: 160762.07 | U123: 14.61712413
A124: 54100-0200 | B124: 13 | D124: Wages & Salaries | E124: -1 | G124: 0 | H124: 0 | I124: 0 | K124: 0 | L124: 2159.04 | M124: 0 | O124: 12974.3 | P124: 0 | Q124: -100 | S124: 12974.3 | T124: 12957.56 | U124: -0.1290243019
A125: 54100-0300 | B125: 13 | D125: Wages & Salaries | E125: -1 | G125: 0 | H125: 0 | I125: 0 | K125: 0 | L125: 16328.59 | M125: 0 | O125: 150101.56 | P125: 0 | Q125: -100 | S125: 150101.56 | T125: 156950.67 | U125: 4.562983889
A126: 54200-0000 | B126: 13 | D126: EI Expense | E126: -1 | G126: 0 | H126: 0 | I126: 0 | K126: 0 | L126: 0 | M126: 0 | O126: 0 | P126: 0 | Q126: 0 | S126: 0 | T126: 404.04 | U126: 0
A127: 54200-0100 | B127: 13 | D127: EI Expense | E127: -1 | G127: 0 | H127: 0 | I127: 0 | K127: 0 | L127: 415.79 | M127: 0 | O127: 4583.35 | P127: 0 | Q127: -100 | S127: 4583.35 | T127: 4245.48 | U127: -7.371682285
A128: 54200-0200 | B128: 13 | D128: EI Expense | E128: -1 | G128: 0 | H128: 0 | I128: 0 | K128: 0 | L128: 58.94 | M128: 0 | O128: 349.05 | P128: 0 | Q128: -100 | S128: 349.05 | T128: 351.22 | U128: 0.6216874373
A129: 54200-0300 | B129: 13 | D129: EI Expense | E129: -1 | G129: 0 | H129: 0 | I129: 0 | K129: 0 | L129: 425.33 | M129: 0 | O129: 3889.12 | P129: 0 | Q129: -100 | S129: 3889.12 | T129: 4160.35 | U129: 6.974071255
A130: 54300-0000 | B130: 13 | D130: CPP Expense | E130: -1 | G130: 0 | H130: 0 | I130: 0 | K130: 0 | L130: 0 | M130: 0 | O130: 0 | P130: 0 | Q130: 0 | S130: 0 | T130: 634.59 | U130: 0
A131: 54300-0100 | B131: 13 | D131: CPP Expense | E131: -1 | G131: 0 | H131: 0 | I131: 0 | K131: 0 | L131: 483.42 | M131: 0 | O131: 5946.37 | P131: 0 | Q131: -100 | S131: 5946.37 | T131: 5061.41 | U131: -14.8823568
A132: 54300-0200 | B132: 13 | D132: CPP Expense | E132: -1 | G132: 0 | H132: 0 | I132: 0 | K132: 0 | L132: 95.75 | M132: 0 | O132: 570.39 | P132: 0 | Q132: -100 | S132: 570.39 | T132: 574.5 | U132: 0.7205596171
A133: 54300-0300 | B133: 13 | D133: CPP Expense | E133: -1 | G133: 0 | H133: 0 | I133: 0 | K133: 0 | L133: 499.26 | M133: 0 | O133: 5227.88 | P133: 0 | Q133: -100 | S133: 5227.88 | T133: 5445.09 | U133: 4.154839055
A134: 54400-0000 | B134: 13 | D134: QPP Expense | E134: -1 | G134: 0 | H134: 0 | I134: 0 | K134: 0 | L134: 0 | M134: 0 | O134: 0 | P134: 0 | Q134: 0 | S134: 0 | T134: 0 | U134: 0
A135: 54400-0100 | B135: 13 | D135: QPP Expense | E135: -1 | G135: 0 | H135: 0 | I135: 0 | K135: 0 | L135: 227.62 | M135: 0 | O135: 2051.88 | P135: 0 | Q135: -100 | S135: 2051.88 | T135: 2367.74 | U135: 15.39368774
A136: 54400-0200 | B136: 13 | D136: QPP Expense | E136: -1 | G136: 0 | H136: 0 | I136: 0 | K136: 0 | L136: 0 | M136: 0 | O136: 0 | P136: 0 | Q136: 0 | S136: 0 | T136: 0 | U136: 0
A137: 54400-0300 | B137: 13 | D137: QPP Expense | E137: -1 | G137: 0 | H137: 0 | I137: 0 | K137: 0 | L137: 210.83 | M137: 0 | O137: 1003.38 | P137: 0 | Q137: -100 | S137: 1003.38 | T137: 1046.98 | U137: 4.345312843
A138: 54500-0000 | B138: 13 | D138: WCB Expense | E138: -1 | G138: 0 | H138: 0 | I138: 0 | K138: 0 | L138: 0 | M138: 0 | O138: 0 | P138: 0 | Q138: 0 | S138: 0 | T138: 379.4 | U138: 0
A139: 54500-0100 | B139: 13 | D139: WCB Expense | E139: -1 | G139: 0 | H139: 0 | I139: 0 | K139: 0 | L139: 202.95 | M139: 0 | O139: 2771.59 | P139: 0 | Q139: -100 | S139: 2771.59 | T139: 2203.32 | U139: -20.50339336
A140: 54500-0200 | B140: 13 | D140: WCB Expense | E140: -1 | G140: 0 | H140: 0 | I140: 0 | K140: 0 | L140: 51.9 | M140: 0 | O140: 323.94 | P140: 0 | Q140: -100 | S140: 323.94 | T140: 313.48 | U140: -3.228993023
A141: 54500-0300 | B141: 13 | D141: WCB Expense | E141: -1 | G141: 0 | H141: 0 | I141: 0 | K141: 0 | L141: 317.04 | M141: 0 | O141: 2686.92 | P141: 0 | Q141: -100 | S141: 2686.92 | T141: 3192.65 | U141: 18.8219225
A142: 54600-0000 | B142: 13 | D142: EHT Expense | E142: -1 | G142: 0 | H142: 0 | I142: 0 | K142: 0 | L142: 0 | M142: 0 | O142: 0 | P142: 0 | Q142: 0 | S142: 0 | T142: 0 | U142: 0
A143: 54600-0100 | B143: 13 | D143: EHT Expense | E143: -1 | G143: 0 | H143: 0 | I143: 0 | K143: 0 | L143: 0 | M143: 0 | O143: 361.44 | P143: 0 | Q143: -100 | S143: 361.44 | T143: 0 | U143: -100
A144: 54600-0200 | B144: 13 | D144: EHT Expense | E144: -1 | G144: 0 | H144: 0 | I144: 0 | K144: 0 | L144: 0 | M144: 0 | O144: 0 | P144: 0 | Q144: 0 | S144: 0 | T144: 0 | U144: 0
A145: 54600-0300 | B145: 13 | D145: EHT Expense | E145: -1 | G145: 0 | H145: 0 | I145: 0 | K145: 0 | L145: 0 | M145: 0 | O145: 0 | P145: 0 | Q145: 0 | S145: 0 | T145: 0 | U145: 0
A146: 54650-0000 | B146: 13 | D146: QPIP Expense | E146: -1 | G146: 0 | H146: 0 | I146: 0 | K146: 0 | L146: 0 | M146: 0 | O146: 0 | P146: 0 | Q146: 0 | S146: 0 | T146: 0 | U146: 0
A147: 54650-0100 | B147: 13 | D147: QPIP Expense | E147: -1 | G147: 0 | H147: 0 | I147: 0 | K147: 0 | L147: 28.28 | M147: 0 | O147: 247.47 | P147: 0 | Q147: -100 | S147: 247.47 | T147: 293.06 | U147: 18.42243504
A148: 54650-0200 | B148: 13 | D148: QPIP Expense | E148: -1 | G148: 0 | H148: 0 | I148: 0 | K148: 0 | L148: 0 | M148: 0 | O148: 0 | P148: 0 | Q148: 0 | S148: 0 | T148: 0 | U148: 0
A149: 54650-0300 | B149: 13 | D149: QPIP Expense | E149: -1 | G149: 0 | H149: 0 | I149: 0 | K149: 0 | L149: 26.12 | M149: 0 | O149: 131.07 | P149: 0 | Q149: -100 | S149: 131.07 | T149: 131.07 | U149: 0
A150: 54700-0000 | B150: 13 | D150: QHSF Expense | E150: -1 | G150: 0 | H150: 0 | I150: 0 | K150: 0 | L150: 0 | M150: 0 | O150: 0 | P150: 0 | Q150: 0 | S150: 0 | T150: 0 | U150: 0
A151: 54700-0100 | B151: 13 | D151: QHSF Expense | E151: -1 | G151: 0 | H151: 0 | I151: 0 | K151: 0 | L151: 208.32 | M151: 0 | O151: 1949.87 | P151: 0 | Q151: -100 | S151: 1949.87 | T151: 2158.19 | U151: 10.68378918
A152: 54700-0200 | B152: 13 | D152: QHSF Expense | E152: -1 | G152: 0 | H152: 0 | I152: 0 | K152: 0 | L152: 0 | M152: 0 | O152: 0 | P152: 0 | Q152: 0 | S152: 0 | T152: 0 | U152: 0
A153: 54700-0300 | B153: 13 | D153: QHSF Expense | E153: -1 | G153: 0 | H153: 0 | I153: 0 | K153: 0 | L153: 193.86 | M153: 0 | O153: 975.56 | P153: 0 | Q153: -100 | S153: 975.56 | T153: 975.56 | U153: 0
C155: General & Admin. Exp | G155: 0 | H155: 0 | K155: 0 | L155: 11309.4 | O155: 136503.84 | P155: 0 | S155: 136503.84 | T155: 120339.69
A156: 56100-0000 | B156: 14 | D156: Accounting & Legal | E156: -1 | G156: 0 | H156: 0 | I156: 0 | K156: 0 | L156: 0 | M156: 0 | O156: 0 | P156: 0 | Q156: 0 | S156: 0 | T156: 0 | U156: 0
A157: 56100-0100 | B157: 14 | D157: Accounting & Legal | E157: -1 | G157: 0 | H157: 0 | I157: 0 | K157: 0 | L157: 1396.9 | M157: 0 | O157: 35381.84 | P157: 0 | Q157: -100 | S157: 35381.84 | T157: 11471.98 | U157: -67.57664384
A158: 56100-0200 | B158: 14 | D158: Accounting & Legal | E158: -1 | G158: 0 | H158: 0 | I158: 0 | K158: 0 | L158: 232.81 | M158: 0 | O158: 3395.01 | P158: 0 | Q158: -100 | S158: 3395.01 | T158: 1911.99 | U158: -43.68234556
A159: 56100-0300 | B159: 14 | D159: Accounting & Legal | E159: -1 | G159: 0 | H159: 0 | I159: 0 | K159: 0 | L159: 1396.9 | M159: 0 | O159: 10181.84 | P159: 0 | Q159: -100 | S159: 10181.84 | T159: 11472.09 | U159: 12.67207106
A160: 56150-0000 | B160: 14 | D160: Advertising & Promotions | E160: -1 | G160: 0 | H160: 0 | I160: 0 | K160: 0 | L160: 0 | M160: 0 | O160: 0 | P160: 0 | Q160: 0 | S160: 0 | T160: 0 | U160: 0
A161: 56150-0100 | B161: 14 | D161: Advertising & Promotions | E161: -1 | G161: 0 | H161: 0 | I161: 0 | K161: 0 | L161: 0 | M161: 0 | O161: 0 | P161: 0 | Q161: 0 | S161: 0 | T161: 0 | U161: 0
A162: 56150-0200 | B162: 14 | D162: Advertising & Promotions | E162: -1 | G162: 0 | H162: 0 | I162: 0 | K162: 0 | L162: 0 | M162: 0 | O162: 830.82 | P162: 0 | Q162: -100 | S162: 830.82 | T162: 0 | U162: -100
A163: 56150-0300 | B163: 14 | D163: Advertising & Promotions | E163: -1 | G163: 0 | H163: 0 | I163: 0 | K163: 0 | L163: 0 | M163: 0 | O163: 114.13 | P163: 0 | Q163: -100 | S163: 114.13 | T163: 0 | U163: -100
A164: 56300-0000 | B164: 14 | D164: Cash Short/Over | E164: -1 | G164: 0 | H164: 0 | I164: 0 | K164: 0 | L164: 0 | M164: 0 | O164: 0 | P164: 0 | Q164: 0 | S164: 0 | T164: 0 | U164: 0
A165: 56300-0100 | B165: 14 | D165: Cash Short/Over | E165: -1 | G165: 0 | H165: 0 | I165: 0 | K165: 0 | L165: 0 | M165: 0 | O165: 0 | P165: 0 | Q165: 0 | S165: 0 | T165: 0 | U165: 0
A166: 56300-0200 | B166: 14 | D166: Cash Short/Over | E166: -1 | G166: 0 | H166: 0 | I166: 0 | K166: 0 | L166: 0 | M166: 0 | O166: 0 | P166: 0 | Q166: 0 | S166: 0 | T166: 0 | U166: 0
A167: 56300-0300 | B167: 14 | D167: Cash Short/Over | E167: -1 | G167: 0 | H167: 0 | I167: 0 | K167: 0 | L167: 0 | M167: 0 | O167: 0 | P167: 0 | Q167: 0 | S167: 0 | T167: 0 | U167: 0
A168: 56400-0000 | B168: 14 | D168: Courier & Postage | E168: -1 | G168: 0 | H168: 0 | I168: 0 | K168: 0 | L168: 0 | M168: 0 | O168: 0 | P168: 0 | Q168: 0 | S168: 0 | T168: 0 | U168: 0
A169: 56400-0100 | B169: 14 | D169: Courier & Postage | E169: -1 | G169: 0 | H169: 0 | I169: 0 | K169: 0 | L169: 53.74 | M169: 0 | O169: 492.45 | P169: 0 | Q169: -100 | S169: 492.45 | T169: 620.14 | U169: 25.92953599
A170: 56400-0200 | B170: 14 | D170: Courier & Postage | E170: -1 | G170: 0 | H170: 0 | I170: 0 | K170: 0 | L170: 8.96 | M170: 0 | O170: 164.09 | P170: 0 | Q170: -100 | S170: 164.09 | T170: 104.25 | U170: -36.46779207
A171: 56400-0300 | B171: 14 | D171: Courier & Postage | E171: -1 | G171: 0 | H171: 0 | I171: 0 | K171: 0 | L171: 53.74 | M171: 0 | O171: 492.45 | P171: 0 | Q171: -100 | S171: 492.45 | T171: 620.14 | U171: 25.92953599
A172: 56500-0000 | B172: 14 | D172: Currency Exchange & Rounding | E172: -1 | G172: 0 | H172: 0 | I172: 0 | K172: 0 | L172: 0 | M172: 0 | O172: 0 | P172: 0 | Q172: 0 | S172: 0 | T172: 0 | U172: 0
A173: 56500-0100 | B173: 14 | D173: Currency Exchange & Rounding | E173: -1 | G173: 0 | H173: 0 | I173: 0 | K173: 0 | L173: 0 | M173: 0 | O173: 0 | P173: 0 | Q173: 0 | S173: 0 | T173: 0 | U173: 0
A174: 56500-0200 | B174: 14 | D174: Currency Exchange & Rounding | E174: -1 | G174: 0 | H174: 0 | I174: 0 | K174: 0 | L174: 0 | M174: 0 | O174: 0 | P174: 0 | Q174: 0 | S174: 0 | T174: 0 | U174: 0
A175: 56500-0300 | B175: 14 | D175: Currency Exchange & Rounding | E175: -1 | G175: 0 | H175: 0 | I175: 0 | K175: 0 | L175: 0 | M175: 0 | O175: -234.83 | P175: 0 | Q175: -100 | S175: -234.83 | T175: -0.01 | U175: -99.9957416
A176: 56850-0000 | B176: 14 | D176: Insurance | E176: -1 | G176: 0 | H176: 0 | I176: 0 | K176: 0 | L176: 100 | M176: 0 | O176: 900 | P176: 0 | Q176: -100 | S176: 900 | T176: 1200 | U176: 33.33333333
A177: 56850-0100 | B177: 14 | D177: Insurance | E177: -1 | G177: 0 | H177: 0 | I177: 0 | K177: 0 | L177: 0 | M177: 0 | O177: 0 | P177: 0 | Q177: 0 | S177: 0 | T177: 0 | U177: 0
A178: 56850-0200 | B178: 14 | D178: Insurance | E178: -1 | G178: 0 | H178: 0 | I178: 0 | K178: 0 | L178: 0 | M178: 0 | O178: 0 | P178: 0 | Q178: 0 | S178: 0 | T178: 0 | U178: 0
A179: 56850-0300 | B179: 14 | D179: Insurance | E179: -1 | G179: 0 | H179: 0 | I179: 0 | K179: 0 | L179: 0 | M179: 0 | O179: 0 | P179: 0 | Q179: 0 | S179: 0 | T179: 0 | U179: 0
A180: 57000-0000 | B180: 14 | D180: Office Supplies | E180: -1 | G180: 0 | H180: 0 | I180: 0 | K180: 0 | L180: 0 | M180: 0 | O180: 0 | P180: 0 | Q180: 0 | S180: 0 | T180: 0 | U180: 0
A181: 57000-0100 | B181: 14 | D181: Office Supplies | E181: -1 | G181: 0 | H181: 0 | I181: 0 | K181: 0 | L181: 0 | M181: 0 | O181: 222.33 | P181: 0 | Q181: -100 | S181: 222.33 | T181: 4173.61 | U181: 1777.214051
A182: 57000-0200 | B182: 14 | D182: Office Supplies | E182: -1 | G182: 0 | H182: 0 | I182: 0 | K182: 0 | L182: 0 | M182: 0 | O182: 74.11 | P182: 0 | Q182: -100 | S182: 74.11 | T182: 695.6 | U182: 838.6047767
A183: 57000-0300 | B183: 14 | D183: Office Supplies | E183: -1 | G183: 0 | H183: 0 | I183: 0 | K183: 0 | L183: 0 | M183: 0 | O183: 222.33 | P183: 0 | Q183: -100 | S183: 222.33 | T183: 4269.91 | U183: 1820.528044
A184: 57200-0000 | B184: 14 | D184: Property Taxes | E184: -1 | G184: 0 | H184: 0 | I184: 0 | K184: 0 | L184: 0 | M184: 0 | O184: 0 | P184: 0 | Q184: 0 | S184: 0 | T184: 0 | U184: 0
A185: 57200-0100 | B185: 14 | D185: Property Taxes | E185: -1 | G185: 0 | H185: 0 | I185: 0 | K185: 0 | L185: 0 | M185: 0 | O185: 0 | P185: 0 | Q185: 0 | S185: 0 | T185: 0 | U185: 0
A186: 57200-0200 | B186: 14 | D186: Property Taxes | E186: -1 | G186: 0 | H186: 0 | I186: 0 | K186: 0 | L186: 0 | M186: 0 | O186: 0 | P186: 0 | Q186: 0 | S186: 0 | T186: 0 | U186: 0
A187: 57200-0300 | B187: 14 | D187: Property Taxes | E187: -1 | G187: 0 | H187: 0 | I187: 0 | K187: 0 | L187: 0 | M187: 0 | O187: 0 | P187: 0 | Q187: 0 | S187: 0 | T187: 0 | U187: 0
A188: 57400-0000 | B188: 14 | D188: Miscellaneous | E188: -1 | G188: 0 | H188: 0 | I188: 0 | K188: 0 | L188: 0 | M188: 0 | O188: 0 | P188: 0 | Q188: 0 | S188: 0 | T188: 0 | U188: 0
A189: 57400-0100 | B189: 14 | D189: Miscellaneous | E189: -1 | G189: 0 | H189: 0 | I189: 0 | K189: 0 | L189: 0 | M189: 0 | O189: 0 | P189: 0 | Q189: 0 | S189: 0 | T189: 0 | U189: 0
A190: 57400-0200 | B190: 14 | D190: Miscellaneous | E190: -1 | G190: 0 | H190: 0 | I190: 0 | K190: 0 | L190: 0 | M190: 0 | O190: 0 | P190: 0 | Q190: 0 | S190: 0 | T190: 0 | U190: 0
A191: 57400-0300 | B191: 14 | D191: Miscellaneous | E191: -1 | G191: 0 | H191: 0 | I191: 0 | K191: 0 | L191: 0 | M191: 0 | O191: 0 | P191: 0 | Q191: 0 | S191: 0 | T191: 0 | U191: 0
A192: 57600-0000 | B192: 14 | D192: Rent | E192: -1 | G192: 0 | H192: 0 | I192: 0 | K192: 0 | L192: 0 | M192: 0 | O192: 0 | P192: 0 | Q192: 0 | S192: 0 | T192: 0 | U192: 0
A193: 57600-0100 | B193: 14 | D193: Rent | E193: -1 | G193: 0 | H193: 0 | I193: 0 | K193: 0 | L193: 0 | M193: 0 | O193: 0 | P193: 0 | Q193: 0 | S193: 0 | T193: 0 | U193: 0
A194: 57600-0200 | B194: 14 | D194: Rent | E194: -1 | G194: 0 | H194: 0 | I194: 0 | K194: 0 | L194: 1926 | M194: 0 | O194: 15515 | P194: 0 | Q194: -100 | S194: 15515 | T194: 17334 | U194: 11.72413793
A195: 57600-0300 | B195: 14 | D195: Rent | E195: -1 | G195: 0 | H195: 0 | I195: 0 | K195: 0 | L195: 0 | M195: 0 | O195: 0 | P195: 0 | Q195: 0 | S195: 0 | T195: 0 | U195: 0
A196: 57650-0000 | B196: 14 | D196: Repair & Maintenance | E196: -1 | G196: 0 | H196: 0 | I196: 0 | K196: 0 | L196: 0 | M196: 0 | O196: 0 | P196: 0 | Q196: 0 | S196: 0 | T196: 0 | U196: 0
A197: 57650-0100 | B197: 14 | D197: Repair & Maintenance | E197: -1 | G197: 0 | H197: 0 | I197: 0 | K197: 0 | L197: 0 | M197: 0 | O197: 4393.37 | P197: 0 | Q197: -100 | S197: 4393.37 | T197: 5631.63 | U197: 28.18474201
A198: 57650-0200 | B198: 14 | D198: Repair & Maintenance | E198: -1 | G198: 0 | H198: 0 | I198: 0 | K198: 0 | L198: 0 | M198: 0 | O198: 1464.43 | P198: 0 | Q198: -100 | S198: 1464.43 | T198: 938.63 | U198: -35.90475475
A199: 57650-0300 | B199: 14 | D199: Repair & Maintenance | E199: -1 | G199: 0 | H199: 0 | I199: 0 | K199: 0 | L199: 2211.9 | M199: 0 | O199: 21597 | P199: 0 | Q199: -100 | S199: 21597 | T199: 11365.42 | U199: -47.37500579
A200: 57800-0000 | B200: 14 | D200: Telephone | E200: -1 | G200: 0 | H200: 0 | I200: 0 | K200: 0 | L200: 0 | M200: 0 | O200: 0 | P200: 0 | Q200: 0 | S200: 0 | T200: 0 | U200: 0
A201: 57800-0100 | B201: 14 | D201: Telephone | E201: -1 | G201: 0 | H201: 0 | I201: 0 | K201: 0 | L201: 903.9 | M201: 0 | O201: 7221.13 | P201: 0 | Q201: -100 | S201: 7221.13 | T201: 9313.04 | U201: 28.96928874
A202: 57800-0200 | B202: 14 | D202: Telephone | E202: -1 | G202: 0 | H202: 0 | I202: 0 | K202: 0 | L202: 150.65 | M202: 0 | O202: 2407.08 | P202: 0 | Q202: -100 | S202: 2407.08 | T202: 1552.18 | U202: -35.51606095
A203: 57800-0300 | B203: 14 | D203: Telephone | E203: -1 | G203: 0 | H203: 0 | I203: 0 | K203: 0 | L203: 903.9 | M203: 0 | O203: 7221.13 | P203: 0 | Q203: -100 | S203: 7221.13 | T203: 9313.04 | U203: 28.96928874
A204: 57850-0000 | B204: 14 | D204: Travel | E204: -1 | G204: 0 | H204: 0 | I204: 0 | K204: 0 | L204: 0 | M204: 0 | O204: 0 | P204: 0 | Q204: 0 | S204: 0 | T204: 0 | U204: 0
A205: 57850-0100 | B205: 14 | D205: Travel | E205: -1 | G205: 0 | H205: 0 | I205: 0 | K205: 0 | L205: 0 | M205: 0 | O205: 527.93 | P205: 0 | Q205: -100 | S205: 527.93 | T205: 0 | U205: -100
A206: 57850-0200 | B206: 14 | D206: Travel | E206: -1 | G206: 0 | H206: 0 | I206: 0 | K206: 0 | L206: 0 | M206: 0 | O206: 175.96 | P206: 0 | Q206: -100 | S206: 175.96 | T206: 0 | U206: -100
A207: 57850-0300 | B207: 14 | D207: Travel | E207: -1 | G207: 0 | H207: 0 | I207: 0 | K207: 0 | L207: 0 | M207: 0 | O207: 527.93 | P207: 0 | Q207: -100 | S207: 527.93 | T207: 0 | U207: -100
A208: 57870-0000 | B208: 14 | D208: Meals and Entertainment | E208: -1 | G208: 0 | H208: 0 | I208: 0 | K208: 0 | L208: 0 | M208: 0 | O208: 0 | P208: 0 | Q208: 0 | S208: 0 | T208: 0 | U208: 0
A209: 57870-0100 | B209: 14 | D209: Meals and Entertainment | E209: -1 | G209: 0 | H209: 0 | I209: 0 | K209: 0 | L209: 0 | M209: 0 | O209: 0 | P209: 0 | Q209: 0 | S209: 0 | T209: 0 | U209: 0
A210: 57870-0200 | B210: 14 | D210: Meals and Entertainment | E210: -1 | G210: 0 | H210: 0 | I210: 0 | K210: 0 | L210: 0 | M210: 0 | O210: 0 | P210: 0 | Q210: 0 | S210: 0 | T210: 0 | U210: 0
A211: 57870-0300 | B211: 14 | D211: Meals and Entertainment | E211: -1 | G211: 0 | H211: 0 | I211: 0 | K211: 0 | L211: 0 | M211: 0 | O211: 0 | P211: 0 | Q211: 0 | S211: 0 | T211: 0 | U211: 0
A212: 57900-0000 | B212: 14 | D212: Utilities | E212: -1 | G212: 0 | H212: 0 | I212: 0 | K212: 0 | L212: 0 | M212: 0 | O212: 0 | P212: 0 | Q212: 0 | S212: 0 | T212: 0 | U212: 0
A213: 57900-0100 | B213: 14 | D213: Utilities | E213: -1 | G213: 0 | H213: 0 | I213: 0 | K213: 0 | L213: 909.23 | M213: 0 | O213: 9522.95 | P213: 0 | Q213: -100 | S213: 9522.95 | T213: 12757.47 | U213: 33.96552539
... 69 more rows

Sheet More Financial Reports
D4: UNIVERSAL CONSTRUCTION
D6: Financial Analysis
I13: Display as:
C17: 1 | D17: Comparative Financial Report (Actual vs Budget)
C19: 2 | D19: Comparative Financial Report (Actual vs Prior)
C21: 3 | D21: Comparative Financial Report (Actual vs Budget vs Prior)
C23: 4 | D23: Monthly, Quarterly & YTD Financial Report
H27: Thank you for using Simply Accounting Intelligence

Sheet Actual vs Budget IS
C2: UNIVERSAL CONSTRUCTION
C3: Income Statement for Period Ending June 2015
G5: Jul 14 | K5: Aug 14 | O5: Sep 14 | S5: Qtr1 | U5: Oct 14 | Y5: Nov 14 | AC5: Dec 14 | AG5: Qtr2 | AI5: Jan 15 | AM5: Feb 15 | AQ5: Mar 15 | AU5: Qtr3 | AW5: Apr 15 | BA5: May 15 | BE5: Jun 15 | BI5: Qtr4 | BK5: YTD | BO5: ANNUAL BUDGET
G6: Actual | H6: Budget | I6: Variance % | K6: Actual | L6: Budget | M6: Variance % | O6: Actual | P6: Budget | Q6: Variance % | S6: Actual | U6: Actual | V6: Budget | W6: Variance % | Y6: Actual | Z6: Budget | AA6: Variance % | AC6: Actual | AD6: Budget | AE6: Variance % | AG6: Actual | AI6: Actual | AJ6: Budget | AK6: Variance % | AM6: Actual | AN6: Budget | AO6: Variance % | AQ6: Actual | AR6: Budget | AS6: Variance % | AU6: Actual | AW6: Actual | AX6: Budget | AY6: Variance % | BA6: Actual | BB6: Budget | BC6: Variance % | BE6: Actual | BF6: Budget | BG6: Variance % | BI6: Actual | BK6: Actual | BL6: Budget | BM6: Variance % | BO6: YTD
B9: _RV | C9: REVENUE
C11: Operating Revenue | G11: 72670.6 | H11: 0 | K11: 76560 | L11: 0 | O11: 104765 | P11: 0 | S11: 253995.6 | U11: 89854.97 | V11: 0 | Y11: 114905 | Z11: 0 | AC11: 118293.5 | AD11: 0 | AG11: 323053.47 | AI11: 135015.17 | AJ11: 0 | AM11: 192019.45 | AN11: 0 | AQ11: 126309.95 | AR11: 0 | AU11: 453344.57 | AW11: 0 | AX11: 0 | BA11: 0 | BB11: 0 | BE11: 0 | BF11: 0 | BI11: 0 | BK11: 1030393.64 | BL11: 0 | BO11: 0
A12: 40200-0000 | B12: 2 | D12: Drafting | E12: 1 | G12: 0 | H12: 0 | I12: 0 | K12: 0 | L12: 0 | M12: 0 | O12: 0 | P12: 0 | Q12: 0 | S12: 0 | U12: 0 | V12: 0 | W12: 0 | Y12: 0 | Z12: 0 | AA12: 0 | AC12: 0 | AD12: 0 | AE12: 0 | AG12: 0 | AI12: 0 | AJ12: 0 | AK12: 0 | AM12: 0 | AN12: 0 | AO12: 0 | AQ12: 0 | AR12: 0 | AS12: 0 | AU12: 0 | AW12: 0 | AX12: 0 | AY12: 0 | BA12: 0 | BB12: 0 | BC12: 0 | BE12: 0 | BF12: 0 | BG12: 0 | BI12: 0 | BK12: 0 | BL12: 0 | BM12: 0 | BO12: 0
A13: 40200-0100 | B13: 2 | D13: Drafting | E13: 1 | G13: 0 | H13: 0 | I13: 0 | K13: 0 | L13: 0 | M13: 0 | O13: 0 | P13: 0 | Q13: 0 | S13: 0 | U13: 0 | V13: 0 | W13: 0 | Y13: 0 | Z13: 0 | AA13: 0 | AC13: 0 | AD13: 0 | AE13: 0 | AG13: 0 | AI13: 0 | AJ13: 0 | AK13: 0 | AM13: 0 | AN13: 0 | AO13: 0 | AQ13: 0 | AR13: 0 | AS13: 0 | AU13: 0 | AW13: 0 | AX13: 0 | AY13: 0 | BA13: 0 | BB13: 0 | BC13: 0 | BE13: 0 | BF13: 0 | BG13: 0 | BI13: 0 | BK13: 0 | BL13: 0 | BM13: 0 | BO13: 0
A14: 40200-0200 | B14: 2 | D14: Drafting | E14: 1 | G14: 0 | H14: 0 | I14: 0 | K14: 0 | L14: 0 | M14: 0 | O14: 0 | P14: 0 | Q14: 0 | S14: 0 | U14: 0 | V14: 0 | W14: 0 | Y14: 0 | Z14: 0 | AA14: 0 | AC14: 0 | AD14: 0 | AE14: 0 | AG14: 0 | AI14: 0 | AJ14: 0 | AK14: 0 | AM14: 0 | AN14: 0 | AO14: 0 | AQ14: 0 | AR14: 0 | AS14: 0 | AU14: 0 | AW14: 0 | AX14: 0 | AY14: 0 | BA14: 0 | BB14: 0 | BC14: 0 | BE14: 0 | BF14: 0 | BG14: 0 | BI14: 0 | BK14: 0 | BL14: 0 | BM14: 0 | BO14: 0
A15: 40200-0300 | B15: 2 | D15: Drafting | E15: 1 | G15: 1540 | H15: 0 | I15: 100 | K15: 10000 | L15: 0 | M15: 100 | O15: 5000 | P15: 0 | Q15: 100 | S15: 16540 | U15: 10000 | V15: 0 | W15: 100 | Y15: 12000 | Z15: 0 | AA15: 100 | AC15: 16000 | AD15: 0 | AE15: 100 | AG15: 38000 | AI15: 4950 | AJ15: 0 | AK15: 100 | AM15: 24190 | AN15: 0 | AO15: 100 | AQ15: 16190 | AR15: 0 | AS15: 100 | AU15: 45330 | AW15: 0 | AX15: 0 | AY15: 0 | BA15: 0 | BB15: 0 | BC15: 0 | BE15: 0 | BF15: 0 | BG15: 0 | BI15: 0 | BK15: 99870 | BL15: 0 | BM15: 100 | BO15: 0
A16: 40300-0000 | B16: 2 | D16: Engineering Consulting | E16: 1 | G16: 0 | H16: 0 | I16: 0 | K16: 0 | L16: 0 | M16: 0 | O16: 0 | P16: 0 | Q16: 0 | S16: 0 | U16: 0 | V16: 0 | W16: 0 | Y16: 0 | Z16: 0 | AA16: 0 | AC16: 0 | AD16: 0 | AE16: 0 | AG16: 0 | AI16: 0 | AJ16: 0 | AK16: 0 | AM16: 0 | AN16: 0 | AO16: 0 | AQ16: 0 | AR16: 0 | AS16: 0 | AU16: 0 | AW16: 0 | AX16: 0 | AY16: 0 | BA16: 0 | BB16: 0 | BC16: 0 | BE16: 0 | BF16: 0 | BG16: 0 | BI16: 0 | BK16: 0 | BL16: 0 | BM16: 0 | BO16: 0
A17: 40300-0100 | B17: 2 | D17: Engineering Consulting | E17: 1 | G17: 0 | H17: 0 | I17: 0 | K17: 0 | L17: 0 | M17: 0 | O17: 0 | P17: 0 | Q17: 0 | S17: 0 | U17: 0 | V17: 0 | W17: 0 | Y17: 0 | Z17: 0 | AA17: 0 | AC17: 0 | AD17: 0 | AE17: 0 | AG17: 0 | AI17: 0 | AJ17: 0 | AK17: 0 | AM17: 0 | AN17: 0 | AO17: 0 | AQ17: 0 | AR17: 0 | AS17: 0 | AU17: 0 | AW17: 0 | AX17: 0 | AY17: 0 | BA17: 0 | BB17: 0 | BC17: 0 | BE17: 0 | BF17: 0 | BG17: 0 | BI17: 0 | BK17: 0 | BL17: 0 | BM17: 0 | BO17: 0
A18: 40300-0200 | B18: 2 | D18: Engineering Consulting | E18: 1 | G18: 0 | H18: 0 | I18: 0 | K18: 0 | L18: 0 | M18: 0 | O18: 0 | P18: 0 | Q18: 0 | S18: 0 | U18: 0 | V18: 0 | W18: 0 | Y18: 0 | Z18: 0 | AA18: 0 | AC18: 0 | AD18: 0 | AE18: 0 | AG18: 0 | AI18: 0 | AJ18: 0 | AK18: 0 | AM18: 0 | AN18: 0 | AO18: 0 | AQ18: 0 | AR18: 0 | AS18: 0 | AU18: 0 | AW18: 0 | AX18: 0 | AY18: 0 | BA18: 0 | BB18: 0 | BC18: 0 | BE18: 0 | BF18: 0 | BG18: 0 | BI18: 0 | BK18: 0 | BL18: 0 | BM18: 0 | BO18: 0
A19: 40300-0300 | B19: 2 | D19: Engineering Consulting | E19: 1 | G19: 20000 | H19: 0 | I19: 100 | K19: 8000 | L19: 0 | M19: 100 | O19: 4900 | P19: 0 | Q19: 100 | S19: 32900 | U19: 40000 | V19: 0 | W19: 100 | Y19: 10000 | Z19: 0 | AA19: 100 | AC19: 10450 | AD19: 0 | AE19: 100 | AG19: 60450 | AI19: 20216.67 | AJ19: 0 | AK19: 100 | AM19: 4202.22 | AN19: 0 | AO19: 100 | AQ19: 2656.66 | AR19: 0 | AS19: 100 | AU19: 27075.55 | AW19: 0 | AX19: 0 | AY19: 0 | BA19: 0 | BB19: 0 | BC19: 0 | BE19: 0 | BF19: 0 | BG19: 0 | BI19: 0 | BK19: 120425.55 | BL19: 0 | BM19: 100 | BO19: 0
A20: 40400-0000 | B20: 2 | D20: Estimating Consulting | E20: 1 | G20: 0 | H20: 0 | I20: 0 | K20: 0 | L20: 0 | M20: 0 | O20: 0 | P20: 0 | Q20: 0 | S20: 0 | U20: 0 | V20: 0 | W20: 0 | Y20: 0 | Z20: 0 | AA20: 0 | AC20: 0 | AD20: 0 | AE20: 0 | AG20: 0 | AI20: 0 | AJ20: 0 | AK20: 0 | AM20: 0 | AN20: 0 | AO20: 0 | AQ20: 0 | AR20: 0 | AS20: 0 | AU20: 0 | AW20: 0 | AX20: 0 | AY20: 0 | BA20: 0 | BB20: 0 | BC20: 0 | BE20: 0 | BF20: 0 | BG20: 0 | BI20: 0 | BK20: 0 | BL20: 0 | BM20: 0 | BO20: 0
A21: 40400-0100 | B21: 2 | D21: Estimating Consulting | E21: 1 | G21: 0 | H21: 0 | I21: 0 | K21: 0 | L21: 0 | M21: 0 | O21: 0 | P21: 0 | Q21: 0 | S21: 0 | U21: 0 | V21: 0 | W21: 0 | Y21: 0 | Z21: 0 | AA21: 0 | AC21: 0 | AD21: 0 | AE21: 0 | AG21: 0 | AI21: 0 | AJ21: 0 | AK21: 0 | AM21: 0 | AN21: 0 | AO21: 0 | AQ21: 0 | AR21: 0 | AS21: 0 | AU21: 0 | AW21: 0 | AX21: 0 | AY21: 0 | BA21: 0 | BB21: 0 | BC21: 0 | BE21: 0 | BF21: 0 | BG21: 0 | BI21: 0 | BK21: 0 | BL21: 0 | BM21: 0 | BO21: 0
A22: 40400-0200 | B22: 2 | D22: Estimating Consulting | E22: 1 | G22: 0 | H22: 0 | I22: 0 | K22: 0 | L22: 0 | M22: 0 | O22: 0 | P22: 0 | Q22: 0 | S22: 0 | U22: 0 | V22: 0 | W22: 0 | Y22: 0 | Z22: 0 | AA22: 0 | AC22: 0 | AD22: 0 | AE22: 0 | AG22: 0 | AI22: 0 | AJ22: 0 | AK22: 0 | AM22: 0 | AN22: 0 | AO22: 0 | AQ22: 0 | AR22: 0 | AS22: 0 | AU22: 0 | AW22: 0 | AX22: 0 | AY22: 0 | BA22: 0 | BB22: 0 | BC22: 0 | BE22: 0 | BF22: 0 | BG22: 0 | BI22: 0 | BK22: 0 | BL22: 0 | BM22: 0 | BO22: 0
A23: 40400-0300 | B23: 2 | D23: Estimating Consulting | E23: 1 | G23: 10000 | H23: 0 | I23: 100 | K23: 23000 | L23: 0 | M23: 100 | O23: 4000 | P23: 0 | Q23: 100 | S23: 37000 | U23: 10000 | V23: 0 | W23: 100 | Y23: 5000 | Z23: 0 | AA23: 100 | AC23: 3990 | AD23: 0 | AE23: 100 | AG23: 18990 | AI23: 26000 | AJ23: 0 | AK23: 100 | AM23: 4500 | AN23: 0 | AO23: 100 | AQ23: 1000 | AR23: 0 | AS23: 100 | AU23: 31500 | AW23: 0 | AX23: 0 | AY23: 0 | BA23: 0 | BB23: 0 | BC23: 0 | BE23: 0 | BF23: 0 | BG23: 0 | BI23: 0 | BK23: 87490 | BL23: 0 | BM23: 100 | BO23: 0
A24: 40800-0000 | B24: 2 | D24: Surveying | E24: 1 | G24: 0 | H24: 0 | I24: 0 | K24: 0 | L24: 0 | M24: 0 | O24: 0 | P24: 0 | Q24: 0 | S24: 0 | U24: 0 | V24: 0 | W24: 0 | Y24: 0 | Z24: 0 | AA24: 0 | AC24: 0 | AD24: 0 | AE24: 0 | AG24: 0 | AI24: 0 | AJ24: 0 | AK24: 0 | AM24: 0 | AN24: 0 | AO24: 0 | AQ24: 0 | AR24: 0 | AS24: 0 | AU24: 0 | AW24: 0 | AX24: 0 | AY24: 0 | BA24: 0 | BB24: 0 | BC24: 0 | BE24: 0 | BF24: 0 | BG24: 0 | BI24: 0 | BK24: 0 | BL24: 0 | BM24: 0 | BO24: 0
A25: 40800-0100 | B25: 2 | D25: Surveying | E25: 1 | G25: 0 | H25: 0 | I25: 0 | K25: 0 | L25: 0 | M25: 0 | O25: 0 | P25: 0 | Q25: 0 | S25: 0 | U25: 0 | V25: 0 | W25: 0 | Y25: 0 | Z25: 0 | AA25: 0 | AC25: 0 | AD25: 0 | AE25: 0 | AG25: 0 | AI25: 0 | AJ25: 0 | AK25: 0 | AM25: 0 | AN25: 0 | AO25: 0 | AQ25: 0 | AR25: 0 | AS25: 0 | AU25: 0 | AW25: 0 | AX25: 0 | AY25: 0 | BA25: 0 | BB25: 0 | BC25: 0 | BE25: 0 | BF25: 0 | BG25: 0 | BI25: 0 | BK25: 0 | BL25: 0 | BM25: 0 | BO25: 0
A26: 40800-0200 | B26: 2 | D26: Surveying | E26: 1 | G26: 0 | H26: 0 | I26: 0 | K26: 0 | L26: 0 | M26: 0 | O26: 0 | P26: 0 | Q26: 0 | S26: 0 | U26: 0 | V26: 0 | W26: 0 | Y26: 0 | Z26: 0 | AA26: 0 | AC26: 0 | AD26: 0 | AE26: 0 | AG26: 0 | AI26: 0 | AJ26: 0 | AK26: 0 | AM26: 0 | AN26: 0 | AO26: 0 | AQ26: 0 | AR26: 0 | AS26: 0 | AU26: 0 | AW26: 0 | AX26: 0 | AY26: 0 | BA26: 0 | BB26: 0 | BC26: 0 | BE26: 0 | BF26: 0 | BG26: 0 | BI26: 0 | BK26: 0 | BL26: 0 | BM26: 0 | BO26: 0
A27: 40800-0300 | B27: 2 | D27: Surveying | E27: 1 | G27: 27500 | H27: 0 | I27: 100 | K27: 5500 | L27: 0 | M27: 100 | O27: 10000 | P27: 0 | Q27: 100 | S27: 43000 | U27: 12000 | V27: 0 | W27: 100 | Y27: 4000 | Z27: 0 | AA27: 100 | AC27: 8500 | AD27: 0 | AE27: 100 | AG27: 24500 | AI27: 6500 | AJ27: 0 | AK27: 100 | AM27: 1256.33 | AN27: 0 | AO27: 100 | AQ27: 11375.66 | AR27: 0 | AS27: 100 | AU27: 19131.99 | AW27: 0 | AX27: 0 | AY27: 0 | BA27: 0 | BB27: 0 | BC27: 0 | BE27: 0 | BF27: 0 | BG27: 0 | BI27: 0 | BK27: 86631.99 | BL27: 0 | BM27: 100 | BO27: 0
A28: 40900-0000 | B28: 2 | D28: Other Services | E28: 1 | G28: 0 | H28: 0 | I28: 0 | K28: 0 | L28: 0 | M28: 0 | O28: 0 | P28: 0 | Q28: 0 | S28: 0 | U28: 0 | V28: 0 | W28: 0 | Y28: 0 | Z28: 0 | AA28: 0 | AC28: 0 | AD28: 0 | AE28: 0 | AG28: 0 | AI28: 0 | AJ28: 0 | AK28: 0 | AM28: 0 | AN28: 0 | AO28: 0 | AQ28: 0 | AR28: 0 | AS28: 0 | AU28: 0 | AW28: 0 | AX28: 0 | AY28: 0 | BA28: 0 | BB28: 0 | BC28: 0 | BE28: 0 | BF28: 0 | BG28: 0 | BI28: 0 | BK28: 0 | BL28: 0 | BM28: 0 | BO28: 0
A29: 40900-0100 | B29: 2 | D29: Other Services | E29: 1 | G29: 0 | H29: 0 | I29: 0 | K29: 0 | L29: 0 | M29: 0 | O29: 0 | P29: 0 | Q29: 0 | S29: 0 | U29: 0 | V29: 0 | W29: 0 | Y29: 0 | Z29: 0 | AA29: 0 | AC29: 0 | AD29: 0 | AE29: 0 | AG29: 0 | AI29: 0 | AJ29: 0 | AK29: 0 | AM29: 0 | AN29: 0 | AO29: 0 | AQ29: 0 | AR29: 0 | AS29: 0 | AU29: 0 | AW29: 0 | AX29: 0 | AY29: 0 | BA29: 0 | BB29: 0 | BC29: 0 | BE29: 0 | BF29: 0 | BG29: 0 | BI29: 0 | BK29: 0 | BL29: 0 | BM29: 0 | BO29: 0
A30: 40900-0200 | B30: 2 | D30: Other Services | E30: 1 | G30: 0 | H30: 0 | I30: 0 | K30: 0 | L30: 0 | M30: 0 | O30: 0 | P30: 0 | Q30: 0 | S30: 0 | U30: 0 | V30: 0 | W30: 0 | Y30: 0 | Z30: 0 | AA30: 0 | AC30: 0 | AD30: 0 | AE30: 0 | AG30: 0 | AI30: 0 | AJ30: 0 | AK30: 0 | AM30: 0 | AN30: 0 | AO30: 0 | AQ30: 0 | AR30: 0 | AS30: 0 | AU30: 0 | AW30: 0 | AX30: 0 | AY30: 0 | BA30: 0 | BB30: 0 | BC30: 0 | BE30: 0 | BF30: 0 | BG30: 0 | BI30: 0 | BK30: 0 | BL30: 0 | BM30: 0 | BO30: 0
A31: 40900-0300 | B31: 2 | D31: Other Services | E31: 1 | G31: 0 | H31: 0 | I31: 0 | K31: 0 | L31: 0 | M31: 0 | O31: 10000 | P31: 0 | Q31: 100 | S31: 10000 | U31: 825 | V31: 0 | W31: 100 | Y31: 560 | Z31: 0 | AA31: 100 | AC31: 9000 | AD31: 0 | AE31: 100 | AG31: 10385 | AI31: 7000 | AJ31: 0 | AK31: 100 | AM31: 5800 | AN31: 0 | AO31: 100 | AQ31: 2500 | AR31: 0 | AS31: 100 | AU31: 15300 | AW31: 0 | AX31: 0 | AY31: 0 | BA31: 0 | BB31: 0 | BC31: 0 | BE31: 0 | BF31: 0 | BG31: 0 | BI31: 0 | BK31: 35685 | BL31: 0 | BM31: 100 | BO31: 0
A32: 42100-0000 | B32: 2 | D32: Sales: Drywall | E32: 1 | G32: 0 | H32: 0 | I32: 0 | K32: 0 | L32: 0 | M32: 0 | O32: 0 | P32: 0 | Q32: 0 | S32: 0 | U32: 0 | V32: 0 | W32: 0 | Y32: 0 | Z32: 0 | AA32: 0 | AC32: 0 | AD32: 0 | AE32: 0 | AG32: 0 | AI32: 0 | AJ32: 0 | AK32: 0 | AM32: 0 | AN32: 0 | AO32: 0 | AQ32: 0 | AR32: 0 | AS32: 0 | AU32: 0 | AW32: 0 | AX32: 0 | AY32: 0 | BA32: 0 | BB32: 0 | BC32: 0 | BE32: 0 | BF32: 0 | BG32: 0 | BI32: 0 | BK32: 0 | BL32: 0 | BM32: 0 | BO32: 0
A33: 42100-0100 | B33: 2 | D33: Sales: Drywall | E33: 1 | G33: 0 | H33: 0 | I33: 0 | K33: 0 | L33: 0 | M33: 0 | O33: 0 | P33: 0 | Q33: 0 | S33: 0 | U33: 0 | V33: 0 | W33: 0 | Y33: 0 | Z33: 0 | AA33: 0 | AC33: 0 | AD33: 0 | AE33: 0 | AG33: 0 | AI33: 0 | AJ33: 0 | AK33: 0 | AM33: 0 | AN33: 0 | AO33: 0 | AQ33: 0 | AR33: 0 | AS33: 0 | AU33: 0 | AW33: 0 | AX33: 0 | AY33: 0 | BA33: 0 | BB33: 0 | BC33: 0 | BE33: 0 | BF33: 0 | BG33: 0 | BI33: 0 | BK33: 0 | BL33: 0 | BM33: 0 | BO33: 0
A34: 42100-0200 | B34: 2 | D34: Sales: Drywall | E34: 1 | G34: 0 | H34: 0 | I34: 0 | K34: 0 | L34: 0 | M34: 0 | O34: 0 | P34: 0 | Q34: 0 | S34: 0 | U34: 0 | V34: 0 | W34: 0 | Y34: 0 | Z34: 0 | AA34: 0 | AC34: 0 | AD34: 0 | AE34: 0 | AG34: 0 | AI34: 0 | AJ34: 0 | AK34: 0 | AM34: 0 | AN34: 0 | AO34: 0 | AQ34: 0 | AR34: 0 | AS34: 0 | AU34: 0 | AW34: 0 | AX34: 0 | AY34: 0 | BA34: 0 | BB34: 0 | BC34: 0 | BE34: 0 | BF34: 0 | BG34: 0 | BI34: 0 | BK34: 0 | BL34: 0 | BM34: 0 | BO34: 0
A35: 42100-0300 | B35: 2 | D35: Sales: Drywall | E35: 1 | G35: 0 | H35: 0 | I35: 0 | K35: 4500 | L35: 0 | M35: 100 | O35: 3572.5 | P35: 0 | Q35: 100 | S35: 8072.5 | U35: 1272.5 | V35: 0 | W35: 100 | Y35: 23840 | Z35: 0 | AA35: 100 | AC35: 283.5 | AD35: 0 | AE35: 100 | AG35: 25396 | AI35: 2081.6 | AJ35: 0 | AK35: 100 | AM35: 1488.8 | AN35: 0 | AO35: 100 | AQ35: 1834.5 | AR35: 0 | AS35: 100 | AU35: 5404.9 | AW35: 0 | AX35: 0 | AY35: 0 | BA35: 0 | BB35: 0 | BC35: 0 | BE35: 0 | BF35: 0 | BG35: 0 | BI35: 0 | BK35: 38873.4 | BL35: 0 | BM35: 100 | BO35: 0
A36: 42200-0000 | B36: 2 | D36: Sales: Hardware | E36: 1 | G36: 0 | H36: 0 | I36: 0 | K36: 0 | L36: 0 | M36: 0 | O36: 0 | P36: 0 | Q36: 0 | S36: 0 | U36: 0 | V36: 0 | W36: 0 | Y36: 0 | Z36: 0 | AA36: 0 | AC36: 0 | AD36: 0 | AE36: 0 | AG36: 0 | AI36: 0 | AJ36: 0 | AK36: 0 | AM36: 0 | AN36: 0 | AO36: 0 | AQ36: 0 | AR36: 0 | AS36: 0 | AU36: 0 | AW36: 0 | AX36: 0 | AY36: 0 | BA36: 0 | BB36: 0 | BC36: 0 | BE36: 0 | BF36: 0 | BG36: 0 | BI36: 0 | BK36: 0 | BL36: 0 | BM36: 0 | BO36: 0
A37: 42200-0100 | B37: 2 | D37: Sales: Hardware | E37: 1 | G37: 0 | H37: 0 | I37: 0 | K37: 0 | L37: 0 | M37: 0 | O37: 0 | P37: 0 | Q37: 0 | S37: 0 | U37: 0 | V37: 0 | W37: 0 | Y37: 0 | Z37: 0 | AA37: 0 | AC37: 0 | AD37: 0 | AE37: 0 | AG37: 0 | AI37: 0 | AJ37: 0 | AK37: 0 | AM37: 0 | AN37: 0 | AO37: 0 | AQ37: 0 | AR37: 0 | AS37: 0 | AU37: 0 | AW37: 0 | AX37: 0 | AY37: 0 | BA37: 0 | BB37: 0 | BC37: 0 | BE37: 0 | BF37: 0 | BG37: 0 | BI37: 0 | BK37: 0 | BL37: 0 | BM37: 0 | BO37: 0
A38: 42200-0200 | B38: 2 | D38: Sales: Hardware | E38: 1 | G38: 0 | H38: 0 | I38: 0 | K38: 0 | L38: 0 | M38: 0 | O38: 0 | P38: 0 | Q38: 0 | S38: 0 | U38: 0 | V38: 0 | W38: 0 | Y38: 0 | Z38: 0 | AA38: 0 | AC38: 0 | AD38: 0 | AE38: 0 | AG38: 0 | AI38: 0 | AJ38: 0 | AK38: 0 | AM38: 0 | AN38: 0 | AO38: 0 | AQ38: 0 | AR38: 0 | AS38: 0 | AU38: 0 | AW38: 0 | AX38: 0 | AY38: 0 | BA38: 0 | BB38: 0 | BC38: 0 | BE38: 0 | BF38: 0 | BG38: 0 | BI38: 0 | BK38: 0 | BL38: 0 | BM38: 0 | BO38: 0
A39: 42200-0300 | B39: 2 | D39: Sales: Hardware | E39: 1 | G39: 3753.6 | H39: 0 | I39: 100 | K39: 13790 | L39: 0 | M39: 100 | O39: 58905 | P39: 0 | Q39: 100 | S39: 76448.6 | U39: 4829.3 | V39: 0 | W39: 100 | Y39: 55880 | Z39: 0 | AA39: 100 | AC39: 49635 | AD39: 0 | AE39: 100 | AG39: 110344.3 | AI39: 48910.2 | AJ39: 0 | AK39: 100 | AM39: 128660.6 | AN39: 0 | AO39: 100 | AQ39: 82367.9 | AR39: 0 | AS39: 100 | AU39: 259938.7 | AW39: 0 | AX39: 0 | AY39: 0 | BA39: 0 | BB39: 0 | BC39: 0 | BE39: 0 | BF39: 0 | BG39: 0 | BI39: 0 | BK39: 446731.6 | BL39: 0 | BM39: 100 | BO39: 0
A40: 42300-0000 | B40: 2 | D40: Sales: Lumber | E40: 1 | G40: 0 | H40: 0 | I40: 0 | K40: 0 | L40: 0 | M40: 0 | O40: 0 | P40: 0 | Q40: 0 | S40: 0 | U40: 0 | V40: 0 | W40: 0 | Y40: 0 | Z40: 0 | AA40: 0 | AC40: 0 | AD40: 0 | AE40: 0 | AG40: 0 | AI40: 0 | AJ40: 0 | AK40: 0 | AM40: 0 | AN40: 0 | AO40: 0 | AQ40: 0 | AR40: 0 | AS40: 0 | AU40: 0 | AW40: 0 | AX40: 0 | AY40: 0 | BA40: 0 | BB40: 0 | BC40: 0 | BE40: 0 | BF40: 0 | BG40: 0 | BI40: 0 | BK40: 0 | BL40: 0 | BM40: 0 | BO40: 0
A41: 42300-0100 | B41: 2 | D41: Sales: Lumber | E41: 1 | G41: 0 | H41: 0 | I41: 0 | K41: 0 | L41: 0 | M41: 0 | O41: 0 | P41: 0 | Q41: 0 | S41: 0 | U41: 0 | V41: 0 | W41: 0 | Y41: 0 | Z41: 0 | AA41: 0 | AC41: 0 | AD41: 0 | AE41: 0 | AG41: 0 | AI41: 0 | AJ41: 0 | AK41: 0 | AM41: 0 | AN41: 0 | AO41: 0 | AQ41: 0 | AR41: 0 | AS41: 0 | AU41: 0 | AW41: 0 | AX41: 0 | AY41: 0 | BA41: 0 | BB41: 0 | BC41: 0 | BE41: 0 | BF41: 0 | BG41: 0 | BI41: 0 | BK41: 0 | BL41: 0 | BM41: 0 | BO41: 0
A42: 42300-0200 | B42: 2 | D42: Sales: Lumber | E42: 1 | G42: 0 | H42: 0 | I42: 0 | K42: 0 | L42: 0 | M42: 0 | O42: 0 | P42: 0 | Q42: 0 | S42: 0 | U42: 0 | V42: 0 | W42: 0 | Y42: 0 | Z42: 0 | AA42: 0 | AC42: 0 | AD42: 0 | AE42: 0 | AG42: 0 | AI42: 0 | AJ42: 0 | AK42: 0 | AM42: 0 | AN42: 0 | AO42: 0 | AQ42: 0 | AR42: 0 | AS42: 0 | AU42: 0 | AW42: 0 | AX42: 0 | AY42: 0 | BA42: 0 | BB42: 0 | BC42: 0 | BE42: 0 | BF42: 0 | BG42: 0 | BI42: 0 | BK42: 0 | BL42: 0 | BM42: 0 | BO42: 0
A43: 42300-0300 | B43: 2 | D43: Sales: Lumber | E43: 1 | G43: 777 | H43: 0 | I43: 100 | K43: 11325 | L43: 0 | M43: 100 | O43: 7717.5 | P43: 0 | Q43: 100 | S43: 19819.5 | U43: 3199.25 | V43: 0 | W43: 100 | Y43: 1960 | Z43: 0 | AA43: 100 | AC43: 16510 | AD43: 0 | AE43: 100 | AG43: 21669.25 | AI43: 6837.5 | AJ43: 0 | AK43: 100 | AM43: 11801.5 | AN43: 0 | AO43: 100 | AQ43: 5795.74 | AR43: 0 | AS43: 100 | AU43: 24434.74 | AW43: 0 | AX43: 0 | AY43: 0 | BA43: 0 | BB43: 0 | BC43: 0 | BE43: 0 | BF43: 0 | BG43: 0 | BI43: 0 | BK43: 65923.49 | BL43: 0 | BM43: 100 | BO43: 0
A44: 42400-0000 | B44: 2 | D44: Sales: Roofing | E44: 1 | G44: 0 | H44: 0 | I44: 0 | K44: 0 | L44: 0 | M44: 0 | O44: 0 | P44: 0 | Q44: 0 | S44: 0 | U44: 0 | V44: 0 | W44: 0 | Y44: 0 | Z44: 0 | AA44: 0 | AC44: 0 | AD44: 0 | AE44: 0 | AG44: 0 | AI44: 0 | AJ44: 0 | AK44: 0 | AM44: 0 | AN44: 0 | AO44: 0 | AQ44: 0 | AR44: 0 | AS44: 0 | AU44: 0 | AW44: 0 | AX44: 0 | AY44: 0 | BA44: 0 | BB44: 0 | BC44: 0 | BE44: 0 | BF44: 0 | BG44: 0 | BI44: 0 | BK44: 0 | BL44: 0 | BM44: 0 | BO44: 0
A45: 42400-0100 | B45: 2 | D45: Sales: Roofing | E45: 1 | G45: 0 | H45: 0 | I45: 0 | K45: 0 | L45: 0 | M45: 0 | O45: 0 | P45: 0 | Q45: 0 | S45: 0 | U45: 0 | V45: 0 | W45: 0 | Y45: 0 | Z45: 0 | AA45: 0 | AC45: 0 | AD45: 0 | AE45: 0 | AG45: 0 | AI45: 0 | AJ45: 0 | AK45: 0 | AM45: 0 | AN45: 0 | AO45: 0 | AQ45: 0 | AR45: 0 | AS45: 0 | AU45: 0 | AW45: 0 | AX45: 0 | AY45: 0 | BA45: 0 | BB45: 0 | BC45: 0 | BE45: 0 | BF45: 0 | BG45: 0 | BI45: 0 | BK45: 0 | BL45: 0 | BM45: 0 | BO45: 0
A46: 42400-0200 | B46: 2 | D46: Sales: Roofing | E46: 1 | G46: 0 | H46: 0 | I46: 0 | K46: 0 | L46: 0 | M46: 0 | O46: 0 | P46: 0 | Q46: 0 | S46: 0 | U46: 0 | V46: 0 | W46: 0 | Y46: 0 | Z46: 0 | AA46: 0 | AC46: 0 | AD46: 0 | AE46: 0 | AG46: 0 | AI46: 0 | AJ46: 0 | AK46: 0 | AM46: 0 | AN46: 0 | AO46: 0 | AQ46: 0 | AR46: 0 | AS46: 0 | AU46: 0 | AW46: 0 | AX46: 0 | AY46: 0 | BA46: 0 | BB46: 0 | BC46: 0 | BE46: 0 | BF46: 0 | BG46: 0 | BI46: 0 | BK46: 0 | BL46: 0 | BM46: 0 | BO46: 0
A47: 42400-0300 | B47: 2 | D47: Sales: Roofing | E47: 1 | G47: 8600 | H47: 0 | I47: 100 | K47: 215 | L47: 0 | M47: 100 | O47: 1075 | P47: 0 | Q47: 100 | S47: 9890 | U47: 7179 | V47: 0 | W47: 100 | Y47: 1720 | Z47: 0 | AA47: 100 | AC47: 3870 | AD47: 0 | AE47: 100 | AG47: 12769 | AI47: 12600 | AJ47: 0 | AK47: 100 | AM47: 10750 | AN47: 0 | AO47: 100 | AQ47: 2150 | AR47: 0 | AS47: 100 | AU47: 25500 | AW47: 0 | AX47: 0 | AY47: 0 | BA47: 0 | BB47: 0 | BC47: 0 | BE47: 0 | BF47: 0 | BG47: 0 | BI47: 0 | BK47: 48159 | BL47: 0 | BM47: 100 | BO47: 0
A48: 44100-0000 | B48: 2 | D48: Freight Revenue | E48: 1 | G48: 0 | H48: 0 | I48: 0 | K48: 0 | L48: 0 | M48: 0 | O48: 0 | P48: 0 | Q48: 0 | S48: 0 | U48: 0 | V48: 0 | W48: 0 | Y48: 0 | Z48: 0 | AA48: 0 | AC48: 0 | AD48: 0 | AE48: 0 | AG48: 0 | AI48: 0 | AJ48: 0 | AK48: 0 | AM48: 0 | AN48: 0 | AO48: 0 | AQ48: 0 | AR48: 0 | AS48: 0 | AU48: 0 | AW48: 0 | AX48: 0 | AY48: 0 | BA48: 0 | BB48: 0 | BC48: 0 | BE48: 0 | BF48: 0 | BG48: 0 | BI48: 0 | BK48: 0 | BL48: 0 | BM48: 0 | BO48: 0
A49: 44100-0100 | B49: 2 | D49: Freight Revenue | E49: 1 | G49: 0 | H49: 0 | I49: 0 | K49: 0 | L49: 0 | M49: 0 | O49: 0 | P49: 0 | Q49: 0 | S49: 0 | U49: 0 | V49: 0 | W49: 0 | Y49: 0 | Z49: 0 | AA49: 0 | AC49: 0 | AD49: 0 | AE49: 0 | AG49: 0 | AI49: 0 | AJ49: 0 | AK49: 0 | AM49: 0 | AN49: 0 | AO49: 0 | AQ49: 0 | AR49: 0 | AS49: 0 | AU49: 0 | AW49: 0 | AX49: 0 | AY49: 0 | BA49: 0 | BB49: 0 | BC49: 0 | BE49: 0 | BF49: 0 | BG49: 0 | BI49: 0 | BK49: 0 | BL49: 0 | BM49: 0 | BO49: 0
A50: 44100-0200 | B50: 2 | D50: Freight Revenue | E50: 1 | G50: 0 | H50: 0 | I50: 0 | K50: 0 | L50: 0 | M50: 0 | O50: 0 | P50: 0 | Q50: 0 | S50: 0 | U50: 0 | V50: 0 | W50: 0 | Y50: 0 | Z50: 0 | AA50: 0 | AC50: 0 | AD50: 0 | AE50: 0 | AG50: 0 | AI50: 0 | AJ50: 0 | AK50: 0 | AM50: 0 | AN50: 0 | AO50: 0 | AQ50: 0 | AR50: 0 | AS50: 0 | AU50: 0 | AW50: 0 | AX50: 0 | AY50: 0 | BA50: 0 | BB50: 0 | BC50: 0 | BE50: 0 | BF50: 0 | BG50: 0 | BI50: 0 | BK50: 0 | BL50: 0 | BM50: 0 | BO50: 0
A51: 44100-0300 | B51: 2 | D51: Freight Revenue | E51: 1 | G51: 500 | H51: 0 | I51: 100 | K51: 340 | L51: 0 | M51: 100 | O51: 350 | P51: 0 | Q51: 100 | S51: 1190 | U51: 710 | V51: 0 | W51: 100 | Y51: 145 | Z51: 0 | AA51: 100 | AC51: 75 | AD51: 0 | AE51: 100 | AG51: 930 | AI51: 440 | AJ51: 0 | AK51: 100 | AM51: 360 | AN51: 0 | AO51: 100 | AQ51: 766 | AR51: 0 | AS51: 100 | AU51: 1566 | AW51: 0 | AX51: 0 | AY51: 0 | BA51: 0 | BB51: 0 | BC51: 0 | BE51: 0 | BF51: 0 | BG51: 0 | BI51: 0 | BK51: 3686 | BL51: 0 | BM51: 100 | BO51: 0
A52: 44200-0000 | B52: 2 | D52: Sales Discounts | E52: 1 | G52: 0 | H52: 0 | I52: 0 | K52: 0 | L52: 0 | M52: 0 | O52: 0 | P52: 0 | Q52: 0 | S52: 0 | U52: 0 | V52: 0 | W52: 0 | Y52: 0 | Z52: 0 | AA52: 0 | AC52: 0 | AD52: 0 | AE52: 0 | AG52: 0 | AI52: 0 | AJ52: 0 | AK52: 0 | AM52: 0 | AN52: 0 | AO52: 0 | AQ52: 0 | AR52: 0 | AS52: 0 | AU52: 0 | AW52: 0 | AX52: 0 | AY52: 0 | BA52: 0 | BB52: 0 | BC52: 0 | BE52: 0 | BF52: 0 | BG52: 0 | BI52: 0 | BK52: 0 | BL52: 0 | BM52: 0 | BO52: 0
A53: 44200-0100 | B53: 2 | D53: Sales Discounts | E53: 1 | G53: 0 | H53: 0 | I53: 0 | K53: 0 | L53: 0 | M53: 0 | O53: 0 | P53: 0 | Q53: 0 | S53: 0 | U53: 0 | V53: 0 | W53: 0 | Y53: 0 | Z53: 0 | AA53: 0 | AC53: 0 | AD53: 0 | AE53: 0 | AG53: 0 | AI53: 0 | AJ53: 0 | AK53: 0 | AM53: 0 | AN53: 0 | AO53: 0 | AQ53: 0 | AR53: 0 | AS53: 0 | AU53: 0 | AW53: 0 | AX53: 0 | AY53: 0 | BA53: 0 | BB53: 0 | BC53: 0 | BE53: 0 | BF53: 0 | BG53: 0 | BI53: 0 | BK53: 0 | BL53: 0 | BM53: 0 | BO53: 0
A54: 44200-0200 | B54: 2 | D54: Sales Discounts | E54: 1 | G54: 0 | H54: 0 | I54: 0 | K54: 0 | L54: 0 | M54: 0 | O54: 0 | P54: 0 | Q54: 0 | S54: 0 | U54: 0 | V54: 0 | W54: 0 | Y54: 0 | Z54: 0 | AA54: 0 | AC54: 0 | AD54: 0 | AE54: 0 | AG54: 0 | AI54: 0 | AJ54: 0 | AK54: 0 | AM54: 0 | AN54: 0 | AO54: 0 | AQ54: 0 | AR54: 0 | AS54: 0 | AU54: 0 | AW54: 0 | AX54: 0 | AY54: 0 | BA54: 0 | BB54: 0 | BC54: 0 | BE54: 0 | BF54: 0 | BG54: 0 | BI54: 0 | BK54: 0 | BL54: 0 | BM54: 0 | BO54: 0
A55: 44200-0300 | B55: 2 | D55: Sales Discounts | E55: 1 | G55: 0 | H55: 0 | I55: 0 | K55: -110 | L55: 0 | M55: 100 | O55: -755 | P55: 0 | Q55: 100 | S55: -865 | U55: -160.08 | V55: 0 | W55: 100 | Y55: -200 | Z55: 0 | AA55: 100 | AC55: -20 | AD55: 0 | AE55: 100 | AG55: -380.08 | AI55: -520.8 | AJ55: 0 | AK55: 100 | AM55: -990 | AN55: 0 | AO55: 100 | AQ55: -326.51 | AR55: 0 | AS55: 100 | AU55: -1837.31 | AW55: 0 | AX55: 0 | AY55: 0 | BA55: 0 | BB55: 0 | BC55: 0 | BE55: 0 | BF55: 0 | BG55: 0 | BI55: 0 | BK55: -3082.39 | BL55: 0 | BM55: 100 | BO55: 0
A56: 44600-0000 | B56: 2 | D56: Miscellaneous Revenue | E56: 1 | G56: 0 | H56: 0 | I56: 0 | K56: 0 | L56: 0 | M56: 0 | O56: 0 | P56: 0 | Q56: 0 | S56: 0 | U56: 0 | V56: 0 | W56: 0 | Y56: 0 | Z56: 0 | AA56: 0 | AC56: 0 | AD56: 0 | AE56: 0 | AG56: 0 | AI56: 0 | AJ56: 0 | AK56: 0 | AM56: 0 | AN56: 0 | AO56: 0 | AQ56: 0 | AR56: 0 | AS56: 0 | AU56: 0 | AW56: 0 | AX56: 0 | AY56: 0 | BA56: 0 | BB56: 0 | BC56: 0 | BE56: 0 | BF56: 0 | BG56: 0 | BI56: 0 | BK56: 0 | BL56: 0 | BM56: 0 | BO56: 0
A57: 44600-0100 | B57: 2 | D57: Miscellaneous Revenue | E57: 1 | G57: 0 | H57: 0 | I57: 0 | K57: 0 | L57: 0 | M57: 0 | O57: 0 | P57: 0 | Q57: 0 | S57: 0 | U57: 0 | V57: 0 | W57: 0 | Y57: 0 | Z57: 0 | AA57: 0 | AC57: 0 | AD57: 0 | AE57: 0 | AG57: 0 | AI57: 0 | AJ57: 0 | AK57: 0 | AM57: 0 | AN57: 0 | AO57: 0 | AQ57: 0 | AR57: 0 | AS57: 0 | AU57: 0 | AW57: 0 | AX57: 0 | AY57: 0 | BA57: 0 | BB57: 0 | BC57: 0 | BE57: 0 | BF57: 0 | BG57: 0 | BI57: 0 | BK57: 0 | BL57: 0 | BM57: 0 | BO57: 0
A58: 44600-0200 | B58: 2 | D58: Miscellaneous Revenue | E58: 1 | G58: 0 | H58: 0 | I58: 0 | K58: 0 | L58: 0 | M58: 0 | O58: 0 | P58: 0 | Q58: 0 | S58: 0 | U58: 0 | V58: 0 | W58: 0 | Y58: 0 | Z58: 0 | AA58: 0 | AC58: 0 | AD58: 0 | AE58: 0 | AG58: 0 | AI58: 0 | AJ58: 0 | AK58: 0 | AM58: 0 | AN58: 0 | AO58: 0 | AQ58: 0 | AR58: 0 | AS58: 0 | AU58: 0 | AW58: 0 | AX58: 0 | AY58: 0 | BA58: 0 | BB58: 0 | BC58: 0 | BE58: 0 | BF58: 0 | BG58: 0 | BI58: 0 | BK58: 0 | BL58: 0 | BM58: 0 | BO58: 0
A59: 44600-0300 | B59: 2 | D59: Miscellaneous Revenue | E59: 1 | G59: 0 | H59: 0 | I59: 0 | K59: 0 | L59: 0 | M59: 0 | O59: 0 | P59: 0 | Q59: 0 | S59: 0 | U59: 0 | V59: 0 | W59: 0 | Y59: 0 | Z59: 0 | AA59: 0 | AC59: 0 | AD59: 0 | AE59: 0 | AG59: 0 | AI59: 0 | AJ59: 0 | AK59: 0 | AM59: 0 | AN59: 0 | AO59: 0 | AQ59: 0 | AR59: 0 | AS59: 0 | AU59: 0 | AW59: 0 | AX59: 0 | AY59: 0 | BA59: 0 | BB59: 0 | BC59: 0 | BE59: 0 | BF59: 0 | BG59: 0 | BI59: 0 | BK59: 0 | BL59: 0 | BM59: 0 | BO59: 0
C61: Non-Operating revenue | G61: 0 | H61: 0 | K61: 0 | L61: 0 | O61: 0 | P61: 0 | S61: 0 | U61: 0 | V61: 0 | Y61: 0 | Z61: 0 | AC61: 0 | AD61: 0 | AG61: 0 | AI61: 0 | AJ61: 0 | AM61: 0 | AN61: 0 | AQ61: 0 | AR61: 0 | AU61: 0 | AW61: 0 | AX61: 0 | BA61: 0 | BB61: 0 | BE61: 0 | BF61: 0 | BI61: 0 | BK61: 0 | BL61: 0 | BO61: 0
A62: 44400-0000 | B62: 5 | D62: Interest Revenue | E62: 1 | G62: 0 | H62: 0 | I62: 0 | K62: 0 | L62: 0 | M62: 0 | O62: 0 | P62: 0 | Q62: 0 | S62: 0 | U62: 0 | V62: 0 | W62: 0 | Y62: 0 | Z62: 0 | AA62: 0 | AC62: 0 | AD62: 0 | AE62: 0 | AG62: 0 | AI62: 0 | AJ62: 0 | AK62: 0 | AM62: 0 | AN62: 0 | AO62: 0 | AQ62: 0 | AR62: 0 | AS62: 0 | AU62: 0 | AW62: 0 | AX62: 0 | AY62: 0 | BA62: 0 | BB62: 0 | BC62: 0 | BE62: 0 | BF62: 0 | BG62: 0 | BI62: 0 | BK62: 0 | BL62: 0 | BM62: 0 | BO62: 0
A63: 44400-0100 | B63: 5 | D63: Interest Revenue | E63: 1 | G63: 0 | H63: 0 | I63: 0 | K63: 0 | L63: 0 | M63: 0 | O63: 0 | P63: 0 | Q63: 0 | S63: 0 | U63: 0 | V63: 0 | W63: 0 | Y63: 0 | Z63: 0 | AA63: 0 | AC63: 0 | AD63: 0 | AE63: 0 | AG63: 0 | AI63: 0 | AJ63: 0 | AK63: 0 | AM63: 0 | AN63: 0 | AO63: 0 | AQ63: 0 | AR63: 0 | AS63: 0 | AU63: 0 | AW63: 0 | AX63: 0 | AY63: 0 | BA63: 0 | BB63: 0 | BC63: 0 | BE63: 0 | BF63: 0 | BG63: 0 | BI63: 0 | BK63: 0 | BL63: 0 | BM63: 0 | BO63: 0
A64: 44400-0200 | B64: 5 | D64: Interest Revenue | E64: 1 | G64: 0 | H64: 0 | I64: 0 | K64: 0 | L64: 0 | M64: 0 | O64: 0 | P64: 0 | Q64: 0 | S64: 0 | U64: 0 | V64: 0 | W64: 0 | Y64: 0 | Z64: 0 | AA64: 0 | AC64: 0 | AD64: 0 | AE64: 0 | AG64: 0 | AI64: 0 | AJ64: 0 | AK64: 0 | AM64: 0 | AN64: 0 | AO64: 0 | AQ64: 0 | AR64: 0 | AS64: 0 | AU64: 0 | AW64: 0 | AX64: 0 | AY64: 0 | BA64: 0 | BB64: 0 | BC64: 0 | BE64: 0 | BF64: 0 | BG64: 0 | BI64: 0 | BK64: 0 | BL64: 0 | BM64: 0 | BO64: 0
A65: 44400-0300 | B65: 5 | D65: Interest Revenue | E65: 1 | G65: 0 | H65: 0 | I65: 0 | K65: 0 | L65: 0 | M65: 0 | O65: 0 | P65: 0 | Q65: 0 | S65: 0 | U65: 0 | V65: 0 | W65: 0 | Y65: 0 | Z65: 0 | AA65: 0 | AC65: 0 | AD65: 0 | AE65: 0 | AG65: 0 | AI65: 0 | AJ65: 0 | AK65: 0 | AM65: 0 | AN65: 0 | AO65: 0 | AQ65: 0 | AR65: 0 | AS65: 0 | AU65: 0 | AW65: 0 | AX65: 0 | AY65: 0 | BA65: 0 | BB65: 0 | BC65: 0 | BE65: 0 | BF65: 0 | BG65: 0 | BI65: 0 | BK65: 0 | BL65: 0 | BM65: 0 | BO65: 0
B67: TRV | C67: TOTAL REVENUE | G67: 72670.6 | H67: 0 | K67: 76560 | L67: 0 | O67: 104765 | P67: 0 | S67: 253995.6 | U67: 89854.97 | V67: 0 | Y67: 114905 | Z67: 0 | AC67: 118293.5 | AD67: 0 | AG67: 323053.47 | AI67: 135015.17 | AJ67: 0 | AM67: 192019.45 | AN67: 0 | AQ67: 126309.95 | AR67: 0 | AU67: 453344.57 | AW67: 0 | AX67: 0 | BA67: 0 | BB67: 0 | BE67: 0 | BF67: 0 | BI67: 0 | BK67: 1030393.64 | BL67: 0 | BO67: 0
C69: Cost of Goods Sold | G69: 13331.53 | H69: 0 | K69: 6764.28 | L69: 0 | O69: 25840.09 | P69: 0 | S69: 45935.9 | U69: 7354.36 | V69: 0 | Y69: 17537.07 | Z69: 0 | AC69: 25508.5 | AD69: 0 | AG69: 50399.93 | AI69: 35927.61 | AJ69: 0 | AM69: 75968.23 | AN69: 0 | AQ69: 16595.7 | AR69: 0 | AU69: 128491.54 | AW69: 0 | AX69: 0 | BA69: 0 | BB69: 0 | BE69: 0 | BF69: 0 | BI69: 0 | BK69: 224827.37 | BL69: 0 | BO69: 0
A70: 50100-0000 | B70: 10 | D70: Material: Drywall | E70: -1 | G70: 0 | H70: 0 | I70: 0 | K70: 0 | L70: 0 | M70: 0 | O70: 0 | P70: 0 | Q70: 0 | S70: 0 | U70: 0 | V70: 0 | W70: 0 | Y70: 0.08 | Z70: 0 | AA70: -100 | AC70: 0 | AD70: 0 | AE70: 0 | AG70: 0.08 | AI70: 0 | AJ70: 0 | AK70: 0 | AM70: 0 | AN70: 0 | AO70: 0 | AQ70: -0.01 | AR70: 0 | AS70: -100 | AU70: -0.01 | AW70: 0 | AX70: 0 | AY70: 0 | BA70: 0 | BB70: 0 | BC70: 0 | BE70: 0 | BF70: 0 | BG70: 0 | BI70: 0 | BK70: 0.07 | BL70: 0 | BM70: -100 | BO70: 0
A71: 50100-0100 | B71: 10 | D71: Material: Drywall | E71: -1 | G71: 0 | H71: 0 | I71: 0 | K71: 0 | L71: 0 | M71: 0 | O71: 0 | P71: 0 | Q71: 0 | S71: 0 | U71: 0 | V71: 0 | W71: 0 | Y71: 0 | Z71: 0 | AA71: 0 | AC71: 0 | AD71: 0 | AE71: 0 | AG71: 0 | AI71: 0 | AJ71: 0 | AK71: 0 | AM71: 0 | AN71: 0 | AO71: 0 | AQ71: 0 | AR71: 0 | AS71: 0 | AU71: 0 | AW71: 0 | AX71: 0 | AY71: 0 | BA71: 0 | BB71: 0 | BC71: 0 | BE71: 0 | BF71: 0 | BG71: 0 | BI71: 0 | BK71: 0 | BL71: 0 | BM71: 0 | BO71: 0
A72: 50100-0200 | B72: 10 | D72: Material: Drywall | E72: -1 | G72: 0 | H72: 0 | I72: 0 | K72: 0 | L72: 0 | M72: 0 | O72: 0 | P72: 0 | Q72: 0 | S72: 0 | U72: 0 | V72: 0 | W72: 0 | Y72: 0 | Z72: 0 | AA72: 0 | AC72: 0 | AD72: 0 | AE72: 0 | AG72: 0 | AI72: 0 | AJ72: 0 | AK72: 0 | AM72: 0 | AN72: 0 | AO72: 0 | AQ72: 0 | AR72: 0 | AS72: 0 | AU72: 0 | AW72: 0 | AX72: 0 | AY72: 0 | BA72: 0 | BB72: 0 | BC72: 0 | BE72: 0 | BF72: 0 | BG72: 0 | BI72: 0 | BK72: 0 | BL72: 0 | BM72: 0 | BO72: 0
A73: 50100-0300 | B73: 10 | D73: Material: Drywall | E73: -1 | G73: 0 | H73: 0 | I73: 0 | K73: 355.2 | L73: 0 | M73: -100 | O73: 946.83 | P73: 0 | Q73: -100 | S73: 1302.03 | U73: 152.89 | V73: 0 | W73: -100 | Y73: 1159.03 | Z73: 0 | AA73: -100 | AC73: 145.31 | AD73: 0 | AE73: -100 | AG73: 1457.23 | AI73: 1134.95 | AJ73: 0 | AK73: -100 | AM73: 780.67 | AN73: 0 | AO73: -100 | AQ73: 433.37 | AR73: 0 | AS73: -100 | AU73: 2348.99 | AW73: 0 | AX73: 0 | AY73: 0 | BA73: 0 | BB73: 0 | BC73: 0 | BE73: 0 | BF73: 0 | BG73: 0 | BI73: 0 | BK73: 5108.25 | BL73: 0 | BM73: -100 | BO73: 0
A74: 50200-0000 | B74: 10 | D74: Material: Hardware | E74: -1 | G74: 0 | H74: 0 | I74: 0 | K74: 0 | L74: 0 | M74: 0 | O74: 0.05 | P74: 0 | Q74: -100 | S74: 0.05 | U74: -0.01 | V74: 0 | W74: -100 | Y74: 0.17 | Z74: 0 | AA74: -100 | AC74: 0.19 | AD74: 0 | AE74: -100 | AG74: 0.35 | AI74: -0.11 | AJ74: 0 | AK74: -100 | AM74: -0.13 | AN74: 0 | AO74: -100 | AQ74: 0 | AR74: 0 | AS74: 0 | AU74: -0.24 | AW74: 0 | AX74: 0 | AY74: 0 | BA74: 0 | BB74: 0 | BC74: 0 | BE74: 0 | BF74: 0 | BG74: 0 | BI74: 0 | BK74: 0.16 | BL74: 0 | BM74: -100 | BO74: 0
A75: 50200-0100 | B75: 10 | D75: Material: Hardware | E75: -1 | G75: 0 | H75: 0 | I75: 0 | K75: 0 | L75: 0 | M75: 0 | O75: 0 | P75: 0 | Q75: 0 | S75: 0 | U75: 0 | V75: 0 | W75: 0 | Y75: 0 | Z75: 0 | AA75: 0 | AC75: 0 | AD75: 0 | AE75: 0 | AG75: 0 | AI75: 0 | AJ75: 0 | AK75: 0 | AM75: 0 | AN75: 0 | AO75: 0 | AQ75: 0 | AR75: 0 | AS75: 0 | AU75: 0 | AW75: 0 | AX75: 0 | AY75: 0 | BA75: 0 | BB75: 0 | BC75: 0 | BE75: 0 | BF75: 0 | BG75: 0 | BI75: 0 | BK75: 0 | BL75: 0 | BM75: 0 | BO75: 0
A76: 50200-0200 | B76: 10 | D76: Material: Hardware | E76: -1 | G76: 0 | H76: 0 | I76: 0 | K76: 0 | L76: 0 | M76: 0 | O76: 0 | P76: 0 | Q76: 0 | S76: 0 | U76: 0 | V76: 0 | W76: 0 | Y76: 0 | Z76: 0 | AA76: 0 | AC76: 0 | AD76: 0 | AE76: 0 | AG76: 0 | AI76: 0 | AJ76: 0 | AK76: 0 | AM76: 0 | AN76: 0 | AO76: 0 | AQ76: 0 | AR76: 0 | AS76: 0 | AU76: 0 | AW76: 0 | AX76: 0 | AY76: 0 | BA76: 0 | BB76: 0 | BC76: 0 | BE76: 0 | BF76: 0 | BG76: 0 | BI76: 0 | BK76: 0 | BL76: 0 | BM76: 0 | BO76: 0
A77: 50200-0300 | B77: 10 | D77: Material: Hardware | E77: -1 | G77: 480.97 | H77: 0 | I77: -100 | K77: 1271.58 | L77: 0 | M77: -100 | O77: 19372.16 | P77: 0 | Q77: -100 | S77: 21124.71 | U77: 1119.39 | V77: 0 | W77: -100 | Y77: 8320.74 | Z77: 0 | AA77: -100 | AC77: 14452.16 | AD77: 0 | AE77: -100 | AG77: 23892.29 | AI77: 9504.73 | AJ77: 0 | AK77: -100 | AM77: 27972.34 | AN77: 0 | AO77: -100 | AQ77: 12693.12 | AR77: 0 | AS77: -100 | AU77: 50170.19 | AW77: 0 | AX77: 0 | AY77: 0 | BA77: 0 | BB77: 0 | BC77: 0 | BE77: 0 | BF77: 0 | BG77: 0 | BI77: 0 | BK77: 95187.19 | BL77: 0 | BM77: -100 | BO77: 0
A78: 50300-0000 | B78: 10 | D78: Material: Lumber | E78: -1 | G78: 0 | H78: 0 | I78: 0 | K78: 0 | L78: 0 | M78: 0 | O78: 0 | P78: 0 | Q78: 0 | S78: 0 | U78: 0 | V78: 0 | W78: 0 | Y78: 0 | Z78: 0 | AA78: 0 | AC78: 0 | AD78: 0 | AE78: 0 | AG78: 0 | AI78: 0 | AJ78: 0 | AK78: 0 | AM78: 0 | AN78: 0 | AO78: 0 | AQ78: 0 | AR78: 0 | AS78: 0 | AU78: 0 | AW78: 0 | AX78: 0 | AY78: 0 | BA78: 0 | BB78: 0 | BC78: 0 | BE78: 0 | BF78: 0 | BG78: 0 | BI78: 0 | BK78: 0 | BL78: 0 | BM78: 0 | BO78: 0
A79: 50300-0100 | B79: 10 | D79: Material: Lumber | E79: -1 | G79: 0 | H79: 0 | I79: 0 | K79: 0 | L79: 0 | M79: 0 | O79: 0 | P79: 0 | Q79: 0 | S79: 0 | U79: 0 | V79: 0 | W79: 0 | Y79: 0 | Z79: 0 | AA79: 0 | AC79: 0 | AD79: 0 | AE79: 0 | AG79: 0 | AI79: 0 | AJ79: 0 | AK79: 0 | AM79: 0 | AN79: 0 | AO79: 0 | AQ79: 0 | AR79: 0 | AS79: 0 | AU79: 0 | AW79: 0 | AX79: 0 | AY79: 0 | BA79: 0 | BB79: 0 | BC79: 0 | BE79: 0 | BF79: 0 | BG79: 0 | BI79: 0 | BK79: 0 | BL79: 0 | BM79: 0 | BO79: 0
A80: 50300-0200 | B80: 10 | D80: Material: Lumber | E80: -1 | G80: 0 | H80: 0 | I80: 0 | K80: 0 | L80: 0 | M80: 0 | O80: 0 | P80: 0 | Q80: 0 | S80: 0 | U80: 0 | V80: 0 | W80: 0 | Y80: 0 | Z80: 0 | AA80: 0 | AC80: 0 | AD80: 0 | AE80: 0 | AG80: 0 | AI80: 0 | AJ80: 0 | AK80: 0 | AM80: 0 | AN80: 0 | AO80: 0 | AQ80: 0 | AR80: 0 | AS80: 0 | AU80: 0 | AW80: 0 | AX80: 0 | AY80: 0 | BA80: 0 | BB80: 0 | BC80: 0 | BE80: 0 | BF80: 0 | BG80: 0 | BI80: 0 | BK80: 0 | BL80: 0 | BM80: 0 | BO80: 0
A81: 50300-0300 | B81: 10 | D81: Material: Lumber | E81: -1 | G81: 205.8 | H81: 0 | I81: -100 | K81: 4971.38 | L81: 0 | M81: -100 | O81: 3690.45 | P81: 0 | Q81: -100 | S81: 8867.63 | U81: 1519.55 | V81: 0 | W81: -100 | Y81: 653.1 | Z81: 0 | AA81: -100 | AC81: 7920.7 | AD81: 0 | AE81: -100 | AG81: 10093.35 | AI81: 2218.6 | AJ81: 0 | AK81: -100 | AM81: 4797.52 | AN81: 0 | AO81: -100 | AQ81: 1800.02 | AR81: 0 | AS81: -100 | AU81: 8816.14 | AW81: 0 | AX81: 0 | AY81: 0 | BA81: 0 | BB81: 0 | BC81: 0 | BE81: 0 | BF81: 0 | BG81: 0 | BI81: 0 | BK81: 27777.12 | BL81: 0 | BM81: -100 | BO81: 0
A82: 50400-0000 | B82: 10 | D82: Material: Roofing | E82: -1 | G82: 0 | H82: 0 | I82: 0 | K82: 0 | L82: 0 | M82: 0 | O82: 0 | P82: 0 | Q82: 0 | S82: 0 | U82: 0 | V82: 0 | W82: 0 | Y82: 0 | Z82: 0 | AA82: 0 | AC82: 0 | AD82: 0 | AE82: 0 | AG82: 0 | AI82: 0 | AJ82: 0 | AK82: 0 | AM82: -0.06 | AN82: 0 | AO82: -100 | AQ82: 0 | AR82: 0 | AS82: 0 | AU82: -0.06 | AW82: 0 | AX82: 0 | AY82: 0 | BA82: 0 | BB82: 0 | BC82: 0 | BE82: 0 | BF82: 0 | BG82: 0 | BI82: 0 | BK82: -0.06 | BL82: 0 | BM82: -100 | BO82: 0
A83: 50400-0100 | B83: 10 | D83: Material: Roofing | E83: -1 | G83: 0 | H83: 0 | I83: 0 | K83: 0 | L83: 0 | M83: 0 | O83: 0 | P83: 0 | Q83: 0 | S83: 0 | U83: 0 | V83: 0 | W83: 0 | Y83: 0 | Z83: 0 | AA83: 0 | AC83: 0 | AD83: 0 | AE83: 0 | AG83: 0 | AI83: 0 | AJ83: 0 | AK83: 0 | AM83: 0 | AN83: 0 | AO83: 0 | AQ83: 0 | AR83: 0 | AS83: 0 | AU83: 0 | AW83: 0 | AX83: 0 | AY83: 0 | BA83: 0 | BB83: 0 | BC83: 0 | BE83: 0 | BF83: 0 | BG83: 0 | BI83: 0 | BK83: 0 | BL83: 0 | BM83: 0 | BO83: 0
A84: 50400-0200 | B84: 10 | D84: Material: Roofing | E84: -1 | G84: 0 | H84: 0 | I84: 0 | K84: 0 | L84: 0 | M84: 0 | O84: 0 | P84: 0 | Q84: 0 | S84: 0 | U84: 0 | V84: 0 | W84: 0 | Y84: 0 | Z84: 0 | AA84: 0 | AC84: 0 | AD84: 0 | AE84: 0 | AG84: 0 | AI84: 0 | AJ84: 0 | AK84: 0 | AM84: 0 | AN84: 0 | AO84: 0 | AQ84: 0 | AR84: 0 | AS84: 0 | AU84: 0 | AW84: 0 | AX84: 0 | AY84: 0 | BA84: 0 | BB84: 0 | BC84: 0 | BE84: 0 | BF84: 0 | BG84: 0 | BI84: 0 | BK84: 0 | BL84: 0 | BM84: 0 | BO84: 0
A85: 50400-0300 | B85: 10 | D85: Material: Roofing | E85: -1 | G85: 6644.76 | H85: 0 | I85: -100 | K85: 166.12 | L85: 0 | M85: -100 | O85: 830.6 | P85: 0 | Q85: -100 | S85: 7641.48 | U85: 4562.54 | V85: 0 | W85: -100 | Y85: 1328.95 | Z85: 0 | AA85: -100 | AC85: 2990.14 | AD85: 0 | AE85: -100 | AG85: 8881.63 | AI85: 9699.4 | AJ85: 0 | AK85: -100 | AM85: 8317.89 | AN85: 0 | AO85: -100 | AQ85: 1669.2 | AR85: 0 | AS85: -100 | AU85: 19686.49 | AW85: 0 | AX85: 0 | AY85: 0 | BA85: 0 | BB85: 0 | BC85: 0 | BE85: 0 | BF85: 0 | BG85: 0 | BI85: 0 | BK85: 36209.6 | BL85: 0 | BM85: -100 | BO85: 0
A86: 54950-0000 | B86: 10 | D86: Subcontractors | E86: -1 | G86: 0 | H86: 0 | I86: 0 | K86: 0 | L86: 0 | M86: 0 | O86: 0 | P86: 0 | Q86: 0 | S86: 0 | U86: 0 | V86: 0 | W86: 0 | Y86: 0 | Z86: 0 | AA86: 0 | AC86: 0 | AD86: 0 | AE86: 0 | AG86: 0 | AI86: 0 | AJ86: 0 | AK86: 0 | AM86: 0 | AN86: 0 | AO86: 0 | AQ86: 0 | AR86: 0 | AS86: 0 | AU86: 0 | AW86: 0 | AX86: 0 | AY86: 0 | BA86: 0 | BB86: 0 | BC86: 0 | BE86: 0 | BF86: 0 | BG86: 0 | BI86: 0 | BK86: 0 | BL86: 0 | BM86: 0 | BO86: 0
A87: 54950-0100 | B87: 10 | D87: Subcontractors | E87: -1 | G87: 6000 | H87: 0 | I87: -100 | K87: 0 | L87: 0 | M87: 0 | O87: 0 | P87: 0 | Q87: 0 | S87: 6000 | U87: 0 | V87: 0 | W87: 0 | Y87: 2605.5 | Z87: 0 | AA87: -100 | AC87: 0 | AD87: 0 | AE87: 0 | AG87: 2605.5 | AI87: 2850.48 | AJ87: 0 | AK87: -100 | AM87: 0 | AN87: 0 | AO87: 0 | AQ87: 0 | AR87: 0 | AS87: 0 | AU87: 2850.48 | AW87: 0 | AX87: 0 | AY87: 0 | BA87: 0 | BB87: 0 | BC87: 0 | BE87: 0 | BF87: 0 | BG87: 0 | BI87: 0 | BK87: 11455.98 | BL87: 0 | BM87: -100 | BO87: 0
A88: 54950-0200 | B88: 10 | D88: Subcontractors | E88: -1 | G88: 0 | H88: 0 | I88: 0 | K88: 0 | L88: 0 | M88: 0 | O88: 1000 | P88: 0 | Q88: -100 | S88: 1000 | U88: 0 | V88: 0 | W88: 0 | Y88: 864 | Z88: 0 | AA88: -100 | AC88: 0 | AD88: 0 | AE88: 0 | AG88: 864 | AI88: 475.08 | AJ88: 0 | AK88: -100 | AM88: 0 | AN88: 0 | AO88: 0 | AQ88: 0 | AR88: 0 | AS88: 0 | AU88: 475.08 | AW88: 0 | AX88: 0 | AY88: 0 | BA88: 0 | BB88: 0 | BC88: 0 | BE88: 0 | BF88: 0 | BG88: 0 | BI88: 0 | BK88: 2339.08 | BL88: 0 | BM88: -100 | BO88: 0
A89: 54950-0300 | B89: 10 | D89: Subcontractors | E89: -1 | G89: 0 | H89: 0 | I89: 0 | K89: 0 | L89: 0 | M89: 0 | O89: 0 | P89: 0 | Q89: 0 | S89: 0 | U89: 0 | V89: 0 | W89: 0 | Y89: 2605.5 | Z89: 0 | AA89: -100 | AC89: 0 | AD89: 0 | AE89: 0 | AG89: 2605.5 | AI89: 10044.48 | AJ89: 0 | AK89: -100 | AM89: 34100 | AN89: 0 | AO89: -100 | AQ89: 0 | AR89: 0 | AS89: 0 | AU89: 44144.48 | AW89: 0 | AX89: 0 | AY89: 0 | BA89: 0 | BB89: 0 | BC89: 0 | BE89: 0 | BF89: 0 | BG89: 0 | BI89: 0 | BK89: 46749.98 | BL89: 0 | BM89: -100 | BO89: 0
B91: GP | C91: GROSS PROFIT / (LOSS) | G91: 59339.07 | H91: 0 | K91: 69795.72 | L91: 0 | O91: 78924.91 | P91: 0 | S91: 208059.7 | U91: 82500.61 | V91: 0 | Y91: 97367.93 | Z91: 0 | AC91: 92785 | AD91: 0 | AG91: 272653.54 | AI91: 99087.56 | AJ91: 0 | AM91: 116051.22 | AN91: 0 | AQ91: 109714.25 | AR91: 0 | AU91: 324853.03 | AW91: 0 | AX91: 0 | BA91: 0 | BB91: 0 | BE91: 0 | BF91: 0 | BI91: 0 | BK91: 805566.27 | BL91: 0 | BO91: 0
B93: _EX | C93: EXPENSES
C95: Operating Expense | G95: 50 | H95: 0 | K95: 0 | L95: 0 | O95: 142.94 | P95: 0 | S95: 192.94 | U95: -272.79 | V95: 0 | Y95: 52.45 | Z95: 0 | AC95: 44.75 | AD95: 0 | AG95: -175.59 | AI95: -85.45 | AJ95: 0 | AM95: -623.43 | AN95: 0 | AQ95: 4929.34 | AR95: 0 | AU95: 4220.46 | AW95: 0 | AX95: 0 | BA95: 0 | BB95: 0 | BE95: 0 | BF95: 0 | BI95: 0 | BK95: 4237.81 | BL95: 0 | BO95: 0
A96: 51200-0000 | B96: 12 | D96: Item Assembly Costs | E96: -1 | G96: 0 | H96: 0 | I96: 0 | K96: 0 | L96: 0 | M96: 0 | O96: 0 | P96: 0 | Q96: 0 | S96: 0 | U96: 0 | V96: 0 | W96: 0 | Y96: 0 | Z96: 0 | AA96: 0 | AC96: 0 | AD96: 0 | AE96: 0 | AG96: 0 | AI96: 0 | AJ96: 0 | AK96: 0 | AM96: 0 | AN96: 0 | AO96: 0 | AQ96: 0 | AR96: 0 | AS96: 0 | AU96: 0 | AW96: 0 | AX96: 0 | AY96: 0 | BA96: 0 | BB96: 0 | BC96: 0 | BE96: 0 | BF96: 0 | BG96: 0 | BI96: 0 | BK96: 0 | BL96: 0 | BM96: 0 | BO96: 0
A97: 51200-0100 | B97: 12 | D97: Item Assembly Costs | E97: -1 | G97: 0 | H97: 0 | I97: 0 | K97: 0 | L97: 0 | M97: 0 | O97: 0 | P97: 0 | Q97: 0 | S97: 0 | U97: 0 | V97: 0 | W97: 0 | Y97: 0 | Z97: 0 | AA97: 0 | AC97: 0 | AD97: 0 | AE97: 0 | AG97: 0 | AI97: 0 | AJ97: 0 | AK97: 0 | AM97: 0 | AN97: 0 | AO97: 0 | AQ97: 0 | AR97: 0 | AS97: 0 | AU97: 0 | AW97: 0 | AX97: 0 | AY97: 0 | BA97: 0 | BB97: 0 | BC97: 0 | BE97: 0 | BF97: 0 | BG97: 0 | BI97: 0 | BK97: 0 | BL97: 0 | BM97: 0 | BO97: 0
A98: 51200-0200 | B98: 12 | D98: Item Assembly Costs | E98: -1 | G98: 0 | H98: 0 | I98: 0 | K98: 0 | L98: 0 | M98: 0 | O98: 0 | P98: 0 | Q98: 0 | S98: 0 | U98: 0 | V98: 0 | W98: 0 | Y98: 0 | Z98: 0 | AA98: 0 | AC98: 0 | AD98: 0 | AE98: 0 | AG98: 0 | AI98: 0 | AJ98: 0 | AK98: 0 | AM98: 0 | AN98: 0 | AO98: 0 | AQ98: 0 | AR98: 0 | AS98: 0 | AU98: 0 | AW98: 0 | AX98: 0 | AY98: 0 | BA98: 0 | BB98: 0 | BC98: 0 | BE98: 0 | BF98: 0 | BG98: 0 | BI98: 0 | BK98: 0 | BL98: 0 | BM98: 0 | BO98: 0
A99: 51200-0300 | B99: 12 | D99: Item Assembly Costs | E99: -1 | G99: 0 | H99: 0 | I99: 0 | K99: 0 | L99: 0 | M99: 0 | O99: 0 | P99: 0 | Q99: 0 | S99: 0 | U99: 0 | V99: 0 | W99: 0 | Y99: 0 | Z99: 0 | AA99: 0 | AC99: 0 | AD99: 0 | AE99: 0 | AG99: 0 | AI99: 0 | AJ99: 0 | AK99: 0 | AM99: 0 | AN99: 0 | AO99: 0 | AQ99: -1200 | AR99: 0 | AS99: -100 | AU99: -1200 | AW99: 0 | AX99: 0 | AY99: 0 | BA99: 0 | BB99: 0 | BC99: 0 | BE99: 0 | BF99: 0 | BG99: 0 | BI99: 0 | BK99: -1200 | BL99: 0 | BM99: -100 | BO99: 0
A100: 51300-0000 | B100: 12 | D100: Adjustment Write-off | E100: -1 | G100: 0 | H100: 0 | I100: 0 | K100: 0 | L100: 0 | M100: 0 | O100: 0 | P100: 0 | Q100: 0 | S100: 0 | U100: 0 | V100: 0 | W100: 0 | Y100: 0 | Z100: 0 | AA100: 0 | AC100: 0 | AD100: 0 | AE100: 0 | AG100: 0 | AI100: 0 | AJ100: 0 | AK100: 0 | AM100: 0 | AN100: 0 | AO100: 0 | AQ100: 0 | AR100: 0 | AS100: 0 | AU100: 0 | AW100: 0 | AX100: 0 | AY100: 0 | BA100: 0 | BB100: 0 | BC100: 0 | BE100: 0 | BF100: 0 | BG100: 0 | BI100: 0 | BK100: 0 | BL100: 0 | BM100: 0 | BO100: 0
A101: 51300-0100 | B101: 12 | D101: Adjustment Write-off | E101: -1 | G101: 0 | H101: 0 | I101: 0 | K101: 0 | L101: 0 | M101: 0 | O101: 0 | P101: 0 | Q101: 0 | S101: 0 | U101: 0 | V101: 0 | W101: 0 | Y101: 0 | Z101: 0 | AA101: 0 | AC101: 0 | AD101: 0 | AE101: 0 | AG101: 0 | AI101: 0 | AJ101: 0 | AK101: 0 | AM101: 0 | AN101: 0 | AO101: 0 | AQ101: 0 | AR101: 0 | AS101: 0 | AU101: 0 | AW101: 0 | AX101: 0 | AY101: 0 | BA101: 0 | BB101: 0 | BC101: 0 | BE101: 0 | BF101: 0 | BG101: 0 | BI101: 0 | BK101: 0 | BL101: 0 | BM101: 0 | BO101: 0
A102: 51300-0200 | B102: 12 | D102: Adjustment Write-off | E102: -1 | G102: 0 | H102: 0 | I102: 0 | K102: 0 | L102: 0 | M102: 0 | O102: 0 | P102: 0 | Q102: 0 | S102: 0 | U102: 0 | V102: 0 | W102: 0 | Y102: 0 | Z102: 0 | AA102: 0 | AC102: 0 | AD102: 0 | AE102: 0 | AG102: 0 | AI102: 0 | AJ102: 0 | AK102: 0 | AM102: 0 | AN102: 0 | AO102: 0 | AQ102: 0 | AR102: 0 | AS102: 0 | AU102: 0 | AW102: 0 | AX102: 0 | AY102: 0 | BA102: 0 | BB102: 0 | BC102: 0 | BE102: 0 | BF102: 0 | BG102: 0 | BI102: 0 | BK102: 0 | BL102: 0 | BM102: 0 | BO102: 0
A103: 51300-0300 | B103: 12 | D103: Adjustment Write-off | E103: -1 | G103: 0 | H103: 0 | I103: 0 | K103: 0 | L103: 0 | M103: 0 | O103: 100.14 | P103: 0 | Q103: -100 | S103: 100.14 | U103: 0 | V103: 0 | W103: 0 | Y103: 0 | Z103: 0 | AA103: 0 | AC103: 0 | AD103: 0 | AE103: 0 | AG103: 0 | AI103: 0 | AJ103: 0 | AK103: 0 | AM103: 0 | AN103: 0 | AO103: 0 | AQ103: 0 | AR103: 0 | AS103: 0 | AU103: 0 | AW103: 0 | AX103: 0 | AY103: 0 | BA103: 0 | BB103: 0 | BC103: 0 | BE103: 0 | BF103: 0 | BG103: 0 | BI103: 0 | BK103: 100.14 | BL103: 0 | BM103: -100 | BO103: 0
A104: 51400-0000 | B104: 12 | D104: Transfer Costs | E104: -1 | G104: 0 | H104: 0 | I104: 0 | K104: 0 | L104: 0 | M104: 0 | O104: 0 | P104: 0 | Q104: 0 | S104: 0 | U104: 0 | V104: 0 | W104: 0 | Y104: 0 | Z104: 0 | AA104: 0 | AC104: 0 | AD104: 0 | AE104: 0 | AG104: 0 | AI104: 0 | AJ104: 0 | AK104: 0 | AM104: 0 | AN104: 0 | AO104: 0 | AQ104: 0 | AR104: 0 | AS104: 0 | AU104: 0 | AW104: 0 | AX104: 0 | AY104: 0 | BA104: 0 | BB104: 0 | BC104: 0 | BE104: 0 | BF104: 0 | BG104: 0 | BI104: 0 | BK104: 0 | BL104: 0 | BM104: 0 | BO104: 0
A105: 51400-0100 | B105: 12 | D105: Transfer Costs | E105: -1 | G105: 0 | H105: 0 | I105: 0 | K105: 0 | L105: 0 | M105: 0 | O105: 0 | P105: 0 | Q105: 0 | S105: 0 | U105: 0 | V105: 0 | W105: 0 | Y105: 0 | Z105: 0 | AA105: 0 | AC105: 0 | AD105: 0 | AE105: 0 | AG105: 0 | AI105: 0 | AJ105: 0 | AK105: 0 | AM105: 0 | AN105: 0 | AO105: 0 | AQ105: 0 | AR105: 0 | AS105: 0 | AU105: 0 | AW105: 0 | AX105: 0 | AY105: 0 | BA105: 0 | BB105: 0 | BC105: 0 | BE105: 0 | BF105: 0 | BG105: 0 | BI105: 0 | BK105: 0 | BL105: 0 | BM105: 0 | BO105: 0
A106: 51400-0200 | B106: 12 | D106: Transfer Costs | E106: -1 | G106: 0 | H106: 0 | I106: 0 | K106: 0 | L106: 0 | M106: 0 | O106: 0 | P106: 0 | Q106: 0 | S106: 0 | U106: 0 | V106: 0 | W106: 0 | Y106: 0 | Z106: 0 | AA106: 0 | AC106: 0 | AD106: 0 | AE106: 0 | AG106: 0 | AI106: 0 | AJ106: 0 | AK106: 0 | AM106: 0 | AN106: 0 | AO106: 0 | AQ106: 0 | AR106: 0 | AS106: 0 | AU106: 0 | AW106: 0 | AX106: 0 | AY106: 0 | BA106: 0 | BB106: 0 | BC106: 0 | BE106: 0 | BF106: 0 | BG106: 0 | BI106: 0 | BK106: 0 | BL106: 0 | BM106: 0 | BO106: 0
A107: 51400-0300 | B107: 12 | D107: Transfer Costs | E107: -1 | G107: 0 | H107: 0 | I107: 0 | K107: 0 | L107: 0 | M107: 0 | O107: 0 | P107: 0 | Q107: 0 | S107: 0 | U107: 0 | V107: 0 | W107: 0 | Y107: 0 | Z107: 0 | AA107: 0 | AC107: 0 | AD107: 0 | AE107: 0 | AG107: 0 | AI107: 0 | AJ107: 0 | AK107: 0 | AM107: 0 | AN107: 0 | AO107: 0 | AQ107: 0 | AR107: 0 | AS107: 0 | AU107: 0 | AW107: 0 | AX107: 0 | AY107: 0 | BA107: 0 | BB107: 0 | BC107: 0 | BE107: 0 | BF107: 0 | BG107: 0 | BI107: 0 | BK107: 0 | BL107: 0 | BM107: 0 | BO107: 0
A108: 51500-0000 | B108: 12 | D108: Purchase Discounts | E108: -1 | G108: 0 | H108: 0 | I108: 0 | K108: 0 | L108: 0 | M108: 0 | O108: 0 | P108: 0 | Q108: 0 | S108: 0 | U108: 0 | V108: 0 | W108: 0 | Y108: 0 | Z108: 0 | AA108: 0 | AC108: 0 | AD108: 0 | AE108: 0 | AG108: 0 | AI108: -130.45 | AJ108: 0 | AK108: -100 | AM108: 0 | AN108: 0 | AO108: 0 | AQ108: 0 | AR108: 0 | AS108: 0 | AU108: -130.45 | AW108: 0 | AX108: 0 | AY108: 0 | BA108: 0 | BB108: 0 | BC108: 0 | BE108: 0 | BF108: 0 | BG108: 0 | BI108: 0 | BK108: -130.45 | BL108: 0 | BM108: -100 | BO108: 0
A109: 51500-0100 | B109: 12 | D109: Purchase Discounts | E109: -1 | G109: 0 | H109: 0 | I109: 0 | K109: 0 | L109: 0 | M109: 0 | O109: 0 | P109: 0 | Q109: 0 | S109: 0 | U109: 0 | V109: 0 | W109: 0 | Y109: 0 | Z109: 0 | AA109: 0 | AC109: 0 | AD109: 0 | AE109: 0 | AG109: 0 | AI109: 0 | AJ109: 0 | AK109: 0 | AM109: 0 | AN109: 0 | AO109: 0 | AQ109: 0 | AR109: 0 | AS109: 0 | AU109: 0 | AW109: 0 | AX109: 0 | AY109: 0 | BA109: 0 | BB109: 0 | BC109: 0 | BE109: 0 | BF109: 0 | BG109: 0 | BI109: 0 | BK109: 0 | BL109: 0 | BM109: 0 | BO109: 0
A110: 51500-0200 | B110: 12 | D110: Purchase Discounts | E110: -1 | G110: 0 | H110: 0 | I110: 0 | K110: 0 | L110: 0 | M110: 0 | O110: 0 | P110: 0 | Q110: 0 | S110: 0 | U110: 0 | V110: 0 | W110: 0 | Y110: 0 | Z110: 0 | AA110: 0 | AC110: 0 | AD110: 0 | AE110: 0 | AG110: 0 | AI110: 0 | AJ110: 0 | AK110: 0 | AM110: 0 | AN110: 0 | AO110: 0 | AQ110: 0 | AR110: 0 | AS110: 0 | AU110: 0 | AW110: 0 | AX110: 0 | AY110: 0 | BA110: 0 | BB110: 0 | BC110: 0 | BE110: 0 | BF110: 0 | BG110: 0 | BI110: 0 | BK110: 0 | BL110: 0 | BM110: 0 | BO110: 0
A111: 51500-0300 | B111: 12 | D111: Purchase Discounts | E111: -1 | G111: 0 | H111: 0 | I111: 0 | K111: 0 | L111: 0 | M111: 0 | O111: 0 | P111: 0 | Q111: 0 | S111: 0 | U111: -326.29 | V111: 0 | W111: -100 | Y111: 0 | Z111: 0 | AA111: 0 | AC111: 0 | AD111: 0 | AE111: 0 | AG111: -326.29 | AI111: 0 | AJ111: 0 | AK111: 0 | AM111: -678 | AN111: 0 | AO111: -100 | AQ111: -173.66 | AR111: 0 | AS111: -100 | AU111: -851.66 | AW111: 0 | AX111: 0 | AY111: 0 | BA111: 0 | BB111: 0 | BC111: 0 | BE111: 0 | BF111: 0 | BG111: 0 | BI111: 0 | BK111: -1177.95 | BL111: 0 | BM111: -100 | BO111: 0
A112: 51600-0000 | B112: 12 | D112: Equipment Rental | E112: -1 | G112: 0 | H112: 0 | I112: 0 | K112: 0 | L112: 0 | M112: 0 | O112: 0 | P112: 0 | Q112: 0 | S112: 0 | U112: 0 | V112: 0 | W112: 0 | Y112: 0 | Z112: 0 | AA112: 0 | AC112: 0 | AD112: 0 | AE112: 0 | AG112: 0 | AI112: 0 | AJ112: 0 | AK112: 0 | AM112: 0 | AN112: 0 | AO112: 0 | AQ112: 0 | AR112: 0 | AS112: 0 | AU112: 0 | AW112: 0 | AX112: 0 | AY112: 0 | BA112: 0 | BB112: 0 | BC112: 0 | BE112: 0 | BF112: 0 | BG112: 0 | BI112: 0 | BK112: 0 | BL112: 0 | BM112: 0 | BO112: 0
A113: 51600-0100 | B113: 12 | D113: Equipment Rental | E113: -1 | G113: 0 | H113: 0 | I113: 0 | K113: 0 | L113: 0 | M113: 0 | O113: 0 | P113: 0 | Q113: 0 | S113: 0 | U113: 0 | V113: 0 | W113: 0 | Y113: 0 | Z113: 0 | AA113: 0 | AC113: 0 | AD113: 0 | AE113: 0 | AG113: 0 | AI113: 0 | AJ113: 0 | AK113: 0 | AM113: 0 | AN113: 0 | AO113: 0 | AQ113: 0 | AR113: 0 | AS113: 0 | AU113: 0 | AW113: 0 | AX113: 0 | AY113: 0 | BA113: 0 | BB113: 0 | BC113: 0 | BE113: 0 | BF113: 0 | BG113: 0 | BI113: 0 | BK113: 0 | BL113: 0 | BM113: 0 | BO113: 0
A114: 51600-0200 | B114: 12 | D114: Equipment Rental | E114: -1 | G114: 0 | H114: 0 | I114: 0 | K114: 0 | L114: 0 | M114: 0 | O114: 0 | P114: 0 | Q114: 0 | S114: 0 | U114: 0 | V114: 0 | W114: 0 | Y114: 0 | Z114: 0 | AA114: 0 | AC114: 0 | AD114: 0 | AE114: 0 | AG114: 0 | AI114: 0 | AJ114: 0 | AK114: 0 | AM114: 0 | AN114: 0 | AO114: 0 | AQ114: 0 | AR114: 0 | AS114: 0 | AU114: 0 | AW114: 0 | AX114: 0 | AY114: 0 | BA114: 0 | BB114: 0 | BC114: 0 | BE114: 0 | BF114: 0 | BG114: 0 | BI114: 0 | BK114: 0 | BL114: 0 | BM114: 0 | BO114: 0
A115: 51600-0300 | B115: 12 | D115: Equipment Rental | E115: -1 | G115: 0 | H115: 0 | I115: 0 | K115: 0 | L115: 0 | M115: 0 | O115: 0 | P115: 0 | Q115: 0 | S115: 0 | U115: 0 | V115: 0 | W115: 0 | Y115: 0 | Z115: 0 | AA115: 0 | AC115: 0 | AD115: 0 | AE115: 0 | AG115: 0 | AI115: 0 | AJ115: 0 | AK115: 0 | AM115: 0 | AN115: 0 | AO115: 0 | AQ115: 6211.35 | AR115: 0 | AS115: -100 | AU115: 6211.35 | AW115: 0 | AX115: 0 | AY115: 0 | BA115: 0 | BB115: 0 | BC115: 0 | BE115: 0 | BF115: 0 | BG115: 0 | BI115: 0 | BK115: 6211.35 | BL115: 0 | BM115: -100 | BO115: 0
A116: 51700-0000 | B116: 12 | D116: Freight Expense | E116: -1 | G116: 0 | H116: 0 | I116: 0 | K116: 0 | L116: 0 | M116: 0 | O116: 0 | P116: 0 | Q116: 0 | S116: 0 | U116: 0 | V116: 0 | W116: 0 | Y116: 0 | Z116: 0 | AA116: 0 | AC116: 0 | AD116: 0 | AE116: 0 | AG116: 0 | AI116: 0 | AJ116: 0 | AK116: 0 | AM116: 0 | AN116: 0 | AO116: 0 | AQ116: 0 | AR116: 0 | AS116: 0 | AU116: 0 | AW116: 0 | AX116: 0 | AY116: 0 | BA116: 0 | BB116: 0 | BC116: 0 | BE116: 0 | BF116: 0 | BG116: 0 | BI116: 0 | BK116: 0 | BL116: 0 | BM116: 0 | BO116: 0
A117: 51700-0100 | B117: 12 | D117: Freight Expense | E117: -1 | G117: 0 | H117: 0 | I117: 0 | K117: 0 | L117: 0 | M117: 0 | O117: 0 | P117: 0 | Q117: 0 | S117: 0 | U117: 0 | V117: 0 | W117: 0 | Y117: 0 | Z117: 0 | AA117: 0 | AC117: 0 | AD117: 0 | AE117: 0 | AG117: 0 | AI117: 0 | AJ117: 0 | AK117: 0 | AM117: 0 | AN117: 0 | AO117: 0 | AQ117: 0 | AR117: 0 | AS117: 0 | AU117: 0 | AW117: 0 | AX117: 0 | AY117: 0 | BA117: 0 | BB117: 0 | BC117: 0 | BE117: 0 | BF117: 0 | BG117: 0 | BI117: 0 | BK117: 0 | BL117: 0 | BM117: 0 | BO117: 0
A118: 51700-0200 | B118: 12 | D118: Freight Expense | E118: -1 | G118: 0 | H118: 0 | I118: 0 | K118: 0 | L118: 0 | M118: 0 | O118: 0 | P118: 0 | Q118: 0 | S118: 0 | U118: 0 | V118: 0 | W118: 0 | Y118: 15 | Z118: 0 | AA118: -100 | AC118: 0 | AD118: 0 | AE118: 0 | AG118: 15 | AI118: 0 | AJ118: 0 | AK118: 0 | AM118: 0 | AN118: 0 | AO118: 0 | AQ118: 0 | AR118: 0 | AS118: 0 | AU118: 0 | AW118: 0 | AX118: 0 | AY118: 0 | BA118: 0 | BB118: 0 | BC118: 0 | BE118: 0 | BF118: 0 | BG118: 0 | BI118: 0 | BK118: 15 | BL118: 0 | BM118: -100 | BO118: 0
A119: 51700-0300 | B119: 12 | D119: Freight Expense | E119: -1 | G119: 50 | H119: 0 | I119: -100 | K119: 0 | L119: 0 | M119: 0 | O119: 42.8 | P119: 0 | Q119: -100 | S119: 92.8 | U119: 53.5 | V119: 0 | W119: -100 | Y119: 37.45 | Z119: 0 | AA119: -100 | AC119: 44.75 | AD119: 0 | AE119: -100 | AG119: 135.7 | AI119: 45 | AJ119: 0 | AK119: -100 | AM119: 54.57 | AN119: 0 | AO119: -100 | AQ119: 91.65 | AR119: 0 | AS119: -100 | AU119: 191.22 | AW119: 0 | AX119: 0 | AY119: 0 | BA119: 0 | BB119: 0 | BC119: 0 | BE119: 0 | BF119: 0 | BG119: 0 | BI119: 0 | BK119: 419.72 | BL119: 0 | BM119: -100 | BO119: 0
C121: Payroll Expense | G121: 26496.67 | H121: 0 | K121: 33276.17 | L121: 0 | O121: 33355.51 | P121: 0 | S121: 93128.35 | U121: 39830.94 | V121: 0 | Y121: 39875.84 | Z121: 0 | AC121: 39783.36 | AD121: 0 | AG121: 119490.14 | AI121: 41201.16 | AJ121: 0 | AM121: 41340.42 | AN121: 0 | AQ121: 41245.15 | AR121: 0 | AU121: 123786.73 | AW121: 0 | AX121: 0 | BA121: 0 | BB121: 0 | BE121: 0 | BF121: 0 | BI121: 0 | BK121: 336405.22 | BL121: 0 | BO121: 0
A122: 54100-0000 | B122: 13 | D122: Wages & Salaries | E122: -1 | G122: 0 | H122: 0 | I122: 0 | K122: 0 | L122: 0 | M122: 0 | O122: 0 | P122: 0 | Q122: 0 | S122: 0 | U122: 0 | V122: 0 | W122: 0 | Y122: 0 | Z122: 0 | AA122: 0 | AC122: 0 | AD122: 0 | AE122: 0 | AG122: 0 | AI122: 0 | AJ122: 0 | AK122: 0 | AM122: 0 | AN122: 0 | AO122: 0 | AQ122: 0 | AR122: 0 | AS122: 0 | AU122: 0 | AW122: 0 | AX122: 0 | AY122: 0 | BA122: 0 | BB122: 0 | BC122: 0 | BE122: 0 | BF122: 0 | BG122: 0 | BI122: 0 | BK122: 0 | BL122: 0 | BM122: 0 | BO122: 0
A123: 54100-0100 | B123: 13 | D123: Wages & Salaries | E123: -1 | G123: 13344.8 | H123: 0 | I123: -100 | K123: 15840.8 | L123: 0 | M123: -100 | O123: 15884 | P123: 0 | Q123: -100 | S123: 45069.6 | U123: 15840.8 | V123: 0 | W123: -100 | Y123: 15885.34 | Z123: 0 | AA123: -100 | AC123: 15871.52 | AD123: 0 | AE123: -100 | AG123: 47597.66 | AI123: 15840.8 | AJ123: 0 | AK123: -100 | AM123: 15911.22 | AN123: 0 | AO123: -100 | AQ123: 15840.8 | AR123: 0 | AS123: -100 | AU123: 47592.82 | AW123: 0 | AX123: 0 | AY123: 0 | BA123: 0 | BB123: 0 | BC123: 0 | BE123: 0 | BF123: 0 | BG123: 0 | BI123: 0 | BK123: 140260.08 | BL123: 0 | BM123: -100 | BO123: 0
A124: 54100-0200 | B124: 13 | D124: Wages & Salaries | E124: -1 | G124: 0 | H124: 0 | I124: 0 | K124: 0 | L124: 0 | M124: 0 | O124: 0 | P124: 0 | Q124: 0 | S124: 0 | U124: 2179.1 | V124: 0 | W124: -100 | Y124: 2159.04 | Z124: 0 | AA124: -100 | AC124: 2159.04 | AD124: 0 | AE124: -100 | AG124: 6497.18 | AI124: 2159.04 | AJ124: 0 | AK124: -100 | AM124: 2159.04 | AN124: 0 | AO124: -100 | AQ124: 2159.04 | AR124: 0 | AS124: -100 | AU124: 6477.12 | AW124: 0 | AX124: 0 | AY124: 0 | BA124: 0 | BB124: 0 | BC124: 0 | BE124: 0 | BF124: 0 | BG124: 0 | BI124: 0 | BK124: 12974.3 | BL124: 0 | BM124: -100 | BO124: 0
A125: 54100-0300 | B125: 13 | D125: Wages & Salaries | E125: -1 | G125: 10737.6 | H125: 0 | I125: -100 | K125: 14197.28 | L125: 0 | M125: -100 | O125: 14125.28 | P125: 0 | Q125: -100 | S125: 39060.16 | U125: 17872.08 | V125: 0 | W125: -100 | Y125: 17872.08 | Z125: 0 | AA125: -100 | AC125: 17872.08 | AD125: 0 | AE125: -100 | AG125: 53616.24 | AI125: 19145.78 | AJ125: 0 | AK125: -100 | AM125: 19124.07 | AN125: 0 | AO125: -100 | AQ125: 19155.31 | AR125: 0 | AS125: -100 | AU125: 57425.16 | AW125: 0 | AX125: 0 | AY125: 0 | BA125: 0 | BB125: 0 | BC125: 0 | BE125: 0 | BF125: 0 | BG125: 0 | BI125: 0 | BK125: 150101.56 | BL125: 0 | BM125: -100 | BO125: 0
A126: 54200-0000 | B126: 13 | D126: EI Expense | E126: -1 | G126: 0 | H126: 0 | I126: 0 | K126: 0 | L126: 0 | M126: 0 | O126: 0 | P126: 0 | Q126: 0 | S126: 0 | U126: 0 | V126: 0 | W126: 0 | Y126: 0 | Z126: 0 | AA126: 0 | AC126: 0 | AD126: 0 | AE126: 0 | AG126: 0 | AI126: 0 | AJ126: 0 | AK126: 0 | AM126: 0 | AN126: 0 | AO126: 0 | AQ126: 0 | AR126: 0 | AS126: 0 | AU126: 0 | AW126: 0 | AX126: 0 | AY126: 0 | BA126: 0 | BB126: 0 | BC126: 0 | BE126: 0 | BF126: 0 | BG126: 0 | BI126: 0 | BK126: 0 | BL126: 0 | BM126: 0 | BO126: 0
A127: 54200-0100 | B127: 13 | D127: EI Expense | E127: -1 | G127: 350.27 | H127: 0 | I127: -100 | K127: 533.6 | L127: 0 | M127: -100 | O127: 556.84 | P127: 0 | Q127: -100 | S127: 1440.71 | U127: 533.6 | V127: 0 | W127: -100 | Y127: 491.6 | Z127: 0 | AA127: -100 | AC127: 530.91 | AD127: 0 | AE127: -100 | AG127: 1556.11 | AI127: 533.6 | AJ127: 0 | AK127: -100 | AM127: 519.33 | AN127: 0 | AO127: -100 | AQ127: 533.6 | AR127: 0 | AS127: -100 | AU127: 1586.53 | AW127: 0 | AX127: 0 | AY127: 0 | BA127: 0 | BB127: 0 | BC127: 0 | BE127: 0 | BF127: 0 | BG127: 0 | BI127: 0 | BK127: 4583.35 | BL127: 0 | BM127: -100 | BO127: 0
A128: 54200-0200 | B128: 13 | D128: EI Expense | E128: -1 | G128: 0 | H128: 0 | I128: 0 | K128: 0 | L128: 0 | M128: 0 | O128: 0 | P128: 0 | Q128: 0 | S128: 0 | U128: 54.35 | V128: 0 | W128: -100 | Y128: 58.94 | Z128: 0 | AA128: -100 | AC128: 58.94 | AD128: 0 | AE128: -100 | AG128: 172.23 | AI128: 58.94 | AJ128: 0 | AK128: -100 | AM128: 58.94 | AN128: 0 | AO128: -100 | AQ128: 58.94 | AR128: 0 | AS128: -100 | AU128: 176.82 | AW128: 0 | AX128: 0 | AY128: 0 | BA128: 0 | BB128: 0 | BC128: 0 | BE128: 0 | BF128: 0 | BG128: 0 | BI128: 0 | BK128: 349.05 | BL128: 0 | BM128: -100 | BO128: 0
A129: 54200-0300 | B129: 13 | D129: EI Expense | E129: -1 | G129: 293.47 | H129: 0 | I129: -100 | K129: 299.21 | L129: 0 | M129: -100 | O129: 370.19 | P129: 0 | Q129: -100 | S129: 962.87 | U129: 468.47 | V129: 0 | W129: -100 | Y129: 468.47 | Z129: 0 | AA129: -100 | AC129: 468.47 | AD129: 0 | AE129: -100 | AG129: 1405.41 | AI129: 512.69 | AJ129: 0 | AK129: -100 | AM129: 514.66 | AN129: 0 | AO129: -100 | AQ129: 493.49 | AR129: 0 | AS129: -100 | AU129: 1520.84 | AW129: 0 | AX129: 0 | AY129: 0 | BA129: 0 | BB129: 0 | BC129: 0 | BE129: 0 | BF129: 0 | BG129: 0 | BI129: 0 | BK129: 3889.12 | BL129: 0 | BM129: -100 | BO129: 0
A130: 54300-0000 | B130: 13 | D130: CPP Expense | E130: -1 | G130: 0 | H130: 0 | I130: 0 | K130: 0 | L130: 0 | M130: 0 | O130: 0 | P130: 0 | Q130: 0 | S130: 0 | U130: 0 | V130: 0 | W130: 0 | Y130: 0 | Z130: 0 | AA130: 0 | AC130: 0 | AD130: 0 | AE130: 0 | AG130: 0 | AI130: 0 | AJ130: 0 | AK130: 0 | AM130: 0 | AN130: 0 | AO130: 0 | AQ130: 0 | AR130: 0 | AS130: 0 | AU130: 0 | AW130: 0 | AX130: 0 | AY130: 0 | BA130: 0 | BB130: 0 | BC130: 0 | BE130: 0 | BF130: 0 | BG130: 0 | BI130: 0 | BK130: 0 | BL130: 0 | BM130: 0 | BO130: 0
A131: 54300-0100 | B131: 13 | D131: CPP Expense | E131: -1 | G131: 375.79 | H131: 0 | I131: -100 | K131: 682.75 | L131: 0 | M131: -100 | O131: 736.21 | P131: 0 | Q131: -100 | S131: 1794.75 | U131: 682.75 | V131: 0 | W131: -100 | Y131: 737.87 | Z131: 0 | AA131: -100 | AC131: 682.75 | AD131: 0 | AE131: -100 | AG131: 2103.37 | AI131: 682.75 | AJ131: 0 | AK131: -100 | AM131: 682.75 | AN131: 0 | AO131: -100 | AQ131: 682.75 | AR131: 0 | AS131: -100 | AU131: 2048.25 | AW131: 0 | AX131: 0 | AY131: 0 | BA131: 0 | BB131: 0 | BC131: 0 | BE131: 0 | BF131: 0 | BG131: 0 | BI131: 0 | BK131: 5946.37 | BL131: 0 | BM131: -100 | BO131: 0
A132: 54300-0200 | B132: 13 | D132: CPP Expense | E132: -1 | G132: 0 | H132: 0 | I132: 0 | K132: 0 | L132: 0 | M132: 0 | O132: 0 | P132: 0 | Q132: 0 | S132: 0 | U132: 91.64 | V132: 0 | W132: -100 | Y132: 95.75 | Z132: 0 | AA132: -100 | AC132: 95.75 | AD132: 0 | AE132: -100 | AG132: 283.14 | AI132: 95.75 | AJ132: 0 | AK132: -100 | AM132: 95.75 | AN132: 0 | AO132: -100 | AQ132: 95.75 | AR132: 0 | AS132: -100 | AU132: 287.25 | AW132: 0 | AX132: 0 | AY132: 0 | BA132: 0 | BB132: 0 | BC132: 0 | BE132: 0 | BF132: 0 | BG132: 0 | BI132: 0 | BK132: 570.39 | BL132: 0 | BM132: -100 | BO132: 0
A133: 54300-0300 | B133: 13 | D133: CPP Expense | E133: -1 | G133: 454.74 | H133: 0 | I133: -100 | K133: 585.97 | L133: 0 | M133: -100 | O133: 565.51 | P133: 0 | Q133: -100 | S133: 1606.22 | U133: 565.51 | V133: 0 | W133: -100 | Y133: 565.51 | Z133: 0 | AA133: -100 | AC133: 565.51 | AD133: 0 | AE133: -100 | AG133: 1696.53 | AI133: 641.71 | AJ133: 0 | AK133: -100 | AM133: 641.71 | AN133: 0 | AO133: -100 | AQ133: 641.71 | AR133: 0 | AS133: -100 | AU133: 1925.13 | AW133: 0 | AX133: 0 | AY133: 0 | BA133: 0 | BB133: 0 | BC133: 0 | BE133: 0 | BF133: 0 | BG133: 0 | BI133: 0 | BK133: 5227.88 | BL133: 0 | BM133: -100 | BO133: 0
A134: 54400-0000 | B134: 13 | D134: QPP Expense | E134: -1 | G134: 0 | H134: 0 | I134: 0 | K134: 0 | L134: 0 | M134: 0 | O134: 0 | P134: 0 | Q134: 0 | S134: 0 | U134: 0 | V134: 0 | W134: 0 | Y134: 0 | Z134: 0 | AA134: 0 | AC134: 0 | AD134: 0 | AE134: 0 | AG134: 0 | AI134: 0 | AJ134: 0 | AK134: 0 | AM134: 0 | AN134: 0 | AO134: 0 | AQ134: 0 | AR134: 0 | AS134: 0 | AU134: 0 | AW134: 0 | AX134: 0 | AY134: 0 | BA134: 0 | BB134: 0 | BC134: 0 | BE134: 0 | BF134: 0 | BG134: 0 | BI134: 0 | BK134: 0 | BL134: 0 | BM134: 0 | BO134: 0
A135: 54400-0100 | B135: 13 | D135: QPP Expense | E135: -1 | G135: 228.72 | H135: 0 | I135: -100 | K135: 228.72 | L135: 0 | M135: -100 | O135: 228.72 | P135: 0 | Q135: -100 | S135: 686.16 | U135: 227.62 | V135: 0 | W135: -100 | Y135: 227.62 | Z135: 0 | AA135: -100 | AC135: 227.62 | AD135: 0 | AE135: -100 | AG135: 682.86 | AI135: 227.62 | AJ135: 0 | AK135: -100 | AM135: 227.62 | AN135: 0 | AO135: -100 | AQ135: 227.62 | AR135: 0 | AS135: -100 | AU135: 682.86 | AW135: 0 | AX135: 0 | AY135: 0 | BA135: 0 | BB135: 0 | BC135: 0 | BE135: 0 | BF135: 0 | BG135: 0 | BI135: 0 | BK135: 2051.88 | BL135: 0 | BM135: -100 | BO135: 0
A136: 54400-0200 | B136: 13 | D136: QPP Expense | E136: -1 | G136: 0 | H136: 0 | I136: 0 | K136: 0 | L136: 0 | M136: 0 | O136: 0 | P136: 0 | Q136: 0 | S136: 0 | U136: 0 | V136: 0 | W136: 0 | Y136: 0 | Z136: 0 | AA136: 0 | AC136: 0 | AD136: 0 | AE136: 0 | AG136: 0 | AI136: 0 | AJ136: 0 | AK136: 0 | AM136: 0 | AN136: 0 | AO136: 0 | AQ136: 0 | AR136: 0 | AS136: 0 | AU136: 0 | AW136: 0 | AX136: 0 | AY136: 0 | BA136: 0 | BB136: 0 | BC136: 0 | BE136: 0 | BF136: 0 | BG136: 0 | BI136: 0 | BK136: 0 | BL136: 0 | BM136: 0 | BO136: 0
A137: 54400-0300 | B137: 13 | D137: QPP Expense | E137: -1 | G137: 0 | H137: 0 | I137: 0 | K137: 0 | L137: 0 | M137: 0 | O137: 0 | P137: 0 | Q137: 0 | S137: 0 | U137: 167.23 | V137: 0 | W137: -100 | Y137: 167.23 | Z137: 0 | AA137: -100 | AC137: 167.23 | AD137: 0 | AE137: -100 | AG137: 501.69 | AI137: 167.23 | AJ137: 0 | AK137: -100 | AM137: 167.23 | AN137: 0 | AO137: -100 | AQ137: 167.23 | AR137: 0 | AS137: -100 | AU137: 501.69 | AW137: 0 | AX137: 0 | AY137: 0 | BA137: 0 | BB137: 0 | BC137: 0 | BE137: 0 | BF137: 0 | BG137: 0 | BI137: 0 | BK137: 1003.38 | BL137: 0 | BM137: -100 | BO137: 0
A138: 54500-0000 | B138: 13 | D138: WCB Expense | E138: -1 | G138: 0 | H138: 0 | I138: 0 | K138: 0 | L138: 0 | M138: 0 | O138: 0 | P138: 0 | Q138: 0 | S138: 0 | U138: 0 | V138: 0 | W138: 0 | Y138: 0 | Z138: 0 | AA138: 0 | AC138: 0 | AD138: 0 | AE138: 0 | AG138: 0 | AI138: 0 | AJ138: 0 | AK138: 0 | AM138: 0 | AN138: 0 | AO138: 0 | AQ138: 0 | AR138: 0 | AS138: 0 | AU138: 0 | AW138: 0 | AX138: 0 | AY138: 0 | BA138: 0 | BB138: 0 | BC138: 0 | BE138: 0 | BF138: 0 | BG138: 0 | BI138: 0 | BK138: 0 | BL138: 0 | BM138: 0 | BO138: 0
A139: 54500-0100 | B139: 13 | D139: WCB Expense | E139: -1 | G139: 202.95 | H139: 0 | I139: -100 | K139: 318.21 | L139: 0 | M139: -100 | O139: 346.83 | P139: 0 | Q139: -100 | S139: 867.99 | U139: 318.21 | V139: 0 | W139: -100 | Y139: 329.35 | Z139: 0 | AA139: -100 | AC139: 283.81 | AD139: 0 | AE139: -100 | AG139: 931.37 | AI139: 318.21 | AJ139: 0 | AK139: -100 | AM139: 335.81 | AN139: 0 | AO139: -100 | AQ139: 318.21 | AR139: 0 | AS139: -100 | AU139: 972.23 | AW139: 0 | AX139: 0 | AY139: 0 | BA139: 0 | BB139: 0 | BC139: 0 | BE139: 0 | BF139: 0 | BG139: 0 | BI139: 0 | BK139: 2771.59 | BL139: 0 | BM139: -100 | BO139: 0
A140: 54500-0200 | B140: 13 | D140: WCB Expense | E140: -1 | G140: 0 | H140: 0 | I140: 0 | K140: 0 | L140: 0 | M140: 0 | O140: 0 | P140: 0 | Q140: 0 | S140: 0 | U140: 64.44 | V140: 0 | W140: -100 | Y140: 51.9 | Z140: 0 | AA140: -100 | AC140: 51.9 | AD140: 0 | AE140: -100 | AG140: 168.24 | AI140: 51.9 | AJ140: 0 | AK140: -100 | AM140: 51.9 | AN140: 0 | AO140: -100 | AQ140: 51.9 | AR140: 0 | AS140: -100 | AU140: 155.7 | AW140: 0 | AX140: 0 | AY140: 0 | BA140: 0 | BB140: 0 | BC140: 0 | BE140: 0 | BF140: 0 | BG140: 0 | BI140: 0 | BK140: 323.94 | BL140: 0 | BM140: -100 | BO140: 0
A141: 54500-0300 | B141: 13 | D141: WCB Expense | E141: -1 | G141: 271.73 | H141: 0 | I141: -100 | K141: 307.85 | L141: 0 | M141: -100 | O141: 260.15 | P141: 0 | Q141: -100 | S141: 839.73 | U141: 306.03 | V141: 0 | W141: -100 | Y141: 306.03 | Z141: 0 | AA141: -100 | AC141: 306.03 | AD141: 0 | AE141: -100 | AG141: 918.09 | AI141: 306.03 | AJ141: 0 | AK141: -100 | AM141: 306.03 | AN141: 0 | AO141: -100 | AQ141: 317.04 | AR141: 0 | AS141: -100 | AU141: 929.1 | AW141: 0 | AX141: 0 | AY141: 0 | BA141: 0 | BB141: 0 | BC141: 0 | BE141: 0 | BF141: 0 | BG141: 0 | BI141: 0 | BK141: 2686.92 | BL141: 0 | BM141: -100 | BO141: 0
A142: 54600-0000 | B142: 13 | D142: EHT Expense | E142: -1 | G142: 0 | H142: 0 | I142: 0 | K142: 0 | L142: 0 | M142: 0 | O142: 0 | P142: 0 | Q142: 0 | S142: 0 | U142: 0 | V142: 0 | W142: 0 | Y142: 0 | Z142: 0 | AA142: 0 | AC142: 0 | AD142: 0 | AE142: 0 | AG142: 0 | AI142: 0 | AJ142: 0 | AK142: 0 | AM142: 0 | AN142: 0 | AO142: 0 | AQ142: 0 | AR142: 0 | AS142: 0 | AU142: 0 | AW142: 0 | AX142: 0 | AY142: 0 | BA142: 0 | BB142: 0 | BC142: 0 | BE142: 0 | BF142: 0 | BG142: 0 | BI142: 0 | BK142: 0 | BL142: 0 | BM142: 0 | BO142: 0
A143: 54600-0100 | B143: 13 | D143: EHT Expense | E143: -1 | G143: 0 | H143: 0 | I143: 0 | K143: 45.18 | L143: 0 | M143: -100 | O143: 45.18 | P143: 0 | Q143: -100 | S143: 90.36 | U143: 45.18 | V143: 0 | W143: -100 | Y143: 45.18 | Z143: 0 | AA143: -100 | AC143: 45.18 | AD143: 0 | AE143: -100 | AG143: 135.54 | AI143: 45.18 | AJ143: 0 | AK143: -100 | AM143: 45.18 | AN143: 0 | AO143: -100 | AQ143: 45.18 | AR143: 0 | AS143: -100 | AU143: 135.54 | AW143: 0 | AX143: 0 | AY143: 0 | BA143: 0 | BB143: 0 | BC143: 0 | BE143: 0 | BF143: 0 | BG143: 0 | BI143: 0 | BK143: 361.44 | BL143: 0 | BM143: -100 | BO143: 0
A144: 54600-0200 | B144: 13 | D144: EHT Expense | E144: -1 | G144: 0 | H144: 0 | I144: 0 | K144: 0 | L144: 0 | M144: 0 | O144: 0 | P144: 0 | Q144: 0 | S144: 0 | U144: 0 | V144: 0 | W144: 0 | Y144: 0 | Z144: 0 | AA144: 0 | AC144: 0 | AD144: 0 | AE144: 0 | AG144: 0 | AI144: 0 | AJ144: 0 | AK144: 0 | AM144: 0 | AN144: 0 | AO144: 0 | AQ144: 0 | AR144: 0 | AS144: 0 | AU144: 0 | AW144: 0 | AX144: 0 | AY144: 0 | BA144: 0 | BB144: 0 | BC144: 0 | BE144: 0 | BF144: 0 | BG144: 0 | BI144: 0 | BK144: 0 | BL144: 0 | BM144: 0 | BO144: 0
A145: 54600-0300 | B145: 13 | D145: EHT Expense | E145: -1 | G145: 0 | H145: 0 | I145: 0 | K145: 0 | L145: 0 | M145: 0 | O145: 0 | P145: 0 | Q145: 0 | S145: 0 | U145: 0 | V145: 0 | W145: 0 | Y145: 0 | Z145: 0 | AA145: 0 | AC145: 0 | AD145: 0 | AE145: 0 | AG145: 0 | AI145: 0 | AJ145: 0 | AK145: 0 | AM145: 0 | AN145: 0 | AO145: 0 | AQ145: 0 | AR145: 0 | AS145: 0 | AU145: 0 | AW145: 0 | AX145: 0 | AY145: 0 | BA145: 0 | BB145: 0 | BC145: 0 | BE145: 0 | BF145: 0 | BG145: 0 | BI145: 0 | BK145: 0 | BL145: 0 | BM145: 0 | BO145: 0
A146: 54650-0000 | B146: 13 | D146: QPIP Expense | E146: -1 | G146: 0 | H146: 0 | I146: 0 | K146: 0 | L146: 0 | M146: 0 | O146: 0 | P146: 0 | Q146: 0 | S146: 0 | U146: 0 | V146: 0 | W146: 0 | Y146: 0 | Z146: 0 | AA146: 0 | AC146: 0 | AD146: 0 | AE146: 0 | AG146: 0 | AI146: 0 | AJ146: 0 | AK146: 0 | AM146: 0 | AN146: 0 | AO146: 0 | AQ146: 0 | AR146: 0 | AS146: 0 | AU146: 0 | AW146: 0 | AX146: 0 | AY146: 0 | BA146: 0 | BB146: 0 | BC146: 0 | BE146: 0 | BF146: 0 | BG146: 0 | BI146: 0 | BK146: 0 | BL146: 0 | BM146: 0 | BO146: 0
A147: 54650-0100 | B147: 13 | D147: QPIP Expense | E147: -1 | G147: 28.28 | H147: 0 | I147: -100 | K147: 28.28 | L147: 0 | M147: -100 | O147: 28.28 | P147: 0 | Q147: -100 | S147: 84.84 | U147: 28.28 | V147: 0 | W147: -100 | Y147: 28.28 | Z147: 0 | AA147: -100 | AC147: 10.97 | AD147: 0 | AE147: -100 | AG147: 67.53 | AI147: 28.28 | AJ147: 0 | AK147: -100 | AM147: 38.54 | AN147: 0 | AO147: -100 | AQ147: 28.28 | AR147: 0 | AS147: -100 | AU147: 95.1 | AW147: 0 | AX147: 0 | AY147: 0 | BA147: 0 | BB147: 0 | BC147: 0 | BE147: 0 | BF147: 0 | BG147: 0 | BI147: 0 | BK147: 247.47 | BL147: 0 | BM147: -100 | BO147: 0
A148: 54650-0200 | B148: 13 | D148: QPIP Expense | E148: -1 | G148: 0 | H148: 0 | I148: 0 | K148: 0 | L148: 0 | M148: 0 | O148: 0 | P148: 0 | Q148: 0 | S148: 0 | U148: 0 | V148: 0 | W148: 0 | Y148: 0 | Z148: 0 | AA148: 0 | AC148: 0 | AD148: 0 | AE148: 0 | AG148: 0 | AI148: 0 | AJ148: 0 | AK148: 0 | AM148: 0 | AN148: 0 | AO148: 0 | AQ148: 0 | AR148: 0 | AS148: 0 | AU148: 0 | AW148: 0 | AX148: 0 | AY148: 0 | BA148: 0 | BB148: 0 | BC148: 0 | BE148: 0 | BF148: 0 | BG148: 0 | BI148: 0 | BK148: 0 | BL148: 0 | BM148: 0 | BO148: 0
A149: 54650-0300 | B149: 13 | D149: QPIP Expense | E149: -1 | G149: 0 | H149: 0 | I149: 0 | K149: 0 | L149: 0 | M149: 0 | O149: 0 | P149: 0 | Q149: 0 | S149: 0 | U149: 20.99 | V149: 0 | W149: -100 | Y149: 20.99 | Z149: 0 | AA149: -100 | AC149: 20.99 | AD149: 0 | AE149: -100 | AG149: 62.97 | AI149: 20.99 | AJ149: 0 | AK149: -100 | AM149: 20.99 | AN149: 0 | AO149: -100 | AQ149: 26.12 | AR149: 0 | AS149: -100 | AU149: 68.1 | AW149: 0 | AX149: 0 | AY149: 0 | BA149: 0 | BB149: 0 | BC149: 0 | BE149: 0 | BF149: 0 | BG149: 0 | BI149: 0 | BK149: 131.07 | BL149: 0 | BM149: -100 | BO149: 0
A150: 54700-0000 | B150: 13 | D150: QHSF Expense | E150: -1 | G150: 0 | H150: 0 | I150: 0 | K150: 0 | L150: 0 | M150: 0 | O150: 0 | P150: 0 | Q150: 0 | S150: 0 | U150: 0 | V150: 0 | W150: 0 | Y150: 0 | Z150: 0 | AA150: 0 | AC150: 0 | AD150: 0 | AE150: 0 | AG150: 0 | AI150: 0 | AJ150: 0 | AK150: 0 | AM150: 0 | AN150: 0 | AO150: 0 | AQ150: 0 | AR150: 0 | AS150: 0 | AU150: 0 | AW150: 0 | AX150: 0 | AY150: 0 | BA150: 0 | BB150: 0 | BC150: 0 | BE150: 0 | BF150: 0 | BG150: 0 | BI150: 0 | BK150: 0 | BL150: 0 | BM150: 0 | BO150: 0
A151: 54700-0100 | B151: 13 | D151: QHSF Expense | E151: -1 | G151: 208.32 | H151: 0 | I151: -100 | K151: 208.32 | L151: 0 | M151: -100 | O151: 208.32 | P151: 0 | Q151: -100 | S151: 624.96 | U151: 208.32 | V151: 0 | W151: -100 | Y151: 208.32 | Z151: 0 | AA151: -100 | AC151: 208.32 | AD151: 0 | AE151: -100 | AG151: 624.96 | AI151: 208.32 | AJ151: 0 | AK151: -100 | AM151: 283.31 | AN151: 0 | AO151: -100 | AQ151: 208.32 | AR151: 0 | AS151: -100 | AU151: 699.95 | AW151: 0 | AX151: 0 | AY151: 0 | BA151: 0 | BB151: 0 | BC151: 0 | BE151: 0 | BF151: 0 | BG151: 0 | BI151: 0 | BK151: 1949.87 | BL151: 0 | BM151: -100 | BO151: 0
A152: 54700-0200 | B152: 13 | D152: QHSF Expense | E152: -1 | G152: 0 | H152: 0 | I152: 0 | K152: 0 | L152: 0 | M152: 0 | O152: 0 | P152: 0 | Q152: 0 | S152: 0 | U152: 0 | V152: 0 | W152: 0 | Y152: 0 | Z152: 0 | AA152: 0 | AC152: 0 | AD152: 0 | AE152: 0 | AG152: 0 | AI152: 0 | AJ152: 0 | AK152: 0 | AM152: 0 | AN152: 0 | AO152: 0 | AQ152: 0 | AR152: 0 | AS152: 0 | AU152: 0 | AW152: 0 | AX152: 0 | AY152: 0 | BA152: 0 | BB152: 0 | BC152: 0 | BE152: 0 | BF152: 0 | BG152: 0 | BI152: 0 | BK152: 0 | BL152: 0 | BM152: 0 | BO152: 0
A153: 54700-0300 | B153: 13 | D153: QHSF Expense | E153: -1 | G153: 0 | H153: 0 | I153: 0 | K153: 0 | L153: 0 | M153: 0 | O153: 0 | P153: 0 | Q153: 0 | S153: 0 | U153: 156.34 | V153: 0 | W153: -100 | Y153: 156.34 | Z153: 0 | AA153: -100 | AC153: 156.34 | AD153: 0 | AE153: -100 | AG153: 469.02 | AI153: 156.34 | AJ153: 0 | AK153: -100 | AM153: 156.34 | AN153: 0 | AO153: -100 | AQ153: 193.86 | AR153: 0 | AS153: -100 | AU153: 506.54 | AW153: 0 | AX153: 0 | AY153: 0 | BA153: 0 | BB153: 0 | BC153: 0 | BE153: 0 | BF153: 0 | BG153: 0 | BI153: 0 | BK153: 975.56 | BL153: 0 | BM153: -100 | BO153: 0
C155: General & Admin. Exp | G155: 7259.28 | H155: 0 | K155: 12804.56 | L155: 0 | O155: 17500.34 | P155: 0 | S155: 37564.18 | U155: 14321.29 | V155: 0 | Y155: 13300.83 | Z155: 0 | AC155: 13261.61 | AD155: 0 | AG155: 40883.73 | AI155: 15055.47 | AJ155: 0 | AM155: 27391.36 | AN155: 0 | AQ155: 15609.1 | AR155: 0 | AU155: 58055.93 | AW155: 0 | AX155: 0 | BA155: 0 | BB155: 0 | BE155: 0 | BF155: 0 | BI155: 0 | BK155: 136503.84 | BL155: 0 | BO155: 0
A156: 56100-0000 | B156: 14 | D156: Accounting & Legal | E156: -1 | G156: 0 | H156: 0 | I156: 0 | K156: 0 | L156: 0 | M156: 0 | O156: 0 | P156: 0 | Q156: 0 | S156: 0 | U156: 0 | V156: 0 | W156: 0 | Y156: 0 | Z156: 0 | AA156: 0 | AC156: 0 | AD156: 0 | AE156: 0 | AG156: 0 | AI156: 0 | AJ156: 0 | AK156: 0 | AM156: 0 | AN156: 0 | AO156: 0 | AQ156: 0 | AR156: 0 | AS156: 0 | AU156: 0 | AW156: 0 | AX156: 0 | AY156: 0 | BA156: 0 | BB156: 0 | BC156: 0 | BE156: 0 | BF156: 0 | BG156: 0 | BI156: 0 | BK156: 0 | BL156: 0 | BM156: 0 | BO156: 0
A157: 56100-0100 | B157: 14 | D157: Accounting & Legal | E157: -1 | G157: 739 | H157: 0 | I157: -100 | K157: 3916.73 | L157: 0 | M157: -100 | O157: 4159.12 | P157: 0 | Q157: -100 | S157: 8814.85 | U157: 3975.43 | V157: 0 | W157: -100 | Y157: 4021.73 | Z157: 0 | AA157: -100 | AC157: 4015.42 | AD157: 0 | AE157: -100 | AG157: 12012.58 | AI157: 4296.67 | AJ157: 0 | AK157: -100 | AM157: 5844.1 | AN157: 0 | AO157: -100 | AQ157: 4413.64 | AR157: 0 | AS157: -100 | AU157: 14554.41 | AW157: 0 | AX157: 0 | AY157: 0 | BA157: 0 | BB157: 0 | BC157: 0 | BE157: 0 | BF157: 0 | BG157: 0 | BI157: 0 | BK157: 35381.84 | BL157: 0 | BM157: -100 | BO157: 0
A158: 56100-0200 | B158: 14 | D158: Accounting & Legal | E158: -1 | G158: 247.38 | H158: 0 | I158: -100 | K158: 255.58 | L158: 0 | M158: -100 | O158: 336.37 | P158: 0 | Q158: -100 | S158: 839.33 | U158: 275.14 | V158: 0 | W158: -100 | Y158: 290.6 | Z158: 0 | AA158: -100 | AC158: 288.47 | AD158: 0 | AE158: -100 | AG158: 854.21 | AI158: 382.2 | AJ158: 0 | AK158: -100 | AM158: 898.05 | AN158: 0 | AO158: -100 | AQ158: 421.22 | AR158: 0 | AS158: -100 | AU158: 1701.47 | AW158: 0 | AX158: 0 | AY158: 0 | BA158: 0 | BB158: 0 | BC158: 0 | BE158: 0 | BF158: 0 | BG158: 0 | BI158: 0 | BK158: 3395.01 | BL158: 0 | BM158: -100 | BO158: 0
A159: 56100-0300 | B159: 14 | D159: Accounting & Legal | E159: -1 | G159: 739 | H159: 0 | I159: -100 | K159: 766.73 | L159: 0 | M159: -100 | O159: 1009.12 | P159: 0 | Q159: -100 | S159: 2514.85 | U159: 825.43 | V159: 0 | W159: -100 | Y159: 871.73 | Z159: 0 | AA159: -100 | AC159: 865.42 | AD159: 0 | AE159: -100 | AG159: 2562.58 | AI159: 1146.67 | AJ159: 0 | AK159: -100 | AM159: 2694.1 | AN159: 0 | AO159: -100 | AQ159: 1263.64 | AR159: 0 | AS159: -100 | AU159: 5104.41 | AW159: 0 | AX159: 0 | AY159: 0 | BA159: 0 | BB159: 0 | BC159: 0 | BE159: 0 | BF159: 0 | BG159: 0 | BI159: 0 | BK159: 10181.84 | BL159: 0 | BM159: -100 | BO159: 0
A160: 56150-0000 | B160: 14 | D160: Advertising & Promotions | E160: -1 | G160: 0 | H160: 0 | I160: 0 | K160: 0 | L160: 0 | M160: 0 | O160: 0 | P160: 0 | Q160: 0 | S160: 0 | U160: 0 | V160: 0 | W160: 0 | Y160: 0 | Z160: 0 | AA160: 0 | AC160: 0 | AD160: 0 | AE160: 0 | AG160: 0 | AI160: 0 | AJ160: 0 | AK160: 0 | AM160: 0 | AN160: 0 | AO160: 0 | AQ160: 0 | AR160: 0 | AS160: 0 | AU160: 0 | AW160: 0 | AX160: 0 | AY160: 0 | BA160: 0 | BB160: 0 | BC160: 0 | BE160: 0 | BF160: 0 | BG160: 0 | BI160: 0 | BK160: 0 | BL160: 0 | BM160: 0 | BO160: 0
A161: 56150-0100 | B161: 14 | D161: Advertising & Promotions | E161: -1 | G161: 0 | H161: 0 | I161: 0 | K161: 0 | L161: 0 | M161: 0 | O161: 0 | P161: 0 | Q161: 0 | S161: 0 | U161: 0 | V161: 0 | W161: 0 | Y161: 0 | Z161: 0 | AA161: 0 | AC161: 0 | AD161: 0 | AE161: 0 | AG161: 0 | AI161: 0 | AJ161: 0 | AK161: 0 | AM161: 0 | AN161: 0 | AO161: 0 | AQ161: 0 | AR161: 0 | AS161: 0 | AU161: 0 | AW161: 0 | AX161: 0 | AY161: 0 | BA161: 0 | BB161: 0 | BC161: 0 | BE161: 0 | BF161: 0 | BG161: 0 | BI161: 0 | BK161: 0 | BL161: 0 | BM161: 0 | BO161: 0
A162: 56150-0200 | B162: 14 | D162: Advertising & Promotions | E162: -1 | G162: 108.32 | H162: 0 | I162: -100 | K162: 102.32 | L162: 0 | M162: -100 | O162: 108.74 | P162: 0 | Q162: -100 | S162: 319.38 | U162: 91.63 | V162: 0 | W162: -100 | Y162: 92.37 | Z162: 0 | AA162: -100 | AC162: 96.69 | AD162: 0 | AE162: -100 | AG162: 280.69 | AI162: 118.05 | AJ162: 0 | AK162: -100 | AM162: 112.7 | AN162: 0 | AO162: -100 | AQ162: 0 | AR162: 0 | AS162: 0 | AU162: 230.75 | AW162: 0 | AX162: 0 | AY162: 0 | BA162: 0 | BB162: 0 | BC162: 0 | BE162: 0 | BF162: 0 | BG162: 0 | BI162: 0 | BK162: 830.82 | BL162: 0 | BM162: -100 | BO162: 0
A163: 56150-0300 | B163: 14 | D163: Advertising & Promotions | E163: -1 | G163: 0 | H163: 0 | I163: 0 | K163: 0 | L163: 0 | M163: 0 | O163: 0 | P163: 0 | Q163: 0 | S163: 0 | U163: 0 | V163: 0 | W163: 0 | Y163: 0 | Z163: 0 | AA163: 0 | AC163: 0 | AD163: 0 | AE163: 0 | AG163: 0 | AI163: 0 | AJ163: 0 | AK163: 0 | AM163: 0 | AN163: 0 | AO163: 0 | AQ163: 114.13 | AR163: 0 | AS163: -100 | AU163: 114.13 | AW163: 0 | AX163: 0 | AY163: 0 | BA163: 0 | BB163: 0 | BC163: 0 | BE163: 0 | BF163: 0 | BG163: 0 | BI163: 0 | BK163: 114.13 | BL163: 0 | BM163: -100 | BO163: 0
A164: 56300-0000 | B164: 14 | D164: Cash Short/Over | E164: -1 | G164: 0 | H164: 0 | I164: 0 | K164: 0 | L164: 0 | M164: 0 | O164: 0 | P164: 0 | Q164: 0 | S164: 0 | U164: 0 | V164: 0 | W164: 0 | Y164: 0 | Z164: 0 | AA164: 0 | AC164: 0 | AD164: 0 | AE164: 0 | AG164: 0 | AI164: 0 | AJ164: 0 | AK164: 0 | AM164: 0 | AN164: 0 | AO164: 0 | AQ164: 0 | AR164: 0 | AS164: 0 | AU164: 0 | AW164: 0 | AX164: 0 | AY164: 0 | BA164: 0 | BB164: 0 | BC164: 0 | BE164: 0 | BF164: 0 | BG164: 0 | BI164: 0 | BK164: 0 | BL164: 0 | BM164: 0 | BO164: 0
A165: 56300-0100 | B165: 14 | D165: Cash Short/Over | E165: -1 | G165: 0 | H165: 0 | I165: 0 | K165: 0 | L165: 0 | M165: 0 | O165: 0 | P165: 0 | Q165: 0 | S165: 0 | U165: 0 | V165: 0 | W165: 0 | Y165: 0 | Z165: 0 | AA165: 0 | AC165: 0 | AD165: 0 | AE165: 0 | AG165: 0 | AI165: 0 | AJ165: 0 | AK165: 0 | AM165: 0 | AN165: 0 | AO165: 0 | AQ165: 0 | AR165: 0 | AS165: 0 | AU165: 0 | AW165: 0 | AX165: 0 | AY165: 0 | BA165: 0 | BB165: 0 | BC165: 0 | BE165: 0 | BF165: 0 | BG165: 0 | BI165: 0 | BK165: 0 | BL165: 0 | BM165: 0 | BO165: 0
A166: 56300-0200 | B166: 14 | D166: Cash Short/Over | E166: -1 | G166: 0 | H166: 0 | I166: 0 | K166: 0 | L166: 0 | M166: 0 | O166: 0 | P166: 0 | Q166: 0 | S166: 0 | U166: 0 | V166: 0 | W166: 0 | Y166: 0 | Z166: 0 | AA166: 0 | AC166: 0 | AD166: 0 | AE166: 0 | AG166: 0 | AI166: 0 | AJ166: 0 | AK166: 0 | AM166: 0 | AN166: 0 | AO166: 0 | AQ166: 0 | AR166: 0 | AS166: 0 | AU166: 0 | AW166: 0 | AX166: 0 | AY166: 0 | BA166: 0 | BB166: 0 | BC166: 0 | BE166: 0 | BF166: 0 | BG166: 0 | BI166: 0 | BK166: 0 | BL166: 0 | BM166: 0 | BO166: 0
A167: 56300-0300 | B167: 14 | D167: Cash Short/Over | E167: -1 | G167: 0 | H167: 0 | I167: 0 | K167: 0 | L167: 0 | M167: 0 | O167: 0 | P167: 0 | Q167: 0 | S167: 0 | U167: 0 | V167: 0 | W167: 0 | Y167: 0 | Z167: 0 | AA167: 0 | AC167: 0 | AD167: 0 | AE167: 0 | AG167: 0 | AI167: 0 | AJ167: 0 | AK167: 0 | AM167: 0 | AN167: 0 | AO167: 0 | AQ167: 0 | AR167: 0 | AS167: 0 | AU167: 0 | AW167: 0 | AX167: 0 | AY167: 0 | BA167: 0 | BB167: 0 | BC167: 0 | BE167: 0 | BF167: 0 | BG167: 0 | BI167: 0 | BK167: 0 | BL167: 0 | BM167: 0 | BO167: 0
A168: 56400-0000 | B168: 14 | D168: Courier & Postage | E168: -1 | G168: 0 | H168: 0 | I168: 0 | K168: 0 | L168: 0 | M168: 0 | O168: 0 | P168: 0 | Q168: 0 | S168: 0 | U168: 0 | V168: 0 | W168: 0 | Y168: 0 | Z168: 0 | AA168: 0 | AC168: 0 | AD168: 0 | AE168: 0 | AG168: 0 | AI168: 0 | AJ168: 0 | AK168: 0 | AM168: 0 | AN168: 0 | AO168: 0 | AQ168: 0 | AR168: 0 | AS168: 0 | AU168: 0 | AW168: 0 | AX168: 0 | AY168: 0 | BA168: 0 | BB168: 0 | BC168: 0 | BE168: 0 | BF168: 0 | BG168: 0 | BI168: 0 | BK168: 0 | BL168: 0 | BM168: 0 | BO168: 0
A169: 56400-0100 | B169: 14 | D169: Courier & Postage | E169: -1 | G169: 50.45 | H169: 0 | I169: -100 | K169: 25.34 | L169: 0 | M169: -100 | O169: 133 | P169: 0 | Q169: -100 | S169: 208.79 | U169: 36.33 | V169: 0 | W169: -100 | Y169: 34.7 | Z169: 0 | AA169: -100 | AC169: 32.1 | AD169: 0 | AE169: -100 | AG169: 103.13 | AI169: 43.66 | AJ169: 0 | AK169: -100 | AM169: 91.71 | AN169: 0 | AO169: -100 | AQ169: 45.16 | AR169: 0 | AS169: -100 | AU169: 180.53 | AW169: 0 | AX169: 0 | AY169: 0 | BA169: 0 | BB169: 0 | BC169: 0 | BE169: 0 | BF169: 0 | BG169: 0 | BI169: 0 | BK169: 492.45 | BL169: 0 | BM169: -100 | BO169: 0
A170: 56400-0200 | B170: 14 | D170: Courier & Postage | E170: -1 | G170: 16.8 | H170: 0 | I170: -100 | K170: 8.45 | L170: 0 | M170: -100 | O170: 44.3 | P170: 0 | Q170: -100 | S170: 69.55 | U170: 12.11 | V170: 0 | W170: -100 | Y170: 11.56 | Z170: 0 | AA170: -100 | AC170: 10.7 | AD170: 0 | AE170: -100 | AG170: 34.37 | AI170: 14.55 | AJ170: 0 | AK170: -100 | AM170: 30.57 | AN170: 0 | AO170: -100 | AQ170: 15.05 | AR170: 0 | AS170: -100 | AU170: 60.17 | AW170: 0 | AX170: 0 | AY170: 0 | BA170: 0 | BB170: 0 | BC170: 0 | BE170: 0 | BF170: 0 | BG170: 0 | BI170: 0 | BK170: 164.09 | BL170: 0 | BM170: -100 | BO170: 0
A171: 56400-0300 | B171: 14 | D171: Courier & Postage | E171: -1 | G171: 50.45 | H171: 0 | I171: -100 | K171: 25.34 | L171: 0 | M171: -100 | O171: 133 | P171: 0 | Q171: -100 | S171: 208.79 | U171: 36.33 | V171: 0 | W171: -100 | Y171: 34.7 | Z171: 0 | AA171: -100 | AC171: 32.1 | AD171: 0 | AE171: -100 | AG171: 103.13 | AI171: 43.66 | AJ171: 0 | AK171: -100 | AM171: 91.71 | AN171: 0 | AO171: -100 | AQ171: 45.16 | AR171: 0 | AS171: -100 | AU171: 180.53 | AW171: 0 | AX171: 0 | AY171: 0 | BA171: 0 | BB171: 0 | BC171: 0 | BE171: 0 | BF171: 0 | BG171: 0 | BI171: 0 | BK171: 492.45 | BL171: 0 | BM171: -100 | BO171: 0
A172: 56500-0000 | B172: 14 | D172: Currency Exchange & Rounding | E172: -1 | G172: 0 | H172: 0 | I172: 0 | K172: 0 | L172: 0 | M172: 0 | O172: 0 | P172: 0 | Q172: 0 | S172: 0 | U172: 0 | V172: 0 | W172: 0 | Y172: 0 | Z172: 0 | AA172: 0 | AC172: 0 | AD172: 0 | AE172: 0 | AG172: 0 | AI172: 0 | AJ172: 0 | AK172: 0 | AM172: 0 | AN172: 0 | AO172: 0 | AQ172: 0 | AR172: 0 | AS172: 0 | AU172: 0 | AW172: 0 | AX172: 0 | AY172: 0 | BA172: 0 | BB172: 0 | BC172: 0 | BE172: 0 | BF172: 0 | BG172: 0 | BI172: 0 | BK172: 0 | BL172: 0 | BM172: 0 | BO172: 0
A173: 56500-0100 | B173: 14 | D173: Currency Exchange & Rounding | E173: -1 | G173: 0 | H173: 0 | I173: 0 | K173: 0 | L173: 0 | M173: 0 | O173: 0 | P173: 0 | Q173: 0 | S173: 0 | U173: 0 | V173: 0 | W173: 0 | Y173: 0 | Z173: 0 | AA173: 0 | AC173: 0 | AD173: 0 | AE173: 0 | AG173: 0 | AI173: 0 | AJ173: 0 | AK173: 0 | AM173: 0 | AN173: 0 | AO173: 0 | AQ173: 0 | AR173: 0 | AS173: 0 | AU173: 0 | AW173: 0 | AX173: 0 | AY173: 0 | BA173: 0 | BB173: 0 | BC173: 0 | BE173: 0 | BF173: 0 | BG173: 0 | BI173: 0 | BK173: 0 | BL173: 0 | BM173: 0 | BO173: 0
A174: 56500-0200 | B174: 14 | D174: Currency Exchange & Rounding | E174: -1 | G174: 0 | H174: 0 | I174: 0 | K174: 0 | L174: 0 | M174: 0 | O174: 0 | P174: 0 | Q174: 0 | S174: 0 | U174: 0 | V174: 0 | W174: 0 | Y174: 0 | Z174: 0 | AA174: 0 | AC174: 0 | AD174: 0 | AE174: 0 | AG174: 0 | AI174: 0 | AJ174: 0 | AK174: 0 | AM174: 0 | AN174: 0 | AO174: 0 | AQ174: 0 | AR174: 0 | AS174: 0 | AU174: 0 | AW174: 0 | AX174: 0 | AY174: 0 | BA174: 0 | BB174: 0 | BC174: 0 | BE174: 0 | BF174: 0 | BG174: 0 | BI174: 0 | BK174: 0 | BL174: 0 | BM174: 0 | BO174: 0
A175: 56500-0300 | B175: 14 | D175: Currency Exchange & Rounding | E175: -1 | G175: 0 | H175: 0 | I175: 0 | K175: 0 | L175: 0 | M175: 0 | O175: 0 | P175: 0 | Q175: 0 | S175: 0 | U175: 0 | V175: 0 | W175: 0 | Y175: 0 | Z175: 0 | AA175: 0 | AC175: -84.83 | AD175: 0 | AE175: -100 | AG175: -84.83 | AI175: 0 | AJ175: 0 | AK175: 0 | AM175: 0 | AN175: 0 | AO175: 0 | AQ175: -150 | AR175: 0 | AS175: -100 | AU175: -150 | AW175: 0 | AX175: 0 | AY175: 0 | BA175: 0 | BB175: 0 | BC175: 0 | BE175: 0 | BF175: 0 | BG175: 0 | BI175: 0 | BK175: -234.83 | BL175: 0 | BM175: -100 | BO175: 0
A176: 56850-0000 | B176: 14 | D176: Insurance | E176: -1 | G176: 100 | H176: 0 | I176: -100 | K176: 100 | L176: 0 | M176: -100 | O176: 100 | P176: 0 | Q176: -100 | S176: 300 | U176: 100 | V176: 0 | W176: -100 | Y176: 100 | Z176: 0 | AA176: -100 | AC176: 100 | AD176: 0 | AE176: -100 | AG176: 300 | AI176: 100 | AJ176: 0 | AK176: -100 | AM176: 100 | AN176: 0 | AO176: -100 | AQ176: 100 | AR176: 0 | AS176: -100 | AU176: 300 | AW176: 0 | AX176: 0 | AY176: 0 | BA176: 0 | BB176: 0 | BC176: 0 | BE176: 0 | BF176: 0 | BG176: 0 | BI176: 0 | BK176: 900 | BL176: 0 | BM176: -100 | BO176: 0
A177: 56850-0100 | B177: 14 | D177: Insurance | E177: -1 | G177: 0 | H177: 0 | I177: 0 | K177: 0 | L177: 0 | M177: 0 | O177: 0 | P177: 0 | Q177: 0 | S177: 0 | U177: 0 | V177: 0 | W177: 0 | Y177: 0 | Z177: 0 | AA177: 0 | AC177: 0 | AD177: 0 | AE177: 0 | AG177: 0 | AI177: 0 | AJ177: 0 | AK177: 0 | AM177: 0 | AN177: 0 | AO177: 0 | AQ177: 0 | AR177: 0 | AS177: 0 | AU177: 0 | AW177: 0 | AX177: 0 | AY177: 0 | BA177: 0 | BB177: 0 | BC177: 0 | BE177: 0 | BF177: 0 | BG177: 0 | BI177: 0 | BK177: 0 | BL177: 0 | BM177: 0 | BO177: 0
A178: 56850-0200 | B178: 14 | D178: Insurance | E178: -1 | G178: 0 | H178: 0 | I178: 0 | K178: 0 | L178: 0 | M178: 0 | O178: 0 | P178: 0 | Q178: 0 | S178: 0 | U178: 0 | V178: 0 | W178: 0 | Y178: 0 | Z178: 0 | AA178: 0 | AC178: 0 | AD178: 0 | AE178: 0 | AG178: 0 | AI178: 0 | AJ178: 0 | AK178: 0 | AM178: 0 | AN178: 0 | AO178: 0 | AQ178: 0 | AR178: 0 | AS178: 0 | AU178: 0 | AW178: 0 | AX178: 0 | AY178: 0 | BA178: 0 | BB178: 0 | BC178: 0 | BE178: 0 | BF178: 0 | BG178: 0 | BI178: 0 | BK178: 0 | BL178: 0 | BM178: 0 | BO178: 0
A179: 56850-0300 | B179: 14 | D179: Insurance | E179: -1 | G179: 0 | H179: 0 | I179: 0 | K179: 0 | L179: 0 | M179: 0 | O179: 0 | P179: 0 | Q179: 0 | S179: 0 | U179: 0 | V179: 0 | W179: 0 | Y179: 0 | Z179: 0 | AA179: 0 | AC179: 0 | AD179: 0 | AE179: 0 | AG179: 0 | AI179: 0 | AJ179: 0 | AK179: 0 | AM179: 0 | AN179: 0 | AO179: 0 | AQ179: 0 | AR179: 0 | AS179: 0 | AU179: 0 | AW179: 0 | AX179: 0 | AY179: 0 | BA179: 0 | BB179: 0 | BC179: 0 | BE179: 0 | BF179: 0 | BG179: 0 | BI179: 0 | BK179: 0 | BL179: 0 | BM179: 0 | BO179: 0
A180: 57000-0000 | B180: 14 | D180: Office Supplies | E180: -1 | G180: 0 | H180: 0 | I180: 0 | K180: 0 | L180: 0 | M180: 0 | O180: 0 | P180: 0 | Q180: 0 | S180: 0 | U180: 0 | V180: 0 | W180: 0 | Y180: 0 | Z180: 0 | AA180: 0 | AC180: 0 | AD180: 0 | AE180: 0 | AG180: 0 | AI180: 0 | AJ180: 0 | AK180: 0 | AM180: 0 | AN180: 0 | AO180: 0 | AQ180: 0 | AR180: 0 | AS180: 0 | AU180: 0 | AW180: 0 | AX180: 0 | AY180: 0 | BA180: 0 | BB180: 0 | BC180: 0 | BE180: 0 | BF180: 0 | BG180: 0 | BI180: 0 | BK180: 0 | BL180: 0 | BM180: 0 | BO180: 0
A181: 57000-0100 | B181: 14 | D181: Office Supplies | E181: -1 | G181: 25.83 | H181: 0 | I181: -100 | K181: 20.74 | L181: 0 | M181: -100 | O181: 21.04 | P181: 0 | Q181: -100 | S181: 67.61 | U181: 39.29 | V181: 0 | W181: -100 | Y181: 9.92 | Z181: 0 | AA181: -100 | AC181: 21.4 | AD181: 0 | AE181: -100 | AG181: 70.61 | AI181: 20.89 | AJ181: 0 | AK181: -100 | AM181: 39.07 | AN181: 0 | AO181: -100 | AQ181: 24.15 | AR181: 0 | AS181: -100 | AU181: 84.11 | AW181: 0 | AX181: 0 | AY181: 0 | BA181: 0 | BB181: 0 | BC181: 0 | BE181: 0 | BF181: 0 | BG181: 0 | BI181: 0 | BK181: 222.33 | BL181: 0 | BM181: -100 | BO181: 0
A182: 57000-0200 | B182: 14 | D182: Office Supplies | E182: -1 | G182: 8.61 | H182: 0 | I182: -100 | K182: 6.91 | L182: 0 | M182: -100 | O182: 7.01 | P182: 0 | Q182: -100 | S182: 22.53 | U182: 13.1 | V182: 0 | W182: -100 | Y182: 3.31 | Z182: 0 | AA182: -100 | AC182: 7.13 | AD182: 0 | AE182: -100 | AG182: 23.54 | AI182: 6.97 | AJ182: 0 | AK182: -100 | AM182: 13.02 | AN182: 0 | AO182: -100 | AQ182: 8.05 | AR182: 0 | AS182: -100 | AU182: 28.04 | AW182: 0 | AX182: 0 | AY182: 0 | BA182: 0 | BB182: 0 | BC182: 0 | BE182: 0 | BF182: 0 | BG182: 0 | BI182: 0 | BK182: 74.11 | BL182: 0 | BM182: -100 | BO182: 0
A183: 57000-0300 | B183: 14 | D183: Office Supplies | E183: -1 | G183: 25.83 | H183: 0 | I183: -100 | K183: 20.74 | L183: 0 | M183: -100 | O183: 21.04 | P183: 0 | Q183: -100 | S183: 67.61 | U183: 39.29 | V183: 0 | W183: -100 | Y183: 9.92 | Z183: 0 | AA183: -100 | AC183: 21.4 | AD183: 0 | AE183: -100 | AG183: 70.61 | AI183: 20.89 | AJ183: 0 | AK183: -100 | AM183: 39.07 | AN183: 0 | AO183: -100 | AQ183: 24.15 | AR183: 0 | AS183: -100 | AU183: 84.11 | AW183: 0 | AX183: 0 | AY183: 0 | BA183: 0 | BB183: 0 | BC183: 0 | BE183: 0 | BF183: 0 | BG183: 0 | BI183: 0 | BK183: 222.33 | BL183: 0 | BM183: -100 | BO183: 0
A184: 57200-0000 | B184: 14 | D184: Property Taxes | E184: -1 | G184: 0 | H184: 0 | I184: 0 | K184: 0 | L184: 0 | M184: 0 | O184: 0 | P184: 0 | Q184: 0 | S184: 0 | U184: 0 | V184: 0 | W184: 0 | Y184: 0 | Z184: 0 | AA184: 0 | AC184: 0 | AD184: 0 | AE184: 0 | AG184: 0 | AI184: 0 | AJ184: 0 | AK184: 0 | AM184: 0 | AN184: 0 | AO184: 0 | AQ184: 0 | AR184: 0 | AS184: 0 | AU184: 0 | AW184: 0 | AX184: 0 | AY184: 0 | BA184: 0 | BB184: 0 | BC184: 0 | BE184: 0 | BF184: 0 | BG184: 0 | BI184: 0 | BK184: 0 | BL184: 0 | BM184: 0 | BO184: 0
A185: 57200-0100 | B185: 14 | D185: Property Taxes | E185: -1 | G185: 0 | H185: 0 | I185: 0 | K185: 0 | L185: 0 | M185: 0 | O185: 0 | P185: 0 | Q185: 0 | S185: 0 | U185: 0 | V185: 0 | W185: 0 | Y185: 0 | Z185: 0 | AA185: 0 | AC185: 0 | AD185: 0 | AE185: 0 | AG185: 0 | AI185: 0 | AJ185: 0 | AK185: 0 | AM185: 0 | AN185: 0 | AO185: 0 | AQ185: 0 | AR185: 0 | AS185: 0 | AU185: 0 | AW185: 0 | AX185: 0 | AY185: 0 | BA185: 0 | BB185: 0 | BC185: 0 | BE185: 0 | BF185: 0 | BG185: 0 | BI185: 0 | BK185: 0 | BL185: 0 | BM185: 0 | BO185: 0
A186: 57200-0200 | B186: 14 | D186: Property Taxes | E186: -1 | G186: 0 | H186: 0 | I186: 0 | K186: 0 | L186: 0 | M186: 0 | O186: 0 | P186: 0 | Q186: 0 | S186: 0 | U186: 0 | V186: 0 | W186: 0 | Y186: 0 | Z186: 0 | AA186: 0 | AC186: 0 | AD186: 0 | AE186: 0 | AG186: 0 | AI186: 0 | AJ186: 0 | AK186: 0 | AM186: 0 | AN186: 0 | AO186: 0 | AQ186: 0 | AR186: 0 | AS186: 0 | AU186: 0 | AW186: 0 | AX186: 0 | AY186: 0 | BA186: 0 | BB186: 0 | BC186: 0 | BE186: 0 | BF186: 0 | BG186: 0 | BI186: 0 | BK186: 0 | BL186: 0 | BM186: 0 | BO186: 0
A187: 57200-0300 | B187: 14 | D187: Property Taxes | E187: -1 | G187: 0 | H187: 0 | I187: 0 | K187: 0 | L187: 0 | M187: 0 | O187: 0 | P187: 0 | Q187: 0 | S187: 0 | U187: 0 | V187: 0 | W187: 0 | Y187: 0 | Z187: 0 | AA187: 0 | AC187: 0 | AD187: 0 | AE187: 0 | AG187: 0 | AI187: 0 | AJ187: 0 | AK187: 0 | AM187: 0 | AN187: 0 | AO187: 0 | AQ187: 0 | AR187: 0 | AS187: 0 | AU187: 0 | AW187: 0 | AX187: 0 | AY187: 0 | BA187: 0 | BB187: 0 | BC187: 0 | BE187: 0 | BF187: 0 | BG187: 0 | BI187: 0 | BK187: 0 | BL187: 0 | BM187: 0 | BO187: 0
A188: 57400-0000 | B188: 14 | D188: Miscellaneous | E188: -1 | G188: 0 | H188: 0 | I188: 0 | K188: 0 | L188: 0 | M188: 0 | O188: 0 | P188: 0 | Q188: 0 | S188: 0 | U188: 0 | V188: 0 | W188: 0 | Y188: 0 | Z188: 0 | AA188: 0 | AC188: 0 | AD188: 0 | AE188: 0 | AG188: 0 | AI188: 0 | AJ188: 0 | AK188: 0 | AM188: 0 | AN188: 0 | AO188: 0 | AQ188: 0 | AR188: 0 | AS188: 0 | AU188: 0 | AW188: 0 | AX188: 0 | AY188: 0 | BA188: 0 | BB188: 0 | BC188: 0 | BE188: 0 | BF188: 0 | BG188: 0 | BI188: 0 | BK188: 0 | BL188: 0 | BM188: 0 | BO188: 0
A189: 57400-0100 | B189: 14 | D189: Miscellaneous | E189: -1 | G189: 0 | H189: 0 | I189: 0 | K189: 0 | L189: 0 | M189: 0 | O189: 0 | P189: 0 | Q189: 0 | S189: 0 | U189: 0 | V189: 0 | W189: 0 | Y189: 0 | Z189: 0 | AA189: 0 | AC189: 0 | AD189: 0 | AE189: 0 | AG189: 0 | AI189: 0 | AJ189: 0 | AK189: 0 | AM189: 0 | AN189: 0 | AO189: 0 | AQ189: 0 | AR189: 0 | AS189: 0 | AU189: 0 | AW189: 0 | AX189: 0 | AY189: 0 | BA189: 0 | BB189: 0 | BC189: 0 | BE189: 0 | BF189: 0 | BG189: 0 | BI189: 0 | BK189: 0 | BL189: 0 | BM189: 0 | BO189: 0
A190: 57400-0200 | B190: 14 | D190: Miscellaneous | E190: -1 | G190: 0 | H190: 0 | I190: 0 | K190: 0 | L190: 0 | M190: 0 | O190: 0 | P190: 0 | Q190: 0 | S190: 0 | U190: 0 | V190: 0 | W190: 0 | Y190: 0 | Z190: 0 | AA190: 0 | AC190: 0 | AD190: 0 | AE190: 0 | AG190: 0 | AI190: 0 | AJ190: 0 | AK190: 0 | AM190: 0 | AN190: 0 | AO190: 0 | AQ190: 0 | AR190: 0 | AS190: 0 | AU190: 0 | AW190: 0 | AX190: 0 | AY190: 0 | BA190: 0 | BB190: 0 | BC190: 0 | BE190: 0 | BF190: 0 | BG190: 0 | BI190: 0 | BK190: 0 | BL190: 0 | BM190: 0 | BO190: 0
A191: 57400-0300 | B191: 14 | D191: Miscellaneous | E191: -1 | G191: 0 | H191: 0 | I191: 0 | K191: 0 | L191: 0 | M191: 0 | O191: 0 | P191: 0 | Q191: 0 | S191: 0 | U191: 0 | V191: 0 | W191: 0 | Y191: 0 | Z191: 0 | AA191: 0 | AC191: 0 | AD191: 0 | AE191: 0 | AG191: 0 | AI191: 0 | AJ191: 0 | AK191: 0 | AM191: 0 | AN191: 0 | AO191: 0 | AQ191: 0 | AR191: 0 | AS191: 0 | AU191: 0 | AW191: 0 | AX191: 0 | AY191: 0 | BA191: 0 | BB191: 0 | BC191: 0 | BE191: 0 | BF191: 0 | BG191: 0 | BI191: 0 | BK191: 0 | BL191: 0 | BM191: 0 | BO191: 0
A192: 57600-0000 | B192: 14 | D192: Rent | E192: -1 | G192: 0 | H192: 0 | I192: 0 | K192: 0 | L192: 0 | M192: 0 | O192: 0 | P192: 0 | Q192: 0 | S192: 0 | U192: 0 | V192: 0 | W192: 0 | Y192: 0 | Z192: 0 | AA192: 0 | AC192: 0 | AD192: 0 | AE192: 0 | AG192: 0 | AI192: 0 | AJ192: 0 | AK192: 0 | AM192: 0 | AN192: 0 | AO192: 0 | AQ192: 0 | AR192: 0 | AS192: 0 | AU192: 0 | AW192: 0 | AX192: 0 | AY192: 0 | BA192: 0 | BB192: 0 | BC192: 0 | BE192: 0 | BF192: 0 | BG192: 0 | BI192: 0 | BK192: 0 | BL192: 0 | BM192: 0 | BO192: 0
A193: 57600-0100 | B193: 14 | D193: Rent | E193: -1 | G193: 0 | H193: 0 | I193: 0 | K193: 0 | L193: 0 | M193: 0 | O193: 0 | P193: 0 | Q193: 0 | S193: 0 | U193: 0 | V193: 0 | W193: 0 | Y193: 0 | Z193: 0 | AA193: 0 | AC193: 0 | AD193: 0 | AE193: 0 | AG193: 0 | AI193: 0 | AJ193: 0 | AK193: 0 | AM193: 0 | AN193: 0 | AO193: 0 | AQ193: 0 | AR193: 0 | AS193: 0 | AU193: 0 | AW193: 0 | AX193: 0 | AY193: 0 | BA193: 0 | BB193: 0 | BC193: 0 | BE193: 0 | BF193: 0 | BG193: 0 | BI193: 0 | BK193: 0 | BL193: 0 | BM193: 0 | BO193: 0
A194: 57600-0200 | B194: 14 | D194: Rent | E194: -1 | G194: 1819 | H194: 0 | I194: -100 | K194: 1712 | L194: 0 | M194: -100 | O194: 1712 | P194: 0 | Q194: -100 | S194: 5243 | U194: 1712 | V194: 0 | W194: -100 | Y194: 1712 | Z194: 0 | AA194: -100 | AC194: 1712 | AD194: 0 | AE194: -100 | AG194: 5136 | AI194: 1712 | AJ194: 0 | AK194: -100 | AM194: 1712 | AN194: 0 | AO194: -100 | AQ194: 1712 | AR194: 0 | AS194: -100 | AU194: 5136 | AW194: 0 | AX194: 0 | AY194: 0 | BA194: 0 | BB194: 0 | BC194: 0 | BE194: 0 | BF194: 0 | BG194: 0 | BI194: 0 | BK194: 15515 | BL194: 0 | BM194: -100 | BO194: 0
A195: 57600-0300 | B195: 14 | D195: Rent | E195: -1 | G195: 0 | H195: 0 | I195: 0 | K195: 0 | L195: 0 | M195: 0 | O195: 0 | P195: 0 | Q195: 0 | S195: 0 | U195: 0 | V195: 0 | W195: 0 | Y195: 0 | Z195: 0 | AA195: 0 | AC195: 0 | AD195: 0 | AE195: 0 | AG195: 0 | AI195: 0 | AJ195: 0 | AK195: 0 | AM195: 0 | AN195: 0 | AO195: 0 | AQ195: 0 | AR195: 0 | AS195: 0 | AU195: 0 | AW195: 0 | AX195: 0 | AY195: 0 | BA195: 0 | BB195: 0 | BC195: 0 | BE195: 0 | BF195: 0 | BG195: 0 | BI195: 0 | BK195: 0 | BL195: 0 | BM195: 0 | BO195: 0
A196: 57650-0000 | B196: 14 | D196: Repair & Maintenance | E196: -1 | G196: 0 | H196: 0 | I196: 0 | K196: 0 | L196: 0 | M196: 0 | O196: 0 | P196: 0 | Q196: 0 | S196: 0 | U196: 0 | V196: 0 | W196: 0 | Y196: 0 | Z196: 0 | AA196: 0 | AC196: 0 | AD196: 0 | AE196: 0 | AG196: 0 | AI196: 0 | AJ196: 0 | AK196: 0 | AM196: 0 | AN196: 0 | AO196: 0 | AQ196: 0 | AR196: 0 | AS196: 0 | AU196: 0 | AW196: 0 | AX196: 0 | AY196: 0 | BA196: 0 | BB196: 0 | BC196: 0 | BE196: 0 | BF196: 0 | BG196: 0 | BI196: 0 | BK196: 0 | BL196: 0 | BM196: 0 | BO196: 0
A197: 57650-0100 | B197: 14 | D197: Repair & Maintenance | E197: -1 | G197: 458.57 | H197: 0 | I197: -100 | K197: 660.35 | L197: 0 | M197: -100 | O197: 0 | P197: 0 | Q197: 0 | S197: 1118.92 | U197: 0 | V197: 0 | W197: 0 | Y197: 635.32 | Z197: 0 | AA197: -100 | AC197: 764.28 | AD197: 0 | AE197: -100 | AG197: 1399.6 | AI197: 0 | AJ197: 0 | AK197: 0 | AM197: 1874.85 | AN197: 0 | AO197: -100 | AQ197: 0 | AR197: 0 | AS197: 0 | AU197: 1874.85 | AW197: 0 | AX197: 0 | AY197: 0 | BA197: 0 | BB197: 0 | BC197: 0 | BE197: 0 | BF197: 0 | BG197: 0 | BI197: 0 | BK197: 4393.37 | BL197: 0 | BM197: -100 | BO197: 0
A198: 57650-0200 | B198: 14 | D198: Repair & Maintenance | E198: -1 | G198: 152.86 | H198: 0 | I198: -100 | K198: 220.1 | L198: 0 | M198: -100 | O198: 0 | P198: 0 | Q198: 0 | S198: 372.96 | U198: 0 | V198: 0 | W198: 0 | Y198: 211.77 | Z198: 0 | AA198: -100 | AC198: 254.77 | AD198: 0 | AE198: -100 | AG198: 466.54 | AI198: 0 | AJ198: 0 | AK198: 0 | AM198: 624.93 | AN198: 0 | AO198: -100 | AQ198: 0 | AR198: 0 | AS198: 0 | AU198: 624.93 | AW198: 0 | AX198: 0 | AY198: 0 | BA198: 0 | BB198: 0 | BC198: 0 | BE198: 0 | BF198: 0 | BG198: 0 | BI198: 0 | BK198: 1464.43 | BL198: 0 | BM198: -100 | BO198: 0
A199: 57650-0300 | B199: 14 | D199: Repair & Maintenance | E199: -1 | G199: 458.57 | H199: 0 | I199: -100 | K199: 2212.85 | L199: 0 | M199: -100 | O199: 1552.5 | P199: 0 | Q199: -100 | S199: 4223.92 | U199: 2911.94 | V199: 0 | W199: -100 | Y199: 2187.82 | Z199: 0 | AA199: -100 | AC199: 2316.78 | AD199: 0 | AE199: -100 | AG199: 7416.54 | AI199: 3264.15 | AJ199: 0 | AK199: -100 | AM199: 3427.35 | AN199: 0 | AO199: -100 | AQ199: 3265.04 | AR199: 0 | AS199: -100 | AU199: 9956.54 | AW199: 0 | AX199: 0 | AY199: 0 | BA199: 0 | BB199: 0 | BC199: 0 | BE199: 0 | BF199: 0 | BG199: 0 | BI199: 0 | BK199: 21597 | BL199: 0 | BM199: -100 | BO199: 0
A200: 57800-0000 | B200: 14 | D200: Telephone | E200: -1 | G200: 0 | H200: 0 | I200: 0 | K200: 0 | L200: 0 | M200: 0 | O200: 0 | P200: 0 | Q200: 0 | S200: 0 | U200: 0 | V200: 0 | W200: 0 | Y200: 0 | Z200: 0 | AA200: 0 | AC200: 0 | AD200: 0 | AE200: 0 | AG200: 0 | AI200: 0 | AJ200: 0 | AK200: 0 | AM200: 0 | AN200: 0 | AO200: 0 | AQ200: 0 | AR200: 0 | AS200: 0 | AU200: 0 | AW200: 0 | AX200: 0 | AY200: 0 | BA200: 0 | BB200: 0 | BC200: 0 | BE200: 0 | BF200: 0 | BG200: 0 | BI200: 0 | BK200: 0 | BL200: 0 | BM200: 0 | BO200: 0
A201: 57800-0100 | B201: 14 | D201: Telephone | E201: -1 | G201: 354.14 | H201: 0 | I201: -100 | K201: 555.43 | L201: 0 | M201: -100 | O201: 1266.85 | P201: 0 | Q201: -100 | S201: 2176.42 | U201: 557.15 | V201: 0 | W201: -100 | Y201: 642.88 | Z201: 0 | AA201: -100 | AC201: 580.7 | AD201: 0 | AE201: -100 | AG201: 1780.73 | AI201: 766.75 | AJ201: 0 | AK201: -100 | AM201: 1697.37 | AN201: 0 | AO201: -100 | AQ201: 799.86 | AR201: 0 | AS201: -100 | AU201: 3263.98 | AW201: 0 | AX201: 0 | AY201: 0 | BA201: 0 | BB201: 0 | BC201: 0 | BE201: 0 | BF201: 0 | BG201: 0 | BI201: 0 | BK201: 7221.13 | BL201: 0 | BM201: -100 | BO201: 0
A202: 57800-0200 | B202: 14 | D202: Telephone | E202: -1 | G202: 118.05 | H202: 0 | I202: -100 | K202: 185.14 | L202: 0 | M202: -100 | O202: 422.3 | P202: 0 | Q202: -100 | S202: 725.49 | U202: 185.7 | V202: 0 | W202: -100 | Y202: 214.3 | Z202: 0 | AA202: -100 | AC202: 193.6 | AD202: 0 | AE202: -100 | AG202: 593.6 | AI202: 255.58 | AJ202: 0 | AK202: -100 | AM202: 565.79 | AN202: 0 | AO202: -100 | AQ202: 266.62 | AR202: 0 | AS202: -100 | AU202: 1087.99 | AW202: 0 | AX202: 0 | AY202: 0 | BA202: 0 | BB202: 0 | BC202: 0 | BE202: 0 | BF202: 0 | BG202: 0 | BI202: 0 | BK202: 2407.08 | BL202: 0 | BM202: -100 | BO202: 0
A203: 57800-0300 | B203: 14 | D203: Telephone | E203: -1 | G203: 354.14 | H203: 0 | I203: -100 | K203: 555.43 | L203: 0 | M203: -100 | O203: 1266.85 | P203: 0 | Q203: -100 | S203: 2176.42 | U203: 557.15 | V203: 0 | W203: -100 | Y203: 642.88 | Z203: 0 | AA203: -100 | AC203: 580.7 | AD203: 0 | AE203: -100 | AG203: 1780.73 | AI203: 766.75 | AJ203: 0 | AK203: -100 | AM203: 1697.37 | AN203: 0 | AO203: -100 | AQ203: 799.86 | AR203: 0 | AS203: -100 | AU203: 3263.98 | AW203: 0 | AX203: 0 | AY203: 0 | BA203: 0 | BB203: 0 | BC203: 0 | BE203: 0 | BF203: 0 | BG203: 0 | BI203: 0 | BK203: 7221.13 | BL203: 0 | BM203: -100 | BO203: 0
A204: 57850-0000 | B204: 14 | D204: Travel | E204: -1 | G204: 0 | H204: 0 | I204: 0 | K204: 0 | L204: 0 | M204: 0 | O204: 0 | P204: 0 | Q204: 0 | S204: 0 | U204: 0 | V204: 0 | W204: 0 | Y204: 0 | Z204: 0 | AA204: 0 | AC204: 0 | AD204: 0 | AE204: 0 | AG204: 0 | AI204: 0 | AJ204: 0 | AK204: 0 | AM204: 0 | AN204: 0 | AO204: 0 | AQ204: 0 | AR204: 0 | AS204: 0 | AU204: 0 | AW204: 0 | AX204: 0 | AY204: 0 | BA204: 0 | BB204: 0 | BC204: 0 | BE204: 0 | BF204: 0 | BG204: 0 | BI204: 0 | BK204: 0 | BL204: 0 | BM204: 0 | BO204: 0
A205: 57850-0100 | B205: 14 | D205: Travel | E205: -1 | G205: 56.69 | H205: 0 | I205: -100 | K205: 50.69 | L205: 0 | M205: -100 | O205: 71.99 | P205: 0 | Q205: -100 | S205: 179.37 | U205: 52.57 | V205: 0 | W205: -100 | Y205: 54.23 | Z205: 0 | AA205: -100 | AC205: 56.69 | AD205: 0 | AE205: -100 | AG205: 163.49 | AI205: 64.3 | AJ205: 0 | AK205: -100 | AM205: 51.97 | AN205: 0 | AO205: -100 | AQ205: 68.8 | AR205: 0 | AS205: -100 | AU205: 185.07 | AW205: 0 | AX205: 0 | AY205: 0 | BA205: 0 | BB205: 0 | BC205: 0 | BE205: 0 | BF205: 0 | BG205: 0 | BI205: 0 | BK205: 527.93 | BL205: 0 | BM205: -100 | BO205: 0
A206: 57850-0200 | B206: 14 | D206: Travel | E206: -1 | G206: 18.9 | H206: 0 | I206: -100 | K206: 16.9 | L206: 0 | M206: -100 | O206: 24 | P206: 0 | Q206: -100 | S206: 59.8 | U206: 17.53 | V206: 0 | W206: -100 | Y206: 18.08 | Z206: 0 | AA206: -100 | AC206: 18.9 | AD206: 0 | AE206: -100 | AG206: 54.51 | AI206: 21.43 | AJ206: 0 | AK206: -100 | AM206: 17.32 | AN206: 0 | AO206: -100 | AQ206: 22.9 | AR206: 0 | AS206: -100 | AU206: 61.65 | AW206: 0 | AX206: 0 | AY206: 0 | BA206: 0 | BB206: 0 | BC206: 0 | BE206: 0 | BF206: 0 | BG206: 0 | BI206: 0 | BK206: 175.96 | BL206: 0 | BM206: -100 | BO206: 0
A207: 57850-0300 | B207: 14 | D207: Travel | E207: -1 | G207: 56.69 | H207: 0 | I207: -100 | K207: 50.69 | L207: 0 | M207: -100 | O207: 71.99 | P207: 0 | Q207: -100 | S207: 179.37 | U207: 52.57 | V207: 0 | W207: -100 | Y207: 54.23 | Z207: 0 | AA207: -100 | AC207: 56.69 | AD207: 0 | AE207: -100 | AG207: 163.49 | AI207: 64.3 | AJ207: 0 | AK207: -100 | AM207: 51.97 | AN207: 0 | AO207: -100 | AQ207: 68.8 | AR207: 0 | AS207: -100 | AU207: 185.07 | AW207: 0 | AX207: 0 | AY207: 0 | BA207: 0 | BB207: 0 | BC207: 0 | BE207: 0 | BF207: 0 | BG207: 0 | BI207: 0 | BK207: 527.93 | BL207: 0 | BM207: -100 | BO207: 0
A208: 57870-0000 | B208: 14 | D208: Meals and Entertainment | E208: -1 | G208: 0 | H208: 0 | I208: 0 | K208: 0 | L208: 0 | M208: 0 | O208: 0 | P208: 0 | Q208: 0 | S208: 0 | U208: 0 | V208: 0 | W208: 0 | Y208: 0 | Z208: 0 | AA208: 0 | AC208: 0 | AD208: 0 | AE208: 0 | AG208: 0 | AI208: 0 | AJ208: 0 | AK208: 0 | AM208: 0 | AN208: 0 | AO208: 0 | AQ208: 0 | AR208: 0 | AS208: 0 | AU208: 0 | AW208: 0 | AX208: 0 | AY208: 0 | BA208: 0 | BB208: 0 | BC208: 0 | BE208: 0 | BF208: 0 | BG208: 0 | BI208: 0 | BK208: 0 | BL208: 0 | BM208: 0 | BO208: 0
A209: 57870-0100 | B209: 14 | D209: Meals and Entertainment | E209: -1 | G209: 0 | H209: 0 | I209: 0 | K209: 0 | L209: 0 | M209: 0 | O209: 0 | P209: 0 | Q209: 0 | S209: 0 | U209: 0 | V209: 0 | W209: 0 | Y209: 0 | Z209: 0 | AA209: 0 | AC209: 0 | AD209: 0 | AE209: 0 | AG209: 0 | AI209: 0 | AJ209: 0 | AK209: 0 | AM209: 0 | AN209: 0 | AO209: 0 | AQ209: 0 | AR209: 0 | AS209: 0 | AU209: 0 | AW209: 0 | AX209: 0 | AY209: 0 | BA209: 0 | BB209: 0 | BC209: 0 | BE209: 0 | BF209: 0 | BG209: 0 | BI209: 0 | BK209: 0 | BL209: 0 | BM209: 0 | BO209: 0
A210: 57870-0200 | B210: 14 | D210: Meals and Entertainment | E210: -1 | G210: 0 | H210: 0 | I210: 0 | K210: 0 | L210: 0 | M210: 0 | O210: 0 | P210: 0 | Q210: 0 | S210: 0 | U210: 0 | V210: 0 | W210: 0 | Y210: 0 | Z210: 0 | AA210: 0 | AC210: 0 | AD210: 0 | AE210: 0 | AG210: 0 | AI210: 0 | AJ210: 0 | AK210: 0 | AM210: 0 | AN210: 0 | AO210: 0 | AQ210: 0 | AR210: 0 | AS210: 0 | AU210: 0 | AW210: 0 | AX210: 0 | AY210: 0 | BA210: 0 | BB210: 0 | BC210: 0 | BE210: 0 | BF210: 0 | BG210: 0 | BI210: 0 | BK210: 0 | BL210: 0 | BM210: 0 | BO210: 0
A211: 57870-0300 | B211: 14 | D211: Meals and Entertainment | E211: -1 | G211: 0 | H211: 0 | I211: 0 | K211: 0 | L211: 0 | M211: 0 | O211: 0 | P211: 0 | Q211: 0 | S211: 0 | U211: 0 | V211: 0 | W211: 0 | Y211: 0 | Z211: 0 | AA211: 0 | AC211: 0 | AD211: 0 | AE211: 0 | AG211: 0 | AI211: 0 | AJ211: 0 | AK211: 0 | AM211: 0 | AN211: 0 | AO211: 0 | AQ211: 0 | AR211: 0 | AS211: 0 | AU211: 0 | AW211: 0 | AX211: 0 | AY211: 0 | BA211: 0 | BB211: 0 | BC211: 0 | BE211: 0 | BF211: 0 | BG211: 0 | BI211: 0 | BK211: 0 | BL211: 0 | BM211: 0 | BO211: 0
A212: 57900-0000 | B212: 14 | D212: Utilities | E212: -1 | G212: 0 | H212: 0 | I212: 0 | K212: 0 | L212: 0 | M212: 0 | O212: 0 | P212: 0 | Q212: 0 | S212: 0 | U212: 0 | V212: 0 | W212: 0 | Y212: 0 | Z212: 0 | AA212: 0 | AC212: 0 | AD212: 0 | AE212: 0 | AG212: 0 | AI212: 0 | AJ212: 0 | AK212: 0 | AM212: 0 | AN212: 0 | AO212: 0 | AQ212: 0 | AR212: 0 | AS212: 0 | AU212: 0 | AW212: 0 | AX212: 0 | AY212: 0 | BA212: 0 | BB212: 0 | BC212: 0 | BE212: 0 | BF212: 0 | BG212: 0 | BI212: 0 | BK212: 0 | BL212: 0 | BM212: 0 | BO212: 0
A213: 57900-0100 | B213: 14 | D213: Utilities | E213: -1 | G213: 535.7 | H213: 0 | I213: -100 | K213: 428.57 | L213: 0 | M213: -100 | O213: 2138.2 | P213: 0 | Q213: -100 | S213: 3102.47 | U213: 1191.7 | V213: 0 | W213: -100 | Y213: 598.62 | Z213: 0 | AA213: -100 | AC213: 544.5 | AD213: 0 | AE213: -100 | AG213: 2334.82 | AI213: 812.57 | AJ213: 0 | AK213: -100 | AM213: 2428.43 | AN213: 0 | AO213: -100 | AQ213: 844.66 | AR213: 0 | AS213: -100 | AU213: 4085.66 | AW213: 0 | AX213: 0 | AY213: 0 | BA213: 0 | BB213: 0 | BC213: 0 | BE213: 0 | BF213: 0 | BG213: 0 | BI213: 0 | BK213: 9522.95 | BL213: 0 | BM213: -100 | BO213: 0
... 69 more rows

Sheet Actual vs Prior IS
C2: UNIVERSAL CONSTRUCTION
C3: Income Statement for Period Ending June 2015
F5: Jul 14 | G5: Jul 13 | I5: Aug 14 | J5: Aug 13 | L5: Sep 14 | M5: Sep 13 | O5: Qtr1 | Q5: Oct 14 | R5: Oct 13 | T5: Nov 14 | U5: Nov 13 | W5: Dec 14 | X5: Dec 13 | Z5: Qtr2 | AB5: Jan 15 | AC5: Jan 14 | AE5: Feb 15 | AF5: Feb 14 | AH5: Mar 15 | AI5: Mar 14 | AK5: Qtr3 | AM5: Apr 15 | AN5: Apr 14 | AP5: May 15 | AQ5: May 14 | AS5: Jun 15 | AT5: Jun 14 | AV5: Qtr4 | AX5: YTD | BA5: 2014
F6: Actual | G6: Prior | I6: Actual | J6: Prior | L6: Actual | M6: Prior | O6: Actual | Q6: Actual | R6: Prior | T6: Actual | U6: Prior | W6: Actual | X6: Prior | Z6: Actual | AB6: Actual | AC6: Prior | AE6: Actual | AF6: Prior | AH6: Actual | AI6: Prior | AK6: Actual | AM6: Actual | AN6: Prior | AP6: Actual | AQ6: Prior | AS6: Actual | AT6: Prior | AV6: Actual | AX6: Actual | AY6: Prior | BA6: YTD
B9: _RV | C9: REVENUE
C11: Operating Revenue | F11: 72670.6 | G11: 19988 | I11: 76560 | J11: 34422.13 | L11: 104765 | M11: 65640 | O11: 253995.6 | Q11: 89854.97 | R11: 71983.1 | T11: 114905 | U11: 70095 | W11: 118293.5 | X11: 82705.9 | Z11: 323053.47 | AB11: 135015.17 | AC11: 79224.18 | AE11: 192019.45 | AF11: 80836.6 | AH11: 126309.95 | AI11: 88411 | AK11: 453344.57 | AM11: 0 | AN11: 104600 | AP11: 0 | AQ11: 179500 | AS11: 0 | AT11: 108889.14 | AV11: 0 | AX11: 1030393.64 | AY11: 986295.05 | BA11: 986295.05
A12: 40200-0000 | B12: 2 | D12: Drafting | F12: 0 | G12: 0 | I12: 0 | J12: 0 | L12: 0 | M12: 0 | O12: 0 | Q12: 0 | R12: 0 | T12: 0 | U12: 0 | W12: 0 | X12: 0 | Z12: 0 | AB12: 0 | AC12: 0 | AE12: 0 | AF12: 0 | AH12: 0 | AI12: 0 | AK12: 0 | AM12: 0 | AN12: 0 | AP12: 0 | AQ12: 0 | AS12: 0 | AT12: 0 | AV12: 0 | AX12: 0 | AY12: 0 | BA12: 0
A13: 40200-0100 | B13: 2 | D13: Drafting | F13: 0 | G13: 0 | I13: 0 | J13: 0 | L13: 0 | M13: 0 | O13: 0 | Q13: 0 | R13: 0 | T13: 0 | U13: 0 | W13: 0 | X13: 0 | Z13: 0 | AB13: 0 | AC13: 0 | AE13: 0 | AF13: 0 | AH13: 0 | AI13: 0 | AK13: 0 | AM13: 0 | AN13: 0 | AP13: 0 | AQ13: 0 | AS13: 0 | AT13: 0 | AV13: 0 | AX13: 0 | AY13: 0 | BA13: 0
A14: 40200-0200 | B14: 2 | D14: Drafting | F14: 0 | G14: 0 | I14: 0 | J14: 0 | L14: 0 | M14: 0 | O14: 0 | Q14: 0 | R14: 0 | T14: 0 | U14: 0 | W14: 0 | X14: 0 | Z14: 0 | AB14: 0 | AC14: 0 | AE14: 0 | AF14: 0 | AH14: 0 | AI14: 0 | AK14: 0 | AM14: 0 | AN14: 0 | AP14: 0 | AQ14: 0 | AS14: 0 | AT14: 0 | AV14: 0 | AX14: 0 | AY14: 0 | BA14: 0
A15: 40200-0300 | B15: 2 | D15: Drafting | F15: 1540 | G15: 0 | I15: 10000 | J15: 0 | L15: 5000 | M15: 0 | O15: 16540 | Q15: 10000 | R15: 1187.5 | T15: 12000 | U15: 0 | W15: 16000 | X15: 5000 | Z15: 38000 | AB15: 4950 | AC15: 15000 | AE15: 24190 | AF15: 0 | AH15: 16190 | AI15: 16000 | AK15: 45330 | AM15: 0 | AN15: 0 | AP15: 0 | AQ15: 0 | AS15: 0 | AT15: 16000 | AV15: 0 | AX15: 99870 | AY15: 53187.5 | BA15: 53187.5
A16: 40300-0000 | B16: 2 | D16: Engineering Consulting | F16: 0 | G16: 0 | I16: 0 | J16: 0 | L16: 0 | M16: 0 | O16: 0 | Q16: 0 | R16: 0 | T16: 0 | U16: 0 | W16: 0 | X16: 0 | Z16: 0 | AB16: 0 | AC16: 0 | AE16: 0 | AF16: 0 | AH16: 0 | AI16: 0 | AK16: 0 | AM16: 0 | AN16: 0 | AP16: 0 | AQ16: 0 | AS16: 0 | AT16: 0 | AV16: 0 | AX16: 0 | AY16: 0 | BA16: 0
A17: 40300-0100 | B17: 2 | D17: Engineering Consulting | F17: 0 | G17: 0 | I17: 0 | J17: 0 | L17: 0 | M17: 0 | O17: 0 | Q17: 0 | R17: 0 | T17: 0 | U17: 0 | W17: 0 | X17: 0 | Z17: 0 | AB17: 0 | AC17: 0 | AE17: 0 | AF17: 0 | AH17: 0 | AI17: 0 | AK17: 0 | AM17: 0 | AN17: 0 | AP17: 0 | AQ17: 0 | AS17: 0 | AT17: 0 | AV17: 0 | AX17: 0 | AY17: 0 | BA17: 0
A18: 40300-0200 | B18: 2 | D18: Engineering Consulting | F18: 0 | G18: 0 | I18: 0 | J18: 0 | L18: 0 | M18: 0 | O18: 0 | Q18: 0 | R18: 0 | T18: 0 | U18: 0 | W18: 0 | X18: 0 | Z18: 0 | AB18: 0 | AC18: 0 | AE18: 0 | AF18: 0 | AH18: 0 | AI18: 0 | AK18: 0 | AM18: 0 | AN18: 0 | AP18: 0 | AQ18: 0 | AS18: 0 | AT18: 0 | AV18: 0 | AX18: 0 | AY18: 0 | BA18: 0
A19: 40300-0300 | B19: 2 | D19: Engineering Consulting | F19: 20000 | G19: 0 | I19: 8000 | J19: 20000 | L19: 4900 | M19: 12000 | O19: 32900 | Q19: 40000 | R19: 20000 | T19: 10000 | U19: 0 | W19: 10450 | X19: 0 | Z19: 60450 | AB19: 20216.67 | AC19: 26000 | AE19: 4202.22 | AF19: 10000 | AH19: 2656.66 | AI19: 0 | AK19: 27075.55 | AM19: 0 | AN19: 25000 | AP19: 0 | AQ19: 0 | AS19: 0 | AT19: 10000 | AV19: 0 | AX19: 120425.55 | AY19: 123000 | BA19: 123000
A20: 40400-0000 | B20: 2 | D20: Estimating Consulting | F20: 0 | G20: 0 | I20: 0 | J20: 0 | L20: 0 | M20: 0 | O20: 0 | Q20: 0 | R20: 0 | T20: 0 | U20: 0 | W20: 0 | X20: 0 | Z20: 0 | AB20: 0 | AC20: 0 | AE20: 0 | AF20: 0 | AH20: 0 | AI20: 0 | AK20: 0 | AM20: 0 | AN20: 0 | AP20: 0 | AQ20: 0 | AS20: 0 | AT20: 0 | AV20: 0 | AX20: 0 | AY20: 0 | BA20: 0
A21: 40400-0100 | B21: 2 | D21: Estimating Consulting | F21: 0 | G21: 0 | I21: 0 | J21: 0 | L21: 0 | M21: 0 | O21: 0 | Q21: 0 | R21: 0 | T21: 0 | U21: 0 | W21: 0 | X21: 0 | Z21: 0 | AB21: 0 | AC21: 0 | AE21: 0 | AF21: 0 | AH21: 0 | AI21: 0 | AK21: 0 | AM21: 0 | AN21: 0 | AP21: 0 | AQ21: 0 | AS21: 0 | AT21: 0 | AV21: 0 | AX21: 0 | AY21: 0 | BA21: 0
A22: 40400-0200 | B22: 2 | D22: Estimating Consulting | F22: 0 | G22: 0 | I22: 0 | J22: 0 | L22: 0 | M22: 0 | O22: 0 | Q22: 0 | R22: 0 | T22: 0 | U22: 0 | W22: 0 | X22: 0 | Z22: 0 | AB22: 0 | AC22: 0 | AE22: 0 | AF22: 0 | AH22: 0 | AI22: 0 | AK22: 0 | AM22: 0 | AN22: 0 | AP22: 0 | AQ22: 0 | AS22: 0 | AT22: 0 | AV22: 0 | AX22: 0 | AY22: 0 | BA22: 0
A23: 40400-0300 | B23: 2 | D23: Estimating Consulting | F23: 10000 | G23: 0 | I23: 23000 | J23: 0 | L23: 4000 | M23: 36000 | O23: 37000 | Q23: 10000 | R23: 10000 | T23: 5000 | U23: 41000 | W23: 3990 | X23: 8900 | Z23: 18990 | AB23: 26000 | AC23: 0 | AE23: 4500 | AF23: 1000 | AH23: 1000 | AI23: 11000 | AK23: 31500 | AM23: 0 | AN23: 0 | AP23: 0 | AQ23: 8500 | AS23: 0 | AT23: 10000 | AV23: 0 | AX23: 87490 | AY23: 126400 | BA23: 126400
A24: 40800-0000 | B24: 2 | D24: Surveying | F24: 0 | G24: 0 | I24: 0 | J24: 0 | L24: 0 | M24: 0 | O24: 0 | Q24: 0 | R24: 0 | T24: 0 | U24: 0 | W24: 0 | X24: 0 | Z24: 0 | AB24: 0 | AC24: 0 | AE24: 0 | AF24: 0 | AH24: 0 | AI24: 0 | AK24: 0 | AM24: 0 | AN24: 0 | AP24: 0 | AQ24: 0 | AS24: 0 | AT24: 0 | AV24: 0 | AX24: 0 | AY24: 0 | BA24: 0
A25: 40800-0100 | B25: 2 | D25: Surveying | F25: 0 | G25: 0 | I25: 0 | J25: 0 | L25: 0 | M25: 0 | O25: 0 | Q25: 0 | R25: 0 | T25: 0 | U25: 0 | W25: 0 | X25: 0 | Z25: 0 | AB25: 0 | AC25: 0 | AE25: 0 | AF25: 0 | AH25: 0 | AI25: 0 | AK25: 0 | AM25: 0 | AN25: 0 | AP25: 0 | AQ25: 0 | AS25: 0 | AT25: 0 | AV25: 0 | AX25: 0 | AY25: 0 | BA25: 0
A26: 40800-0200 | B26: 2 | D26: Surveying | F26: 0 | G26: 0 | I26: 0 | J26: 0 | L26: 0 | M26: 0 | O26: 0 | Q26: 0 | R26: 0 | T26: 0 | U26: 0 | W26: 0 | X26: 0 | Z26: 0 | AB26: 0 | AC26: 0 | AE26: 0 | AF26: 0 | AH26: 0 | AI26: 0 | AK26: 0 | AM26: 0 | AN26: 0 | AP26: 0 | AQ26: 0 | AS26: 0 | AT26: 0 | AV26: 0 | AX26: 0 | AY26: 0 | BA26: 0
A27: 40800-0300 | B27: 2 | D27: Surveying | F27: 27500 | G27: 0 | I27: 5500 | J27: 0 | L27: 10000 | M27: 18000 | O27: 43000 | Q27: 12000 | R27: 27500 | T27: 4000 | U27: 5500 | W27: 8500 | X27: 0 | Z27: 24500 | AB27: 6500 | AC27: 12000 | AE27: 1256.33 | AF27: 0 | AH27: 11375.66 | AI27: 1000 | AK27: 19131.99 | AM27: 0 | AN27: 0 | AP27: 0 | AQ27: 17500 | AS27: 0 | AT27: 11150 | AV27: 0 | AX27: 86631.99 | AY27: 92650 | BA27: 92650
A28: 40900-0000 | B28: 2 | D28: Other Services | F28: 0 | G28: 0 | I28: 0 | J28: 0 | L28: 0 | M28: 0 | O28: 0 | Q28: 0 | R28: 0 | T28: 0 | U28: 0 | W28: 0 | X28: 0 | Z28: 0 | AB28: 0 | AC28: 0 | AE28: 0 | AF28: 0 | AH28: 0 | AI28: 0 | AK28: 0 | AM28: 0 | AN28: 0 | AP28: 0 | AQ28: 0 | AS28: 0 | AT28: 0 | AV28: 0 | AX28: 0 | AY28: 0 | BA28: 0
A29: 40900-0100 | B29: 2 | D29: Other Services | F29: 0 | G29: 0 | I29: 0 | J29: 0 | L29: 0 | M29: 0 | O29: 0 | Q29: 0 | R29: 0 | T29: 0 | U29: 0 | W29: 0 | X29: 0 | Z29: 0 | AB29: 0 | AC29: 0 | AE29: 0 | AF29: 0 | AH29: 0 | AI29: 0 | AK29: 0 | AM29: 0 | AN29: 0 | AP29: 0 | AQ29: 0 | AS29: 0 | AT29: 0 | AV29: 0 | AX29: 0 | AY29: 0 | BA29: 0
A30: 40900-0200 | B30: 2 | D30: Other Services | F30: 0 | G30: 0 | I30: 0 | J30: 0 | L30: 0 | M30: 0 | O30: 0 | Q30: 0 | R30: 0 | T30: 0 | U30: 0 | W30: 0 | X30: 0 | Z30: 0 | AB30: 0 | AC30: 0 | AE30: 0 | AF30: 0 | AH30: 0 | AI30: 0 | AK30: 0 | AM30: 0 | AN30: 0 | AP30: 0 | AQ30: 0 | AS30: 0 | AT30: 0 | AV30: 0 | AX30: 0 | AY30: 0 | BA30: 0
A31: 40900-0300 | B31: 2 | D31: Other Services | F31: 0 | G31: 0 | I31: 0 | J31: 4550 | L31: 10000 | M31: 0 | O31: 10000 | Q31: 825 | R31: 0 | T31: 560 | U31: 0 | W31: 9000 | X31: 0 | Z31: 10385 | AB31: 7000 | AC31: 10000 | AE31: 5800 | AF31: 0 | AH31: 2500 | AI31: 0 | AK31: 15300 | AM31: 0 | AN31: 23750 | AP31: 0 | AQ31: 0 | AS31: 0 | AT31: 0 | AV31: 0 | AX31: 35685 | AY31: 38300 | BA31: 38300
A32: 42100-0000 | B32: 2 | D32: Sales: Drywall | F32: 0 | G32: 0 | I32: 0 | J32: 0 | L32: 0 | M32: 0 | O32: 0 | Q32: 0 | R32: 0 | T32: 0 | U32: 0 | W32: 0 | X32: 0 | Z32: 0 | AB32: 0 | AC32: 0 | AE32: 0 | AF32: 0 | AH32: 0 | AI32: 0 | AK32: 0 | AM32: 0 | AN32: 0 | AP32: 0 | AQ32: 0 | AS32: 0 | AT32: 0 | AV32: 0 | AX32: 0 | AY32: 0 | BA32: 0
A33: 42100-0100 | B33: 2 | D33: Sales: Drywall | F33: 0 | G33: 0 | I33: 0 | J33: 0 | L33: 0 | M33: 0 | O33: 0 | Q33: 0 | R33: 0 | T33: 0 | U33: 0 | W33: 0 | X33: 0 | Z33: 0 | AB33: 0 | AC33: 0 | AE33: 0 | AF33: 0 | AH33: 0 | AI33: 0 | AK33: 0 | AM33: 0 | AN33: 0 | AP33: 0 | AQ33: 0 | AS33: 0 | AT33: 0 | AV33: 0 | AX33: 0 | AY33: 0 | BA33: 0
A34: 42100-0200 | B34: 2 | D34: Sales: Drywall | F34: 0 | G34: 0 | I34: 0 | J34: 0 | L34: 0 | M34: 0 | O34: 0 | Q34: 0 | R34: 0 | T34: 0 | U34: 0 | W34: 0 | X34: 0 | Z34: 0 | AB34: 0 | AC34: 0 | AE34: 0 | AF34: 0 | AH34: 0 | AI34: 0 | AK34: 0 | AM34: 0 | AN34: 0 | AP34: 0 | AQ34: 0 | AS34: 0 | AT34: 0 | AV34: 0 | AX34: 0 | AY34: 0 | BA34: 0
A35: 42100-0300 | B35: 2 | D35: Sales: Drywall | F35: 0 | G35: 0 | I35: 4500 | J35: 1171.75 | L35: 3572.5 | M35: 0 | O35: 8072.5 | Q35: 1272.5 | R35: 0 | T35: 23840 | U35: 0 | W35: 283.5 | X35: 2222.5 | Z35: 25396 | AB35: 2081.6 | AC35: 1070 | AE35: 1488.8 | AF35: 12512.5 | AH35: 1834.5 | AI35: 0 | AK35: 5404.9 | AM35: 0 | AN35: 0 | AP35: 0 | AQ35: 7777.5 | AS35: 0 | AT35: 0 | AV35: 0 | AX35: 38873.4 | AY35: 24754.25 | BA35: 24754.25
A36: 42200-0000 | B36: 2 | D36: Sales: Hardware | F36: 0 | G36: 17898 | I36: 0 | J36: 0 | L36: 0 | M36: 0 | O36: 0 | Q36: 0 | R36: 0 | T36: 0 | U36: 0 | W36: 0 | X36: 0 | Z36: 0 | AB36: 0 | AC36: 0 | AE36: 0 | AF36: 0 | AH36: 0 | AI36: 0 | AK36: 0 | AM36: 0 | AN36: 0 | AP36: 0 | AQ36: 0 | AS36: 0 | AT36: 0 | AV36: 0 | AX36: 0 | AY36: 17898 | BA36: 17898
A37: 42200-0100 | B37: 2 | D37: Sales: Hardware | F37: 0 | G37: 0 | I37: 0 | J37: 0 | L37: 0 | M37: 0 | O37: 0 | Q37: 0 | R37: 0 | T37: 0 | U37: 0 | W37: 0 | X37: 0 | Z37: 0 | AB37: 0 | AC37: 0 | AE37: 0 | AF37: 0 | AH37: 0 | AI37: 0 | AK37: 0 | AM37: 0 | AN37: 0 | AP37: 0 | AQ37: 0 | AS37: 0 | AT37: 0 | AV37: 0 | AX37: 0 | AY37: 0 | BA37: 0
A38: 42200-0200 | B38: 2 | D38: Sales: Hardware | F38: 0 | G38: 0 | I38: 0 | J38: 0 | L38: 0 | M38: 0 | O38: 0 | Q38: 0 | R38: 0 | T38: 0 | U38: 0 | W38: 0 | X38: 0 | Z38: 0 | AB38: 0 | AC38: 0 | AE38: 0 | AF38: 0 | AH38: 0 | AI38: 0 | AK38: 0 | AM38: 0 | AN38: 0 | AP38: 0 | AQ38: 0 | AS38: 0 | AT38: 0 | AV38: 0 | AX38: 0 | AY38: 0 | BA38: 0
A39: 42200-0300 | B39: 2 | D39: Sales: Hardware | F39: 3753.6 | G39: 0 | I39: 13790 | J39: 2172.12 | L39: 58905 | M39: 0 | O39: 76448.6 | Q39: 4829.3 | R39: 1600.6 | T39: 55880 | U39: 5280 | W39: 49635 | X39: 59875 | Z39: 110344.3 | AB39: 48910.2 | AC39: 3266.03 | AE39: 128660.6 | AF39: 56311.6 | AH39: 82367.9 | AI39: 46891 | AK39: 259938.7 | AM39: 0 | AN39: 49000 | AP39: 0 | AQ39: 139290 | AS39: 0 | AT39: 58195 | AV39: 0 | AX39: 446731.6 | AY39: 421881.35 | BA39: 421881.35
A40: 42300-0000 | B40: 2 | D40: Sales: Lumber | F40: 0 | G40: 2365 | I40: 0 | J40: 0 | L40: 0 | M40: 0 | O40: 0 | Q40: 0 | R40: 0 | T40: 0 | U40: 0 | W40: 0 | X40: 0 | Z40: 0 | AB40: 0 | AC40: 0 | AE40: 0 | AF40: 0 | AH40: 0 | AI40: 0 | AK40: 0 | AM40: 0 | AN40: 0 | AP40: 0 | AQ40: 0 | AS40: 0 | AT40: 0 | AV40: 0 | AX40: 0 | AY40: 2365 | BA40: 2365
A41: 42300-0100 | B41: 2 | D41: Sales: Lumber | F41: 0 | G41: 0 | I41: 0 | J41: 0 | L41: 0 | M41: 0 | O41: 0 | Q41: 0 | R41: 0 | T41: 0 | U41: 0 | W41: 0 | X41: 0 | Z41: 0 | AB41: 0 | AC41: 0 | AE41: 0 | AF41: 0 | AH41: 0 | AI41: 0 | AK41: 0 | AM41: 0 | AN41: 0 | AP41: 0 | AQ41: 0 | AS41: 0 | AT41: 0 | AV41: 0 | AX41: 0 | AY41: 0 | BA41: 0
A42: 42300-0200 | B42: 2 | D42: Sales: Lumber | F42: 0 | G42: 0 | I42: 0 | J42: 0 | L42: 0 | M42: 0 | O42: 0 | Q42: 0 | R42: 0 | T42: 0 | U42: 0 | W42: 0 | X42: 0 | Z42: 0 | AB42: 0 | AC42: 0 | AE42: 0 | AF42: 0 | AH42: 0 | AI42: 0 | AK42: 0 | AM42: 0 | AN42: 0 | AP42: 0 | AQ42: 0 | AS42: 0 | AT42: 0 | AV42: 0 | AX42: 0 | AY42: 0 | BA42: 0
A43: 42300-0300 | B43: 2 | D43: Sales: Lumber | F43: 777 | G43: 0 | I43: 11325 | J43: 7044 | L43: 7717.5 | M43: 0 | O43: 19819.5 | Q43: 3199.25 | R43: 2595 | T43: 1960 | U43: 18315 | W43: 16510 | X43: 7555 | Z43: 21669.25 | AB43: 6837.5 | AC43: 4218.75 | AE43: 11801.5 | AF43: 1212.5 | AH43: 5795.74 | AI43: 13540 | AK43: 24434.74 | AM43: 0 | AN43: 6850 | AP43: 0 | AQ43: 6432.5 | AS43: 0 | AT43: 3544.14 | AV43: 0 | AX43: 65923.49 | AY43: 71306.89 | BA43: 71306.89
A44: 42400-0000 | B44: 2 | D44: Sales: Roofing | F44: 0 | G44: 0 | I44: 0 | J44: 0 | L44: 0 | M44: 0 | O44: 0 | Q44: 0 | R44: 0 | T44: 0 | U44: 0 | W44: 0 | X44: 0 | Z44: 0 | AB44: 0 | AC44: 0 | AE44: 0 | AF44: 0 | AH44: 0 | AI44: 0 | AK44: 0 | AM44: 0 | AN44: 0 | AP44: 0 | AQ44: 0 | AS44: 0 | AT44: 0 | AV44: 0 | AX44: 0 | AY44: 0 | BA44: 0
A45: 42400-0100 | B45: 2 | D45: Sales: Roofing | F45: 0 | G45: 0 | I45: 0 | J45: 0 | L45: 0 | M45: 0 | O45: 0 | Q45: 0 | R45: 0 | T45: 0 | U45: 0 | W45: 0 | X45: 0 | Z45: 0 | AB45: 0 | AC45: 0 | AE45: 0 | AF45: 0 | AH45: 0 | AI45: 0 | AK45: 0 | AM45: 0 | AN45: 0 | AP45: 0 | AQ45: 0 | AS45: 0 | AT45: 0 | AV45: 0 | AX45: 0 | AY45: 0 | BA45: 0
A46: 42400-0200 | B46: 2 | D46: Sales: Roofing | F46: 0 | G46: 0 | I46: 0 | J46: 0 | L46: 0 | M46: 0 | O46: 0 | Q46: 0 | R46: 0 | T46: 0 | U46: 0 | W46: 0 | X46: 0 | Z46: 0 | AB46: 0 | AC46: 0 | AE46: 0 | AF46: 0 | AH46: 0 | AI46: 0 | AK46: 0 | AM46: 0 | AN46: 0 | AP46: 0 | AQ46: 0 | AS46: 0 | AT46: 0 | AV46: 0 | AX46: 0 | AY46: 0 | BA46: 0
A47: 42400-0300 | B47: 2 | D47: Sales: Roofing | F47: 8600 | G47: 0 | I47: 215 | J47: 0 | L47: 1075 | M47: 0 | O47: 9890 | Q47: 7179 | R47: 8600 | T47: 1720 | U47: 0 | W47: 3870 | X47: 0 | Z47: 12769 | AB47: 12600 | AC47: 7105 | AE47: 10750 | AF47: 0 | AH47: 2150 | AI47: 0 | AK47: 25500 | AM47: 0 | AN47: 0 | AP47: 0 | AQ47: 0 | AS47: 0 | AT47: 0 | AV47: 0 | AX47: 48159 | AY47: 15705 | BA47: 15705
A48: 44100-0000 | B48: 2 | D48: Freight Revenue | F48: 0 | G48: 0 | I48: 0 | J48: 0 | L48: 0 | M48: 0 | O48: 0 | Q48: 0 | R48: 0 | T48: 0 | U48: 0 | W48: 0 | X48: 0 | Z48: 0 | AB48: 0 | AC48: 0 | AE48: 0 | AF48: 0 | AH48: 0 | AI48: 0 | AK48: 0 | AM48: 0 | AN48: 0 | AP48: 0 | AQ48: 0 | AS48: 0 | AT48: 0 | AV48: 0 | AX48: 0 | AY48: 0 | BA48: 0
A49: 44100-0100 | B49: 2 | D49: Freight Revenue | F49: 0 | G49: 0 | I49: 0 | J49: 0 | L49: 0 | M49: 0 | O49: 0 | Q49: 0 | R49: 0 | T49: 0 | U49: 0 | W49: 0 | X49: 0 | Z49: 0 | AB49: 0 | AC49: 0 | AE49: 0 | AF49: 0 | AH49: 0 | AI49: 0 | AK49: 0 | AM49: 0 | AN49: 0 | AP49: 0 | AQ49: 0 | AS49: 0 | AT49: 0 | AV49: 0 | AX49: 0 | AY49: 0 | BA49: 0
A50: 44100-0200 | B50: 2 | D50: Freight Revenue | F50: 0 | G50: 0 | I50: 0 | J50: 0 | L50: 0 | M50: 0 | O50: 0 | Q50: 0 | R50: 0 | T50: 0 | U50: 0 | W50: 0 | X50: 0 | Z50: 0 | AB50: 0 | AC50: 0 | AE50: 0 | AF50: 0 | AH50: 0 | AI50: 0 | AK50: 0 | AM50: 0 | AN50: 0 | AP50: 0 | AQ50: 0 | AS50: 0 | AT50: 0 | AV50: 0 | AX50: 0 | AY50: 0 | BA50: 0
A51: 44100-0300 | B51: 2 | D51: Freight Revenue | F51: 500 | G51: 0 | I51: 340 | J51: 0 | L51: 350 | M51: 0 | O51: 1190 | Q51: 710 | R51: 500 | T51: 145 | U51: 0 | W51: 75 | X51: 0 | Z51: 930 | AB51: 440 | AC51: 723 | AE51: 360 | AF51: 0 | AH51: 766 | AI51: 0 | AK51: 1566 | AM51: 0 | AN51: 0 | AP51: 0 | AQ51: 0 | AS51: 0 | AT51: 0 | AV51: 0 | AX51: 3686 | AY51: 1223 | BA51: 1223
A52: 44200-0000 | B52: 2 | D52: Sales Discounts | F52: 0 | G52: -275 | I52: 0 | J52: 0 | L52: 0 | M52: 0 | O52: 0 | Q52: 0 | R52: 0 | T52: 0 | U52: 0 | W52: 0 | X52: 0 | Z52: 0 | AB52: 0 | AC52: 0 | AE52: 0 | AF52: 0 | AH52: 0 | AI52: 0 | AK52: 0 | AM52: 0 | AN52: 0 | AP52: 0 | AQ52: 0 | AS52: 0 | AT52: 0 | AV52: 0 | AX52: 0 | AY52: -275 | BA52: -275
A53: 44200-0100 | B53: 2 | D53: Sales Discounts | F53: 0 | G53: 0 | I53: 0 | J53: 0 | L53: 0 | M53: 0 | O53: 0 | Q53: 0 | R53: 0 | T53: 0 | U53: 0 | W53: 0 | X53: 0 | Z53: 0 | AB53: 0 | AC53: 0 | AE53: 0 | AF53: 0 | AH53: 0 | AI53: 0 | AK53: 0 | AM53: 0 | AN53: 0 | AP53: 0 | AQ53: 0 | AS53: 0 | AT53: 0 | AV53: 0 | AX53: 0 | AY53: 0 | BA53: 0
A54: 44200-0200 | B54: 2 | D54: Sales Discounts | F54: 0 | G54: 0 | I54: 0 | J54: 0 | L54: 0 | M54: 0 | O54: 0 | Q54: 0 | R54: 0 | T54: 0 | U54: 0 | W54: 0 | X54: 0 | Z54: 0 | AB54: 0 | AC54: 0 | AE54: 0 | AF54: 0 | AH54: 0 | AI54: 0 | AK54: 0 | AM54: 0 | AN54: 0 | AP54: 0 | AQ54: 0 | AS54: 0 | AT54: 0 | AV54: 0 | AX54: 0 | AY54: 0 | BA54: 0
A55: 44200-0300 | B55: 2 | D55: Sales Discounts | F55: 0 | G55: 0 | I55: -110 | J55: -515.74 | L55: -755 | M55: -360 | O55: -865 | Q55: -160.08 | R55: 0 | T55: -200 | U55: 0 | W55: -20 | X55: -846.6 | Z55: -380.08 | AB55: -520.8 | AC55: -158.6 | AE55: -990 | AF55: -200 | AH55: -326.51 | AI55: -20 | AK55: -1837.31 | AM55: 0 | AN55: 0 | AP55: 0 | AQ55: 0 | AS55: 0 | AT55: 0 | AV55: 0 | AX55: -3082.39 | AY55: -2100.94 | BA55: -2100.94
A56: 44600-0000 | B56: 2 | D56: Miscellaneous Revenue | F56: 0 | G56: 0 | I56: 0 | J56: 0 | L56: 0 | M56: 0 | O56: 0 | Q56: 0 | R56: 0 | T56: 0 | U56: 0 | W56: 0 | X56: 0 | Z56: 0 | AB56: 0 | AC56: 0 | AE56: 0 | AF56: 0 | AH56: 0 | AI56: 0 | AK56: 0 | AM56: 0 | AN56: 0 | AP56: 0 | AQ56: 0 | AS56: 0 | AT56: 0 | AV56: 0 | AX56: 0 | AY56: 0 | BA56: 0
A57: 44600-0100 | B57: 2 | D57: Miscellaneous Revenue | F57: 0 | G57: 0 | I57: 0 | J57: 0 | L57: 0 | M57: 0 | O57: 0 | Q57: 0 | R57: 0 | T57: 0 | U57: 0 | W57: 0 | X57: 0 | Z57: 0 | AB57: 0 | AC57: 0 | AE57: 0 | AF57: 0 | AH57: 0 | AI57: 0 | AK57: 0 | AM57: 0 | AN57: 0 | AP57: 0 | AQ57: 0 | AS57: 0 | AT57: 0 | AV57: 0 | AX57: 0 | AY57: 0 | BA57: 0
A58: 44600-0200 | B58: 2 | D58: Miscellaneous Revenue | F58: 0 | G58: 0 | I58: 0 | J58: 0 | L58: 0 | M58: 0 | O58: 0 | Q58: 0 | R58: 0 | T58: 0 | U58: 0 | W58: 0 | X58: 0 | Z58: 0 | AB58: 0 | AC58: 0 | AE58: 0 | AF58: 0 | AH58: 0 | AI58: 0 | AK58: 0 | AM58: 0 | AN58: 0 | AP58: 0 | AQ58: 0 | AS58: 0 | AT58: 0 | AV58: 0 | AX58: 0 | AY58: 0 | BA58: 0
A59: 44600-0300 | B59: 2 | D59: Miscellaneous Revenue | F59: 0 | G59: 0 | I59: 0 | J59: 0 | L59: 0 | M59: 0 | O59: 0 | Q59: 0 | R59: 0 | T59: 0 | U59: 0 | W59: 0 | X59: 0 | Z59: 0 | AB59: 0 | AC59: 0 | AE59: 0 | AF59: 0 | AH59: 0 | AI59: 0 | AK59: 0 | AM59: 0 | AN59: 0 | AP59: 0 | AQ59: 0 | AS59: 0 | AT59: 0 | AV59: 0 | AX59: 0 | AY59: 0 | BA59: 0
C61: Non-Operating revenue | F61: 0 | G61: 0 | I61: 0 | J61: 0 | L61: 0 | M61: 0 | O61: 0 | Q61: 0 | R61: 0 | T61: 0 | U61: 0 | W61: 0 | X61: 0 | Z61: 0 | AB61: 0 | AC61: 0 | AE61: 0 | AF61: 0 | AH61: 0 | AI61: 0 | AK61: 0 | AM61: 0 | AN61: 0 | AP61: 0 | AQ61: 0 | AS61: 0 | AT61: 0 | AV61: 0 | AX61: 0 | AY61: 0 | BA61: 0
A62: 44400-0000 | B62: 5 | D62: Interest Revenue | F62: 0 | G62: 0 | I62: 0 | J62: 0 | L62: 0 | M62: 0 | O62: 0 | Q62: 0 | R62: 0 | T62: 0 | U62: 0 | W62: 0 | X62: 0 | Z62: 0 | AB62: 0 | AC62: 0 | AE62: 0 | AF62: 0 | AH62: 0 | AI62: 0 | AK62: 0 | AM62: 0 | AN62: 0 | AP62: 0 | AQ62: 0 | AS62: 0 | AT62: 0 | AV62: 0 | AX62: 0 | AY62: 0 | BA62: 0
A63: 44400-0100 | B63: 5 | D63: Interest Revenue | F63: 0 | G63: 0 | I63: 0 | J63: 0 | L63: 0 | M63: 0 | O63: 0 | Q63: 0 | R63: 0 | T63: 0 | U63: 0 | W63: 0 | X63: 0 | Z63: 0 | AB63: 0 | AC63: 0 | AE63: 0 | AF63: 0 | AH63: 0 | AI63: 0 | AK63: 0 | AM63: 0 | AN63: 0 | AP63: 0 | AQ63: 0 | AS63: 0 | AT63: 0 | AV63: 0 | AX63: 0 | AY63: 0 | BA63: 0
A64: 44400-0200 | B64: 5 | D64: Interest Revenue | F64: 0 | G64: 0 | I64: 0 | J64: 0 | L64: 0 | M64: 0 | O64: 0 | Q64: 0 | R64: 0 | T64: 0 | U64: 0 | W64: 0 | X64: 0 | Z64: 0 | AB64: 0 | AC64: 0 | AE64: 0 | AF64: 0 | AH64: 0 | AI64: 0 | AK64: 0 | AM64: 0 | AN64: 0 | AP64: 0 | AQ64: 0 | AS64: 0 | AT64: 0 | AV64: 0 | AX64: 0 | AY64: 0 | BA64: 0
A65: 44400-0300 | B65: 5 | D65: Interest Revenue | F65: 0 | G65: 0 | I65: 0 | J65: 0 | L65: 0 | M65: 0 | O65: 0 | Q65: 0 | R65: 0 | T65: 0 | U65: 0 | W65: 0 | X65: 0 | Z65: 0 | AB65: 0 | AC65: 0 | AE65: 0 | AF65: 0 | AH65: 0 | AI65: 0 | AK65: 0 | AM65: 0 | AN65: 0 | AP65: 0 | AQ65: 0 | AS65: 0 | AT65: 0 | AV65: 0 | AX65: 0 | AY65: 0 | BA65: 0
B67: TRV | C67: TOTAL REVENUE | F67: 72670.6 | G67: 19988 | I67: 76560 | J67: 34422.13 | L67: 104765 | M67: 65640 | O67: 253995.6 | Q67: 89854.97 | R67: 71983.1 | T67: 114905 | U67: 70095 | W67: 118293.5 | X67: 82705.9 | Z67: 323053.47 | AB67: 135015.17 | AC67: 79224.18 | AE67: 192019.45 | AF67: 80836.6 | AH67: 126309.95 | AI67: 88411 | AK67: 453344.57 | AM67: 0 | AN67: 104600 | AP67: 0 | AQ67: 179500 | AS67: 0 | AT67: 108889.14 | AV67: 0 | AX67: 1030393.64 | AY67: 986295.05 | BA67: 986295.05
C69: Cost of Goods Sold | F69: 13331.53 | G69: 1875.05 | I69: 6764.28 | J69: 11524.11 | L69: 25840.09 | M69: 13442.41 | O69: 45935.9 | Q69: 7354.36 | R69: 12808.54 | T69: 17537.07 | U69: 8888.69 | W69: 25508.5 | X69: 14316.5 | Z69: 50399.93 | AB69: 35927.61 | AC69: 7355.92 | AE69: 75968.23 | AF69: 17161.56 | AH69: 16595.7 | AI69: 19606.84 | AK69: 128491.54 | AM69: 0 | AN69: 24574.72 | AP69: 0 | AQ69: 89978.68 | AS69: 0 | AT69: 10405.96 | AV69: 0 | AX69: 224827.37 | AY69: 231938.98 | BA69: 231938.98
A70: 50100-0000 | B70: 10 | D70: Material: Drywall | F70: 0 | G70: 0 | I70: 0 | J70: 0 | L70: 0 | M70: 0 | O70: 0 | Q70: 0 | R70: 0 | T70: 0.08 | U70: 0 | W70: 0 | X70: 0 | Z70: 0.08 | AB70: 0 | AC70: 0 | AE70: 0 | AF70: 0 | AH70: -0.01 | AI70: 0 | AK70: -0.01 | AM70: 0 | AN70: 0 | AP70: 0 | AQ70: 0 | AS70: 0 | AT70: 0 | AV70: 0 | AX70: 0.07 | AY70: 0 | BA70: 0
A71: 50100-0100 | B71: 10 | D71: Material: Drywall | F71: 0 | G71: 0 | I71: 0 | J71: 0 | L71: 0 | M71: 0 | O71: 0 | Q71: 0 | R71: 0 | T71: 0 | U71: 0 | W71: 0 | X71: 0 | Z71: 0 | AB71: 0 | AC71: 0 | AE71: 0 | AF71: 0 | AH71: 0 | AI71: 0 | AK71: 0 | AM71: 0 | AN71: 0 | AP71: 0 | AQ71: 0 | AS71: 0 | AT71: 0 | AV71: 0 | AX71: 0 | AY71: 0 | BA71: 0
A72: 50100-0200 | B72: 10 | D72: Material: Drywall | F72: 0 | G72: 0 | I72: 0 | J72: 0 | L72: 0 | M72: 0 | O72: 0 | Q72: 0 | R72: 0 | T72: 0 | U72: 0 | W72: 0 | X72: 0 | Z72: 0 | AB72: 0 | AC72: 0 | AE72: 0 | AF72: 0 | AH72: 0 | AI72: 0 | AK72: 0 | AM72: 0 | AN72: 0 | AP72: 0 | AQ72: 0 | AS72: 0 | AT72: 0 | AV72: 0 | AX72: 0 | AY72: 0 | BA72: 0
A73: 50100-0300 | B73: 10 | D73: Material: Drywall | F73: 0 | G73: 0 | I73: 355.2 | J73: 437.92 | L73: 946.83 | M73: 0 | O73: 1302.03 | Q73: 152.89 | R73: 0 | T73: 1159.03 | U73: 0 | W73: 145.31 | X73: 840.27 | Z73: 1457.23 | AB73: 1134.95 | AC73: 338.2 | AE73: 780.67 | AF73: 2295.15 | AH73: 433.37 | AI73: 0 | AK73: 2348.99 | AM73: 0 | AN73: 0 | AP73: 0 | AQ73: 1969.87 | AS73: 0 | AT73: 0 | AV73: 0 | AX73: 5108.25 | AY73: 5881.41 | BA73: 5881.41
A74: 50200-0000 | B74: 10 | D74: Material: Hardware | F74: 0 | G74: 742.05 | I74: 0 | J74: 0 | L74: 0.05 | M74: 0 | O74: 0.05 | Q74: -0.01 | R74: 0 | T74: 0.17 | U74: 0 | W74: 0.19 | X74: 0 | Z74: 0.35 | AB74: -0.11 | AC74: 0 | AE74: -0.13 | AF74: 0 | AH74: 0 | AI74: 0 | AK74: -0.24 | AM74: 0 | AN74: 0 | AP74: 0 | AQ74: 0 | AS74: 0 | AT74: 0 | AV74: 0 | AX74: 0.16 | AY74: 742.05 | BA74: 742.05
A75: 50200-0100 | B75: 10 | D75: Material: Hardware | F75: 0 | G75: 0 | I75: 0 | J75: 0 | L75: 0 | M75: 0 | O75: 0 | Q75: 0 | R75: 0 | T75: 0 | U75: 0 | W75: 0 | X75: 0 | Z75: 0 | AB75: 0 | AC75: 0 | AE75: 0 | AF75: 0 | AH75: 0 | AI75: 0 | AK75: 0 | AM75: 0 | AN75: 0 | AP75: 0 | AQ75: 0 | AS75: 0 | AT75: 0 | AV75: 0 | AX75: 0 | AY75: 0 | BA75: 0
A76: 50200-0200 | B76: 10 | D76: Material: Hardware | F76: 0 | G76: 0 | I76: 0 | J76: 0 | L76: 0 | M76: 0 | O76: 0 | Q76: 0 | R76: 0 | T76: 0 | U76: 0 | W76: 0 | X76: 0 | Z76: 0 | AB76: 0 | AC76: 0 | AE76: 0 | AF76: 0 | AH76: 0 | AI76: 0 | AK76: 0 | AM76: 0 | AN76: 0 | AP76: 0 | AQ76: 0 | AS76: 0 | AT76: 0 | AV76: 0 | AX76: 0 | AY76: 0 | BA76: 0
A77: 50200-0300 | B77: 10 | D77: Material: Hardware | F77: 480.97 | G77: 0 | I77: 1271.58 | J77: 60.49 | L77: 19372.16 | M77: 0 | O77: 21124.71 | Q77: 1119.39 | R77: 216.16 | T77: 8320.74 | U77: 347.19 | W77: 14452.16 | X77: 9994.23 | Z77: 23892.29 | AB77: 9504.73 | AC77: 388.22 | AE77: 27972.34 | AF77: 6548.04 | AH77: 12693.12 | AI77: 13576.84 | AK77: 50170.19 | AM77: 0 | AN77: 6431.52 | AP77: 0 | AQ77: 21069.72 | AS77: 0 | AT77: 8467.22 | AV77: 0 | AX77: 95187.19 | AY77: 67099.63 | BA77: 67099.63
A78: 50300-0000 | B78: 10 | D78: Material: Lumber | F78: 0 | G78: 1133 | I78: 0 | J78: 0 | L78: 0 | M78: 0 | O78: 0 | Q78: 0 | R78: 0 | T78: 0 | U78: 0 | W78: 0 | X78: 0 | Z78: 0 | AB78: 0 | AC78: 0 | AE78: 0 | AF78: 0 | AH78: 0 | AI78: 0 | AK78: 0 | AM78: 0 | AN78: 0 | AP78: 0 | AQ78: 0 | AS78: 0 | AT78: 0 | AV78: 0 | AX78: 0 | AY78: 1133 | BA78: 1133
A79: 50300-0100 | B79: 10 | D79: Material: Lumber | F79: 0 | G79: 0 | I79: 0 | J79: 0 | L79: 0 | M79: 0 | O79: 0 | Q79: 0 | R79: 0 | T79: 0 | U79: 0 | W79: 0 | X79: 0 | Z79: 0 | AB79: 0 | AC79: 0 | AE79: 0 | AF79: 0 | AH79: 0 | AI79: 0 | AK79: 0 | AM79: 0 | AN79: 0 | AP79: 0 | AQ79: 0 | AS79: 0 | AT79: 0 | AV79: 0 | AX79: 0 | AY79: 0 | BA79: 0
A80: 50300-0200 | B80: 10 | D80: Material: Lumber | F80: 0 | G80: 0 | I80: 0 | J80: 0 | L80: 0 | M80: 0 | O80: 0 | Q80: 0 | R80: 0 | T80: 0 | U80: 0 | W80: 0 | X80: 0 | Z80: 0 | AB80: 0 | AC80: 0 | AE80: 0 | AF80: 0 | AH80: 0 | AI80: 0 | AK80: 0 | AM80: 0 | AN80: 0 | AP80: 0 | AQ80: 0 | AS80: 0 | AT80: 0 | AV80: 0 | AX80: 0 | AY80: 0 | BA80: 0
A81: 50300-0300 | B81: 10 | D81: Material: Lumber | F81: 205.8 | G81: 0 | I81: 4971.38 | J81: 3055.7 | L81: 3690.45 | M81: 0 | O81: 8867.63 | Q81: 1519.55 | R81: 813 | T81: 653.1 | U81: 8541.5 | W81: 7920.7 | X81: 3482 | Z81: 10093.35 | AB81: 2218.6 | AC81: 2110.5 | AE81: 4797.52 | AF81: 622.37 | AH81: 1800.02 | AI81: 6030 | AK81: 8816.14 | AM81: 0 | AN81: 3099 | AP81: 0 | AQ81: 2867.09 | AS81: 0 | AT81: 1938.74 | AV81: 0 | AX81: 27777.12 | AY81: 32559.9 | BA81: 32559.9
A82: 50400-0000 | B82: 10 | D82: Material: Roofing | F82: 0 | G82: 0 | I82: 0 | J82: 0 | L82: 0 | M82: 0 | O82: 0 | Q82: 0 | R82: 0 | T82: 0 | U82: 0 | W82: 0 | X82: 0 | Z82: 0 | AB82: 0 | AC82: 0 | AE82: -0.06 | AF82: 0 | AH82: 0 | AI82: 0 | AK82: -0.06 | AM82: 0 | AN82: 0 | AP82: 0 | AQ82: 0 | AS82: 0 | AT82: 0 | AV82: 0 | AX82: -0.06 | AY82: 0 | BA82: 0
A83: 50400-0100 | B83: 10 | D83: Material: Roofing | F83: 0 | G83: 0 | I83: 0 | J83: 0 | L83: 0 | M83: 0 | O83: 0 | Q83: 0 | R83: 0 | T83: 0 | U83: 0 | W83: 0 | X83: 0 | Z83: 0 | AB83: 0 | AC83: 0 | AE83: 0 | AF83: 0 | AH83: 0 | AI83: 0 | AK83: 0 | AM83: 0 | AN83: 0 | AP83: 0 | AQ83: 0 | AS83: 0 | AT83: 0 | AV83: 0 | AX83: 0 | AY83: 0 | BA83: 0
A84: 50400-0200 | B84: 10 | D84: Material: Roofing | F84: 0 | G84: 0 | I84: 0 | J84: 0 | L84: 0 | M84: 0 | O84: 0 | Q84: 0 | R84: 0 | T84: 0 | U84: 0 | W84: 0 | X84: 0 | Z84: 0 | AB84: 0 | AC84: 0 | AE84: 0 | AF84: 0 | AH84: 0 | AI84: 0 | AK84: 0 | AM84: 0 | AN84: 0 | AP84: 0 | AQ84: 0 | AS84: 0 | AT84: 0 | AV84: 0 | AX84: 0 | AY84: 0 | BA84: 0
A85: 50400-0300 | B85: 10 | D85: Material: Roofing | F85: 6644.76 | G85: 0 | I85: 166.12 | J85: 0 | L85: 830.6 | M85: 0 | O85: 7641.48 | Q85: 4562.54 | R85: 6240 | T85: 1328.95 | U85: 0 | W85: 2990.14 | X85: 0 | Z85: 8881.63 | AB85: 9699.4 | AC85: 4519 | AE85: 8317.89 | AF85: 0 | AH85: 1669.2 | AI85: 0 | AK85: 19686.49 | AM85: 0 | AN85: 0 | AP85: 0 | AQ85: 0 | AS85: 0 | AT85: 0 | AV85: 0 | AX85: 36209.6 | AY85: 10759 | BA85: 10759
A86: 54950-0000 | B86: 10 | D86: Subcontractors | F86: 0 | G86: 0 | I86: 0 | J86: 0 | L86: 0 | M86: 0 | O86: 0 | Q86: 0 | R86: 0 | T86: 0 | U86: 0 | W86: 0 | X86: 0 | Z86: 0 | AB86: 0 | AC86: 0 | AE86: 0 | AF86: 0 | AH86: 0 | AI86: 0 | AK86: 0 | AM86: 0 | AN86: 0 | AP86: 0 | AQ86: 0 | AS86: 0 | AT86: 0 | AV86: 0 | AX86: 0 | AY86: 0 | BA86: 0
A87: 54950-0100 | B87: 10 | D87: Subcontractors | F87: 6000 | G87: 0 | I87: 0 | J87: 5000 | L87: 0 | M87: 0 | O87: 6000 | Q87: 0 | R87: 5539.38 | T87: 2605.5 | U87: 0 | W87: 0 | X87: 0 | Z87: 2605.5 | AB87: 2850.48 | AC87: 0 | AE87: 0 | AF87: 3552 | AH87: 0 | AI87: 0 | AK87: 2850.48 | AM87: 0 | AN87: 2850.48 | AP87: 0 | AQ87: 4567.5 | AS87: 0 | AT87: 0 | AV87: 0 | AX87: 11455.98 | AY87: 21509.36 | BA87: 21509.36
A88: 54950-0200 | B88: 10 | D88: Subcontractors | F88: 0 | G88: 0 | I88: 0 | J88: 0 | L88: 1000 | M88: 0 | O88: 1000 | Q88: 0 | R88: 0 | T88: 864 | U88: 0 | W88: 0 | X88: 0 | Z88: 864 | AB88: 475.08 | AC88: 0 | AE88: 0 | AF88: 592 | AH88: 0 | AI88: 0 | AK88: 475.08 | AM88: 0 | AN88: 475.08 | AP88: 0 | AQ88: 765 | AS88: 0 | AT88: 0 | AV88: 0 | AX88: 2339.08 | AY88: 1832.08 | BA88: 1832.08
A89: 54950-0300 | B89: 10 | D89: Subcontractors | F89: 0 | G89: 0 | I89: 0 | J89: 2970 | L89: 0 | M89: 13442.41 | O89: 0 | Q89: 0 | R89: 0 | T89: 2605.5 | U89: 0 | W89: 0 | X89: 0 | Z89: 2605.5 | AB89: 10044.48 | AC89: 0 | AE89: 34100 | AF89: 3552 | AH89: 0 | AI89: 0 | AK89: 44144.48 | AM89: 0 | AN89: 11718.64 | AP89: 0 | AQ89: 58739.5 | AS89: 0 | AT89: 0 | AV89: 0 | AX89: 46749.98 | AY89: 90422.55 | BA89: 90422.55
B91: GP | C91: GROSS PROFIT / (LOSS) | F91: 59339.07 | G91: 18112.95 | I91: 69795.72 | J91: 22898.02 | L91: 78924.91 | M91: 52197.59 | O91: 208059.7 | Q91: 82500.61 | R91: 59174.56 | T91: 97367.93 | U91: 61206.31 | W91: 92785 | X91: 68389.4 | Z91: 272653.54 | AB91: 99087.56 | AC91: 71868.26 | AE91: 116051.22 | AF91: 63675.04 | AH91: 109714.25 | AI91: 68804.16 | AK91: 324853.03 | AM91: 0 | AN91: 80025.28 | AP91: 0 | AQ91: 89521.32 | AS91: 0 | AT91: 98483.18 | AV91: 0 | AX91: 805566.27 | AY91: 754356.07 | BA91: 754356.07
B93: _EX | C93: EXPENSES
C95: Operating Expense | F95: 50 | G95: 0 | I95: 0 | J95: 24.8 | L95: 142.94 | M95: 38.49 | O95: 192.94 | Q95: -272.79 | R95: -527.62 | T95: 52.45 | U95: 0 | W95: 44.75 | X95: 1526.21 | Z95: -175.59 | AB95: -85.45 | AC95: 0 | AE95: -623.43 | AF95: -500 | AH95: 4929.34 | AI95: 0 | AK95: 4220.46 | AM95: 0 | AN95: 0 | AP95: 0 | AQ95: 0 | AS95: 0 | AT95: -1981 | AV95: 0 | AX95: 4237.81 | AY95: -1419.12 | BA95: -1419.12
A96: 51200-0000 | B96: 12 | D96: Item Assembly Costs | F96: 0 | G96: 0 | I96: 0 | J96: 0 | L96: 0 | M96: 0 | O96: 0 | Q96: 0 | R96: 0 | T96: 0 | U96: 0 | W96: 0 | X96: 0 | Z96: 0 | AB96: 0 | AC96: 0 | AE96: 0 | AF96: 0 | AH96: 0 | AI96: 0 | AK96: 0 | AM96: 0 | AN96: 0 | AP96: 0 | AQ96: 0 | AS96: 0 | AT96: 0 | AV96: 0 | AX96: 0 | AY96: 0 | BA96: 0
A97: 51200-0100 | B97: 12 | D97: Item Assembly Costs | F97: 0 | G97: 0 | I97: 0 | J97: 0 | L97: 0 | M97: 0 | O97: 0 | Q97: 0 | R97: 0 | T97: 0 | U97: 0 | W97: 0 | X97: 0 | Z97: 0 | AB97: 0 | AC97: 0 | AE97: 0 | AF97: 0 | AH97: 0 | AI97: 0 | AK97: 0 | AM97: 0 | AN97: 0 | AP97: 0 | AQ97: 0 | AS97: 0 | AT97: 0 | AV97: 0 | AX97: 0 | AY97: 0 | BA97: 0
A98: 51200-0200 | B98: 12 | D98: Item Assembly Costs | F98: 0 | G98: 0 | I98: 0 | J98: 0 | L98: 0 | M98: 0 | O98: 0 | Q98: 0 | R98: 0 | T98: 0 | U98: 0 | W98: 0 | X98: 0 | Z98: 0 | AB98: 0 | AC98: 0 | AE98: 0 | AF98: 0 | AH98: 0 | AI98: 0 | AK98: 0 | AM98: 0 | AN98: 0 | AP98: 0 | AQ98: 0 | AS98: 0 | AT98: 0 | AV98: 0 | AX98: 0 | AY98: 0 | BA98: 0
A99: 51200-0300 | B99: 12 | D99: Item Assembly Costs | F99: 0 | G99: 0 | I99: 0 | J99: 0 | L99: 0 | M99: 0 | O99: 0 | Q99: 0 | R99: 0 | T99: 0 | U99: 0 | W99: 0 | X99: 0 | Z99: 0 | AB99: 0 | AC99: 0 | AE99: 0 | AF99: -500 | AH99: -1200 | AI99: 0 | AK99: -1200 | AM99: 0 | AN99: 0 | AP99: 0 | AQ99: 0 | AS99: 0 | AT99: 0 | AV99: 0 | AX99: -1200 | AY99: -500 | BA99: -500
A100: 51300-0000 | B100: 12 | D100: Adjustment Write-off | F100: 0 | G100: 0 | I100: 0 | J100: 0 | L100: 0 | M100: 0 | O100: 0 | Q100: 0 | R100: 0 | T100: 0 | U100: 0 | W100: 0 | X100: 0 | Z100: 0 | AB100: 0 | AC100: 0 | AE100: 0 | AF100: 0 | AH100: 0 | AI100: 0 | AK100: 0 | AM100: 0 | AN100: 0 | AP100: 0 | AQ100: 0 | AS100: 0 | AT100: 0 | AV100: 0 | AX100: 0 | AY100: 0 | BA100: 0
A101: 51300-0100 | B101: 12 | D101: Adjustment Write-off | F101: 0 | G101: 0 | I101: 0 | J101: 0 | L101: 0 | M101: 0 | O101: 0 | Q101: 0 | R101: 0 | T101: 0 | U101: 0 | W101: 0 | X101: 0 | Z101: 0 | AB101: 0 | AC101: 0 | AE101: 0 | AF101: 0 | AH101: 0 | AI101: 0 | AK101: 0 | AM101: 0 | AN101: 0 | AP101: 0 | AQ101: 0 | AS101: 0 | AT101: 0 | AV101: 0 | AX101: 0 | AY101: 0 | BA101: 0
A102: 51300-0200 | B102: 12 | D102: Adjustment Write-off | F102: 0 | G102: 0 | I102: 0 | J102: 0 | L102: 0 | M102: 0 | O102: 0 | Q102: 0 | R102: 0 | T102: 0 | U102: 0 | W102: 0 | X102: 0 | Z102: 0 | AB102: 0 | AC102: 0 | AE102: 0 | AF102: 0 | AH102: 0 | AI102: 0 | AK102: 0 | AM102: 0 | AN102: 0 | AP102: 0 | AQ102: 0 | AS102: 0 | AT102: 0 | AV102: 0 | AX102: 0 | AY102: 0 | BA102: 0
A103: 51300-0300 | B103: 12 | D103: Adjustment Write-off | F103: 0 | G103: 0 | I103: 0 | J103: 78 | L103: 100.14 | M103: 38.49 | O103: 100.14 | Q103: 0 | R103: 0 | T103: 0 | U103: 0 | W103: 0 | X103: 1526.21 | Z103: 0 | AB103: 0 | AC103: 0 | AE103: 0 | AF103: 0 | AH103: 0 | AI103: 0 | AK103: 0 | AM103: 0 | AN103: 0 | AP103: 0 | AQ103: 0 | AS103: 0 | AT103: -10803.86 | AV103: 0 | AX103: 100.14 | AY103: -9161.16 | BA103: -9161.16
A104: 51400-0000 | B104: 12 | D104: Transfer Costs | F104: 0 | G104: 0 | I104: 0 | J104: 0 | L104: 0 | M104: 0 | O104: 0 | Q104: 0 | R104: 0 | T104: 0 | U104: 0 | W104: 0 | X104: 0 | Z104: 0 | AB104: 0 | AC104: 0 | AE104: 0 | AF104: 0 | AH104: 0 | AI104: 0 | AK104: 0 | AM104: 0 | AN104: 0 | AP104: 0 | AQ104: 0 | AS104: 0 | AT104: 0 | AV104: 0 | AX104: 0 | AY104: 0 | BA104: 0
A105: 51400-0100 | B105: 12 | D105: Transfer Costs | F105: 0 | G105: 0 | I105: 0 | J105: 0 | L105: 0 | M105: 0 | O105: 0 | Q105: 0 | R105: 0 | T105: 0 | U105: 0 | W105: 0 | X105: 0 | Z105: 0 | AB105: 0 | AC105: 0 | AE105: 0 | AF105: 0 | AH105: 0 | AI105: 0 | AK105: 0 | AM105: 0 | AN105: 0 | AP105: 0 | AQ105: 0 | AS105: 0 | AT105: 0 | AV105: 0 | AX105: 0 | AY105: 0 | BA105: 0
A106: 51400-0200 | B106: 12 | D106: Transfer Costs | F106: 0 | G106: 0 | I106: 0 | J106: 0 | L106: 0 | M106: 0 | O106: 0 | Q106: 0 | R106: 0 | T106: 0 | U106: 0 | W106: 0 | X106: 0 | Z106: 0 | AB106: 0 | AC106: 0 | AE106: 0 | AF106: 0 | AH106: 0 | AI106: 0 | AK106: 0 | AM106: 0 | AN106: 0 | AP106: 0 | AQ106: 0 | AS106: 0 | AT106: 0 | AV106: 0 | AX106: 0 | AY106: 0 | BA106: 0
A107: 51400-0300 | B107: 12 | D107: Transfer Costs | F107: 0 | G107: 0 | I107: 0 | J107: 0 | L107: 0 | M107: 0 | O107: 0 | Q107: 0 | R107: 0 | T107: 0 | U107: 0 | W107: 0 | X107: 0 | Z107: 0 | AB107: 0 | AC107: 0 | AE107: 0 | AF107: 0 | AH107: 0 | AI107: 0 | AK107: 0 | AM107: 0 | AN107: 0 | AP107: 0 | AQ107: 0 | AS107: 0 | AT107: 0 | AV107: 0 | AX107: 0 | AY107: 0 | BA107: 0
A108: 51500-0000 | B108: 12 | D108: Purchase Discounts | F108: 0 | G108: 0 | I108: 0 | J108: 0 | L108: 0 | M108: 0 | O108: 0 | Q108: 0 | R108: 0 | T108: 0 | U108: 0 | W108: 0 | X108: 0 | Z108: 0 | AB108: -130.45 | AC108: 0 | AE108: 0 | AF108: 0 | AH108: 0 | AI108: 0 | AK108: -130.45 | AM108: 0 | AN108: 0 | AP108: 0 | AQ108: 0 | AS108: 0 | AT108: 0 | AV108: 0 | AX108: -130.45 | AY108: 0 | BA108: 0
A109: 51500-0100 | B109: 12 | D109: Purchase Discounts | F109: 0 | G109: 0 | I109: 0 | J109: 0 | L109: 0 | M109: 0 | O109: 0 | Q109: 0 | R109: 0 | T109: 0 | U109: 0 | W109: 0 | X109: 0 | Z109: 0 | AB109: 0 | AC109: 0 | AE109: 0 | AF109: 0 | AH109: 0 | AI109: 0 | AK109: 0 | AM109: 0 | AN109: 0 | AP109: 0 | AQ109: 0 | AS109: 0 | AT109: 0 | AV109: 0 | AX109: 0 | AY109: 0 | BA109: 0
A110: 51500-0200 | B110: 12 | D110: Purchase Discounts | F110: 0 | G110: 0 | I110: 0 | J110: 0 | L110: 0 | M110: 0 | O110: 0 | Q110: 0 | R110: 0 | T110: 0 | U110: 0 | W110: 0 | X110: 0 | Z110: 0 | AB110: 0 | AC110: 0 | AE110: 0 | AF110: 0 | AH110: 0 | AI110: 0 | AK110: 0 | AM110: 0 | AN110: 0 | AP110: 0 | AQ110: 0 | AS110: 0 | AT110: 0 | AV110: 0 | AX110: 0 | AY110: 0 | BA110: 0
A111: 51500-0300 | B111: 12 | D111: Purchase Discounts | F111: 0 | G111: 0 | I111: 0 | J111: -53.2 | L111: 0 | M111: 0 | O111: 0 | Q111: -326.29 | R111: -527.62 | T111: 0 | U111: 0 | W111: 0 | X111: 0 | Z111: -326.29 | AB111: 0 | AC111: 0 | AE111: -678 | AF111: 0 | AH111: -173.66 | AI111: 0 | AK111: -851.66 | AM111: 0 | AN111: 0 | AP111: 0 | AQ111: 0 | AS111: 0 | AT111: 0 | AV111: 0 | AX111: -1177.95 | AY111: -580.82 | BA111: -580.82
A112: 51600-0000 | B112: 12 | D112: Equipment Rental | F112: 0 | G112: 0 | I112: 0 | J112: 0 | L112: 0 | M112: 0 | O112: 0 | Q112: 0 | R112: 0 | T112: 0 | U112: 0 | W112: 0 | X112: 0 | Z112: 0 | AB112: 0 | AC112: 0 | AE112: 0 | AF112: 0 | AH112: 0 | AI112: 0 | AK112: 0 | AM112: 0 | AN112: 0 | AP112: 0 | AQ112: 0 | AS112: 0 | AT112: 0 | AV112: 0 | AX112: 0 | AY112: 0 | BA112: 0
A113: 51600-0100 | B113: 12 | D113: Equipment Rental | F113: 0 | G113: 0 | I113: 0 | J113: 0 | L113: 0 | M113: 0 | O113: 0 | Q113: 0 | R113: 0 | T113: 0 | U113: 0 | W113: 0 | X113: 0 | Z113: 0 | AB113: 0 | AC113: 0 | AE113: 0 | AF113: 0 | AH113: 0 | AI113: 0 | AK113: 0 | AM113: 0 | AN113: 0 | AP113: 0 | AQ113: 0 | AS113: 0 | AT113: 0 | AV113: 0 | AX113: 0 | AY113: 0 | BA113: 0
A114: 51600-0200 | B114: 12 | D114: Equipment Rental | F114: 0 | G114: 0 | I114: 0 | J114: 0 | L114: 0 | M114: 0 | O114: 0 | Q114: 0 | R114: 0 | T114: 0 | U114: 0 | W114: 0 | X114: 0 | Z114: 0 | AB114: 0 | AC114: 0 | AE114: 0 | AF114: 0 | AH114: 0 | AI114: 0 | AK114: 0 | AM114: 0 | AN114: 0 | AP114: 0 | AQ114: 0 | AS114: 0 | AT114: 0 | AV114: 0 | AX114: 0 | AY114: 0 | BA114: 0
A115: 51600-0300 | B115: 12 | D115: Equipment Rental | F115: 0 | G115: 0 | I115: 0 | J115: 0 | L115: 0 | M115: 0 | O115: 0 | Q115: 0 | R115: 0 | T115: 0 | U115: 0 | W115: 0 | X115: 0 | Z115: 0 | AB115: 0 | AC115: 0 | AE115: 0 | AF115: 0 | AH115: 6211.35 | AI115: 0 | AK115: 6211.35 | AM115: 0 | AN115: 0 | AP115: 0 | AQ115: 0 | AS115: 0 | AT115: 8822.86 | AV115: 0 | AX115: 6211.35 | AY115: 8822.86 | BA115: 8822.86
A116: 51700-0000 | B116: 12 | D116: Freight Expense | F116: 0 | G116: 0 | I116: 0 | J116: 0 | L116: 0 | M116: 0 | O116: 0 | Q116: 0 | R116: 0 | T116: 0 | U116: 0 | W116: 0 | X116: 0 | Z116: 0 | AB116: 0 | AC116: 0 | AE116: 0 | AF116: 0 | AH116: 0 | AI116: 0 | AK116: 0 | AM116: 0 | AN116: 0 | AP116: 0 | AQ116: 0 | AS116: 0 | AT116: 0 | AV116: 0 | AX116: 0 | AY116: 0 | BA116: 0
A117: 51700-0100 | B117: 12 | D117: Freight Expense | F117: 0 | G117: 0 | I117: 0 | J117: 0 | L117: 0 | M117: 0 | O117: 0 | Q117: 0 | R117: 0 | T117: 0 | U117: 0 | W117: 0 | X117: 0 | Z117: 0 | AB117: 0 | AC117: 0 | AE117: 0 | AF117: 0 | AH117: 0 | AI117: 0 | AK117: 0 | AM117: 0 | AN117: 0 | AP117: 0 | AQ117: 0 | AS117: 0 | AT117: 0 | AV117: 0 | AX117: 0 | AY117: 0 | BA117: 0
A118: 51700-0200 | B118: 12 | D118: Freight Expense | F118: 0 | G118: 0 | I118: 0 | J118: 0 | L118: 0 | M118: 0 | O118: 0 | Q118: 0 | R118: 0 | T118: 15 | U118: 0 | W118: 0 | X118: 0 | Z118: 15 | AB118: 0 | AC118: 0 | AE118: 0 | AF118: 0 | AH118: 0 | AI118: 0 | AK118: 0 | AM118: 0 | AN118: 0 | AP118: 0 | AQ118: 0 | AS118: 0 | AT118: 0 | AV118: 0 | AX118: 15 | AY118: 0 | BA118: 0
A119: 51700-0300 | B119: 12 | D119: Freight Expense | F119: 50 | G119: 0 | I119: 0 | J119: 0 | L119: 42.8 | M119: 0 | O119: 92.8 | Q119: 53.5 | R119: 0 | T119: 37.45 | U119: 0 | W119: 44.75 | X119: 0 | Z119: 135.7 | AB119: 45 | AC119: 0 | AE119: 54.57 | AF119: 0 | AH119: 91.65 | AI119: 0 | AK119: 191.22 | AM119: 0 | AN119: 0 | AP119: 0 | AQ119: 0 | AS119: 0 | AT119: 0 | AV119: 0 | AX119: 419.72 | AY119: 0 | BA119: 0
C121: Payroll Expense | F121: 26496.67 | G121: 16810.03 | I121: 33276.17 | J121: 21612.78 | L121: 33355.51 | M121: 26256.35 | O121: 93128.35 | Q121: 39830.94 | R121: 26496.67 | T121: 39875.84 | U121: 31180.18 | W121: 39783.36 | X121: 31192.12 | Z121: 119490.14 | AB121: 41201.16 | AC121: 37646.63 | AE121: 41340.42 | AF121: 37746.67 | AH121: 41245.15 | AI121: 37707.59 | AK121: 123786.73 | AM121: 0 | AN121: 37698.81 | AP121: 0 | AQ121: 37878.76 | AS121: 0 | AT121: 37773.84 | AV121: 0 | AX121: 336405.22 | AY121: 380000.43 | BA121: 380000.43
A122: 54100-0000 | B122: 13 | D122: Wages & Salaries | F122: 0 | G122: 15392 | I122: 0 | J122: 0 | L122: 0 | M122: 0 | O122: 0 | Q122: 0 | R122: 0 | T122: 0 | U122: 0 | W122: 0 | X122: 0 | Z122: 0 | AB122: 0 | AC122: 0 | AE122: 0 | AF122: 0 | AH122: 0 | AI122: 0 | AK122: 0 | AM122: 0 | AN122: 0 | AP122: 0 | AQ122: 0 | AS122: 0 | AT122: 0 | AV122: 0 | AX122: 0 | AY122: 15392 | BA122: 15392
A123: 54100-0100 | B123: 13 | D123: Wages & Salaries | F123: 13344.8 | G123: 0 | I123: 15840.8 | J123: 9012.4 | L123: 15884 | M123: 11508.4 | O123: 45069.6 | Q123: 15840.8 | R123: 13344.8 | T123: 15885.34 | U123: 15840.8 | W123: 15871.52 | X123: 15884 | Z123: 47597.66 | AB123: 15840.8 | AC123: 15840.8 | AE123: 15911.22 | AF123: 15874.21 | AH123: 15840.8 | AI123: 15863.84 | AK123: 47592.82 | AM123: 0 | AN123: 15840.8 | AP123: 0 | AQ123: 15911.22 | AS123: 0 | AT123: 15840.8 | AV123: 0 | AX123: 140260.08 | AY123: 160762.07 | BA123: 160762.07
A124: 54100-0200 | B124: 13 | D124: Wages & Salaries | F124: 0 | G124: 0 | I124: 0 | J124: 0 | L124: 0 | M124: 0 | O124: 0 | Q124: 2179.1 | R124: 0 | T124: 2159.04 | U124: 0 | W124: 2159.04 | X124: 0 | Z124: 6497.18 | AB124: 2159.04 | AC124: 2162.36 | AE124: 2159.04 | AF124: 2159.04 | AH124: 2159.04 | AI124: 2159.04 | AK124: 6477.12 | AM124: 0 | AN124: 2159.04 | AP124: 0 | AQ124: 2159.04 | AS124: 0 | AT124: 2159.04 | AV124: 0 | AX124: 12974.3 | AY124: 12957.56 | BA124: 12957.56
A125: 54100-0300 | B125: 13 | D125: Wages & Salaries | F125: 10737.6 | G125: 0 | I125: 14197.28 | J125: 10712 | L125: 14125.28 | M125: 12552.8 | O125: 39060.16 | Q125: 17872.08 | R125: 10737.6 | T125: 17872.08 | U125: 12586.56 | W125: 17872.08 | X125: 12546.56 | Z125: 53616.24 | AB125: 19145.78 | AC125: 16293.36 | AE125: 19124.07 | AF125: 16293.36 | AH125: 19155.31 | AI125: 16293.36 | AK125: 57425.16 | AM125: 0 | AN125: 16313.12 | AP125: 0 | AQ125: 16293.36 | AS125: 0 | AT125: 16328.59 | AV125: 0 | AX125: 150101.56 | AY125: 156950.67 | BA125: 156950.67
A126: 54200-0000 | B126: 13 | D126: EI Expense | F126: 0 | G126: 404.04 | I126: 0 | J126: 0 | L126: 0 | M126: 0 | O126: 0 | Q126: 0 | R126: 0 | T126: 0 | U126: 0 | W126: 0 | X126: 0 | Z126: 0 | AB126: 0 | AC126: 0 | AE126: 0 | AF126: 0 | AH126: 0 | AI126: 0 | AK126: 0 | AM126: 0 | AN126: 0 | AP126: 0 | AQ126: 0 | AS126: 0 | AT126: 0 | AV126: 0 | AX126: 0 | AY126: 404.04 | BA126: 404.04
A127: 54200-0100 | B127: 13 | D127: EI Expense | F127: 350.27 | G127: 0 | I127: 533.6 | J127: 236.56 | L127: 556.84 | M127: 302.08 | O127: 1440.71 | Q127: 533.6 | R127: 350.27 | T127: 491.6 | U127: 415.79 | W127: 530.91 | X127: 439.03 | Z127: 1556.11 | AB127: 533.6 | AC127: 415.79 | AE127: 519.33 | AF127: 435.71 | AH127: 533.6 | AI127: 428.18 | AK127: 1586.53 | AM127: 0 | AN127: 415.79 | AP127: 0 | AQ127: 390.49 | AS127: 0 | AT127: 415.79 | AV127: 0 | AX127: 4583.35 | AY127: 4245.48 | BA127: 4245.48
A128: 54200-0200 | B128: 13 | D128: EI Expense | F128: 0 | G128: 0 | I128: 0 | J128: 0 | L128: 0 | M128: 0 | O128: 0 | Q128: 54.35 | R128: 0 | T128: 58.94 | U128: 0 | W128: 58.94 | X128: 0 | Z128: 172.23 | AB128: 58.94 | AC128: 56.52 | AE128: 58.94 | AF128: 58.94 | AH128: 58.94 | AI128: 58.94 | AK128: 176.82 | AM128: 0 | AN128: 58.94 | AP128: 0 | AQ128: 58.94 | AS128: 0 | AT128: 58.94 | AV128: 0 | AX128: 349.05 | AY128: 351.22 | BA128: 351.22
A129: 54200-0300 | B129: 13 | D129: EI Expense | F129: 293.47 | G129: 0 | I129: 299.21 | J129: 281.19 | L129: 370.19 | M129: 331.98 | O129: 962.87 | Q129: 468.47 | R129: 293.47 | T129: 468.47 | U129: 349.93 | W129: 468.47 | X129: 329.35 | Z129: 1405.41 | AB129: 512.69 | AC129: 427.63 | AE129: 514.66 | AF129: 427.63 | AH129: 493.49 | AI129: 427.63 | AK129: 1520.84 | AM129: 0 | AN129: 438.58 | AP129: 0 | AQ129: 427.63 | AS129: 0 | AT129: 425.33 | AV129: 0 | AX129: 3889.12 | AY129: 4160.35 | BA129: 4160.35
A130: 54300-0000 | B130: 13 | D130: CPP Expense | F130: 0 | G130: 634.59 | I130: 0 | J130: 0 | L130: 0 | M130: 0 | O130: 0 | Q130: 0 | R130: 0 | T130: 0 | U130: 0 | W130: 0 | X130: 0 | Z130: 0 | AB130: 0 | AC130: 0 | AE130: 0 | AF130: 0 | AH130: 0 | AI130: 0 | AK130: 0 | AM130: 0 | AN130: 0 | AP130: 0 | AQ130: 0 | AS130: 0 | AT130: 0 | AV130: 0 | AX130: 0 | AY130: 634.59 | BA130: 634.59
A131: 54300-0100 | B131: 13 | D131: CPP Expense | F131: 375.79 | G131: 0 | I131: 682.75 | J131: 293.66 | L131: 736.21 | M131: 401.29 | O131: 1794.75 | Q131: 682.75 | R131: 375.79 | T131: 737.87 | U131: 483.42 | W131: 682.75 | X131: 536.88 | Z131: 2103.37 | AB131: 682.75 | AC131: 483.42 | AE131: 682.75 | AF131: 524.76 | AH131: 682.75 | AI131: 511.93 | AK131: 2048.25 | AM131: 0 | AN131: 483.42 | AP131: 0 | AQ131: 483.42 | AS131: 0 | AT131: 483.42 | AV131: 0 | AX131: 5946.37 | AY131: 5061.41 | BA131: 5061.41
A132: 54300-0200 | B132: 13 | D132: CPP Expense | F132: 0 | G132: 0 | I132: 0 | J132: 0 | L132: 0 | M132: 0 | O132: 0 | Q132: 91.64 | R132: 0 | T132: 95.75 | U132: 0 | W132: 95.75 | X132: 0 | Z132: 283.14 | AB132: 95.75 | AC132: 95.75 | AE132: 95.75 | AF132: 95.75 | AH132: 95.75 | AI132: 95.75 | AK132: 287.25 | AM132: 0 | AN132: 95.75 | AP132: 0 | AQ132: 95.75 | AS132: 0 | AT132: 95.75 | AV132: 0 | AX132: 570.39 | AY132: 574.5 | BA132: 574.5
A133: 54300-0300 | B133: 13 | D133: CPP Expense | F133: 454.74 | G133: 0 | I133: 585.97 | J133: 423.06 | L133: 565.51 | M133: 499.26 | O133: 1606.22 | Q133: 565.51 | R133: 454.74 | T133: 565.51 | U133: 548.76 | W133: 565.51 | X133: 499.26 | Z133: 1696.53 | AB133: 641.71 | AC133: 499.26 | AE133: 641.71 | AF133: 499.26 | AH133: 641.71 | AI133: 499.26 | AK133: 1925.13 | AM133: 0 | AN133: 523.71 | AP133: 0 | AQ133: 499.26 | AS133: 0 | AT133: 499.26 | AV133: 0 | AX133: 5227.88 | AY133: 5445.09 | BA133: 5445.09
A134: 54400-0000 | B134: 13 | D134: QPP Expense | F134: 0 | G134: 0 | I134: 0 | J134: 0 | L134: 0 | M134: 0 | O134: 0 | Q134: 0 | R134: 0 | T134: 0 | U134: 0 | W134: 0 | X134: 0 | Z134: 0 | AB134: 0 | AC134: 0 | AE134: 0 | AF134: 0 | AH134: 0 | AI134: 0 | AK134: 0 | AM134: 0 | AN134: 0 | AP134: 0 | AQ134: 0 | AS134: 0 | AT134: 0 | AV134: 0 | AX134: 0 | AY134: 0 | BA134: 0
A135: 54400-0100 | B135: 13 | D135: QPP Expense | F135: 228.72 | G135: 0 | I135: 228.72 | J135: 114.36 | L135: 228.72 | M135: 114.36 | O135: 686.16 | Q135: 227.62 | R135: 228.72 | T135: 227.62 | U135: 228.72 | W135: 227.62 | X135: 228.72 | Z135: 682.86 | AB135: 227.62 | AC135: 227.62 | AE135: 227.62 | AF135: 227.62 | AH135: 227.62 | AI135: 227.62 | AK135: 682.86 | AM135: 0 | AN135: 227.62 | AP135: 0 | AQ135: 314.76 | AS135: 0 | AT135: 227.62 | AV135: 0 | AX135: 2051.88 | AY135: 2367.74 | BA135: 2367.74
A136: 54400-0200 | B136: 13 | D136: QPP Expense | F136: 0 | G136: 0 | I136: 0 | J136: 0 | L136: 0 | M136: 0 | O136: 0 | Q136: 0 | R136: 0 | T136: 0 | U136: 0 | W136: 0 | X136: 0 | Z136: 0 | AB136: 0 | AC136: 0 | AE136: 0 | AF136: 0 | AH136: 0 | AI136: 0 | AK136: 0 | AM136: 0 | AN136: 0 | AP136: 0 | AQ136: 0 | AS136: 0 | AT136: 0 | AV136: 0 | AX136: 0 | AY136: 0 | BA136: 0
A137: 54400-0300 | B137: 13 | D137: QPP Expense | F137: 0 | G137: 0 | I137: 0 | J137: 0 | L137: 0 | M137: 0 | O137: 0 | Q137: 167.23 | R137: 0 | T137: 167.23 | U137: 0 | W137: 167.23 | X137: 0 | Z137: 501.69 | AB137: 167.23 | AC137: 167.23 | AE137: 167.23 | AF137: 167.23 | AH137: 167.23 | AI137: 167.23 | AK137: 501.69 | AM137: 0 | AN137: 167.23 | AP137: 0 | AQ137: 167.23 | AS137: 0 | AT137: 210.83 | AV137: 0 | AX137: 1003.38 | AY137: 1046.98 | BA137: 1046.98
A138: 54500-0000 | B138: 13 | D138: WCB Expense | F138: 0 | G138: 379.4 | I138: 0 | J138: 0 | L138: 0 | M138: 0 | O138: 0 | Q138: 0 | R138: 0 | T138: 0 | U138: 0 | W138: 0 | X138: 0 | Z138: 0 | AB138: 0 | AC138: 0 | AE138: 0 | AF138: 0 | AH138: 0 | AI138: 0 | AK138: 0 | AM138: 0 | AN138: 0 | AP138: 0 | AQ138: 0 | AS138: 0 | AT138: 0 | AV138: 0 | AX138: 0 | AY138: 379.4 | BA138: 379.4
A139: 54500-0100 | B139: 13 | D139: WCB Expense | F139: 202.95 | G139: 0 | I139: 318.21 | J139: 161.1 | L139: 346.83 | M139: 161.1 | O139: 867.99 | Q139: 318.21 | R139: 202.95 | T139: 329.35 | U139: 202.95 | W139: 283.81 | X139: 231.57 | Z139: 931.37 | AB139: 318.21 | AC139: 202.95 | AE139: 335.81 | AF139: 211.3 | AH139: 318.21 | AI139: 202.95 | AK139: 972.23 | AM139: 0 | AN139: 202.95 | AP139: 0 | AQ139: 220.55 | AS139: 0 | AT139: 202.95 | AV139: 0 | AX139: 2771.59 | AY139: 2203.32 | BA139: 2203.32
A140: 54500-0200 | B140: 13 | D140: WCB Expense | F140: 0 | G140: 0 | I140: 0 | J140: 0 | L140: 0 | M140: 0 | O140: 0 | Q140: 64.44 | R140: 0 | T140: 51.9 | U140: 0 | W140: 51.9 | X140: 0 | Z140: 168.24 | AB140: 51.9 | AC140: 53.98 | AE140: 51.9 | AF140: 51.9 | AH140: 51.9 | AI140: 51.9 | AK140: 155.7 | AM140: 0 | AN140: 51.9 | AP140: 0 | AQ140: 51.9 | AS140: 0 | AT140: 51.9 | AV140: 0 | AX140: 323.94 | AY140: 313.48 | BA140: 313.48
A141: 54500-0300 | B141: 13 | D141: WCB Expense | F141: 271.73 | G141: 0 | I141: 307.85 | J141: 260.15 | L141: 260.15 | M141: 266.78 | O141: 839.73 | Q141: 306.03 | R141: 271.73 | T141: 306.03 | U141: 286.65 | W141: 306.03 | X141: 260.15 | Z141: 918.09 | AB141: 306.03 | AC141: 306.03 | AE141: 306.03 | AF141: 306.03 | AH141: 317.04 | AI141: 306.03 | AK141: 929.1 | AM141: 0 | AN141: 306.03 | AP141: 0 | AQ141: 306.03 | AS141: 0 | AT141: 317.04 | AV141: 0 | AX141: 2686.92 | AY141: 3192.65 | BA141: 3192.65
A142: 54600-0000 | B142: 13 | D142: EHT Expense | F142: 0 | G142: 0 | I142: 0 | J142: 0 | L142: 0 | M142: 0 | O142: 0 | Q142: 0 | R142: 0 | T142: 0 | U142: 0 | W142: 0 | X142: 0 | Z142: 0 | AB142: 0 | AC142: 0 | AE142: 0 | AF142: 0 | AH142: 0 | AI142: 0 | AK142: 0 | AM142: 0 | AN142: 0 | AP142: 0 | AQ142: 0 | AS142: 0 | AT142: 0 | AV142: 0 | AX142: 0 | AY142: 0 | BA142: 0
A143: 54600-0100 | B143: 13 | D143: EHT Expense | F143: 0 | G143: 0 | I143: 45.18 | J143: 0 | L143: 45.18 | M143: 0 | O143: 90.36 | Q143: 45.18 | R143: 0 | T143: 45.18 | U143: 0 | W143: 45.18 | X143: 0 | Z143: 135.54 | AB143: 45.18 | AC143: 0 | AE143: 45.18 | AF143: 0 | AH143: 45.18 | AI143: 0 | AK143: 135.54 | AM143: 0 | AN143: 0 | AP143: 0 | AQ143: 0 | AS143: 0 | AT143: 0 | AV143: 0 | AX143: 361.44 | AY143: 0 | BA143: 0
A144: 54600-0200 | B144: 13 | D144: EHT Expense | F144: 0 | G144: 0 | I144: 0 | J144: 0 | L144: 0 | M144: 0 | O144: 0 | Q144: 0 | R144: 0 | T144: 0 | U144: 0 | W144: 0 | X144: 0 | Z144: 0 | AB144: 0 | AC144: 0 | AE144: 0 | AF144: 0 | AH144: 0 | AI144: 0 | AK144: 0 | AM144: 0 | AN144: 0 | AP144: 0 | AQ144: 0 | AS144: 0 | AT144: 0 | AV144: 0 | AX144: 0 | AY144: 0 | BA144: 0
A145: 54600-0300 | B145: 13 | D145: EHT Expense | F145: 0 | G145: 0 | I145: 0 | J145: 0 | L145: 0 | M145: 0 | O145: 0 | Q145: 0 | R145: 0 | T145: 0 | U145: 0 | W145: 0 | X145: 0 | Z145: 0 | AB145: 0 | AC145: 0 | AE145: 0 | AF145: 0 | AH145: 0 | AI145: 0 | AK145: 0 | AM145: 0 | AN145: 0 | AP145: 0 | AQ145: 0 | AS145: 0 | AT145: 0 | AV145: 0 | AX145: 0 | AY145: 0 | BA145: 0
A146: 54650-0000 | B146: 13 | D146: QPIP Expense | F146: 0 | G146: 0 | I146: 0 | J146: 0 | L146: 0 | M146: 0 | O146: 0 | Q146: 0 | R146: 0 | T146: 0 | U146: 0 | W146: 0 | X146: 0 | Z146: 0 | AB146: 0 | AC146: 0 | AE146: 0 | AF146: 0 | AH146: 0 | AI146: 0 | AK146: 0 | AM146: 0 | AN146: 0 | AP146: 0 | AQ146: 0 | AS146: 0 | AT146: 0 | AV146: 0 | AX146: 0 | AY146: 0 | BA146: 0
A147: 54650-0100 | B147: 13 | D147: QPIP Expense | F147: 28.28 | G147: 0 | I147: 28.28 | J147: 14.14 | L147: 28.28 | M147: 14.14 | O147: 84.84 | Q147: 28.28 | R147: 28.28 | T147: 28.28 | U147: 28.28 | W147: 10.97 | X147: 28.28 | Z147: 67.53 | AB147: 28.28 | AC147: 28.28 | AE147: 38.54 | AF147: 28.28 | AH147: 28.28 | AI147: 28.28 | AK147: 95.1 | AM147: 0 | AN147: 28.28 | AP147: 0 | AQ147: 38.54 | AS147: 0 | AT147: 28.28 | AV147: 0 | AX147: 247.47 | AY147: 293.06 | BA147: 293.06
A148: 54650-0200 | B148: 13 | D148: QPIP Expense | F148: 0 | G148: 0 | I148: 0 | J148: 0 | L148: 0 | M148: 0 | O148: 0 | Q148: 0 | R148: 0 | T148: 0 | U148: 0 | W148: 0 | X148: 0 | Z148: 0 | AB148: 0 | AC148: 0 | AE148: 0 | AF148: 0 | AH148: 0 | AI148: 0 | AK148: 0 | AM148: 0 | AN148: 0 | AP148: 0 | AQ148: 0 | AS148: 0 | AT148: 0 | AV148: 0 | AX148: 0 | AY148: 0 | BA148: 0
A149: 54650-0300 | B149: 13 | D149: QPIP Expense | F149: 0 | G149: 0 | I149: 0 | J149: 0 | L149: 0 | M149: 0 | O149: 0 | Q149: 20.99 | R149: 0 | T149: 20.99 | U149: 0 | W149: 20.99 | X149: 0 | Z149: 62.97 | AB149: 20.99 | AC149: 20.99 | AE149: 20.99 | AF149: 20.99 | AH149: 26.12 | AI149: 20.99 | AK149: 68.1 | AM149: 0 | AN149: 20.99 | AP149: 0 | AQ149: 20.99 | AS149: 0 | AT149: 26.12 | AV149: 0 | AX149: 131.07 | AY149: 131.07 | BA149: 131.07
A150: 54700-0000 | B150: 13 | D150: QHSF Expense | F150: 0 | G150: 0 | I150: 0 | J150: 0 | L150: 0 | M150: 0 | O150: 0 | Q150: 0 | R150: 0 | T150: 0 | U150: 0 | W150: 0 | X150: 0 | Z150: 0 | AB150: 0 | AC150: 0 | AE150: 0 | AF150: 0 | AH150: 0 | AI150: 0 | AK150: 0 | AM150: 0 | AN150: 0 | AP150: 0 | AQ150: 0 | AS150: 0 | AT150: 0 | AV150: 0 | AX150: 0 | AY150: 0 | BA150: 0
A151: 54700-0100 | B151: 13 | D151: QHSF Expense | F151: 208.32 | G151: 0 | I151: 208.32 | J151: 104.16 | L151: 208.32 | M151: 104.16 | O151: 624.96 | Q151: 208.32 | R151: 208.32 | T151: 208.32 | U151: 208.32 | W151: 208.32 | X151: 208.32 | Z151: 624.96 | AB151: 208.32 | AC151: 208.32 | AE151: 283.31 | AF151: 208.32 | AH151: 208.32 | AI151: 208.32 | AK151: 699.95 | AM151: 0 | AN151: 208.32 | AP151: 0 | AQ151: 283.31 | AS151: 0 | AT151: 208.32 | AV151: 0 | AX151: 1949.87 | AY151: 2158.19 | BA151: 2158.19
A152: 54700-0200 | B152: 13 | D152: QHSF Expense | F152: 0 | G152: 0 | I152: 0 | J152: 0 | L152: 0 | M152: 0 | O152: 0 | Q152: 0 | R152: 0 | T152: 0 | U152: 0 | W152: 0 | X152: 0 | Z152: 0 | AB152: 0 | AC152: 0 | AE152: 0 | AF152: 0 | AH152: 0 | AI152: 0 | AK152: 0 | AM152: 0 | AN152: 0 | AP152: 0 | AQ152: 0 | AS152: 0 | AT152: 0 | AV152: 0 | AX152: 0 | AY152: 0 | BA152: 0
A153: 54700-0300 | B153: 13 | D153: QHSF Expense | F153: 0 | G153: 0 | I153: 0 | J153: 0 | L153: 0 | M153: 0 | O153: 0 | Q153: 156.34 | R153: 0 | T153: 156.34 | U153: 0 | W153: 156.34 | X153: 0 | Z153: 469.02 | AB153: 156.34 | AC153: 156.34 | AE153: 156.34 | AF153: 156.34 | AH153: 193.86 | AI153: 156.34 | AK153: 506.54 | AM153: 0 | AN153: 156.34 | AP153: 0 | AQ153: 156.34 | AS153: 0 | AT153: 193.86 | AV153: 0 | AX153: 975.56 | AY153: 975.56 | BA153: 975.56
C155: General & Admin. Exp | F155: 7259.28 | G155: 100 | I155: 12804.56 | J155: 338.88 | L155: 17500.34 | M155: 15935.96 | O155: 37564.18 | Q155: 14321.29 | R155: 7420.63 | T155: 13300.83 | U155: 8078.4 | W155: 13261.61 | X155: 15125.69 | Z155: 40883.73 | AB155: 15055.47 | AC155: 9636.04 | AE155: 27391.36 | AF155: 8917.68 | AH155: 15609.1 | AI155: 9187.13 | AK155: 58055.93 | AM155: 0 | AN155: 10974.62 | AP155: 0 | AQ155: 23315.26 | AS155: 0 | AT155: 11309.4 | AV155: 0 | AX155: 136503.84 | AY155: 120339.69 | BA155: 120339.69
A156: 56100-0000 | B156: 14 | D156: Accounting & Legal | F156: 0 | G156: 0 | I156: 0 | J156: 0 | L156: 0 | M156: 0 | O156: 0 | Q156: 0 | R156: 0 | T156: 0 | U156: 0 | W156: 0 | X156: 0 | Z156: 0 | AB156: 0 | AC156: 0 | AE156: 0 | AF156: 0 | AH156: 0 | AI156: 0 | AK156: 0 | AM156: 0 | AN156: 0 | AP156: 0 | AQ156: 0 | AS156: 0 | AT156: 0 | AV156: 0 | AX156: 0 | AY156: 0 | BA156: 0
A157: 56100-0100 | B157: 14 | D157: Accounting & Legal | F157: 739 | G157: 0 | I157: 3916.73 | J157: 0 | L157: 4159.12 | M157: 0 | O157: 8814.85 | Q157: 3975.43 | R157: 773.48 | T157: 4021.73 | U157: 924.48 | W157: 4015.42 | X157: 1187.76 | Z157: 12012.58 | AB157: 4296.67 | AC157: 888.84 | AE157: 5844.1 | AF157: 1037.93 | AH157: 4413.64 | AI157: 981.37 | AK157: 14554.41 | AM157: 0 | AN157: 1335.42 | AP157: 0 | AQ157: 2945.8 | AS157: 0 | AT157: 1396.9 | AV157: 0 | AX157: 35381.84 | AY157: 11471.98 | BA157: 11471.98
A158: 56100-0200 | B158: 14 | D158: Accounting & Legal | F158: 247.38 | G158: 0 | I158: 255.58 | J158: 0 | L158: 336.37 | M158: 0 | O158: 839.33 | Q158: 275.14 | R158: 128.91 | T158: 290.6 | U158: 154.08 | W158: 288.47 | X158: 197.96 | Z158: 854.21 | AB158: 382.2 | AC158: 148.14 | AE158: 898.05 | AF158: 172.99 | AH158: 421.22 | AI158: 163.56 | AK158: 1701.47 | AM158: 0 | AN158: 222.57 | AP158: 0 | AQ158: 490.97 | AS158: 0 | AT158: 232.81 | AV158: 0 | AX158: 3395.01 | AY158: 1911.99 | BA158: 1911.99
A159: 56100-0300 | B159: 14 | D159: Accounting & Legal | F159: 739 | G159: 0 | I159: 766.73 | J159: 0 | L159: 1009.12 | M159: 0 | O159: 2514.85 | Q159: 825.43 | R159: 773.48 | T159: 871.73 | U159: 924.48 | W159: 865.42 | X159: 1187.87 | Z159: 2562.58 | AB159: 1146.67 | AC159: 888.84 | AE159: 2694.1 | AF159: 1037.93 | AH159: 1263.64 | AI159: 981.37 | AK159: 5104.41 | AM159: 0 | AN159: 1335.42 | AP159: 0 | AQ159: 2945.8 | AS159: 0 | AT159: 1396.9 | AV159: 0 | AX159: 10181.84 | AY159: 11472.09 | BA159: 11472.09
A160: 56150-0000 | B160: 14 | D160: Advertising & Promotions | F160: 0 | G160: 0 | I160: 0 | J160: 0 | L160: 0 | M160: 0 | O160: 0 | Q160: 0 | R160: 0 | T160: 0 | U160: 0 | W160: 0 | X160: 0 | Z160: 0 | AB160: 0 | AC160: 0 | AE160: 0 | AF160: 0 | AH160: 0 | AI160: 0 | AK160: 0 | AM160: 0 | AN160: 0 | AP160: 0 | AQ160: 0 | AS160: 0 | AT160: 0 | AV160: 0 | AX160: 0 | AY160: 0 | BA160: 0
A161: 56150-0100 | B161: 14 | D161: Advertising & Promotions | F161: 0 | G161: 0 | I161: 0 | J161: 0 | L161: 0 | M161: 0 | O161: 0 | Q161: 0 | R161: 0 | T161: 0 | U161: 0 | W161: 0 | X161: 0 | Z161: 0 | AB161: 0 | AC161: 0 | AE161: 0 | AF161: 0 | AH161: 0 | AI161: 0 | AK161: 0 | AM161: 0 | AN161: 0 | AP161: 0 | AQ161: 0 | AS161: 0 | AT161: 0 | AV161: 0 | AX161: 0 | AY161: 0 | BA161: 0
A162: 56150-0200 | B162: 14 | D162: Advertising & Promotions | F162: 108.32 | G162: 0 | I162: 102.32 | J162: 0 | L162: 108.74 | M162: 0 | O162: 319.38 | Q162: 91.63 | R162: 0 | T162: 92.37 | U162: 0 | W162: 96.69 | X162: 0 | Z162: 280.69 | AB162: 118.05 | AC162: 0 | AE162: 112.7 | AF162: 0 | AH162: 0 | AI162: 0 | AK162: 230.75 | AM162: 0 | AN162: 0 | AP162: 0 | AQ162: 0 | AS162: 0 | AT162: 0 | AV162: 0 | AX162: 830.82 | AY162: 0 | BA162: 0
A163: 56150-0300 | B163: 14 | D163: Advertising & Promotions | F163: 0 | G163: 0 | I163: 0 | J163: 0 | L163: 0 | M163: 0 | O163: 0 | Q163: 0 | R163: 0 | T163: 0 | U163: 0 | W163: 0 | X163: 0 | Z163: 0 | AB163: 0 | AC163: 0 | AE163: 0 | AF163: 0 | AH163: 114.13 | AI163: 0 | AK163: 114.13 | AM163: 0 | AN163: 0 | AP163: 0 | AQ163: 0 | AS163: 0 | AT163: 0 | AV163: 0 | AX163: 114.13 | AY163: 0 | BA163: 0
A164: 56300-0000 | B164: 14 | D164: Cash Short/Over | F164: 0 | G164: 0 | I164: 0 | J164: 0 | L164: 0 | M164: 0 | O164: 0 | Q164: 0 | R164: 0 | T164: 0 | U164: 0 | W164: 0 | X164: 0 | Z164: 0 | AB164: 0 | AC164: 0 | AE164: 0 | AF164: 0 | AH164: 0 | AI164: 0 | AK164: 0 | AM164: 0 | AN164: 0 | AP164: 0 | AQ164: 0 | AS164: 0 | AT164: 0 | AV164: 0 | AX164: 0 | AY164: 0 | BA164: 0
A165: 56300-0100 | B165: 14 | D165: Cash Short/Over | F165: 0 | G165: 0 | I165: 0 | J165: 0 | L165: 0 | M165: 0 | O165: 0 | Q165: 0 | R165: 0 | T165: 0 | U165: 0 | W165: 0 | X165: 0 | Z165: 0 | AB165: 0 | AC165: 0 | AE165: 0 | AF165: 0 | AH165: 0 | AI165: 0 | AK165: 0 | AM165: 0 | AN165: 0 | AP165: 0 | AQ165: 0 | AS165: 0 | AT165: 0 | AV165: 0 | AX165: 0 | AY165: 0 | BA165: 0
A166: 56300-0200 | B166: 14 | D166: Cash Short/Over | F166: 0 | G166: 0 | I166: 0 | J166: 0 | L166: 0 | M166: 0 | O166: 0 | Q166: 0 | R166: 0 | T166: 0 | U166: 0 | W166: 0 | X166: 0 | Z166: 0 | AB166: 0 | AC166: 0 | AE166: 0 | AF166: 0 | AH166: 0 | AI166: 0 | AK166: 0 | AM166: 0 | AN166: 0 | AP166: 0 | AQ166: 0 | AS166: 0 | AT166: 0 | AV166: 0 | AX166: 0 | AY166: 0 | BA166: 0
A167: 56300-0300 | B167: 14 | D167: Cash Short/Over | F167: 0 | G167: 0 | I167: 0 | J167: 0 | L167: 0 | M167: 0 | O167: 0 | Q167: 0 | R167: 0 | T167: 0 | U167: 0 | W167: 0 | X167: 0 | Z167: 0 | AB167: 0 | AC167: 0 | AE167: 0 | AF167: 0 | AH167: 0 | AI167: 0 | AK167: 0 | AM167: 0 | AN167: 0 | AP167: 0 | AQ167: 0 | AS167: 0 | AT167: 0 | AV167: 0 | AX167: 0 | AY167: 0 | BA167: 0
A168: 56400-0000 | B168: 14 | D168: Courier & Postage | F168: 0 | G168: 0 | I168: 0 | J168: 0 | L168: 0 | M168: 0 | O168: 0 | Q168: 0 | R168: 0 | T168: 0 | U168: 0 | W168: 0 | X168: 0 | Z168: 0 | AB168: 0 | AC168: 0 | AE168: 0 | AF168: 0 | AH168: 0 | AI168: 0 | AK168: 0 | AM168: 0 | AN168: 0 | AP168: 0 | AQ168: 0 | AS168: 0 | AT168: 0 | AV168: 0 | AX168: 0 | AY168: 0 | BA168: 0
A169: 56400-0100 | B169: 14 | D169: Courier & Postage | F169: 50.45 | G169: 0 | I169: 25.34 | J169: 0 | L169: 133 | M169: 0 | O169: 208.79 | Q169: 36.33 | R169: 58.85 | T169: 34.7 | U169: 38.58 | W169: 32.1 | X169: 190.13 | Z169: 103.13 | AB169: 43.66 | AC169: 34.19 | AE169: 91.71 | AF169: 39.92 | AH169: 45.16 | AI169: 37.75 | AK169: 180.53 | AM169: 0 | AN169: 51.42 | AP169: 0 | AQ169: 115.56 | AS169: 0 | AT169: 53.74 | AV169: 0 | AX169: 492.45 | AY169: 620.14 | BA169: 620.14
A170: 56400-0200 | B170: 14 | D170: Courier & Postage | F170: 16.8 | G170: 0 | I170: 8.45 | J170: 0 | L170: 44.3 | M170: 0 | O170: 69.55 | Q170: 12.11 | R170: 10.7 | T170: 11.56 | U170: 6.43 | W170: 10.7 | X170: 31.69 | Z170: 34.37 | AB170: 14.55 | AC170: 5.69 | AE170: 30.57 | AF170: 6.66 | AH170: 15.05 | AI170: 6.29 | AK170: 60.17 | AM170: 0 | AN170: 8.57 | AP170: 0 | AQ170: 19.26 | AS170: 0 | AT170: 8.96 | AV170: 0 | AX170: 164.09 | AY170: 104.25 | BA170: 104.25
A171: 56400-0300 | B171: 14 | D171: Courier & Postage | F171: 50.45 | G171: 0 | I171: 25.34 | J171: 0 | L171: 133 | M171: 0 | O171: 208.79 | Q171: 36.33 | R171: 58.85 | T171: 34.7 | U171: 38.58 | W171: 32.1 | X171: 190.13 | Z171: 103.13 | AB171: 43.66 | AC171: 34.19 | AE171: 91.71 | AF171: 39.92 | AH171: 45.16 | AI171: 37.75 | AK171: 180.53 | AM171: 0 | AN171: 51.42 | AP171: 0 | AQ171: 115.56 | AS171: 0 | AT171: 53.74 | AV171: 0 | AX171: 492.45 | AY171: 620.14 | BA171: 620.14
A172: 56500-0000 | B172: 14 | D172: Currency Exchange & Rounding | F172: 0 | G172: 0 | I172: 0 | J172: 0 | L172: 0 | M172: 0 | O172: 0 | Q172: 0 | R172: 0 | T172: 0 | U172: 0 | W172: 0 | X172: 0 | Z172: 0 | AB172: 0 | AC172: 0 | AE172: 0 | AF172: 0 | AH172: 0 | AI172: 0 | AK172: 0 | AM172: 0 | AN172: 0 | AP172: 0 | AQ172: 0 | AS172: 0 | AT172: 0 | AV172: 0 | AX172: 0 | AY172: 0 | BA172: 0
A173: 56500-0100 | B173: 14 | D173: Currency Exchange & Rounding | F173: 0 | G173: 0 | I173: 0 | J173: 0 | L173: 0 | M173: 0 | O173: 0 | Q173: 0 | R173: 0 | T173: 0 | U173: 0 | W173: 0 | X173: 0 | Z173: 0 | AB173: 0 | AC173: 0 | AE173: 0 | AF173: 0 | AH173: 0 | AI173: 0 | AK173: 0 | AM173: 0 | AN173: 0 | AP173: 0 | AQ173: 0 | AS173: 0 | AT173: 0 | AV173: 0 | AX173: 0 | AY173: 0 | BA173: 0
A174: 56500-0200 | B174: 14 | D174: Currency Exchange & Rounding | F174: 0 | G174: 0 | I174: 0 | J174: 0 | L174: 0 | M174: 0 | O174: 0 | Q174: 0 | R174: 0 | T174: 0 | U174: 0 | W174: 0 | X174: 0 | Z174: 0 | AB174: 0 | AC174: 0 | AE174: 0 | AF174: 0 | AH174: 0 | AI174: 0 | AK174: 0 | AM174: 0 | AN174: 0 | AP174: 0 | AQ174: 0 | AS174: 0 | AT174: 0 | AV174: 0 | AX174: 0 | AY174: 0 | BA174: 0
A175: 56500-0300 | B175: 14 | D175: Currency Exchange & Rounding | F175: 0 | G175: 0 | I175: 0 | J175: 0 | L175: 0 | M175: 0 | O175: 0 | Q175: 0 | R175: 0 | T175: 0 | U175: 0 | W175: -84.83 | X175: 0 | Z175: -84.83 | AB175: 0 | AC175: -0.01 | AE175: 0 | AF175: 0 | AH175: -150 | AI175: 0 | AK175: -150 | AM175: 0 | AN175: 0 | AP175: 0 | AQ175: 0 | AS175: 0 | AT175: 0 | AV175: 0 | AX175: -234.83 | AY175: -0.01 | BA175: -0.01
A176: 56850-0000 | B176: 14 | D176: Insurance | F176: 100 | G176: 100 | I176: 100 | J176: 100 | L176: 100 | M176: 100 | O176: 300 | Q176: 100 | R176: 100 | T176: 100 | U176: 100 | W176: 100 | X176: 100 | Z176: 300 | AB176: 100 | AC176: 100 | AE176: 100 | AF176: 100 | AH176: 100 | AI176: 100 | AK176: 300 | AM176: 0 | AN176: 100 | AP176: 0 | AQ176: 100 | AS176: 0 | AT176: 100 | AV176: 0 | AX176: 900 | AY176: 1200 | BA176: 1200
A177: 56850-0100 | B177: 14 | D177: Insurance | F177: 0 | G177: 0 | I177: 0 | J177: 0 | L177: 0 | M177: 0 | O177: 0 | Q177: 0 | R177: 0 | T177: 0 | U177: 0 | W177: 0 | X177: 0 | Z177: 0 | AB177: 0 | AC177: 0 | AE177: 0 | AF177: 0 | AH177: 0 | AI177: 0 | AK177: 0 | AM177: 0 | AN177: 0 | AP177: 0 | AQ177: 0 | AS177: 0 | AT177: 0 | AV177: 0 | AX177: 0 | AY177: 0 | BA177: 0
A178: 56850-0200 | B178: 14 | D178: Insurance | F178: 0 | G178: 0 | I178: 0 | J178: 0 | L178: 0 | M178: 0 | O178: 0 | Q178: 0 | R178: 0 | T178: 0 | U178: 0 | W178: 0 | X178: 0 | Z178: 0 | AB178: 0 | AC178: 0 | AE178: 0 | AF178: 0 | AH178: 0 | AI178: 0 | AK178: 0 | AM178: 0 | AN178: 0 | AP178: 0 | AQ178: 0 | AS178: 0 | AT178: 0 | AV178: 0 | AX178: 0 | AY178: 0 | BA178: 0
A179: 56850-0300 | B179: 14 | D179: Insurance | F179: 0 | G179: 0 | I179: 0 | J179: 0 | L179: 0 | M179: 0 | O179: 0 | Q179: 0 | R179: 0 | T179: 0 | U179: 0 | W179: 0 | X179: 0 | Z179: 0 | AB179: 0 | AC179: 0 | AE179: 0 | AF179: 0 | AH179: 0 | AI179: 0 | AK179: 0 | AM179: 0 | AN179: 0 | AP179: 0 | AQ179: 0 | AS179: 0 | AT179: 0 | AV179: 0 | AX179: 0 | AY179: 0 | BA179: 0
A180: 57000-0000 | B180: 14 | D180: Office Supplies | F180: 0 | G180: 0 | I180: 0 | J180: 0 | L180: 0 | M180: 0 | O180: 0 | Q180: 0 | R180: 0 | T180: 0 | U180: 0 | W180: 0 | X180: 0 | Z180: 0 | AB180: 0 | AC180: 0 | AE180: 0 | AF180: 0 | AH180: 0 | AI180: 0 | AK180: 0 | AM180: 0 | AN180: 0 | AP180: 0 | AQ180: 0 | AS180: 0 | AT180: 0 | AV180: 0 | AX180: 0 | AY180: 0 | BA180: 0
A181: 57000-0100 | B181: 14 | D181: Office Supplies | F181: 25.83 | G181: 0 | I181: 20.74 | J181: 0 | L181: 21.04 | M181: 4173.61 | O181: 67.61 | Q181: 39.29 | R181: 0 | T181: 9.92 | U181: 0 | W181: 21.4 | X181: 0 | Z181: 70.61 | AB181: 20.89 | AC181: 0 | AE181: 39.07 | AF181: 0 | AH181: 24.15 | AI181: 0 | AK181: 84.11 | AM181: 0 | AN181: 0 | AP181: 0 | AQ181: 0 | AS181: 0 | AT181: 0 | AV181: 0 | AX181: 222.33 | AY181: 4173.61 | BA181: 4173.61
A182: 57000-0200 | B182: 14 | D182: Office Supplies | F182: 8.61 | G182: 0 | I182: 6.91 | J182: 0 | L182: 7.01 | M182: 695.6 | O182: 22.53 | Q182: 13.1 | R182: 0 | T182: 3.31 | U182: 0 | W182: 7.13 | X182: 0 | Z182: 23.54 | AB182: 6.97 | AC182: 0 | AE182: 13.02 | AF182: 0 | AH182: 8.05 | AI182: 0 | AK182: 28.04 | AM182: 0 | AN182: 0 | AP182: 0 | AQ182: 0 | AS182: 0 | AT182: 0 | AV182: 0 | AX182: 74.11 | AY182: 695.6 | BA182: 695.6
A183: 57000-0300 | B183: 14 | D183: Office Supplies | F183: 25.83 | G183: 0 | I183: 20.74 | J183: 0 | L183: 21.04 | M183: 4269.91 | O183: 67.61 | Q183: 39.29 | R183: 0 | T183: 9.92 | U183: 0 | W183: 21.4 | X183: 0 | Z183: 70.61 | AB183: 20.89 | AC183: 0 | AE183: 39.07 | AF183: 0 | AH183: 24.15 | AI183: 0 | AK183: 84.11 | AM183: 0 | AN183: 0 | AP183: 0 | AQ183: 0 | AS183: 0 | AT183: 0 | AV183: 0 | AX183: 222.33 | AY183: 4269.91 | BA183: 4269.91
A184: 57200-0000 | B184: 14 | D184: Property Taxes | F184: 0 | G184: 0 | I184: 0 | J184: 0 | L184: 0 | M184: 0 | O184: 0 | Q184: 0 | R184: 0 | T184: 0 | U184: 0 | W184: 0 | X184: 0 | Z184: 0 | AB184: 0 | AC184: 0 | AE184: 0 | AF184: 0 | AH184: 0 | AI184: 0 | AK184: 0 | AM184: 0 | AN184: 0 | AP184: 0 | AQ184: 0 | AS184: 0 | AT184: 0 | AV184: 0 | AX184: 0 | AY184: 0 | BA184: 0
A185: 57200-0100 | B185: 14 | D185: Property Taxes | F185: 0 | G185: 0 | I185: 0 | J185: 0 | L185: 0 | M185: 0 | O185: 0 | Q185: 0 | R185: 0 | T185: 0 | U185: 0 | W185: 0 | X185: 0 | Z185: 0 | AB185: 0 | AC185: 0 | AE185: 0 | AF185: 0 | AH185: 0 | AI185: 0 | AK185: 0 | AM185: 0 | AN185: 0 | AP185: 0 | AQ185: 0 | AS185: 0 | AT185: 0 | AV185: 0 | AX185: 0 | AY185: 0 | BA185: 0
A186: 57200-0200 | B186: 14 | D186: Property Taxes | F186: 0 | G186: 0 | I186: 0 | J186: 0 | L186: 0 | M186: 0 | O186: 0 | Q186: 0 | R186: 0 | T186: 0 | U186: 0 | W186: 0 | X186: 0 | Z186: 0 | AB186: 0 | AC186: 0 | AE186: 0 | AF186: 0 | AH186: 0 | AI186: 0 | AK186: 0 | AM186: 0 | AN186: 0 | AP186: 0 | AQ186: 0 | AS186: 0 | AT186: 0 | AV186: 0 | AX186: 0 | AY186: 0 | BA186: 0
A187: 57200-0300 | B187: 14 | D187: Property Taxes | F187: 0 | G187: 0 | I187: 0 | J187: 0 | L187: 0 | M187: 0 | O187: 0 | Q187: 0 | R187: 0 | T187: 0 | U187: 0 | W187: 0 | X187: 0 | Z187: 0 | AB187: 0 | AC187: 0 | AE187: 0 | AF187: 0 | AH187: 0 | AI187: 0 | AK187: 0 | AM187: 0 | AN187: 0 | AP187: 0 | AQ187: 0 | AS187: 0 | AT187: 0 | AV187: 0 | AX187: 0 | AY187: 0 | BA187: 0
A188: 57400-0000 | B188: 14 | D188: Miscellaneous | F188: 0 | G188: 0 | I188: 0 | J188: 0 | L188: 0 | M188: 0 | O188: 0 | Q188: 0 | R188: 0 | T188: 0 | U188: 0 | W188: 0 | X188: 0 | Z188: 0 | AB188: 0 | AC188: 0 | AE188: 0 | AF188: 0 | AH188: 0 | AI188: 0 | AK188: 0 | AM188: 0 | AN188: 0 | AP188: 0 | AQ188: 0 | AS188: 0 | AT188: 0 | AV188: 0 | AX188: 0 | AY188: 0 | BA188: 0
A189: 57400-0100 | B189: 14 | D189: Miscellaneous | F189: 0 | G189: 0 | I189: 0 | J189: 0 | L189: 0 | M189: 0 | O189: 0 | Q189: 0 | R189: 0 | T189: 0 | U189: 0 | W189: 0 | X189: 0 | Z189: 0 | AB189: 0 | AC189: 0 | AE189: 0 | AF189: 0 | AH189: 0 | AI189: 0 | AK189: 0 | AM189: 0 | AN189: 0 | AP189: 0 | AQ189: 0 | AS189: 0 | AT189: 0 | AV189: 0 | AX189: 0 | AY189: 0 | BA189: 0
A190: 57400-0200 | B190: 14 | D190: Miscellaneous | F190: 0 | G190: 0 | I190: 0 | J190: 0 | L190: 0 | M190: 0 | O190: 0 | Q190: 0 | R190: 0 | T190: 0 | U190: 0 | W190: 0 | X190: 0 | Z190: 0 | AB190: 0 | AC190: 0 | AE190: 0 | AF190: 0 | AH190: 0 | AI190: 0 | AK190: 0 | AM190: 0 | AN190: 0 | AP190: 0 | AQ190: 0 | AS190: 0 | AT190: 0 | AV190: 0 | AX190: 0 | AY190: 0 | BA190: 0
A191: 57400-0300 | B191: 14 | D191: Miscellaneous | F191: 0 | G191: 0 | I191: 0 | J191: 0 | L191: 0 | M191: 0 | O191: 0 | Q191: 0 | R191: 0 | T191: 0 | U191: 0 | W191: 0 | X191: 0 | Z191: 0 | AB191: 0 | AC191: 0 | AE191: 0 | AF191: 0 | AH191: 0 | AI191: 0 | AK191: 0 | AM191: 0 | AN191: 0 | AP191: 0 | AQ191: 0 | AS191: 0 | AT191: 0 | AV191: 0 | AX191: 0 | AY191: 0 | BA191: 0
A192: 57600-0000 | B192: 14 | D192: Rent | F192: 0 | G192: 0 | I192: 0 | J192: 0 | L192: 0 | M192: 0 | O192: 0 | Q192: 0 | R192: 0 | T192: 0 | U192: 0 | W192: 0 | X192: 0 | Z192: 0 | AB192: 0 | AC192: 0 | AE192: 0 | AF192: 0 | AH192: 0 | AI192: 0 | AK192: 0 | AM192: 0 | AN192: 0 | AP192: 0 | AQ192: 0 | AS192: 0 | AT192: 0 | AV192: 0 | AX192: 0 | AY192: 0 | BA192: 0
A193: 57600-0100 | B193: 14 | D193: Rent | F193: 0 | G193: 0 | I193: 0 | J193: 0 | L193: 0 | M193: 0 | O193: 0 | Q193: 0 | R193: 0 | T193: 0 | U193: 0 | W193: 0 | X193: 0 | Z193: 0 | AB193: 0 | AC193: 0 | AE193: 0 | AF193: 0 | AH193: 0 | AI193: 0 | AK193: 0 | AM193: 0 | AN193: 0 | AP193: 0 | AQ193: 0 | AS193: 0 | AT193: 0 | AV193: 0 | AX193: 0 | AY193: 0 | BA193: 0
A194: 57600-0200 | B194: 14 | D194: Rent | F194: 1819 | G194: 0 | I194: 1712 | J194: 0 | L194: 1712 | M194: 0 | O194: 5243 | Q194: 1712 | R194: 1926 | T194: 1712 | U194: 1926 | W194: 1712 | X194: 1926 | Z194: 5136 | AB194: 1712 | AC194: 1926 | AE194: 1712 | AF194: 1926 | AH194: 1712 | AI194: 1926 | AK194: 5136 | AM194: 0 | AN194: 1926 | AP194: 0 | AQ194: 1926 | AS194: 0 | AT194: 1926 | AV194: 0 | AX194: 15515 | AY194: 17334 | BA194: 17334
A195: 57600-0300 | B195: 14 | D195: Rent | F195: 0 | G195: 0 | I195: 0 | J195: 0 | L195: 0 | M195: 0 | O195: 0 | Q195: 0 | R195: 0 | T195: 0 | U195: 0 | W195: 0 | X195: 0 | Z195: 0 | AB195: 0 | AC195: 0 | AE195: 0 | AF195: 0 | AH195: 0 | AI195: 0 | AK195: 0 | AM195: 0 | AN195: 0 | AP195: 0 | AQ195: 0 | AS195: 0 | AT195: 0 | AV195: 0 | AX195: 0 | AY195: 0 | BA195: 0
A196: 57650-0000 | B196: 14 | D196: Repair & Maintenance | F196: 0 | G196: 0 | I196: 0 | J196: 0 | L196: 0 | M196: 0 | O196: 0 | Q196: 0 | R196: 0 | T196: 0 | U196: 0 | W196: 0 | X196: 0 | Z196: 0 | AB196: 0 | AC196: 0 | AE196: 0 | AF196: 0 | AH196: 0 | AI196: 0 | AK196: 0 | AM196: 0 | AN196: 0 | AP196: 0 | AQ196: 0 | AS196: 0 | AT196: 0 | AV196: 0 | AX196: 0 | AY196: 0 | BA196: 0
A197: 57650-0100 | B197: 14 | D197: Repair & Maintenance | F197: 458.57 | G197: 0 | I197: 660.35 | J197: 0 | L197: 0 | M197: 0 | O197: 1118.92 | Q197: 0 | R197: 675.71 | T197: 635.32 | U197: 675.58 | W197: 764.28 | X197: 539.55 | Z197: 1399.6 | AB197: 0 | AC197: 0 | AE197: 1874.85 | AF197: 758.49 | AH197: 0 | AI197: 829.57 | AK197: 1874.85 | AM197: 0 | AN197: 0 | AP197: 0 | AQ197: 2152.73 | AS197: 0 | AT197: 0 | AV197: 0 | AX197: 4393.37 | AY197: 5631.63 | BA197: 5631.63
A198: 57650-0200 | B198: 14 | D198: Repair & Maintenance | F198: 152.86 | G198: 0 | I198: 220.1 | J198: 0 | L198: 0 | M198: 0 | O198: 372.96 | Q198: 0 | R198: 112.62 | T198: 211.77 | U198: 112.61 | W198: 254.77 | X198: 89.93 | Z198: 466.54 | AB198: 0 | AC198: 0 | AE198: 624.93 | AF198: 126.41 | AH198: 0 | AI198: 138.27 | AK198: 624.93 | AM198: 0 | AN198: 0 | AP198: 0 | AQ198: 358.79 | AS198: 0 | AT198: 0 | AV198: 0 | AX198: 1464.43 | AY198: 938.63 | BA198: 938.63
A199: 57650-0300 | B199: 14 | D199: Repair & Maintenance | F199: 458.57 | G199: 0 | I199: 2212.85 | J199: 0 | L199: 1552.5 | M199: 0 | O199: 4223.92 | Q199: 2911.94 | R199: 675.71 | T199: 2187.82 | U199: 675.58 | W199: 2316.78 | X199: 539.55 | Z199: 7416.54 | AB199: 3264.15 | AC199: 1407.33 | AE199: 3427.35 | AF199: 758.49 | AH199: 3265.04 | AI199: 829.57 | AK199: 9956.54 | AM199: 0 | AN199: 2114.56 | AP199: 0 | AQ199: 2152.73 | AS199: 0 | AT199: 2211.9 | AV199: 0 | AX199: 21597 | AY199: 11365.42 | BA199: 11365.42
A200: 57800-0000 | B200: 14 | D200: Telephone | F200: 0 | G200: 0 | I200: 0 | J200: 0 | L200: 0 | M200: 0 | O200: 0 | Q200: 0 | R200: 0 | T200: 0 | U200: 0 | W200: 0 | X200: 0 | Z200: 0 | AB200: 0 | AC200: 0 | AE200: 0 | AF200: 0 | AH200: 0 | AI200: 0 | AK200: 0 | AM200: 0 | AN200: 0 | AP200: 0 | AQ200: 0 | AS200: 0 | AT200: 0 | AV200: 0 | AX200: 0 | AY200: 0 | BA200: 0
A201: 57800-0100 | B201: 14 | D201: Telephone | F201: 354.14 | G201: 0 | I201: 555.43 | J201: 0 | L201: 1266.85 | M201: 1185.9 | O201: 2176.42 | Q201: 557.15 | R201: 381.38 | T201: 642.88 | U201: 600 | W201: 580.7 | X201: 1502.77 | Z201: 1780.73 | AB201: 766.75 | AC201: 575.09 | AE201: 1697.37 | AF201: 671.56 | AH201: 799.86 | AI201: 721.95 | AK201: 3263.98 | AM201: 0 | AN201: 864.46 | AP201: 0 | AQ201: 1906.03 | AS201: 0 | AT201: 903.9 | AV201: 0 | AX201: 7221.13 | AY201: 9313.04 | BA201: 9313.04
A202: 57800-0200 | B202: 14 | D202: Telephone | F202: 118.05 | G202: 0 | I202: 185.14 | J202: 0 | L202: 422.3 | M202: 197.65 | O202: 725.49 | Q202: 185.7 | R202: 63.56 | T202: 214.3 | U202: 100 | W202: 193.6 | X202: 250.46 | Z202: 593.6 | AB202: 255.58 | AC202: 95.85 | AE202: 565.79 | AF202: 111.93 | AH202: 266.62 | AI202: 120.33 | AK202: 1087.99 | AM202: 0 | AN202: 144.08 | AP202: 0 | AQ202: 317.67 | AS202: 0 | AT202: 150.65 | AV202: 0 | AX202: 2407.08 | AY202: 1552.18 | BA202: 1552.18
A203: 57800-0300 | B203: 14 | D203: Telephone | F203: 354.14 | G203: 0 | I203: 555.43 | J203: 0 | L203: 1266.85 | M203: 1185.9 | O203: 2176.42 | Q203: 557.15 | R203: 381.38 | T203: 642.88 | U203: 600 | W203: 580.7 | X203: 1502.77 | Z203: 1780.73 | AB203: 766.75 | AC203: 575.09 | AE203: 1697.37 | AF203: 671.56 | AH203: 799.86 | AI203: 721.95 | AK203: 3263.98 | AM203: 0 | AN203: 864.46 | AP203: 0 | AQ203: 1906.03 | AS203: 0 | AT203: 903.9 | AV203: 0 | AX203: 7221.13 | AY203: 9313.04 | BA203: 9313.04
A204: 57850-0000 | B204: 14 | D204: Travel | F204: 0 | G204: 0 | I204: 0 | J204: 0 | L204: 0 | M204: 0 | O204: 0 | Q204: 0 | R204: 0 | T204: 0 | U204: 0 | W204: 0 | X204: 0 | Z204: 0 | AB204: 0 | AC204: 0 | AE204: 0 | AF204: 0 | AH204: 0 | AI204: 0 | AK204: 0 | AM204: 0 | AN204: 0 | AP204: 0 | AQ204: 0 | AS204: 0 | AT204: 0 | AV204: 0 | AX204: 0 | AY204: 0 | BA204: 0
A205: 57850-0100 | B205: 14 | D205: Travel | F205: 56.69 | G205: 0 | I205: 50.69 | J205: 0 | L205: 71.99 | M205: 0 | O205: 179.37 | Q205: 52.57 | R205: 0 | T205: 54.23 | U205: 0 | W205: 56.69 | X205: 0 | Z205: 163.49 | AB205: 64.3 | AC205: 0 | AE205: 51.97 | AF205: 0 | AH205: 68.8 | AI205: 0 | AK205: 185.07 | AM205: 0 | AN205: 0 | AP205: 0 | AQ205: 0 | AS205: 0 | AT205: 0 | AV205: 0 | AX205: 527.93 | AY205: 0 | BA205: 0
A206: 57850-0200 | B206: 14 | D206: Travel | F206: 18.9 | G206: 0 | I206: 16.9 | J206: 0 | L206: 24 | M206: 0 | O206: 59.8 | Q206: 17.53 | R206: 0 | T206: 18.08 | U206: 0 | W206: 18.9 | X206: 0 | Z206: 54.51 | AB206: 21.43 | AC206: 0 | AE206: 17.32 | AF206: 0 | AH206: 22.9 | AI206: 0 | AK206: 61.65 | AM206: 0 | AN206: 0 | AP206: 0 | AQ206: 0 | AS206: 0 | AT206: 0 | AV206: 0 | AX206: 175.96 | AY206: 0 | BA206: 0
A207: 57850-0300 | B207: 14 | D207: Travel | F207: 56.69 | G207: 0 | I207: 50.69 | J207: 0 | L207: 71.99 | M207: 0 | O207: 179.37 | Q207: 52.57 | R207: 0 | T207: 54.23 | U207: 0 | W207: 56.69 | X207: 0 | Z207: 163.49 | AB207: 64.3 | AC207: 0 | AE207: 51.97 | AF207: 0 | AH207: 68.8 | AI207: 0 | AK207: 185.07 | AM207: 0 | AN207: 0 | AP207: 0 | AQ207: 0 | AS207: 0 | AT207: 0 | AV207: 0 | AX207: 527.93 | AY207: 0 | BA207: 0
A208: 57870-0000 | B208: 14 | D208: Meals and Entertainment | F208: 0 | G208: 0 | I208: 0 | J208: 0 | L208: 0 | M208: 0 | O208: 0 | Q208: 0 | R208: 0 | T208: 0 | U208: 0 | W208: 0 | X208: 0 | Z208: 0 | AB208: 0 | AC208: 0 | AE208: 0 | AF208: 0 | AH208: 0 | AI208: 0 | AK208: 0 | AM208: 0 | AN208: 0 | AP208: 0 | AQ208: 0 | AS208: 0 | AT208: 0 | AV208: 0 | AX208: 0 | AY208: 0 | BA208: 0
A209: 57870-0100 | B209: 14 | D209: Meals and Entertainment | F209: 0 | G209: 0 | I209: 0 | J209: 0 | L209: 0 | M209: 0 | O209: 0 | Q209: 0 | R209: 0 | T209: 0 | U209: 0 | W209: 0 | X209: 0 | Z209: 0 | AB209: 0 | AC209: 0 | AE209: 0 | AF209: 0 | AH209: 0 | AI209: 0 | AK209: 0 | AM209: 0 | AN209: 0 | AP209: 0 | AQ209: 0 | AS209: 0 | AT209: 0 | AV209: 0 | AX209: 0 | AY209: 0 | BA209: 0
A210: 57870-0200 | B210: 14 | D210: Meals and Entertainment | F210: 0 | G210: 0 | I210: 0 | J210: 0 | L210: 0 | M210: 0 | O210: 0 | Q210: 0 | R210: 0 | T210: 0 | U210: 0 | W210: 0 | X210: 0 | Z210: 0 | AB210: 0 | AC210: 0 | AE210: 0 | AF210: 0 | AH210: 0 | AI210: 0 | AK210: 0 | AM210: 0 | AN210: 0 | AP210: 0 | AQ210: 0 | AS210: 0 | AT210: 0 | AV210: 0 | AX210: 0 | AY210: 0 | BA210: 0
A211: 57870-0300 | B211: 14 | D211: Meals and Entertainment | F211: 0 | G211: 0 | I211: 0 | J211: 0 | L211: 0 | M211: 0 | O211: 0 | Q211: 0 | R211: 0 | T211: 0 | U211: 0 | W211: 0 | X211: 0 | Z211: 0 | AB211: 0 | AC211: 0 | AE211: 0 | AF211: 0 | AH211: 0 | AI211: 0 | AK211: 0 | AM211: 0 | AN211: 0 | AP211: 0 | AQ211: 0 | AS211: 0 | AT211: 0 | AV211: 0 | AX211: 0 | AY211: 0 | BA211: 0
A212: 57900-0000 | B212: 14 | D212: Utilities | F212: 0 | G212: 0 | I212: 0 | J212: 0 | L212: 0 | M212: 0 | O212: 0 | Q212: 0 | R212: 0 | T212: 0 | U212: 0 | W212: 0 | X212: 0 | Z212: 0 | AB212: 0 | AC212: 0 | AE212: 0 | AF212: 0 | AH212: 0 | AI212: 0 | AK212: 0 | AM212: 0 | AN212: 0 | AP212: 0 | AQ212: 0 | AS212: 0 | AT212: 0 | AV212: 0 | AX212: 0 | AY212: 0 | BA212: 0
A213: 57900-0100 | B213: 14 | D213: Utilities | F213: 535.7 | G213: 0 | I213: 428.57 | J213: 0 | L213: 2138.2 | M213: 1686.87 | O213: 3102.47 | Q213: 1191.7 | R213: 600 | T213: 598.62 | U213: 555 | W213: 544.5 | X213: 2625.75 | Z213: 2334.82 | AB213: 812.57 | AC213: 1364.68 | AE213: 2428.43 | AF213: 672.87 | AH213: 844.66 | AI213: 734.5 | AK213: 4085.66 | AM213: 0 | AN213: 902.88 | AP213: 0 | AQ213: 2705.69 | AS213: 0 | AT213: 909.23 | AV213: 0 | AX213: 9522.95 | AY213: 12757.47 | BA213: 12757.47
... 69 more rows

Sheet Act vs Prior BS
C2: =HLOOKUP("CompanyName",[4]ACTData!CompanyName,2) -> UNIVERSAL CONSTRUCTION
C3: =CONCATENATE("Balance Sheet for Period Ending ", [4]!SelectedDate) -> Balance Sheet for Period Ending June 2015
F5: =[4]Lookup!$K$1 -> Jul 14 | H5: =[4]Lookup!$L$1 -> Jul 14 | I5: =[4]Lookup!$N$1 -> Jul 13 | K5: =[4]Lookup!$O$1 -> Aug 14 | L5: =[4]Lookup!$Q$1 -> Aug 13 | N5: =[4]Lookup!$R$1 -> Sep 14 | O5: =[4]Lookup!$T$1 -> Sep 13 | Q5: =[4]Lookup!$U$1 -> Oct 14 | R5: =[4]Lookup!$W$1 -> Oct 13 | T5: =[4]Lookup!$X$1 -> Nov 14 | U5: =[4]Lookup!$Z$1 -> Nov 13 | W5: =[4]Lookup!$AA$1 -> Dec 14 | X5: =[4]Lookup!$AC$1 -> Dec 13 | Z5: =[4]Lookup!$AD$1 -> Jan 15 | AA5: =[4]Lookup!$AF$1 -> Jan 14 | AC5: =[4]Lookup!$AG$1 -> Feb 15 | AD5: =[4]Lookup!$AI$1 -> Feb 14 | AF5: =[4]Lookup!$AJ$1 -> Mar 15 | AG5: =[4]Lookup!$AL$1 -> Mar 14 | AI5: =[4]Lookup!$AM$1 -> Apr 15 | AJ5: =[4]Lookup!$AO$1 -> Apr 14 | AL5: =[4]Lookup!$AP$1 -> May 15 | AM5: =[4]Lookup!$AR$1 -> May 14 | AO5: =[4]Lookup!$AS$1 -> Jun 15 | AP5: =[4]Lookup!$AU$1 -> Jun 14 | AR5: =[4]Lookup!$AY$1 -> YTD
F6: Opening | H6: Actual | I6: Prior | K6: Actual | L6: Prior | N6: Actual | O6: Prior | Q6: Actual | R6: Prior | T6: Actual | U6: Prior | W6: Actual | X6: Prior | Z6: Actual | AA6: Prior | AC6: Actual | AD6: Prior | AF6: Actual | AG6: Prior | AI6: Actual | AJ6: Prior | AL6: Actual | AM6: Prior | AO6: Actual | AP6: Prior | AR6: Actual | AS6: Prior
B9: _AS | C9: ASSETS
C11: Current Asset | F11: =SUBTOTAL(9,F12:F37) -> 346680.34 | H11: =SUBTOTAL(9,H12:H37) -> 32250.65 | I11: =SUBTOTAL(9,I12:I37) -> 103322.83 | K11: =SUBTOTAL(9,K12:K37) -> -12962.64 | L11: =SUBTOTAL(9,L12:L37) -> 11620.6 | N11: =SUBTOTAL(9,N12:N37) -> 38363.17 | O11: =SUBTOTAL(9,O12:O37) -> -370.15 | Q11: =SUBTOTAL(9,Q12:Q37) -> -53118.58 | R11: =SUBTOTAL(9,R12:R37) -> 25668.66 | T11: =SUBTOTAL(9,T12:T37) -> 88871.44 | U11: =SUBTOTAL(9,U12:U37) -> 48768.28 | W11: =SUBTOTAL(9,W12:W37) -> 26874.45 | X11: =SUBTOTAL(9,X12:X37) -> -8280.25 | Z11: =SUBTOTAL(9,Z12:Z37) -> -37472.22 | AA11: =SUBTOTAL(9,AA12:AA37) -> -17037.52 | AC11: =SUBTOTAL(9,AC12:AC37) -> 96024.38 | AD11: =SUBTOTAL(9,AD12:AD37) -> 36437.35 | AF11: =SUBTOTAL(9,AF12:AF37) -> 73722.37 | AG11: =SUBTOTAL(9,AG12:AG37) -> 23147.96 | AI11: =SUBTOTAL(9,AI12:AI37) -> 0 | AJ11: =SUBTOTAL(9,AJ12:AJ37) -> 1827.54 | AL11: =SUBTOTAL(9,AL12:AL37) -> 0 | AM11: =SUBTOTAL(9,AM12:AM37) -> 61318.34 | AO11: =SUBTOTAL(9,AO12:AO37) -> 0 | AP11: =SUBTOTAL(9,AP12:AP37) -> 60256.7 | AR11: =SUBTOTAL(9,AR12:AR37) -> 599233.36 | AS11: =SUBTOTAL(9,AS12:AS37) -> 346680.34
A12: =[4]Lookup!A9 -> 10200-0000 | B12: =[4]Lookup!G9 -> 31 | D12: =[4]Lookup!D9 -> Cash to be deposited | F12: =[4]Lookup!K9 -> 0 | H12: =[4]Lookup!L9 -> 0 | I12: =[4]Lookup!N9 -> 0 | K12: =[4]Lookup!O9 -> 0 | L12: =[4]Lookup!Q9 -> 0 | N12: =[4]Lookup!R9 -> 0 | O12: =[4]Lookup!T9 -> 0 | Q12: =[4]Lookup!U9 -> 0 | R12: =[4]Lookup!W9 -> 0 | T12: =[4]Lookup!X9 -> 0 | U12: =[4]Lookup!Z9 -> 0 | W12: =[4]Lookup!AA9 -> 0 | X12: =[4]Lookup!AC9 -> 0 | Z12: =[4]Lookup!AD9 -> 0 | AA12: =[4]Lookup!AF9 -> 0 | AC12: =[4]Lookup!AG9 -> 0 | AD12: =[4]Lookup!AI9 -> 0 | AF12: =[4]Lookup!AJ9 -> 0 | AG12: =[4]Lookup!AL9 -> 0 | AI12: =[4]Lookup!AM9 -> 0 | AJ12: =[4]Lookup!AO9 -> 0 | AL12: =[4]Lookup!AP9 -> 0 | AM12: =[4]Lookup!AR9 -> 0 | AO12: =[4]Lookup!AS9 -> 0 | AP12: =[4]Lookup!AU9 -> 0 | AR12: =[4]Lookup!AY9 -> 0 | AS12: =[4]Lookup!BA9 -> 0
A13: =[4]Lookup!A10 -> 10300-0000 | B13: =[4]Lookup!G10 -> 31 | D13: =[4]Lookup!D10 -> Cash Draws | F13: =[4]Lookup!K10 -> 0 | H13: =[4]Lookup!L10 -> 0 | I13: =[4]Lookup!N10 -> 0 | K13: =[4]Lookup!O10 -> 0 | L13: =[4]Lookup!Q10 -> 0 | N13: =[4]Lookup!R10 -> 0 | O13: =[4]Lookup!T10 -> 0 | Q13: =[4]Lookup!U10 -> 0 | R13: =[4]Lookup!W10 -> 0 | T13: =[4]Lookup!X10 -> 0 | U13: =[4]Lookup!Z10 -> 0 | W13: =[4]Lookup!AA10 -> 0 | X13: =[4]Lookup!AC10 -> 0 | Z13: =[4]Lookup!AD10 -> 0 | AA13: =[4]Lookup!AF10 -> 0 | AC13: =[4]Lookup!AG10 -> 0 | AD13: =[4]Lookup!AI10 -> 0 | AF13: =[4]Lookup!AJ10 -> 0 | AG13: =[4]Lookup!AL10 -> 0 | AI13: =[4]Lookup!AM10 -> 0 | AJ13: =[4]Lookup!AO10 -> 0 | AL13: =[4]Lookup!AP10 -> 0 | AM13: =[4]Lookup!AR10 -> 0 | AO13: =[4]Lookup!AS10 -> 0 | AP13: =[4]Lookup!AU10 -> 0 | AR13: =[4]Lookup!AY10 -> 0 | AS13: =[4]Lookup!BA10 -> 0
A14: =[4]Lookup!A11 -> 10500-0000 | B14: =[4]Lookup!G11 -> 31 | D14: =[4]Lookup!D11 -> Petty Cash | F14: =[4]Lookup!K11 -> 0 | H14: =[4]Lookup!L11 -> 0 | I14: =[4]Lookup!N11 -> 0 | K14: =[4]Lookup!O11 -> 0 | L14: =[4]Lookup!Q11 -> 0 | N14: =[4]Lookup!R11 -> 0 | O14: =[4]Lookup!T11 -> 0 | Q14: =[4]Lookup!U11 -> 0 | R14: =[4]Lookup!W11 -> 0 | T14: =[4]Lookup!X11 -> 0 | U14: =[4]Lookup!Z11 -> 0 | W14: =[4]Lookup!AA11 -> 0 | X14: =[4]Lookup!AC11 -> 0 | Z14: =[4]Lookup!AD11 -> 0 | AA14: =[4]Lookup!AF11 -> 0 | AC14: =[4]Lookup!AG11 -> 0 | AD14: =[4]Lookup!AI11 -> 0 | AF14: =[4]Lookup!AJ11 -> 0 | AG14: =[4]Lookup!AL11 -> 0 | AI14: =[4]Lookup!AM11 -> 0 | AJ14: =[4]Lookup!AO11 -> 0 | AL14: =[4]Lookup!AP11 -> 0 | AM14: =[4]Lookup!AR11 -> 0 | AO14: =[4]Lookup!AS11 -> 0 | AP14: =[4]Lookup!AU11 -> 0 | AR14: =[4]Lookup!AY11 -> 0 | AS14: =[4]Lookup!BA11 -> 0
A15: =[4]Lookup!A12 -> 10550-0000 | B15: =[4]Lookup!G12 -> 31 | D15: =[4]Lookup!D12 -> Regal Bank Savings | F15: =[4]Lookup!K12 -> 50000 | H15: =[4]Lookup!L12 -> 0 | I15: =[4]Lookup!N12 -> 50000 | K15: =[4]Lookup!O12 -> 0 | L15: =[4]Lookup!Q12 -> 0 | N15: =[4]Lookup!R12 -> 0 | O15: =[4]Lookup!T12 -> 0 | Q15: =[4]Lookup!U12 -> 0 | R15: =[4]Lookup!W12 -> 0 | T15: =[4]Lookup!X12 -> 0 | U15: =[4]Lookup!Z12 -> 0 | W15: =[4]Lookup!AA12 -> 0 | X15: =[4]Lookup!AC12 -> 0 | Z15: =[4]Lookup!AD12 -> 0 | AA15: =[4]Lookup!AF12 -> 0 | AC15: =[4]Lookup!AG12 -> 0 | AD15: =[4]Lookup!AI12 -> 0 | AF15: =[4]Lookup!AJ12 -> 0 | AG15: =[4]Lookup!AL12 -> 0 | AI15: =[4]Lookup!AM12 -> 0 | AJ15: =[4]Lookup!AO12 -> 0 | AL15: =[4]Lookup!AP12 -> 0 | AM15: =[4]Lookup!AR12 -> 0 | AO15: =[4]Lookup!AS12 -> 0 | AP15: =[4]Lookup!AU12 -> 0 | AR15: =[4]Lookup!AY12 -> 50000 | AS15: =[4]Lookup!BA12 -> 50000
A16: =[4]Lookup!A13 -> 10600-0000 | B16: =[4]Lookup!G13 -> 31 | D16: =[4]Lookup!D13 -> Regal Bank Current | F16: =[4]Lookup!K13 -> 61705.62 | H16: =[4]Lookup!L13 -> -30791.61 | I16: =[4]Lookup!N13 -> 55765.14 | K16: =[4]Lookup!O13 -> 66759.97 | L16: =[4]Lookup!Q13 -> 13886.18 | N16: =[4]Lookup!R13 -> 37779.22 | O16: =[4]Lookup!T13 -> -52737.33 | Q16: =[4]Lookup!U13 -> -13719.54 | R16: =[4]Lookup!W13 -> -36150.5 | T16: =[4]Lookup!X13 -> 76266.03 | U16: =[4]Lookup!Z13 -> 92513.34 | W16: =[4]Lookup!AA13 -> -60313.46 | X16: =[4]Lookup!AC13 -> -35369.65 | Z16: =[4]Lookup!AD13 -> -27110.99 | AA16: =[4]Lookup!AF13 -> -9295.2 | AC16: =[4]Lookup!AG13 -> 14393.65 | AD16: =[4]Lookup!AI13 -> 2611.63 | AF16: =[4]Lookup!AJ13 -> 55755.54 | AG16: =[4]Lookup!AL13 -> 16848.9 | AI16: =[4]Lookup!AM13 -> 0 | AJ16: =[4]Lookup!AO13 -> -15398.98 | AL16: =[4]Lookup!AP13 -> 0 | AM16: =[4]Lookup!AR13 -> 671.29 | AO16: =[4]Lookup!AS13 -> 0 | AP16: =[4]Lookup!AU13 -> 28360.8 | AR16: =[4]Lookup!AY13 -> 180724.43 | AS16: =[4]Lookup!BA13 -> 61705.62
A17: =[4]Lookup!A14 -> 10670-0000 | B17: =[4]Lookup!G14 -> 31 | D17: =[4]Lookup!D14 -> Regal Bank: US Dollar | F17: =[4]Lookup!K14 -> 2879.29 | H17: =[4]Lookup!L14 -> 0 | I17: =[4]Lookup!N14 -> 0 | K17: =[4]Lookup!O14 -> 0 | L17: =[4]Lookup!Q14 -> 0 | N17: =[4]Lookup!R14 -> 0 | O17: =[4]Lookup!T14 -> 0 | Q17: =[4]Lookup!U14 -> 0 | R17: =[4]Lookup!W14 -> 0 | T17: =[4]Lookup!X14 -> 0 | U17: =[4]Lookup!Z14 -> 0 | W17: =[4]Lookup!AA14 -> 4099.88 | X17: =[4]Lookup!AC14 -> 0 | Z17: =[4]Lookup!AD14 -> 0 | AA17: =[4]Lookup!AF14 -> 0 | AC17: =[4]Lookup!AG14 -> 0 | AD17: =[4]Lookup!AI14 -> 2879.29 | AF17: =[4]Lookup!AJ14 -> 3700 | AG17: =[4]Lookup!AL14 -> 0 | AI17: =[4]Lookup!AM14 -> 0 | AJ17: =[4]Lookup!AO14 -> 0 | AL17: =[4]Lookup!AP14 -> 0 | AM17: =[4]Lookup!AR14 -> 0 | AO17: =[4]Lookup!AS14 -> 0 | AP17: =[4]Lookup!AU14 -> 0 | AR17: =[4]Lookup!AY14 -> 10679.17 | AS17: =[4]Lookup!BA14 -> 2879.29
A18: =[4]Lookup!A15 -> 10700-0000 | B18: =[4]Lookup!G15 -> 31 | D18: =[4]Lookup!D15 -> Oakville Dominion Bank: Payroll | F18: =[4]Lookup!K15 -> -4125 | H18: =[4]Lookup!L15 -> -15950.32 | I18: =[4]Lookup!N15 -> -10198.11 | K18: =[4]Lookup!O15 -> -3412.26 | L18: =[4]Lookup!Q15 -> -12855.45 | N18: =[4]Lookup!R15 -> 47154.33 | O18: =[4]Lookup!T15 -> -16107.94 | Q18: =[4]Lookup!U15 -> -5068.3 | R18: =[4]Lookup!W15 -> -15950.32 | T18: =[4]Lookup!X15 -> -5194.28 | U18: =[4]Lookup!Z15 -> -19273.21 | W18: =[4]Lookup!AA15 -> -5212.18 | X18: =[4]Lookup!AC15 -> 72674.74 | Z18: =[4]Lookup!AD15 -> -5820.63 | AA18: =[4]Lookup!AF15 -> -105.05 | AC18: =[4]Lookup!AG15 -> 9087.85 | AD18: =[4]Lookup!AI15 -> -449.5 | AF18: =[4]Lookup!AJ15 -> -6147.79 | AG18: =[4]Lookup!AL15 -> -348.19 | AI18: =[4]Lookup!AM15 -> 0 | AJ18: =[4]Lookup!AO15 -> -283.43 | AL18: =[4]Lookup!AP15 -> 0 | AM18: =[4]Lookup!AR15 -> -774.57 | AO18: =[4]Lookup!AS15 -> 0 | AP18: =[4]Lookup!AU15 -> -453.97 | AR18: =[4]Lookup!AY15 -> 5311.42 | AS18: =[4]Lookup!BA15 -> -4125
A19: =[4]Lookup!A16 -> 10800-0000 | B19: =[4]Lookup!G16 -> 31 | D19: =[4]Lookup!D16 -> Visa | F19: =[4]Lookup!K16 -> 0 | H19: =[4]Lookup!L16 -> 0 | I19: =[4]Lookup!N16 -> 0 | K19: =[4]Lookup!O16 -> 0 | L19: =[4]Lookup!Q16 -> 0 | N19: =[4]Lookup!R16 -> 0 | O19: =[4]Lookup!T16 -> 0 | Q19: =[4]Lookup!U16 -> 0 | R19: =[4]Lookup!W16 -> 0 | T19: =[4]Lookup!X16 -> 0 | U19: =[4]Lookup!Z16 -> 0 | W19: =[4]Lookup!AA16 -> 0 | X19: =[4]Lookup!AC16 -> 0 | Z19: =[4]Lookup!AD16 -> 0 | AA19: =[4]Lookup!AF16 -> 0 | AC19: =[4]Lookup!AG16 -> 0 | AD19: =[4]Lookup!AI16 -> 0 | AF19: =[4]Lookup!AJ16 -> 0 | AG19: =[4]Lookup!AL16 -> 0 | AI19: =[4]Lookup!AM16 -> 0 | AJ19: =[4]Lookup!AO16 -> 0 | AL19: =[4]Lookup!AP16 -> 0 | AM19: =[4]Lookup!AR16 -> 0 | AO19: =[4]Lookup!AS16 -> 0 | AP19: =[4]Lookup!AU16 -> 0 | AR19: =[4]Lookup!AY16 -> 0 | AS19: =[4]Lookup!BA16 -> 0
A20: =[4]Lookup!A17 -> 10830-0000 | B20: =[4]Lookup!G17 -> 31 | D20: =[4]Lookup!D17 -> MasterCard | F20: =[4]Lookup!K17 -> 0 | H20: =[4]Lookup!L17 -> 0 | I20: =[4]Lookup!N17 -> 0 | K20: =[4]Lookup!O17 -> 0 | L20: =[4]Lookup!Q17 -> 0 | N20: =[4]Lookup!R17 -> 0 | O20: =[4]Lookup!T17 -> 18427.5 | Q20: =[4]Lookup!U17 -> 0 | R20: =[4]Lookup!W17 -> 0 | T20: =[4]Lookup!X17 -> 0 | U20: =[4]Lookup!Z17 -> 0 | W20: =[4]Lookup!AA17 -> 0 | X20: =[4]Lookup!AC17 -> -18427.5 | Z20: =[4]Lookup!AD17 -> 0 | AA20: =[4]Lookup!AF17 -> 0 | AC20: =[4]Lookup!AG17 -> 0 | AD20: =[4]Lookup!AI17 -> 0 | AF20: =[4]Lookup!AJ17 -> 0 | AG20: =[4]Lookup!AL17 -> 0 | AI20: =[4]Lookup!AM17 -> 0 | AJ20: =[4]Lookup!AO17 -> 0 | AL20: =[4]Lookup!AP17 -> 0 | AM20: =[4]Lookup!AR17 -> 0 | AO20: =[4]Lookup!AS17 -> 0 | AP20: =[4]Lookup!AU17 -> 0 | AR20: =[4]Lookup!AY17 -> 0 | AS20: =[4]Lookup!BA17 -> 0
A21: =[4]Lookup!A18 -> 10870-0000 | B21: =[4]Lookup!G18 -> 31 | D21: =[4]Lookup!D18 -> American Express | F21: =[4]Lookup!K18 -> 0 | H21: =[4]Lookup!L18 -> 0 | I21: =[4]Lookup!N18 -> 0 | K21: =[4]Lookup!O18 -> 5434 | L21: =[4]Lookup!Q18 -> 4538.62 | N21: =[4]Lookup!R18 -> 0 | O21: =[4]Lookup!T18 -> 0 | Q21: =[4]Lookup!U18 -> 0 | R21: =[4]Lookup!W18 -> 0 | T21: =[4]Lookup!X18 -> 0 | U21: =[4]Lookup!Z18 -> 0 | W21: =[4]Lookup!AA18 -> 0 | X21: =[4]Lookup!AC18 -> -4538.62 | Z21: =[4]Lookup!AD18 -> 0 | AA21: =[4]Lookup!AF18 -> 0 | AC21: =[4]Lookup!AG18 -> 0 | AD21: =[4]Lookup!AI18 -> 0 | AF21: =[4]Lookup!AJ18 -> 4940 | AG21: =[4]Lookup!AL18 -> 0 | AI21: =[4]Lookup!AM18 -> 0 | AJ21: =[4]Lookup!AO18 -> 0 | AL21: =[4]Lookup!AP18 -> 0 | AM21: =[4]Lookup!AR18 -> 0 | AO21: =[4]Lookup!AS18 -> 0 | AP21: =[4]Lookup!AU18 -> 0 | AR21: =[4]Lookup!AY18 -> 10374 | AS21: =[4]Lookup!BA18 -> 0
A22: =[4]Lookup!A19 -> 10890-0000 | B22: =[4]Lookup!G19 -> 31 | D22: =[4]Lookup!D19 -> Other Credit Cards | F22: =[4]Lookup!K19 -> 0 | H22: =[4]Lookup!L19 -> 0 | I22: =[4]Lookup!N19 -> 0 | K22: =[4]Lookup!O19 -> 0 | L22: =[4]Lookup!Q19 -> 0 | N22: =[4]Lookup!R19 -> 0 | O22: =[4]Lookup!T19 -> 0 | Q22: =[4]Lookup!U19 -> 0 | R22: =[4]Lookup!W19 -> 0 | T22: =[4]Lookup!X19 -> 0 | U22: =[4]Lookup!Z19 -> 0 | W22: =[4]Lookup!AA19 -> 0 | X22: =[4]Lookup!AC19 -> 0 | Z22: =[4]Lookup!AD19 -> 0 | AA22: =[4]Lookup!AF19 -> 0 | AC22: =[4]Lookup!AG19 -> 0 | AD22: =[4]Lookup!AI19 -> 0 | AF22: =[4]Lookup!AJ19 -> 0 | AG22: =[4]Lookup!AL19 -> 0 | AI22: =[4]Lookup!AM19 -> 0 | AJ22: =[4]Lookup!AO19 -> 0 | AL22: =[4]Lookup!AP19 -> 0 | AM22: =[4]Lookup!AR19 -> 0 | AO22: =[4]Lookup!AS19 -> 0 | AP22: =[4]Lookup!AU19 -> 0 | AR22: =[4]Lookup!AY19 -> 0 | AS22: =[4]Lookup!BA19 -> 0
A23: =[4]Lookup!A21 -> 12000-0000 | B23: =[4]Lookup!G21 -> 31 | D23: =[4]Lookup!D21 -> Accounts Receivable | F23: =[4]Lookup!K21 -> 6655.8 | H23: =[4]Lookup!L21 -> 0 | I23: =[4]Lookup!N21 -> 6655.8 | K23: =[4]Lookup!O21 -> 0 | L23: =[4]Lookup!Q21 -> 0 | N23: =[4]Lookup!R21 -> 0 | O23: =[4]Lookup!T21 -> 0 | Q23: =[4]Lookup!U21 -> 0 | R23: =[4]Lookup!W21 -> 0 | T23: =[4]Lookup!X21 -> 0 | U23: =[4]Lookup!Z21 -> 0 | W23: =[4]Lookup!AA21 -> 0 | X23: =[4]Lookup!AC21 -> 0 | Z23: =[4]Lookup!AD21 -> 0 | AA23: =[4]Lookup!AF21 -> 0 | AC23: =[4]Lookup!AG21 -> 0 | AD23: =[4]Lookup!AI21 -> 0 | AF23: =[4]Lookup!AJ21 -> 0 | AG23: =[4]Lookup!AL21 -> 0 | AI23: =[4]Lookup!AM21 -> 0 | AJ23: =[4]Lookup!AO21 -> 0 | AL23: =[4]Lookup!AP21 -> 0 | AM23: =[4]Lookup!AR21 -> 0 | AO23: =[4]Lookup!AS21 -> 0 | AP23: =[4]Lookup!AU21 -> 0 | AR23: =[4]Lookup!AY21 -> 6655.8 | AS23: =[4]Lookup!BA21 -> 6655.8
A24: =[4]Lookup!A22 -> 12000-0100 | B24: =[4]Lookup!G22 -> 31 | D24: =[4]Lookup!D22 -> Accounts Receivable | F24: =[4]Lookup!K22 -> 0 | H24: =[4]Lookup!L22 -> 0 | I24: =[4]Lookup!N22 -> 0 | K24: =[4]Lookup!O22 -> 0 | L24: =[4]Lookup!Q22 -> 0 | N24: =[4]Lookup!R22 -> 0 | O24: =[4]Lookup!T22 -> 0 | Q24: =[4]Lookup!U22 -> 0 | R24: =[4]Lookup!W22 -> 0 | T24: =[4]Lookup!X22 -> 0 | U24: =[4]Lookup!Z22 -> 0 | W24: =[4]Lookup!AA22 -> 0 | X24: =[4]Lookup!AC22 -> 0 | Z24: =[4]Lookup!AD22 -> 0 | AA24: =[4]Lookup!AF22 -> 0 | AC24: =[4]Lookup!AG22 -> 0 | AD24: =[4]Lookup!AI22 -> 0 | AF24: =[4]Lookup!AJ22 -> 0 | AG24: =[4]Lookup!AL22 -> 0 | AI24: =[4]Lookup!AM22 -> 0 | AJ24: =[4]Lookup!AO22 -> 0 | AL24: =[4]Lookup!AP22 -> 0 | AM24: =[4]Lookup!AR22 -> 0 | AO24: =[4]Lookup!AS22 -> 0 | AP24: =[4]Lookup!AU22 -> 0 | AR24: =[4]Lookup!AY22 -> 0 | AS24: =[4]Lookup!BA22 -> 0
A25: =[4]Lookup!A23 -> 12000-0200 | B25: =[4]Lookup!G23 -> 31 | D25: =[4]Lookup!D23 -> Accounts Receivable | F25: =[4]Lookup!K23 -> 0 | H25: =[4]Lookup!L23 -> 0 | I25: =[4]Lookup!N23 -> 0 | K25: =[4]Lookup!O23 -> 0 | L25: =[4]Lookup!Q23 -> 0 | N25: =[4]Lookup!R23 -> 0 | O25: =[4]Lookup!T23 -> 0 | Q25: =[4]Lookup!U23 -> 0 | R25: =[4]Lookup!W23 -> 0 | T25: =[4]Lookup!X23 -> 0 | U25: =[4]Lookup!Z23 -> 0 | W25: =[4]Lookup!AA23 -> 0 | X25: =[4]Lookup!AC23 -> 0 | Z25: =[4]Lookup!AD23 -> 0 | AA25: =[4]Lookup!AF23 -> 0 | AC25: =[4]Lookup!AG23 -> 0 | AD25: =[4]Lookup!AI23 -> 0 | AF25: =[4]Lookup!AJ23 -> 0 | AG25: =[4]Lookup!AL23 -> 0 | AI25: =[4]Lookup!AM23 -> 0 | AJ25: =[4]Lookup!AO23 -> 0 | AL25: =[4]Lookup!AP23 -> 0 | AM25: =[4]Lookup!AR23 -> 0 | AO25: =[4]Lookup!AS23 -> 0 | AP25: =[4]Lookup!AU23 -> 0 | AR25: =[4]Lookup!AY23 -> 0 | AS25: =[4]Lookup!BA23 -> 0
